Workbook

Sheet Double Mass Curve
C1: Yearly Rainfall Totals
C2: Station 1 | D2: Base Station | E2: Cumulative 1 | F2: Cumulative 2
C3: 4085 | D3: 3248.6 | E3: =C3 -> 4085 | F3: =D3 -> 3248.6
C4: 5323.3 | D4: 4533.9 | E4: =E3+C4 -> 9408.3 | F4: =F3+D4 -> 7782.5
C5: 3266 | D5: 3097.6 | E5: =E4+C5 -> 12674.3 | F5: 10880.1
C6: 5310.4 | D6: 4357.9 | E6: 17984.7 | F6: 15238
C7: 5332.2 | D7: 3957 | E7: 23316.9 | F7: 19195
C8: 4344.315157 | D8: 3587 | E8: 27661.21516 | F8: 22782
C9: 4299.7 | D9: 3057.8 | E9: 31960.91516 | F9: 25839.8
C10: 5747.6 | D10: 4327.9 | E10: 37708.51516 | F10: 30167.7
C11: 6165.2 | D11: 3750.8 | E11: 43873.71516 | F11: 33918.5
C12: 4741.9 | D12: 3186.3 | E12: 48615.61516 | F12: 37104.8
C13: 4068.4 | D13: 3302.6 | E13: 52684.01516 | F13: 40407.4
C14: 5133.7 | D14: 3619.3 | E14: 57817.71516 | F14: 44026.7
C15: 5298.3 | D15: 3931 | E15: 63116.01516 | F15: 47957.7
C16: 4357.6 | D16: 3372.4 | E16: 67473.61516 | F16: 51330.1
C17: 5211.8 | D17: 4090.2 | E17: 72685.41516 | F17: 55420.3
C18: 2987 | D18: 3664.3 | E18: 75672.41516 | F18: 59084.6
C19: 4628.9 | D19: 4072 | E19: 80301.31516 | F19: 63156.6 | H19: Double mass analysis [1] is a commonly used data analysis approach for investigating the behaviour of records made of hydrological or meteorological data at a number of locations. It is used to determine whether there is a need for corrections to the data to account for changes in data collection procedures or other local conditions. Such changes may result from a variety of things including changes in instrumentation, changes in observation procedures, or changes in gauge location or surrounding conditions. Double mass analysis for checking consistency of a hydrologicalor meteorological record is considered to be an essential tool before taking it for analysis purpose. | I19: An example of a double mass analysis is a "double mass plot", or "double mass curve".[2] For this, points and/or a joining line are plotted where the x- and y- coordinates are determined by the running totals of the values observed at two stations. If both stations are affected to the same extent by the same trends then a double mass curve should follow a straight line. A break in the slope of the curve would indicate that conditions have changed at one location but not at another. This technique is based on the principle that when each recorded data comes from the sameparent population, they are consistent.
C20: 4965.7 | D20: 4596.4 | E20: 85267.01516 | F20: 67753
C21: 5535.5 | D21: 4402.75 | E21: =E20+C21 -> 90802.51516 | F21: 72155.75
C22: 4151.2 | D22: 3648.4 | E22: 94953.71516 | F22: 75804.15
C23: 4026.4 | D23: 3455.8 | E23: 98980.11516 | F23: 79259.95
C24: 3932.3 | D24: 3153.2 | E24: 102912.4152 | F24: 82413.15
C25: 4785.297304 | D25: 4090.1 | E25: 107697.7125 | F25: 86503.25
C26: 4934.4 | D26: 3728.2 | E26: 112632.1125 | F26: 90231.45
C27: 4170.4 | D27: 3426.2 | E27: 116802.5125 | F27: 93657.65
C28: 4567.5 | D28: 3728.2 | E28: 121370.0125 | F28: 97385.85
C29: 4408.501183 | D29: 3094 | E29: 125778.5136 | F29: 100479.85 | J29: Source: Wikipedia
C30: 4516.087928 | D30: 3901 | E30: 130294.6016 | F30: 104380.85
C31: 4087.609198 | D31: 3296 | E31: 134382.2108 | F31: 107676.85
C32: 4902.4 | D32: 4483.1 | E32: 139284.6108 | F32: 112159.95
C33: 3880.698313 | D33: 3115.3 | E33: 143165.3091 | F33: 115275.25

Sheet Regression
A1: 50
B2: X(i) | C2: 318.6 | D2: 58.5 | E2: 209.4 | F2: 396 | G2: 603.4 | H2: 1062 | I2: 663.4 | J2: 431.1 | K2: 404.2 | L2: 502.3 | M2: 425.9 | N2: 234.7 | O2: 64.1 | P2: 158.8 | Q2: 139.1 | R2: 353.5 | S2: 479.1 | T2: 608.7 | U2: 406.9 | V2: 238.2 | W2: 264.6 | X2: 864 | Y2: 730.5 | Z2: 215.1 | AA2: 95.9 | AB2: 116.1 | AC2: 147.3 | AD2: 416 | AE2: 280.6 | AF2: 363.2 | AG2: 453.6 | AH2: 192.3 | AI2: 419.1 | AJ2: 321.4 | AK2: 857.5 | AL2: 483.7 | AM2: 297.1 | AN2: 104.8 | AO2: 284.8 | AP2: 306.1 | AQ2: 272 | AR2: 556.7 | AS2: 864.8 | AT2: 323.3 | AU2: 478.7 | AV2: 208.3 | AW2: 892.1 | AX2: 330.5 | AY2: 166.7 | AZ2: 19.2 | BA2: 64.7 | BB2: 219.6 | BC2: 502.4 | BD2: 290.4 | BE2: 350.2 | BF2: 240.5 | BG2: 675.1 | BH2: 607.1 | BI2: 712.6 | BJ2: 166.5 | BK2: 166.2 | BL2: 137.3 | BM2: 259.2 | BN2: 413.1 | BO2: 594.4 | BP2: 619.1 | BQ2: 463.3 | BR2: 764 | BS2: 367.1 | BT2: 126.9 | BU2: 598.4 | BV2: 375 | BW2: 83.7 | BX2: 20.8 | BY2: 226.5 | BZ2: 350.9 | CA2: 116.7 | CB2: 706.8 | CC2: 670.7 | CD2: 339.8 | CE2: 591.9 | CF2: 514.8 | CG2: 432.8 | CH2: 259.1 | CI2: 351.7 | CJ2: 277.5 | CK2: 35.6 | CL2: 278 | CM2: 642.6 | CN2: 1170.3 | CO2: 601.2 | CP2: 218.1 | CQ2: 500.4 | CR2: 573.9 | CS2: 461.8 | CT2: 583.9 | CU2: 465.7 | CV2: 175.4 | CW2: 328.8 | CX2: 453.7 | CY2: 707.5 | CZ2: 575.6 | DA2: 123.7 | DB2: 290.7 | DC2: 600.2 | DD2: 118.6
B3: Y | C3: 197.9092896 | D3: 163.1526258 | E3: 181.8559693 | F3: 175.993865 | G3: 162.1535039 | H3: 158.3261608 | I3: 204.0707865 | J3: 198.1491562 | K3: 202.6632496 | L3: 221.8832744 | M3: 199.1662519 | N3: 199.0261987 | O3: 168.1864578 | P3: 172.5748384 | Q3: 204.2945508 | R3: 200.0078779 | S3: 214.3562714 | T3: 199.548577 | U3: 202.0746416 | V3: 213.0746562 | W3: 193.3851816 | X3: 228.4044226 | Y3: 213.7056191 | Z3: 201.6031746 | AA3: 210.9990557 | AB3: 155.2147298 | AC3: 180.1930484 | AD3: 218.5592748 | AE3: 215.4967412 | AF3: 208.8856071 | AG3: 231.6386792 | AH3: 218.8636364 | AI3: 220.0299625 | AJ3: 224.6854244 | AK3: 240.9113051 | AL3: 205.8587648 | AM3: 220.7350352 | AN3: 217.1448889 | AO3: 244.3866203 | AP3: 218.1369022 | AQ3: 224.7037348 | AR3: 219.5430177 | AS3: 212.9229759 | AT3: 201.9210293 | AU3: 227.3601414 | AV3: 207.284827 | AW3: 218.5281098 | AX3: 198.2259786 | AY3: 192.6972639 | AZ3: 132.2637308 | BA3: 112.9451505 | BB3: 169.8887297 | BC3: 202.6682156 | BD3: 196.676965 | BE3: 238.611237 | BF3: 227.3788151 | BG3: 239.9338072 | BH3: 229.3157664 | BI3: 229.8564635 | BJ3: 226.806867 | BK3: 216.8728814 | BL3: 194.9040747 | BM3: 259.8944306 | BN3: 189.1237331 | BO3: 235.2906129 | BP3: 180.9032397 | BQ3: 202.0725524 | BR3: 197.4078947 | BS3: 195.6814044 | BT3: 141.9335374 | BU3: 123.936297 | BV3: 122.9917993 | BW3: 103.1156566 | BX3: 72.50540216 | BY3: 155.2463908 | BZ3: 164.4866157 | CA3: 169.1062069 | CB3: 182.9183764 | CC3: 193.5282206 | CD3: 196.817576 | CE3: 194.5141129 | CF3: 209.4530526 | CG3: 200.3837209 | CH3: 174.5909996 | CI3: 195.5700119 | CJ3: 162.7330117 | CK3: 129.0709459 | CL3: 194.3432169 | CM3: 167.7289256 | CN3: 197.56509 | CO3: 177.3626921 | CP3: 187.8658892 | CQ3: 185.8856794 | CR3: 200.5540487 | CS3: 169.516996 | CT3: 194.8727634 | CU3: 163.371143 | CV3: 160.4148681 | CW3: 204.1666013 | CX3: 181.5116463 | CY3: 195.3530106 | CZ3: 181.4775591 | DA3: 171.9438694 | DB3: 198.1339392 | DC3: 184.0281978 | DD3: 183.1654253
B5: x | C5: x1 | D5: x2 | E5: x3 | F5: x4 | G5: x5 | H5: x6 | I5: x7 | J5: x8 | K5: x9 | L5: x10 | M5: x11 | N5: x12 | O5: x13 | P5: x14 | Q5: x15 | R5: x16 | S5: x17 | T5: x18 | U5: x19 | V5: x20 | W5: x21 | X5: x22 | Y5: x23 | Z5: x24 | AA5: x25 | AB5: x26 | AC5: x27 | AD5: x28 | AE5: x29 | AF5: x30 | AG5: x31 | AH5: x32 | AI5: x33 | AJ5: x34 | AK5: x35 | AL5: x36 | AM5: x37 | AN5: x38 | AO5: x39 | AP5: x40 | AQ5: x41 | AR5: x42 | AS5: x43 | AT5: x44 | AU5: x45 | AV5: x46 | AW5: x47 | AX5: x48 | AY5: x49 | AZ5: x50 | BA5: x51 | BB5: x52 | BC5: x53 | BD5: x54 | BE5: x55 | BF5: x56 | BG5: x57 | BH5: x58 | BI5: x59 | BJ5: x60 | BK5: x61 | BL5: x62 | BM5: x63 | BN5: x64 | BO5: x65 | BP5: x66 | BQ5: x67 | BR5: x68 | BS5: x69 | BT5: x70 | BU5: x71 | BV5: x72 | BW5: x73 | BX5: x74 | BY5: x75 | BZ5: x76 | CA5: x77 | CB5: x78 | CC5: x79 | CD5: x80 | CE5: x81 | CF5: x82 | CG5: x83 | CH5: x84 | CI5: x85 | CJ5: x86 | CK5: x87 | CL5: x88 | CM5: x89 | CN5: x90 | CO5: x91 | CP5: x92 | CQ5: x93 | CR5: x94 | CS5: x95 | CT5: x96 | CU5: x97 | CV5: x98 | CW5: x99 | CX5: x100 | CY5: x101 | CZ5: x102 | DA5: x103 | DB5: x104 | DC5: x105 | DD5: x106 | DE5: est y
B6: 5 | C6: =+EXP(-(($B6-C$2)^2/(2*alpha^2))) -> 2.869890389e-09 | D6: =+EXP(-(($B6-D$2)^2/(2*alpha^2))) -> 0.5641415973 | E6: 0.0002350124656 | F6: 5.259265099e-14 | G6: 7.894852587e-32 | H6: 9.057010633e-98 | I6: 2.225811423e-38 | J6: 1.697437037e-16 | K6: 1.439165313e-14 | L6: 3.304925878e-22 | M6: =+EXP(-(($B6-M$2)^2/(2*alpha^2))) -> 4.095953307e-16 | N6: 2.613022154e-05 | O6: 0.4972999071 | P6: 0.008818636612 | Q6: 0.02741782307 | R6: 2.82352477e-11 | S6: 2.996784438e-20 | T6: 2.207774459e-32 | U6: 9.337647949e-15 | V6: 1.889812211e-05 | W6: =+EXP(-(($B6-W$2)^2/(2*alpha^2))) -> 1.400849107e-06 | X6: 8.099732566e-65 | Y6: 1.913366542e-46 | Z6: 0.000146512179 | AA6: 0.1915585065 | AB6: 0.08469980327 | AC6: 0.01742484879 | AD6: 2.126710447e-15 | AE6: 2.526976809e-07 | AF6: 7.167616094e-12 | AG6: =+EXP(-(($B6-AG$2)^2/(2*alpha^2))) -> 3.313946164e-18 | AH6: 0.0008971764536 | AI6: 1.275086979e-15 | AJ6: 2.016722839e-09 | AK6: 7.494698857e-64 | AL6: 1.247278353e-20 | AM6: 3.881410987e-08 | AN6: 0.1364212164 | AO6: 1.584846649e-07 | AP6: 1.33434261e-08 | AQ6: =+EXP(-(($B6-AQ$2)^2/(2*alpha^2))) -> 6.425636236e-07 | AR6: 3.651797495e-27 | AS6: 6.152281844e-65 | AT6: 1.584530006e-09 | AU6: 3.23284922e-20 | AV6: 0.000257065922 | AW6: 4.433057012e-69 | AX6: 6.270154089e-10 | AY6: 0.005356856231 | AZ6: 0.9604743519 | BA6: =+EXP(-(($B6-BA$2)^2/(2*alpha^2))) -> 0.4902606944 | BB6: 9.997084145e-05 | BC6: 3.239827365e-22 | BD6: 8.415276995e-08 | BE6: 4.463030515e-11 | BF6: 1.523294563e-05 | BG6: 9.940344915e-40 | BH6: 3.24735551e-32 | BI6: 3.235527878e-44 | BJ6: 0.005426559258 | BK6: =+EXP(-(($B6-BK$2)^2/(2*alpha^2))) -> 0.005532652069 | BL6: 0.03017752008 | BM6: 2.439962226e-06 | BN6: 3.420047346e-15 | BO6: 6.697041641e-31 | BP6: 1.753381254e-33 | BQ6: 5.704975945e-19 | BR6: 9.167271931e-51 | BS6: 4.086705384e-12 | BT6: 0.05120480007 | BU6: =+EXP(-(($B6-BU$2)^2/(2*alpha^2))) -> 2.599777548e-31 | BV6: 1.285337225e-12 | BW6: 0.2897496514 | BX6: 0.9512979155 | BY6: 5.476550681e-05 | BZ6: 4.051446683e-11 | CA6: 0.08246527363 | CB6: 1.659491116e-43 | CC6: 3.220448472e-39 | CD6: 1.836098482e-10 | CE6: =+EXP(-(($B6-CE$2)^2/(2*alpha^2))) -> 1.205905564e-30 | CF6: 2.665120144e-23 | CG6: 1.269716298e-16 | CH6: 2.464893392e-06 | CI6: 3.626463834e-11 | CJ6: 3.549638087e-07 | CK6: 0.8292181584 | CL6: 3.361191926e-07 | CM6: 4.885694024e-36 | CN6: 1.127748281e-118 | CO6: =+EXP(-(($B6-CO$2)^2/(2*alpha^2))) -> 1.335425387e-31 | CP6: 0.0001136573884 | CQ6: 4.819354731e-22 | CR6: 7.7332228e-29 | CS6: 7.507246596e-19 | CT6: 7.787429179e-30 | CU6: 3.670099476e-19 | CV6: 0.003005738452 | CW6: 7.819048953e-10 | CX6: 3.255004551e-18 | CY6: =+EXP(-(($B6-CY$2)^2/(2*alpha^2))) -> 1.363301046e-43 | CZ6: 5.249305052e-29 | DA6: 0.05972897697 | DB6: 8.1318036e-08 | DC6: 1.694740925e-31 | DD6: 0.07569887348 | DE6: =IFERROR(SUMPRODUCT(C6:DD6,$C$3:$DD$3)/SUM(C6:DD6),"") -> 132.7891856
B7: =B6+1 -> 6 | C7: 3.252792431e-09 | D7: 0.5762290737 | E7: 0.0002549834288 | F7: 6.148396413e-14 | G7: 1.002789767e-31 | H7: 1.382030812e-97 | I7: 2.895858271e-38 | J7: 2.012463287e-16 | K7: 1.687998153e-14 | L7: 4.031481982e-22 | M7: 4.846028424e-16 | N7: 2.863908972e-05 | O7: 0.5090943073 | P7: 0.009376319222 | Q7: 0.02892288872 | R7: 3.245229341e-11 | S7: 3.621831582e-20 | T7: 2.810226193e-32 | U7: 1.096396948e-14 | V7: 2.074162515e-05 | W7: 1.55382333e-06 | X7: 1.141845658e-64 | Y7: 2.557075641e-46 | Z7: 0.0001593253851 | AA7: 0.1986120211 | AB7: 0.08853104478 | AC7: 0.01844175301 | AD7: 2.506221887e-15 | AE7: 2.820921631e-07 | AF7: 8.27015388e-12 | AG7: 3.964499723e-18 | AH7: 0.0009667815431 | AI7: 1.504490639e-15 | AJ7: 2.288356414e-09 | AK7: 1.05380862e-63 | AL7: 1.510202669e-20 | AM7: 4.361599047e-08 | AN7: 0.1419489206 | AO7: 1.77217508e-07 | AP7: 1.504828208e-08 | AQ7: 7.148450722e-07 | AR7: 4.55260461e-27 | AS7: 8.675847752e-65 | AT7: 1.799318239e-09 | AU7: 3.90650792e-20 | AV7: 0.0002787882569 | AW7: 6.320064518e-69 | AX7: 7.140629444e-10 | AY7: 0.005713645601 | AZ7: 0.9657521994 | BA7: 0.502008614 | BB7: 0.0001089096411 | BC7: 3.952230274e-22 | BD7: 9.431062324e-08 | BE7: 5.122835134e-11 | BF7: 1.673430088e-05 | BG7: 1.299340238e-39 | BH7: 4.130840825e-32 | BI7: 4.293198781e-44 | BJ7: 0.005787528125 | BK7: 0.005899970076 | BL7: 0.03181116342 | BM7: 2.700569179e-06 | BN7: 4.025682231e-15 | BO7: 8.475891867e-31 | BP7: 2.241143146e-33 | BQ7: 6.851439436e-19 | BR7: 1.241666774e-50 | BS7: 4.722692661e-12 | BT7: 0.05375266671 | BU7: 3.295592214e-31 | BV7: 1.490067046e-12 | BW7: 0.2989562612 | BX7: 0.9571377103 | BY7: 5.982720903e-05 | BZ7: 4.651705948e-11 | CA7: 0.08621612964 | CB7: 2.196864241e-43 | CC7: 4.202168186e-39 | CD7: 2.098794075e-10 | CE7: 1.524689511e-30 | CF7: 3.267316935e-23 | CG7: 1.506386125e-16 | CH7: 2.728054064e-06 | CI7: 4.165090579e-11 | CJ7: 3.957631147e-07 | CK7: 0.8392622893 | CL7: 3.748274688e-07 | CM7: 6.303791941e-36 | CN7: 1.797043785e-118 | CO7: 1.694740925e-31 | CP7: 0.0001237456882 | CQ7: 5.8743772e-22 | CR7: 9.70737297e-29 | CS7: 9.010483807e-19 | CT7: 9.814597221e-30 | CU7: 4.411870578e-19 | CV7: 0.003217109479 | CW7: 8.89850184e-10 | CX7: 3.894143173e-18 | CY7: 1.805267894e-43 | CZ7: 6.593838793e-29 | DA7: 0.06262078671 | DB7: 9.114465292e-08 | DC7: 2.149875391e-31 | DD7: 0.07920213686 | DE7: =IFERROR(SUMPRODUCT(C7:DD7,$C$3:$DD$3)/SUM(C7:DD7),"") -> 133.1221773
B8: =B7+1 -> 7 | C8: 3.685307015e-09 | D8: 0.588340157 | E8: 0.0002765408523 | F8: 7.184969697e-14 | G8: 1.273215872e-31 | H8: 2.108030334e-97 | I8: 3.766105839e-38 | J8: 2.385000867e-16 | K8: 1.979062607e-14 | L8: 4.915797731e-22 | M8: 5.731168794e-16 | N8: 3.137629144e-05 | O8: 0.5209600081 | P8: 0.009965282266 | Q8: 0.0304983712 | R8: 3.728425486e-11 | S8: 4.375495891e-20 | T8: 3.575642842e-32 | U8: 1.286839615e-14 | V8: 2.275585689e-05 | W8: 1.722813238e-06 | X8: 1.609053232e-64 | Y8: 3.41597951e-46 | Z8: 0.0001731898788 | AA8: 0.2058429046 | AB8: 0.0924985787 | AC8: 0.01951019753 | AD8: 2.95227599e-15 | AE8: 3.147799543e-07 | AF8: 9.538470197e-12 | AG8: 4.74086531e-18 | AH8: 0.00104137013 | AI8: 1.774456883e-15 | AJ8: 2.595538052e-09 | AK8: 1.481138218e-63 | AL8: 1.827819744e-20 | AM8: 4.8992334e-08 | AN8: 0.1476415356 | AO8: 1.98085318e-07 | AP8: 1.696417618e-08 | AQ8: 7.949393615e-07 | AR8: 5.673348517e-27 | AS8: 1.22296465e-64 | AT8: 2.042404595e-09 | AU8: 4.718655276e-20 | AV8: 0.0003022252372 | AW8: 9.00670605e-69 | AX8: 8.128699356e-10 | AY8: 0.006091761466 | AZ8: 0.970670703 | BA8: 0.5138324703 | BB8: 0.0001186002457 | BC8: 4.819354731e-22 | BD8: 1.056523341e-07 | BE8: 5.877832215e-11 | BF8: 1.837627734e-05 | BG8: 1.697737745e-39 | BH8: 5.252588359e-32 | BI8: 5.694336542e-44 | BJ8: 0.006170039741 | BK8: 0.006289158506 | BL8: 0.03351983251 | BM8: 2.987815618e-06 | BN8: 4.736670179e-15 | BO8: 1.072294548e-30 | BP8: 2.863446785e-33 | BQ8: 8.225003868e-19 | BR8: 1.681110605e-50 | BS8: 5.45547186e-12 | BT8: 0.05640474459 | BU8: 4.175966727e-31 | BV8: 1.726715615e-12 | BW8: 0.3083320476 | BX8: 0.9626282259 | BY8: 6.533060163e-05 | BZ8: 5.338763239e-11 | CA8: 0.09010154202 | CB8: 2.907085401e-43 | CC8: 5.480961966e-39 | CD8: 2.398114803e-10 | CE8: 1.926973794e-30 | CF8: 4.003981091e-23 | CG8: 1.786455498e-16 | CH8: 3.01810321e-06 | CI8: 4.781804678e-11 | CJ8: 4.410754005e-07 | CK8: 0.8490883793 | CL8: 4.178263171e-07 | CM8: 8.130247353e-36 | CN8: 2.862407269e-118 | CO8: 2.149875391e-31 | CP8: 0.0001346755507 | CQ8: 7.157494903e-22 | CR8: 1.218061431e-28 | CS8: 1.081040144e-18 | CT8: 1.23645164e-29 | CU8: 5.301441512e-19 | CV8: 0.003441967581 | CW8: 1.01229278e-09 | CX8: 4.656917152e-18 | CY8: 2.389559403e-43 | CZ8: 8.27944301e-29 | DA8: 0.06562634914 | DB8: 1.021178805e-07 | DC8: 2.726148706e-31 | DD8: 0.08283438716 | DE8: 133.4584412
B9: 8 | C9: 4.173662038e-09 | D9: 0.6004655548 | E9: 0.0002998008911 | F9: 8.392943573e-14 | G9: 1.615922309e-31 | H9: 3.214121341e-97 | I9: 4.895916713e-38 | J9: 2.825370448e-16 | K9: 2.31938787e-14 | L9: 5.991693215e-22 | M9: 6.775271826e-16 | N9: 3.43613559e-05 | O9: 0.5328890702 | P9: 0.01058700472 | Q9: 0.03214681179 | R9: 4.281853698e-11 | S9: 5.283875686e-20 | T9: 4.547715304e-32 | U9: 1.509757893e-14 | V9: 2.495570761e-05 | W9: 1.909418142e-06 | X9: 2.266520762e-64 | Y9: 4.561558209e-46 | Z9: 0.0001881855714 | AA9: 0.2132517258 | AB9: 0.09660526849 | AC9: 0.02063228906 | AD9: 3.476327411e-15 | AE9: 3.511150112e-07 | AF9: 1.099689671e-11 | AG9: 5.666998848e-18 | AH9: 0.001121264738 | AI9: 2.092028972e-15 | AJ9: 2.942777423e-09 | AK9: 2.080921571e-63 | AL9: 2.211351484e-20 | AM9: 5.500938665e-08 | AN9: 0.1535010303 | AO9: 2.21321819e-07 | AP9: 1.911634708e-08 | AQ9: 8.836542241e-07 | AR9: 7.067165717e-27 | AS9: 1.723225718e-64 | AT9: 2.317404564e-09 | AU9: 5.697365414e-20 | AV9: 0.0003275014747 | AW9: 1.283029815e-68 | AX9: 9.249790753e-10 | AY9: 0.006492302725 | AZ9: 0.9752240885 | BA9: 0.525724483 | BB9: 0.0001291014537 | BC9: 5.8743772e-22 | BD9: 1.183106553e-07 | BE9: 6.741402727e-11 | BF9: 2.017129508e-05 | BG9: 2.217402857e-39 | BH9: 6.676280198e-32 | BI9: 7.549732195e-44 | BJ9: 0.006575201862 | BK9: 0.006701338476 | BL9: 0.03530615386 | BM9: 3.304293085e-06 | BN9: 5.570999019e-15 | BO9: 1.35602929e-30 | BP9: 3.657083855e-33 | BQ9: 9.869989276e-19 | BR9: 2.275169715e-50 | BS9: 6.299429766e-12 | BT9: 0.05916400179 | BU9: 5.289405633e-31 | BV9: 2.000147876e-12 | BW9: 0.3178746997 | BX9: 0.9677630546 | BY9: 7.13117106e-05 | BZ9: 6.124848509e-11 | CA9: 0.09412439693 | CB9: 3.845374505e-43 | CC9: 7.146056219e-39 | CD9: 2.739027499e-10 | CE9: 2.434425489e-30 | CF9: 4.9047746e-23 | CG9: 2.117748483e-16 | CH9: 3.337655312e-06 | CI9: 5.487638531e-11 | CJ9: 4.913790554e-07 | CK9: 0.8586859701 | CL9: 4.655715716e-07 | CM9: 1.048170491e-35 | CN9: 4.557539859e-118 | CO9: 2.726148706e-31 | CP9: 0.000146512179 | CQ9: 8.717391436e-22 | CR9: 1.52778749e-28 | CS9: 1.296468039e-18 | CT9: 1.557069761e-29 | CU9: 6.367830093e-19 | CV9: 0.003681069294 | CW9: 1.151122827e-09 | CX9: 5.566873991e-18 | CY9: 3.161697284e-43 | CZ9: 1.039178611e-28 | DA9: 0.06874866231 | DB9: 1.14366458e-07 | DC9: 3.455509393e-31 | DD9: 0.08659856794 | DE9: 133.7979646
B10: 9 | C10: 4.724840657e-09 | D10: 0.6125957636 | E10: 0.0003248873666 | F10: 9.80008738e-14 | G10: 2.050053485e-31 | H10: 4.898622389e-97 | I10: 6.362119228e-38 | J10: 3.345711873e-16 | K10: 2.717149362e-14 | L10: 7.300143795e-22 | M10: 8.006386117e-16 | N10: 3.761536302e-05 | O10: 0.5448732937 | P10: 0.01124301761 | Q10: 0.03387079975 | R10: 4.915463356e-11 | S10: 6.378288874e-20 | T10: 5.781741737e-32 | U10: 1.770583763e-14 | V10: 2.735727686e-05 | W10: 2.115388657e-06 | X10: 3.191356149e-64 | Y10: 6.088880737e-46 | Z10: 0.0002043978946 | AA10: 0.2208388564 | AB10: 0.1008539347 | AC10: 0.02181018972 | AD10: 4.091764908e-15 | AE10: 3.914875981e-07 | AF10: 1.267324548e-11 | AG10: 6.771344567e-18 | AH10: 0.001206806095 | AI10: 2.465450119e-15 | AJ10: 3.335137263e-09 | AK10: 2.922416547e-63 | AL10: 2.674289827e-20 | AM10: 6.174072964e-08 | AN10: 0.1595292481 | AO10: 2.47185196e-07 | AP10: 2.15329396e-08 | AQ10: 9.818767948e-07 | AR10: 8.799892547e-27 | AS10: 2.427150539e-64 | AT10: 2.628380395e-09 | AU10: 6.876321614e-20 | AV10: 0.0003547497311 | AW10: 1.826979988e-68 | AX10: 1.052129112e-09 | AY10: 0.006916412975 | AZ10: 0.9794069927 | BA10: 0.537676608 | BB10: 0.0001404762672 | BC10: 7.157494903e-22 | BD10: 1.324326e-07 | BE10: 7.728756809e-11 | BF10: 2.21327975e-05 | BG10: 2.894975438e-39 | BH10: 8.482464018e-32 | BI10: 1.00056716e-43 | BJ10: 0.007004167149 | BK10: 0.007137676327 | BL10: 0.03717279881 | BM10: 3.652831272e-06 | BN10: 6.54966822e-15 | BO10: 1.714155929e-30 | BP10: 4.668818626e-33 | BQ10: 1.183923205e-18 | BR10: 3.077921864e-50 | BS10: 7.271038407e-12 | BT10: 0.06203342043 | BU10: 6.697041641e-31 | BV10: 2.315952653e-12 | BW10: 0.327581631 | BX10: 0.9725361811 | BY10: 7.780926862e-05 | BZ10: 7.023867715e-11 | CA10: 0.09828754144 | CB10: 5.084471031e-43 | CC10: 9.313273371e-39 | CD10: 3.127152762e-10 | CE10: 3.074280192e-30 | CF10: 6.005820839e-23 | CG10: 2.509474799e-16 | CH10: 3.689564974e-06 | CI10: 6.295140729e-11 | CJ10: 5.472008047e-07 | CK10: 0.868044759 | CL10: 5.185652362e-07 | CM10: 1.350785473e-35 | CN10: 7.253636819e-118 | CO10: 3.455509393e-31 | CP10: 0.0001593253851 | CQ10: 1.061300404e-21 | CR10: 1.915503675e-28 | CS10: 1.554204243e-18 | CT10: 1.960041599e-29 | CU10: 7.64566459e-19 | CV10: 0.003935206188 | CW10: 1.308469112e-09 | CX10: 6.651974141e-18 | CY10: 4.181662935e-43 | CZ10: 1.303783737e-28 | DA10: 0.07199072412 | DB10: 1.280329736e-07 | DC10: 4.378253422e-31 | DD10: 0.09049759529 | DE10: 134.1407329
B11: 10 | C11: 5.346669464e-09 | D11: 0.6247210805 | E11: 0.0003519322051 | F11: 1.14385737e-13 | G11: 2.599777548e-31 | H11: 7.462974195e-97 | I11: 8.264105796e-38 | J11: 3.960298843e-16 | K11: 3.181851633e-14 | L11: 8.890773431e-22 | M11: 9.457418764e-16 | N11: 4.116105564e-05 | O11: 0.556904226 | P11: 0.01193490475 | Q11: 0.03567297071 | R11: 5.640575069e-11 | S11: 7.696301277e-20 | T11: 7.347682635e-32 | U11: 2.075639506e-14 | V11: 2.997796339e-05 | W11: 2.342640139e-06 | X11: 4.491766039e-64 | Y11: 8.124338242e-46 | Z11: 0.0002219181362 | AA11: 0.2286044641 | AB11: 0.1052473484 | AC11: 0.02304611662 | AD11: 4.814231345e-15 | AE11: 4.36327818e-07 | AF11: 1.459929319e-11 | AG11: 8.087661865e-18 | AH11: 0.001298353962 | AI11: 2.904363888e-15 | AJ11: 3.77829873e-09 | AK11: 4.102558726e-63 | AL11: 3.23284922e-20 | AM11: 6.926805527e-08 | AN11: 0.1657278987 | AO11: 2.759605269e-07 | AP11: 2.424532552e-08 | AQ11: 1.090580974e-06 | AR11: 1.095306703e-26 | AS11: 3.417256211e-64 | AT11: 2.97989432e-09 | AU11: 8.295920267e-20 | AV11: 0.0003841113782 | AW11: 2.600501533e-68 | AX11: 1.196278917e-09 | AY11: 0.007365281562 | AZ11: 0.9832144735 | BA11: 0.5496805432 | BB11: 0.0001527921587 | BC11: 8.717391436e-22 | BD11: 1.481809018e-07 | BE11: 8.857176399e-11 | BF11: 2.427532878e-05 | BG11: 3.778082579e-39 | BH11: 1.077297815e-31 | BI11: 1.325522868e-43 | BJ11: 0.007458134225 | BK11: 0.007599384666 | BL11: 0.03912248161 | BM11: 4.03651848e-06 | BN11: 7.697182824e-15 | BO11: 2.165997057e-30 | BP11: 5.958066816e-33 | BQ11: 1.419569524e-18 | BR11: 4.162245239e-50 | BS11: 8.389149259e-12 | BT11: 0.06501599256 | BU11: 8.475891867e-31 | BV11: 2.680547637e-12 | BW11: 0.3374499756 | BX11: 0.9769419942 | BY11: 8.486489811e-05 | BZ11: 8.051625713e-11 | CA11: 0.1025937771 | CB11: 6.720153515e-43 | CC11: 1.213289825e-38 | CD11: 3.568848269e-10 | CE11: 3.880759143e-30 | CF11: 7.35109395e-23 | CG11: 2.972470686e-16 | CH11: 4.076947546e-06 | CI11: 7.218578306e-11 | CJ11: 6.091203316e-07 | CK11: 0.877154617 | CL11: 5.773599123e-07 | CM11: 1.740071588e-35 | CN11: 1.154004284e-117 | CO11: 4.378253422e-31 | CP11: 0.0001731898788 | CQ11: 1.291565377e-21 | CR11: 2.400652568e-28 | CS11: 1.862432956e-18 | CT11: 2.466316389e-29 | CU11: 9.176251307e-19 | CV11: 0.004205205989 | CW11: 1.486728156e-09 | CX11: 7.945404203e-18 | CY11: 5.528458358e-43 | CZ11: 1.635110856e-28 | DA11: 0.07535552742 | DB11: 1.432752832e-07 | DC11: 5.545184441e-31 | DD11: 0.09453435175 | DE11: 134.4867293
B12: 11 | C12: 6.047916526e-09 | D12: 0.6368316144 | E12: 0.0003810758962 | F12: 1.334566085e-13 | G12: 3.295592214e-31 | H12: 1.136517688e-96 | I12: 1.07304075e-37 | J12: 4.685906974e-16 | K12: 3.724539805e-14 | L12: 1.082365532e-21 | M12: 1.116696078e-15 | N12: 4.502295892e-05 | O12: 0.5689731694 | P12: 0.01266430339 | Q12: 0.03755600475 | R12: 6.470064147e-11 | S12: 9.282954416e-20 | T12: 9.334012398e-32 | U12: 2.432280518e-14 | V12: 3.283656096e-05 | W12: 2.593267226e-06 | X12: 6.319537036e-64 | Y12: 1.083589547e-45 | Z12: 0.0002408437921 | AA12: 0.2365485043 | AB12: 0.1097882246 | AC12: 0.02434234141 | AD12: 5.661995517e-15 | AE12: 4.861094659e-07 | AF12: 1.681133088e-11 | AG12: 9.656001836e-18 | AH12: 0.001396287989 | AI12: 3.420047346e-15 | AJ12: 4.278634159e-09 | AK12: 5.75696749e-63 | AL12: 3.90650792e-20 | AM12: 7.768202071e-08 | AN12: 0.1720985502 | AO12: 3.079624429e-07 | AP12: 2.728845822e-08 | AQ12: 1.210835428e-06 | AR12: 1.36276322e-26 | AS12: 4.809330819e-64 | AT12: 3.377067863e-09 | AU12: 1.000458872e-19 | AV12: 0.0004157368791 | AW12: 3.700042565e-68 | AX12: 1.359634396e-09 | AY12: 0.007840144607 | AZ12: 0.9866420204 | BA12: 0.5617277371 | BB12: 0.0001661213521 | BC12: 1.061300404e-21 | BD12: 1.657356148e-07 | BE12: 1.0146289e-10 | BF12: 2.661461652e-05 | BG12: 4.928608155e-39 | BH12: 1.367652659e-31 | BI12: 1.755312667e-43 | BJ12: 0.007938348681 | BK12: 0.008087723373 | BL12: 0.0411579572 | BM12: 4.458723695e-06 | BN12: 9.042126643e-15 | BO12: 2.735846214e-30 | BP12: 7.600287449e-33 | BQ12: 1.701437827e-18 | BR12: 5.626314725e-50 | BS12: 9.675327766e-12 | BT12: 0.06811471567 | BU12: 1.072294548e-30 | BV12: 3.101299186e-12 | BW12: 0.3474765841 | BX12: 0.9809752982 | BY12: 9.252330493e-05 | BZ12: 9.226077847e-11 | CA12: 0.1070458534 | CB12: 8.878485572e-43 | CC12: 1.579985285e-38 | CD12: 4.071302325e-10 | CE12: 4.896843382e-30 | CF12: 8.994102987e-23 | CG12: 3.519480832e-16 | CH12: 4.503201364e-06 | CI12: 8.274165108e-11 | CJ12: 6.777753135e-07 | CK12: 0.886005607 | CL12: 6.425636236e-07 | CM12: 2.240650566e-35 | CN12: 1.835208099e-117 | CO12: 5.545184441e-31 | CP12: 0.0001881855714 | CQ12: 1.571161183e-21 | CR12: 3.007474241e-28 | CS12: 2.230896837e-18 | CT12: 3.102119839e-29 | CU12: 1.100884199e-18 | CV12: 0.004491933708 | CW12: 1.688596713e-09 | CX12: 9.486537363e-18 | CY12: 7.306095493e-43 | CZ12: 2.04981717e-28 | DA12: 0.07884605488 | DB12: 1.602680678e-07 | DC12: 7.020327594e-31 | DD12: 0.09871168011 | DE12: 134.8359349
B13: 12 | C13: 6.838400347e-09 | D13: 0.6489172982 | E13: 0.0004124679715 | F13: 1.556447855e-13 | G13: 4.175966727e-31 | H13: 1.73008221e-96 | I13: 1.392716896e-37 | J13: 5.542244083e-16 | K13: 4.358043865e-14 | L13: 1.31714821e-21 | M13: 1.318024988e-15 | N13: 4.922750726e-05 | O13: 0.5810711897 | P13: 0.0134329048 | Q13: 0.03952262446 | R13: 7.418567824e-11 | S13: 1.119223081e-19 | T13: 1.185257301e-31 | U13: 2.849060532e-14 | V13: 3.595336054e-05 | W13: 2.86955957e-06 | X13: 8.887501391e-64 | Y13: 1.444667491e-45 | Z13: 0.0002612789363 | AA13: 0.2446707133 | AB13: 0.1144792151 | AC13: 0.02570118961 | AD13: 6.656384005e-15 | AE13: 5.413542319e-07 | AF13: 1.935078749e-11 | AG13: 1.152386006e-17 | AH13: 0.001501008595 | AI13: 4.025682231e-15 | AJ13: 4.843288039e-09 | AK13: 8.075306771e-63 | AL13: 4.718655276e-20 | AM13: 8.708318724e-08 | AN13: 0.1786426209 | AO13: 3.435380362e-07 | AP13: 3.070126432e-08 | AQ13: 1.343812278e-06 | AR13: 1.694850299e-26 | AS13: 6.765782688e-64 | AT13: 3.825647894e-09 | AU13: 1.206035781e-19 | AV13: 0.0004497862896 | AW13: 5.262384882e-68 | AX13: 1.54467856e-09 | AY13: 0.008342285995 | AZ13: 0.9896855624 | BA13: 0.5738093963 | BB13: 0.000180541119 | BC13: 1.291565377e-21 | BD13: 1.852958685e-07 | BE13: 1.161837647e-10 | BF13: 2.91676599e-05 | BG13: 6.426927763e-39 | BH13: 1.735569988e-31 | BI13: 2.323528647e-43 | BJ13: 0.008446104076 | BK13: 0.008604000581 | BL13: 0.04328201882 | BM13: 4.923120404e-06 | BN13: 1.061782715e-14 | BO13: 3.454234224e-30 | BP13: 9.691275704e-33 | BQ13: 2.03845807e-18 | BR13: 7.602329015e-50 | BS13: 1.115423354e-11 | BT13: 0.07133258809 | BU13: 1.35602929e-30 | BV13: 3.586658955e-12 | BW13: 0.3576580202 | BX13: 0.9846313223 | BY13: 0.0001008324832 | BZ13: 1.056761381e-10 | CA13: 0.1116464608 | CB13: 1.17253246e-42 | CC13: 2.056685145e-38 | CD13: 4.642638886e-10 | CE13: 6.176493958e-30 | CF13: 1.099993253e-22 | CG13: 4.165488218e-16 | CH13: 4.972031743e-06 | CI13: 9.480319545e-11 | CJ13: 7.538669073e-07 | CK13: 0.8945880017 | CL13: 7.148450722e-07 | CM13: 2.884080855e-35 | CN13: 2.917356448e-117 | CO13: 7.020327594e-31 | CP13: 0.0002043978946 | CQ13: 1.910519038e-21 | CR13: 3.76617766e-28 | CS13: 2.671188953e-18 | CT13: 3.90026967e-29 | CU13: 1.320213775e-18 | CV13: 0.004796292765 | CW13: 1.91710807e-09 | CX13: 1.132206723e-17 | CY13: 9.651458065e-43 | CZ13: 2.568676033e-28 | DA13: 0.08246527363 | DB13: 1.792045403e-07 | DC13: 8.884337392e-31 | DD13: 0.103032377 | DE13: 135.1883282
B14: 13 | C14: 7.729110903e-09 | D14: 0.660967902 | E14: 0.0004462675044 | F14: 1.814493216e-13 | G14: 5.289405633e-31 | H14: 2.63259204e-96 | I14: 1.806906814e-37 | J14: 6.55245303e-16 | K14: 5.097260823e-14 | L14: 1.602218054e-21 | M14: 1.555029311e-15 | N14: 5.380317918e-05 | O14: 0.593189126 | P14: 0.0142424548 | Q14: 0.04157559261 | R14: 8.50271924e-11 | S14: 1.3488802e-19 | T14: 1.504468806e-31 | U14: 3.335922664e-14 | V14: 3.935025905e-05 | W14: 3.17401884e-06 | X14: 1.24939678e-63 | Y14: 1.925294965e-45 | Z14: 0.0002833346075 | AA14: 0.2529706006 | AB14: 0.1193229018 | AC14: 0.0271250398 | AD14: 7.822282525e-15 | AE14: 6.026362838e-07 | AF14: 2.226493715e-11 | AG14: 1.374753691e-17 | AH14: 0.001612937868 | AI14: 4.736670179e-15 | AJ14: 5.48026708e-09 | AK14: 1.13227147e-62 | AL14: 5.697365414e-20 | AM14: 9.75830526e-08 | AN14: 0.1853613715 | AO14: 3.830700371e-07 | AP14: 3.452707631e-08 | AQ14: 1.490796525e-06 | AR14: 2.107019559e-26 | AS14: 9.514319234e-64 | AT14: 4.332080177e-09 | AU14: 1.453273745e-19 | AV14: 0.0004864297819 | AW14: 7.481432794e-68 | AX14: 1.75420513e-09 | AY14: 0.008873038341 | AZ14: 0.9923414771 | BA14: 0.5859164947 | BB14: 0.00019613409 | BC14: 1.571161183e-21 | BD14: 2.070817902e-07 | BE14: 1.32987231e-10 | BF14: 3.195282377e-05 | BG14: 8.377391815e-39 | BH14: 2.201581317e-31 | BI14: 3.074452998e-43 | BJ14: 0.008982742881 | BK14: 0.009149573617 | BL14: 0.04549749543 | BM14: 5.433712261e-06 | BN14: 1.246312638e-14 | BO14: 4.359514901e-30 | BP14: 1.235259384e-32 | BQ14: 2.441258473e-18 | BR14: 1.026822987e-49 | BS14: 1.28540523e-11 | BT14: 0.07467260408 | BU14: 1.714155929e-30 | BV14: 4.146319677e-12 | BW14: 0.3679905575 | BX14: 0.9879057308 | BY14: 0.000109843932 | BZ14: 1.209937772e-10 | CA14: 0.1163982242 | CB14: 1.547879463e-42 | CC14: 2.676140203e-38 | CD14: 5.29203537e-10 | CE14: 7.787429179e-30 | CF14: 1.344771414e-22 | CG14: 4.928099851e-16 | CH14: 5.48747684e-06 | CI14: 1.085795535e-10 | CJ14: 8.381657195e-07 | CK14: 0.9028923016 | CL14: 7.949393615e-07 | CM14: 3.710795428e-35 | CN14: 4.635749453e-117 | CO14: 8.884337392e-31 | CP14: 0.0002219181362 | CQ14: 2.322246307e-21 | CR14: 4.714395047e-28 | CS14: 3.197098481e-18 | CT14: 4.901815746e-29 | CU14: 1.582607295e-18 | CV14: 0.005119226119 | CW14: 2.175672554e-09 | CX14: 1.350734584e-17 | CY14: 1.274461716e-42 | CZ14: 3.217583474e-28 | DA14: 0.08621612964 | DB14: 2.002983163e-07 | DC14: 1.123877534e-30 | DD14: 0.1074991864 | DE14: 135.5438859
B15: 14 | C15: 8.732344032e-09 | D15: 0.6729730464 | E15: 0.0004826436313 | F15: 2.114474269e-13 | G15: 6.697041641e-31 | H15: 4.004300575e-96 | I15: 2.343338075e-37 | J15: 7.743699058e-16 | K15: 5.959480435e-14 | L15: 1.948206007e-21 | M15: 1.833917511e-15 | N15: 5.878064053e-05 | O15: 0.6053176 | P15: 0.01509475419 | Q15: 0.04371770982 | R15: 9.74141148e-11 | S15: 1.625011296e-19 | T15: 1.908886109e-31 | U15: 3.904420223e-14 | V15: 4.305087509e-05 | W15: 3.509377102e-06 | X15: 1.755688098e-63 | Y15: 2.564796619e-45 | Z15: 0.000307129216 | AA15: 0.2614474426 | AB15: 0.1243217893 | AC15: 0.02861632271 | AD15: 9.188717703e-15 | AE15: 6.705872607e-07 | AF15: 2.560770073e-11 | AG15: 1.639374195e-17 | AH15: 0.00173252049 | AI15: 5.570999019e-15 | AJ15: 6.19854035e-09 | AK15: 1.586968775e-62 | AL15: 6.876321614e-20 | AM15: 1.093051855e-07 | AN15: 0.1922558965 | AO15: 4.269802832e-07 | AP15: 3.881410987e-08 | AQ15: 1.653196287e-06 | AR15: 2.618376365e-26 | AS15: 1.337407259e-63 | AT15: 4.903591211e-09 | AU15: 1.750495283e-19 | AV15: 0.0005258481895 | AW15: 1.06319575e-67 | AX15: 1.991356046e-09 | AY15: 0.009433783908 | AZ15: 0.9946065969 | BA15: 0.5980397833 | BB15: 0.0002129885819 | BC15: 1.910519038e-21 | BD15: 2.313366102e-07 | BE15: 1.521600787e-10 | BF15: 3.498993882e-05 | BG15: 1.091542173e-38 | BH15: 2.791602721e-31 | BI15: 4.066436238e-43 | BJ15: 0.009549657395 | BK15: 0.0097258499 | BL15: 0.04780724892 | BM15: 5.994860735e-06 | BN15: 1.462327438e-14 | BO15: 5.499849839e-30 | BP15: 1.573843908e-32 | BQ15: 2.922483224e-18 | BR15: 1.386343294e-49 | BS15: 1.480698629e-11 | BT15: 0.07813774877 | BU15: 2.165997057e-30 | BV15: 4.791392677e-12 | BW15: 0.3784701777 | BX15: 0.9907946312 | BY15: 0.0001196128836 | BZ15: 1.384762895e-10 | CA15: 0.1213036952 | CB15: 2.04256405e-42 | CC15: 3.480776962e-38 | CD15: 6.029854795e-10 | CE15: 9.814597221e-30 | CF15: 1.64336184e-22 | CG15: 5.827997666e-16 | CH15: 6.053935509e-06 | CI15: 1.243080944e-10 | CJ15: 9.315183013e-07 | CK15: 0.9109092523 | CL15: 8.836542241e-07 | CM15: 4.772576256e-35 | CN15: 7.363371266e-117 | CO15: 1.123877534e-30 | CP15: 0.0002408437921 | CQ15: 2.821574191e-21 | CR15: 5.898986779e-28 | CS15: 3.825019915e-18 | CT15: 6.158084041e-29 | CU15: 1.896393025e-18 | CV15: 0.005461717381 | CW15: 2.468122739e-09 | CX15: 1.610796184e-17 | CY15: 1.682236076e-42 | CZ15: 4.028808215e-28 | DA15: 0.09010154202 | DB15: 2.237854627e-07 | DC15: 1.421147707e-30 | DD15: 0.1121147924 | DE15: 135.902582
B16: 15 | C16: =+EXP(-(($B16-C$2)^2/(2*alpha^2))) -> 9.861850583e-09 | D16: 0.6849222163 | E16: 0.0005217760944 | F16: 2.46306426e-13 | G16: 8.475891867e-31 | H16: 6.088300188e-96 | I16: 3.037808723e-37 | J16: 9.14785557e-16 | K16: 6.964761068e-14 | L16: 2.367960303e-21 | M16: =+EXP(-(($B16-M$2)^2/(2*alpha^2))) -> 2.161958221e-15 | N16: 6.419289649e-05 | O16: 0.6174470272 | P16: 0.01599165908 | Q16: 0.04595181185 | R16: 1.115609542e-10 | S16: 1.956886651e-19 | T16: 2.421046495e-31 | U16: 4.567971814e-14 | V16: 4.70806721e-05 | W16: =+EXP(-(($B16-W$2)^2/(2*alpha^2))) -> 3.878616655e-06 | X16: 2.466156482e-63 | Y16: 3.415347295e-45 | Z16: 0.0003327889675 | AA16: 0.270100275 | AB16: 0.1294782973 | AC16: 0.03017752008 | AD16: 1.078953189e-14 | AE16: 7.459017111e-07 | AF16: 2.944055413e-11 | AG16: =+EXP(-(($B16-AG$2)^2/(2*alpha^2))) -> 1.954148563e-17 | AH16: 0.001860224685 | AI16: 6.54966822e-15 | AJ16: 7.008150557e-09 | AK16: 2.223373786e-62 | AL16: 8.295920267e-20 | AM16: 1.223864715e-07 | AN16: 0.199327117 | AO16: 4.757335064e-07 | AP16: 4.361599047e-08 | AQ16: =+EXP(-(($B16-AQ$2)^2/(2*alpha^2))) -> 1.832553882e-06 | AR16: 3.252534107e-26 | AS16: 1.879212599e-63 | AT16: 5.548279263e-09 | AU16: 2.107660926e-19 | AV16: 0.0005682335751 | AW16: 1.510316499e-67 | AX16: 2.259663339e-09 | AY16: 0.01002595549 | AZ16: 0.9964782161 | BA16: =+EXP(-(($B16-BA$2)^2/(2*alpha^2))) -> 0.6101697999 | BB16: 0.0002311989414 | BC16: 2.322246307e-21 | BD16: 2.583289666e-07 | BE16: 1.740274623e-10 | BF16: 3.830040835e-05 | BG16: 1.421669e-38 | BH16: 3.538333603e-31 | BI16: 5.376335449e-43 | BJ16: 0.01014829061 | BK16: =+EXP(-(($B16-BK$2)^2/(2*alpha^2))) -> 0.0103342878 | BL16: 0.05021417106 | BM16: 6.611314887e-06 | BN16: 1.715096422e-14 | BO16: 6.935691704e-30 | BP16: 2.004432495e-32 | BQ16: 3.497168615e-18 | BR16: 1.870993469e-49 | BS16: 1.704981095e-11 | BT16: 0.08173099282 | BU16: =+EXP(-(($B16-BU$2)^2/(2*alpha^2))) -> 2.735846214e-30 | BV16: 5.534610072e-12 | BW16: 0.3890925679 | BX16: 0.9932945823 | BY16: 0.0001301985454 | BZ16: 1.584214863e-10 | CA16: 0.1263653455 | CB16: 2.694266255e-42 | CC16: 4.525533785e-38 | CD16: 6.867793873e-10 | CE16: =+EXP(-(($B16-CE$2)^2/(2*alpha^2))) -> 1.23645164e-29 | CF16: 2.007447563e-22 | CG16: 6.889465377e-16 | CH16: 6.676197293e-06 | CI16: 1.422581146e-10 | CJ16: 1.034854211e-06 | CK16: 0.9186298615 | CL16: 9.818767948e-07 | CM16: 6.135712785e-35 | CN16: 1.169121705e-116 | CO16: =+EXP(-(($B16-CO$2)^2/(2*alpha^2))) -> 1.421147707e-30 | CP16: 0.0002612789363 | CQ16: 3.426896198e-21 | CR16: 7.378280404e-28 | CS16: 4.574437196e-18 | CT16: 7.7332228e-29 | CU16: 2.271484708e-18 | CV16: 0.005824791932 | CW16: 2.798763848e-09 | CX16: 1.920160125e-17 | CY16: =+EXP(-(($B16-CY$2)^2/(2*alpha^2))) -> 2.219593133e-42 | CZ16: 5.042543431e-28 | DA16: 0.09412439693 | DB16: 2.499267405e-07 | DC16: 1.796328375e-30 | DD16: 0.116881813 | DE16: 136.2643883
B17: 16 | C17: 1.113300185e-08 | D17: 0.6968047755 | E17: 0.0005638558073 | F17: 2.867975009e-13 | G17: 1.072294548e-30 | H17: 9.253195279e-96 | I17: 3.936517467e-37 | J17: 1.080230447e-15 | K17: 8.136363225e-14 | L17: 2.877002498e-21 | M17: 2.547657718e-15 | N17: 7.007545275e-05 | O17: 0.629567628 | P17: 0.01693508116 | Q17: 0.04828076683 | R17: 1.277111555e-10 | S17: 2.355598339e-19 | T17: 3.069393186e-31 | U17: 5.34215592e-14 | V17: 5.146708916e-05 | W17: 4.284991455e-06 | X17: 3.462742339e-63 | Y17: 4.546143016e-45 | Z17: 0.0003604483085 | AA17: 0.278927887 | AB17: 0.1347947538 | AC17: 0.03181116342 | AD17: 1.266416555e-14 | AE17: 8.293430132e-07 | AF17: 3.383355684e-11 | AG17: 2.328430839e-17 | AH17: 0.001996543188 | AI17: 7.697182824e-15 | AJ17: 7.920337646e-09 | AK17: 3.113743704e-62 | AL17: 1.000458872e-19 | AM17: 1.369784805e-07 | AN17: 0.2065757718 | AO17: 5.298414638e-07 | AP17: 4.8992334e-08 | AQ17: 2.030557849e-06 | AR17: 4.038665913e-26 | AS17: 2.639456062e-63 | AT17: 6.275215562e-09 | AU17: 2.536686665e-19 | AV17: 0.0006137898207 | AW17: 2.144613245e-67 | AX17: 2.563095831e-09 | AY17: 0.01065103722 | AZ17: 0.9979540957 | BA17: 0.6222968807 | BB17: 0.0002508659062 | BC17: 2.821574191e-21 | BD17: 2.883554259e-07 | BE17: 1.989578744e-10 | BF17: 4.190732187e-05 | BG17: 1.850899124e-38 | BH17: 4.483015321e-31 | BI17: 7.105342734e-43 | BJ17: 0.01078013705 | BK17: 0.01097639743 | BL17: 0.05272118035 | BM17: 7.288243409e-06 | BN17: 2.010753047e-14 | BO17: 8.742889923e-30 | BP17: 2.551805061e-32 | BQ17: 4.183188162e-18 | BR17: 2.524062122e-49 | BS17: 1.962450648e-11 | BT17: 0.08545528691 | BU17: 3.454234224e-30 | BV17: 6.39055498e-12 | BW17: 0.3998531197 | BX17: 0.9954026005 | BY17: 0.0001416643544 | BZ17: 1.811669743e-10 | CA17: 0.131585559 | CB17: 3.552479839e-42 | CC17: 5.881521775e-38 | CD17: 7.819048953e-10 | CE17: 1.557069761e-29 | CF17: 2.451215554e-22 | CG17: 8.141003788e-16 | CH17: 7.3594747e-06 | CI17: 1.627350008e-10 | CJ17: 1.149193691e-06 | CK17: 0.9260454162 | CL17: 1.090580974e-06 | CM17: 7.885031811e-35 | CN17: 1.855534486e-116 | CO17: 1.796328375e-30 | CP17: 0.0002833346075 | CQ17: 4.160415516e-21 | CR17: 9.224846995e-28 | CS17: 5.468496271e-18 | CT17: 9.70737297e-29 | CU17: 2.719678498e-18 | CV17: 0.006209518017 | CW17: 3.17242994e-09 | CX17: 2.288024041e-17 | CY17: 2.927427075e-42 | CZ17: 6.308832299e-28 | DA17: 0.09828754144 | DB17: 2.790100596e-07 | DC17: 2.269648083e-30 | DD17: 0.1218027921 | DE17: 136.6292742
B18: 17 | C18: 1.2562973e-08 | D18: 0.7086099818 | E18: 0.0006090854428 | F18: 3.338114775e-13 | G18: 1.35602929e-30 | H18: 1.405768087e-95 | I18: 5.099061182e-37 | J18: 1.275086979e-15 | K18: 9.501249364e-14 | L18: 3.494075964e-21 | M18: 3.000966474e-15 | N18: 7.646648635e-05 | O18: 0.6416694393 | P18: 0.01792698786 | Q18: 0.05070747213 | R18: 1.461408841e-10 | S18: 2.834412733e-19 | T18: 3.889808326e-31 | U18: 6.245050949e-14 | V18: 5.623968002e-05 | W18: 4.732050216e-06 | X18: 4.860108966e-63 | Y18: 6.048916619e-45 | Z18: 0.0003902503897 | AA18: 0.2879288149 | AB18: 0.1402733865 | AC18: 0.03351983251 | AD18: 1.485856393e-14 | AE18: 9.217498155e-07 | AF18: 3.886651628e-11 | AG18: 2.773290665e-17 | AH18: 0.002141994232 | AI18: 9.042126643e-15 | AJ18: 8.947676028e-09 | AK18: 4.3589263e-62 | AL18: 1.206035781e-19 | AM18: 1.532489674e-07 | AN18: 0.2140024105 | AO18: 5.898674419e-07 | AP18: 5.500938665e-08 | AQ18: 2.249055967e-06 | AR18: 5.01279888e-26 | AS18: 3.705776649e-63 | AT18: 7.094556763e-09 | AU18: 3.051821932e-19 | AV18: 0.0006627332411 | AW18: 3.044081552e-67 | AX18: 2.90611122e-09 | AY18: 0.01131056539 | AZ18: 0.9990324684 | BA18: 0.634411171 | BB18: 0.000272096983 | BC18: 3.426896198e-21 | BD18: 3.217432403e-07 | BE18: 2.273687425e-10 | BF18: 4.583557599e-05 | BG18: 2.408758655e-38 | BH18: 5.677641302e-31 | BI18: 9.386636218e-43 | BJ18: 0.0114467435 | BK18: 0.0116537414 | BL18: 0.05533121849 | BM18: 8.031269081e-06 | BN18: 2.356433629e-14 | BO18: 1.101657316e-29 | BP18: 3.24735551e-32 | BQ18: 5.001779124e-18 | BR18: 3.403722061e-49 | BS18: 2.257897393e-11 | BT18: 0.08931355597 | BU18: 4.359514901e-30 | BV18: 7.375923509e-12 | BW18: 0.4107469284 | BX18: 0.9971161663 | BY18: 0.000154078245 | BZ18: 2.070953087e-10 | CA18: 0.1369666244 | CB18: 4.682189797e-42 | CC18: 7.640748226e-38 | CD18: 8.89850184e-10 | CE18: 1.960041599e-29 | CF18: 2.991886264e-22 | CG18: 9.616049139e-16 | CH18: 8.109437914e-06 | CI18: 1.860849176e-10 | CJ18: 1.275656002e-06 | CK18: 0.9331474986 | CL18: 1.210835428e-06 | CM18: 1.012903705e-34 | CN18: 2.943775047e-116 | CO18: 2.269648083e-30 | CP18: 0.000307129216 | CQ18: 5.048922998e-21 | CR18: 1.15289424e-27 | CS18: 6.534681928e-18 | CT18: 1.218061431e-28 | CU18: 3.255004551e-18 | CV18: 0.006617007834 | CW18: 3.594546504e-09 | CX18: 2.72527293e-17 | CY18: 3.859446988e-42 | CZ18: 7.88995636e-28 | DA18: 0.1025937771 | DB18: 3.11353162e-07 | DC18: 2.866537312e-30 | DD18: 0.126880193 | DE18: 136.9972066
B19: 18 | C19: 1.417094635e-08 | D19: 0.7203270025 | E19: 0.0006576800441 | F19: 3.883769524e-13 | G19: 1.714155929e-30 | H19: 2.134823203e-95 | I19: 6.602289222e-37 | J19: 1.504490639e-15 | K19: 1.109065988e-13 | L19: 4.241805283e-21 | M19: 3.533519483e-15 | N19: 8.340702663e-05 | O19: 0.6537423274 | P19: 0.01896940236 | Q19: 0.05323485117 | R19: 1.671632895e-10 | S19: 3.409190138e-19 | T19: 4.927540025e-31 | U19: 7.297627548e-14 | V19: 6.143026064e-05 | W19: 5.223661318e-06 | X19: 6.818645592e-63 | Y19: 8.045228516e-45 | Z19: 0.000422347552 | AA19: 0.2971013359 | AB19: 0.145916316 | AC19: 0.03530615386 | AD19: 1.742622743e-14 | AE19: 1.024043041e-06 | AF19: 4.463030515e-11 | AG19: 3.301822474e-17 | AH19: 0.00229712256 | AI19: 1.061782715e-14 | AJ19: 1.010422686e-08 | AK19: 6.099615678e-62 | AL19: 1.453273745e-19 | AM19: 1.713835174e-07 | AN19: 0.2216073847 | AO19: 6.564311651e-07 | AP19: 6.174072964e-08 | AQ19: 2.490069341e-06 | AR19: 6.219406087e-26 | AS19: 5.200802074e-63 | AT19: 8.017669847e-09 | AU19: 3.670099476e-19 | AV19: 0.000715293221 | AW19: 4.319066239e-67 | AX19: 3.29371411e-09 | AY19: 0.01200612912 | AZ19: 0.9997120415 | BA19: 0.6465026382 | BB19: 0.0002950068446 | BC19: 4.160415516e-21 | BD19: 3.5885336e-07 | BE19: 2.597327235e-10 | BF19: 5.011200289e-05 | BG19: 3.133502955e-38 | BH19: 7.18773343e-31 | BI19: 1.239541937e-42 | BJ19: 0.01214970973 | BK19: 0.01236793553 | BL19: 0.0580472468 | BM19: 8.846505816e-06 | BN19: 2.760437832e-14 | BO19: 1.387600084e-29 | BP19: 4.130840825e-32 | BQ19: 5.978165055e-18 | BR19: 4.588116341e-49 | BS19: 2.596784692e-11 | BT19: 0.09330869327 | BU19: 5.499849839e-30 | BV19: 8.509822767e-12 | BW19: 0.4217687926 | BX19: 0.9984332287 | BY19: 0.0001675129326 | BZ19: 2.36639791e-10 | CA19: 0.1425107277 | CB19: 6.168686348e-42 | CC19: 9.922208562e-38 | CD19: 1.01229278e-09 | CE19: 2.466316389e-29 | CF19: 3.650353623e-22 | CG19: 1.135381133e-15 | CH19: 8.9322521e-06 | CI19: 2.127000837e-10 | CJ19: 1.415468481e-06 | CK19: 0.9399280023 | CL19: 1.343812278e-06 | CM19: 1.300646127e-34 | CN19: 4.668383132e-116 | CO19: 2.866537312e-30 | CP19: 0.0003327889675 | CQ19: 6.124731709e-21 | CR19: 1.440277079e-27 | CS19: 7.805617555e-18 | CT19: 1.52778749e-28 | CU19: 3.894143173e-18 | CV19: 0.007048418596 | CW19: 4.071200166e-09 | CX19: 3.244783341e-17 | CY19: 5.086163969e-42 | CZ19: 9.863396716e-28 | DA19: 0.1070458534 | DB19: 3.473065561e-07 | DC19: 3.618953117e-30 | DD19: 0.1321163903 | DE19: 137.36815
B20: 19 | C20: 1.597833651e-08 | D20: 0.7319449301 | E20: 0.0007098676598 | F20: 4.516810978e-13 | G20: 2.165997057e-30 | H20: 3.240682107e-95 | I20: 8.545257415e-37 | J20: 1.774456883e-15 | K20: 1.294077659e-13 | L20: 5.147488639e-21 | M20: 4.158915715e-15 | N20: 9.094114672e-05 | O20: 0.6657760009 | P20: 0.02006440358 | Q20: 0.05586584988 | R20: 1.911333049e-10 | S20: 4.098884104e-19 | T20: 6.239623742e-31 | U20: 8.524201064e-14 | V20: 6.70730657e-05 | W20: 5.764039655e-06 | X20: 9.562611494e-63 | Y20: 1.069609995e-44 | Z20: 0.0004569018319 | AA20: 0.3064434632 | AB20: 0.1517255473 | AC20: 0.03717279881 | AD20: 2.042942768e-14 | AE20: 1.137233499e-06 | AF20: 5.122835134e-11 | AG20: 3.92950939e-17 | AH20: 0.002462500455 | AI20: 1.246312638e-14 | AJ20: 1.140570692e-08 | AK20: 8.532016766e-62 | AL20: 1.750495283e-19 | AM20: 1.915873493e-07 | AN20: 0.2293908412 | AO20: 7.302141424e-07 | AP20: 6.926805527e-08 | AQ20: 2.755807651e-06 | AR20: 7.713364069e-26 | AS20: 7.296048196e-63 | AT20: 9.057270786e-09 | AU20: 4.411870578e-19 | AV20: 0.0007717128755 | AW20: 6.125615435e-67 | AX20: 3.73152067e-09 | AY20: 0.01273937103 | AZ20: 0.999992 | BA20: 0.6585610838 | BB20: 0.0003197177444 | BC20: 5.048922998e-21 | BD20: 4.000837247e-07 | BE20: 2.965847807e-10 | BF20: 5.476550681e-05 | BG20: 4.07467722e-38 | BH20: 9.095828327e-31 | BI20: 1.636208877e-42 | BJ20: 0.01289068914 | BK20: 0.0131206494 | BL20: 0.06087224228 | BM20: 9.740598447e-06 | BN20: 3.232414244e-14 | BO20: 1.747062309e-29 | BP20: 5.252588359e-32 | BQ20: 7.142291576e-18 | BR20: 6.182171324e-49 | BS20: 2.985341134e-11 | BT20: 0.09744355419 | BU20: 6.935691704e-30 | BV20: 9.814109704e-12 | BW20: 0.4329132143 | BX20: 0.9993522099 | BY20: 0.0001820462104 | BZ20: 2.702909891e-10 | CA20: 0.148219944 | CB20: 8.123864022e-42 | CC20: 1.287974e-37 | CD20: 1.151122827e-09 | CE20: 3.102119839e-29 | CF20: 4.451958207e-22 | CG20: 1.340025167e-15 | CH20: 9.834617486e-06 | CI20: 2.430247077e-10 | CJ20: 1.569976354e-06 | CK20: 0.9463791476 | CL20: 1.490796525e-06 | CM20: 1.669461571e-34 | CN20: 7.400390635e-116 | CO20: 3.618953117e-30 | CP20: 0.0003604483085 | CQ20: 7.426799059e-21 | CR20: 1.798576486e-27 | CS20: 9.320009741e-18 | CT20: 1.915503675e-28 | CU20: 4.656917152e-18 | CV20: 0.007504953573 | CW20: 4.609216274e-09 | CX20: 3.861781405e-17 | CY20: 6.700109743e-42 | CZ20: 1.23255039e-27 | DA20: 0.1116464608 | DB20: 3.872567218e-07 | DC20: 4.567037704e-30 | DD20: 0.1375136629 | DE20: 137.7420664
B21: 20 | C21: 1.800903969e-08 | D21: 0.743452799 | E21: 0.0007658900013 | F21: 5.250935278e-13 | G21: 2.735846214e-30 | H21: 4.917419172e-95 | I21: 1.105559286e-36 | J21: 2.092028972e-15 | K21: 1.509348663e-13 | L21: 6.244049641e-21 | M21: 4.893042973e-15 | N21: 9.911616618e-05 | O21: 0.6777600244 | P21: 0.02121412597 | Q21: 0.05860343303 | R21: 2.184530497e-10 | S21: 4.926135305e-19 | T21: 7.897923547e-31 | U21: 9.952953108e-14 | V21: 7.320491459e-05 | W21: 6.357775538e-06 | X21: 1.340544354e-62 | Y21: 1.421473617e-44 | Z21: 0.0004940854895 | AA21: 0.3159529402 | AB21: 0.1577029624 | AC21: 0.03912248161 | AD21: 2.394061514e-14 | AE21: 1.262430155e-06 | AF21: 5.877832215e-11 | AG21: 4.674651343e-17 | AH21: 0.002638728781 | AI21: 1.462327438e-14 | AJ21: 1.286967588e-08 | AK21: 1.192963649e-61 | AL21: 2.107660926e-19 | AM21: 2.140872917e-07 | AN21: 0.2373527139 | AO21: 8.119654881e-07 | AP21: 7.768202071e-08 | AQ21: 3.048685634e-06 | AR21: 9.562358655e-26 | AS21: 1.023131237e-62 | AT21: 1.022757841e-08 | AU21: 5.301441512e-19 | AV21: 0.0008322497349 | AW21: 8.684321128e-67 | AX21: 4.225830616e-09 | AY21: 0.01351198783 | AZ21: 0.9998720082 | BA21: 0.6705761572 | BB21: 0.000346359952 | BC21: 6.124731709e-21 | BD21: 4.458728568e-07 | BE21: 3.385301358e-10 | BF21: 5.982720903e-05 | BG21: 5.296422188e-38 | BH21: 1.150585323e-30 | BI21: 2.158949813e-42 | BJ21: 0.01367138933 | BK21: 0.01391360696 | BL21: 0.06380919352 | BM21: 1.072076546e-05 | BN21: 3.783574894e-14 | BO21: 2.198764687e-29 | BP21: 6.676280198e-32 | BQ21: 8.52969559e-18 | BR21: 8.326719464e-49 | BS21: 3.430664667e-11 | BT21: 0.1017209499 | BU21: 8.742889923e-30 | BV21: 1.13137762e-11 | BW21: 0.4441744004 | BX21: 0.9998720082 | BY21: 0.0001977612624 | BZ21: 3.086040661e-10 | CA21: 0.1540962302 | CB21: 1.069446059e-41 | CC21: 1.671214221e-37 | CD21: 1.308469112e-09 | CE21: 3.90026967e-29 | CF21: 5.427420884e-22 | CG21: 1.580922275e-15 | CH21: 1.082381239e-05 | CI21: 2.775616626e-10 | CJ21: 1.740653396e-06 | CK21: 0.9524934963 | CL21: 1.653196287e-06 | CM21: 2.142002548e-34 | CN21: 1.172651817e-115 | CO21: 4.567037704e-30 | CP21: 0.0003902503897 | CQ21: 9.002073619e-21 | CR21: 2.24511223e-27 | CS21: 1.112376348e-17 | CT21: 2.400652568e-28 | CU21: 5.566873991e-18 | CV21: 0.007987863114 | CW21: 5.216245222e-09 | CX21: 4.594264055e-17 | CY21: 8.822664357e-42 | CZ21: 1.539604416e-27 | DA21: 0.1163982242 | DB21: 4.316296103e-07 | DC21: 5.761194259e-30 | DD21: 0.143074186 | DE21: 138.1189151
B22: 21 | C22: 2.028970951e-08 | D22: 0.754839602 | E22: 0.000826003126 | F22: 6.101936678e-13 | G22: 3.454234224e-30 | H22: 7.458720125e-95 | I22: 1.429766791e-36 | J22: 2.465450119e-15 | K22: 1.759726165e-13 | L22: 7.571180145e-21 | M22: 5.754455331e-15 | N22: 0.0001079828651 | O22: 0.6896838326 | P22: 0.02242075918 | Q22: 0.06145058027 | R22: 2.495779062e-10 | S22: 5.917977588e-19 | T22: 9.992950384e-31 | U22: 1.161653253e-13 | V22: 7.986538724e-05 | W22: 7.009865808e-06 | X22: 1.878504094e-62 | Y22: 1.888332363e-44 | Z22: 0.0005340815582 | AA22: 0.3256272359 | AB22: 0.1638503119 | AC22: 0.0411579572 | AD22: 2.804404738e-14 | AE22: 1.400849107e-06 | AF22: 6.741402727e-11 | AG22: 5.558868503e-17 | AH22: 0.002826438049 | AI22: 1.715096422e-14 | AJ22: 1.451574376e-08 | AK22: 1.667358558e-61 | AL22: 2.536686665e-19 | AM22: 2.391339456e-07 | AN22: 0.2454927166 | AO22: 9.02508255e-07 | AP22: 8.708318724e-08 | AQ22: 3.371340899e-06 | AR22: 1.184984062e-25 | AS22: 1.434172124e-62 | AT22: 1.154448504e-08 | AU22: 6.367830093e-19 | AV22: 0.0008971764536 | AW22: 1.230688954e-66 | AX22: 4.783707325e-09 | AY22: 0.01432573083 | AZ22: 0.9993522099 | BA22: 0.6825373692 | BB22: 0.0003750722064 | BC22: 7.426799059e-21 | BD22: 4.967037823e-07 | BE22: 3.862532011e-10 | BF22: 6.533060163e-05 | BG22: 6.881740047e-38 | BH22: 1.45486162e-30 | BI22: 2.847558344e-42 | BJ22: 0.01449357255 | BK22: 0.01474858696 | BL22: 0.06686109638 | BM22: 1.179484484e-05 | BN22: 4.426943105e-14 | BO22: 2.766147884e-29 | BP22: 8.482464018e-32 | BQ22: 1.01825317e-17 | BR22: 1.121070984e-48 | BS22: 3.94084049e-11 | BT22: 0.1061436408 | BU22: 1.101657316e-29 | BV22: 1.303738652e-11 | BW22: 0.455546264 | BX22: 0.999992 | BY22: 0.0002147469929 | BZ22: 3.522070158e-10 | CA22: 0.1601414167 | CB22: 1.407282884e-41 | CC22: 2.167621407e-37 | CD22: 1.486728156e-09 | CE22: 4.901815746e-29 | CF22: 6.613969783e-22 | CG22: 1.864379696e-15 | CH22: 1.190773939e-05 | CI22: 3.168799882e-10 | CJ22: 1.929113475e-06 | CK22: 0.9582639663 | CL22: 1.832553882e-06 | CM22: 2.747197117e-34 | CN22: 1.857418637e-115 | CO22: 5.761194259e-30 | CP22: 0.000422347552 | CQ22: 1.09071109e-20 | CR22: 2.801389407e-27 | CS22: 1.327129821e-17 | CT22: 3.007474241e-28 | CU22: 6.651974141e-18 | CV22: 0.008498445624 | CW22: 5.90085843e-09 | CX22: 5.463494377e-17 | CY22: 1.161298543e-41 | CZ22: 1.922382901e-27 | DA22: 0.1213036952 | DB22: 4.808944642e-07 | DC22: 7.264683927e-30 | DD22: 0.1488000233 | DE22: 138.4986532
B23: 22 | C23: 2.285006214e-08 | D23: 0.7660943075 | E23: 0.0008904781432 | F23: 7.088021233e-13 | G23: 4.359514901e-30 | H23: 1.130882998e-94 | I23: 1.848309334e-36 | J23: 2.904363888e-15 | K23: 2.050816915e-13 | L23: 9.176711838e-21 | M23: 6.764811484e-15 | N23: 0.0001175957103 | O23: 0.7015367451 | P23: 0.02368654769 | Q23: 0.06441028201 | R23: 2.850233526e-10 | S23: 7.106677016e-19 | T23: 1.263865384e-30 | U23: 1.35527476e-13 | V23: 8.709701027e-05 | W23: 7.725747315e-06 | X23: 2.631294066e-62 | Y23: 2.507519686e-44 | Z23: 0.0005770844163 | AA23: 0.3354635407 | AB23: 0.1701692073 | AC23: 0.04328201882 | AD23: 3.283767207e-14 | AE23: 1.55382333e-06 | AF23: 7.728756809e-11 | AG23: 6.60769303e-17 | AH23: 0.003026289492 | AI23: 2.010753047e-14 | AJ23: 1.636580074e-08 | AK23: 2.329469764e-61 | AL23: 3.051821932e-19 | AM23: 2.670040527e-07 | AN23: 0.2538103359 | AO23: 1.002746322e-06 | AP23: 9.75830526e-08 | AQ23: 3.726653172e-06 | AR23: 1.46786553e-25 | AS23: 2.009543869e-62 | AT23: 1.302574569e-08 | AU23: 7.64566459e-19 | AV23: 0.0009667815431 | AW23: 1.743359742e-66 | AX23: 5.413066955e-09 | AY23: 0.01518240633 | AZ23: 0.9984332287 | BA23: 0.6944341067 | BB23: 0.0004060021917 | BC23: 9.002073619e-21 | BD23: 5.531083076e-07 | BE23: 4.405276072e-10 | BF23: 7.13117106e-05 | BG23: 8.937997169e-38 | BH23: 1.838869149e-30 | BI23: 3.75430021e-42 | BJ23: 0.01535905618 | BK23: 0.01562742337 | BL23: 0.07003094943 | BM23: 1.297134324e-05 | BN23: 5.17763973e-14 | BO23: 3.478550545e-29 | BP23: 1.077297815e-31 | BQ23: 1.215078375e-17 | BR23: 1.508754481e-48 | BS23: 4.525074418e-11 | BT23: 0.1107143299 | BU23: 1.387600084e-29 | BV23: 1.501757401e-11 | BW23: 0.4670224265 | BX23: 0.9997120415 | BY23: 0.0002330983711 | BZ23: 4.018099099e-10 | CA23: 0.1663571992 | CB23: 1.851101399e-41 | CC23: 2.810353963e-37 | CD23: 1.688596713e-09 | CE23: 6.158084041e-29 | CF23: 8.05670002e-22 | CG23: 2.197781395e-15 | CH23: 1.309497486e-05 | CI23: 3.616233194e-10 | CJ23: 2.137123055e-06 | CK23: 0.9636838448 | CL23: 2.030557849e-06 | CM23: 3.521972358e-34 | CN23: 2.940876583e-115 | CO23: 7.264683927e-30 | CP23: 0.0004569018319 | CQ23: 1.321001102e-20 | CR23: 3.494098879e-27 | CS23: 1.582710021e-17 | CT23: 3.76617766e-28 | CU23: 7.945404203e-18 | CV23: 0.009038048516 | CW23: 6.672655035e-09 | CX23: 6.494583884e-17 | CY23: 1.527968099e-41 | CZ23: 2.39936834e-27 | DA23: 0.1263653455 | DB23: 5.355679845e-07 | DC23: 9.156873412e-30 | DD23: 0.1546931193 | DE23: 138.881235
B24: 23 | C24: 2.57232136e-08 | D24: 0.7772058768 | E24: 0.0009596019451 | F24: 8.2301662e-13 | G24: 5.499849839e-30 | H24: 1.713946732e-94 | I24: 2.3884183e-36 | J24: 3.420047346e-15 | K24: 2.389103543e-13 | L24: 1.111826168e-20 | M24: 7.949383631e-15 | N24: 0.0001280130943 | O24: 0.7133079817 | P24: 0.02501379015 | Q24: 0.06748553502 | R24: 3.253726419e-10 | S24: 8.530728539e-19 | T24: 1.597843312e-30 | U24: 1.580536283e-13 | V24: 9.494545397e-05 | W24: 8.511332901e-06 | X24: 3.684282379e-62 | Y24: 3.328407934e-44 | Z24: 0.0006233003828 | AA24: 0.3454587621 | AB24: 0.1766611125 | AC24: 0.04549749543 | AD24: 3.843530333e-14 | AE24: 1.722813238e-06 | AF24: 8.857176399e-11 | AG24: 7.851264337e-17 | AH24: 0.003238976157 | AI24: 2.356433629e-14 | AJ24: 1.844427155e-08 | AK24: 3.253205027e-61 | AL24: 3.670099476e-19 | AM24: 2.980030844e-07 | AN24: 0.2623048243 | AO24: 1.113671882e-06 | AP24: 1.093051855e-07 | AQ24: 4.117765072e-06 | AR24: 1.81754979e-25 | AS24: 2.814621419e-62 | AT24: 1.469118769e-08 | AU24: 9.176251307e-19 | AV24: 0.00104137013 | AW24: 2.468607281e-66 | AX24: 6.122777521e-09 | AY24: 0.01608387599 | AZ24: 0.9971161663 | BA24: 0.7062556476 | BB24: 0.0004393070319 | BC24: 1.09071109e-20 | BD24: 6.156716815e-07 | BE24: 5.022274556e-10 | BF24: 7.780926862e-05 | BG24: 1.160401935e-37 | BH24: 2.323305114e-30 | BI24: 4.947794421e-42 | BJ24: 0.01626971296 | BK24: 0.0165520056 | BL24: 0.07332174914 | BM24: 1.425948869e-05 | BN24: 6.053213584e-14 | BO24: 4.372678266e-29 | BP24: 1.367652659e-31 | BQ24: 1.449369423e-17 | BR24: 2.029692825e-48 | BS24: 5.193843713e-11 | BT24: 0.1154356554 | BU24: 1.747062309e-29 | BV24: 1.729160487e-11 | BW24: 0.4785962208 | BX24: 0.9990324684 | BY24: 0.0002529167942 | BZ24: 4.582152794e-10 | CA24: 0.1727451313 | CB24: 2.433914369e-41 | CC24: 3.642209273e-37 | CD24: 1.91710807e-09 | CE24: 7.7332228e-29 | CF24: 9.810213589e-22 | CG24: 2.589768255e-15 | CH24: 1.439482199e-05 | CI24: 4.125193509e-10 | CJ24: 2.366614749e-06 | CK24: 0.9687468015 | CL24: 2.249055967e-06 | CM24: 4.513446994e-34 | CN24: 4.654468353e-115 | CO24: 9.156873412e-30 | CP24: 0.0004940854895 | CQ24: 1.599274134e-20 | CR24: 4.356354182e-27 | CS24: 1.886755299e-17 | CT24: 4.714395047e-28 | CU24: 9.486537363e-18 | CV24: 0.009608069122 | CW24: 7.542380414e-09 | CX24: 7.717176671e-17 | CY24: 2.009606261e-41 | CZ24: 2.993506704e-27 | DA24: 0.131585559 | DB24: 5.962188734e-07 | DC24: 1.153729452e-29 | DD24: 0.1607552913 | DE24: 139.2666124
B25: 24 | C25: 2.894605244e-08 | D25: 0.7881632819 | E25: 0.001033677962 | F25: 9.552531605e-13 | G25: 6.935691704e-30 | H25: 2.59658921e-94 | I25: 3.085122447e-36 | J25: 4.025682231e-15 | K25: 2.782078218e-13 | L25: 1.346520503e-20 | M25: 9.337647949e-15 | N25: 0.000139297587 | O25: 0.7249866776 | P25: 0.02640483874 | Q25: 0.07067933784 | R25: 3.712854285e-10 | S25: 1.023603939e-18 | T25: 2.019267435e-30 | U25: 1.842501592e-13 | V25: 0.0001034597407 | W25: 9.373050073e-06 | X25: 5.156591327e-62 | Y25: 4.416264009e-44 | Z25: 0.0006729483346 | AA25: 0.3556095214 | AB25: 0.1833273365 | AC25: 0.04780724892 | AD25: 4.496913632e-14 | AE25: 1.909418142e-06 | AF25: 1.0146289e-10 | AG25: 9.325145614e-17 | AH25: 0.003465224007 | AI25: 2.760437832e-14 | AJ25: 2.077839691e-08 | AK25: 4.541424242e-61 | AL25: 4.411870578e-19 | AM25: 3.324680738e-07 | AN25: 0.2709751933 | AO25: 1.236373574e-06 | AP25: 1.223864715e-07 | AQ25: 4.548104524e-06 | AR25: 2.249638024e-25 | AS25: 3.940658202e-62 | AT25: 1.656294277e-08 | AU25: 1.100884199e-18 | AV25: 0.001121264738 | AW25: 3.494163963e-66 | AX25: 6.92276902e-09 | AY25: 0.01703205708 | AZ25: 0.9954026005 | BA25: 0.7179911758 | BB25: 0.000475153808 | BC25: 1.321001102e-20 | BD25: 6.850376751e-07 | BE25: 5.723399402e-10 | BF25: 8.486489811e-05 | BG25: 1.505923665e-37 | BH25: 2.934188105e-30 | BI25: 6.518093373e-42 | BJ25: 0.01722747131 | BK25: 0.01752427879 | BL25: 0.07673648494 | BM25: 1.566928706e-05 | BN25: 7.074022716e-14 | BO25: 5.494434643e-29 | BP25: 1.735569988e-31 | BQ25: 1.728145003e-17 | BR25: 2.729407257e-48 | BS25: 5.959067582e-11 | BT25: 0.1203101845 | BU25: 2.198764687e-29 | BV25: 1.990201765e-11 | BW25: 0.4902606944 | BX25: 0.9979540957 | BY25: 0.0002743104675 | BZ25: 5.223297618e-10 | CA25: 0.179306616 | CB25: 3.198944184e-41 | CC25: 4.718403217e-37 | CD25: 2.175672554e-09 | CE25: 9.70737297e-29 | CF25: 1.194059627e-21 | CG25: 3.050447786e-15 | CH25: 1.58173677e-05 | CI25: 4.703904601e-10 | CJ25: 2.619701966e-06 | CK25: 0.9734469011 | CL25: 2.490069341e-06 | CM25: 5.781719685e-34 | CN25: 7.363590801e-115 | CO25: 1.153729452e-29 | CP25: 0.0005340815582 | CQ25: 1.935391942e-20 | CR25: 5.429220183e-27 | CS25: 2.248309456e-17 | CT25: 5.898986779e-28 | CU25: 1.132206723e-17 | CV25: 0.01020995555 | CW25: 8.522057795e-09 | CX25: 9.166252938e-17 | CY25: 2.642006887e-41 | CZ25: 3.73327368e-27 | DA25: 0.1369666244 | DB25: 6.634727859e-07 | DC25: 1.453071652e-29 | DD25: 0.1669882213 | DE25: 139.6547345
B26: 25 | C26: =+EXP(-(($B26-C$2)^2/(2*alpha^2))) -> 3.255965147e-08 | D26: 0.7989555235 | E26: 0.001113026942 | F26: 1.108293135e-12 | G26: 8.742889923e-30 | H26: 3.932198725e-94 | I26: 3.983462228e-36 | J26: 4.736670179e-15 | K26: 3.238396205e-13 | L26: 1.630104071e-20 | M26: =+EXP(-(($B26-M$2)^2/(2*alpha^2))) -> 1.096396948e-14 | N26: 0.0001515162012 | O26: 0.7365619003 | P26: 0.02786209823 | Q26: 0.07399468594 | R26: 4.235074544e-10 | S26: 1.227733362e-18 | T26: 2.55081978e-30 | U26: 2.147027246e-13 | V26: 0.0001126924648 | W26: =+EXP(-(($B26-W$2)^2/(2*alpha^2))) -> 1.031788253e-05 | X26: 7.214376459e-62 | Y26: 5.857331308e-44 | Z26: 0.000726260349 | AA26: 0.3659121506 | AB26: 0.1901690244 | AC26: 0.05021417106 | AD26: 5.259265099e-14 | AE26: 2.115388657e-06 | AF26: 1.161837647e-10 | AG26: =+EXP(-(($B26-AG$2)^2/(2*alpha^2))) -> 1.107128236e-16 | AH26: 0.00370579303 | AI26: 3.232414244e-14 | AJ26: 2.339854491e-08 | AK26: 6.337223081e-61 | AL26: 5.301441512e-19 | AM26: 3.707707092e-07 | AN26: 0.279820207 | AO26: 1.372045316e-06 | AP26: 1.369784805e-07 | AQ26: =+EXP(-(($B26-AQ$2)^2/(2*alpha^2))) -> 5.021408931e-06 | AR26: 2.783333541e-25 | AS26: 5.514978563e-62 | AT26: 1.866570414e-08 | AU26: 1.320213775e-18 | AV26: 0.001206806095 | AW26: 4.943799364e-66 | AX26: 7.824155732e-09 | AY26: 0.01802892259 | AZ26: 0.9932945823 | BA26: =+EXP(-(($B26-BA$2)^2/(2*alpha^2))) -> 0.7296297976 | BB26: 0.0005137200966 | BC26: 1.599274134e-20 | BD26: 7.619141132e-07 | BE26: 6.519794975e-10 | BF26: 9.252330493e-05 | BG26: 1.953546504e-37 | BH26: 3.704212886e-30 | BI26: 8.583329619e-42 | BJ26: 0.01823431537 | BK26: =+EXP(-(($B26-BK$2)^2/(2*alpha^2))) -> 0.01854624382 | BL26: 0.08027813392 | BM26: 1.721158249e-05 | BN26: 8.263674158e-14 | BO26: 6.901202673e-29 | BP26: 2.201581317e-31 | BQ26: 2.059716972e-17 | BR26: 3.668872755e-48 | BS26: 6.834299809e-11 | BT26: 0.1253404054 | BU26: =+EXP(-(($B26-BU$2)^2/(2*alpha^2))) -> 2.766147884e-29 | BV26: 2.289734846e-11 | BW26: 0.502008614 | BX26: 0.9964782161 | BY26: 0.0002973948027 | BZ26: 5.95177164e-10 | CA26: 0.1860428975 | CB26: 4.202757312e-41 | CC26: 6.110144611e-37 | CD26: 2.468122739e-09 | CE26: =+EXP(-(($B26-CE$2)^2/(2*alpha^2))) -> 1.218061431e-28 | CF26: 1.452779986e-21 | CG26: 3.591638104e-15 | CH26: 1.737354345e-05 | CI26: 5.361656254e-10 | CJ26: 2.898694775e-06 | CK26: 0.9777786146 | CL26: 2.755807651e-06 | CM26: 7.403413383e-34 | CN26: 1.164489276e-114 | CO26: =+EXP(-(($B26-CO$2)^2/(2*alpha^2))) -> 1.453071652e-29 | CP26: 0.0005770844163 | CQ26: 2.341214613e-20 | CR26: 6.763601476e-27 | CS26: 2.678075879e-17 | CT26: 7.378280404e-28 | CU26: 1.350734584e-17 | CV26: 0.01084520752 | CW26: 9.625134335e-09 | CX26: 1.088307229e-16 | CY26: =+EXP(-(($B26-CY$2)^2/(2*alpha^2))) -> 3.472027832e-41 | CZ26: 4.653992767e-27 | DA26: 0.1425107277 | DB26: 7.380177213e-07 | DC26: 1.829348142e-29 | DD26: 0.1733934481 | DE26: 140.045548
B27: 26 | C27: 3.660972212e-08 | D27: 0.8095716487 | E27: 0.001197987756 | F27: 1.285337225e-12 | G27: 1.101657316e-29 | H27: 5.952425249e-94 | I27: 5.141327671e-36 | J27: 5.570999019e-15 | K27: 3.768052195e-13 | L27: 1.972622469e-20 | M27: 1.286839615e-14 | N27: 0.0001647406729 | O27: 0.7480226655 | P27: 0.02938802502 | Q27: 0.07743456669 | R27: 4.828814198e-10 | S27: 1.471981826e-18 | T27: 3.221009404e-30 | U27: 2.500883849e-13 | V27: 0.0001227000253 | W27: 1.135341475e-05 | X27: 1.008930312e-61 | Y27: 7.765525205e-44 | Z27: 0.0007834823684 | AA27: 0.3763626898 | AB27: 0.1971871502 | AC27: 0.05272118035 | AD27: 6.148396413e-14 | AE27: 2.342640139e-06 | AF27: 1.32987231e-10 | AG27: 1.313912711e-16 | AH27: 0.003961478361 | AI27: 3.783574894e-14 | AJ27: 2.633855504e-08 | AK27: 8.839591566e-61 | AL27: 6.367830093e-19 | AM27: 4.133207132e-07 | AN27: 0.288838376 | AO27: 1.521995888e-06 | AP27: 1.532489674e-07 | AQ27: 5.541751234e-06 | AR27: 3.44226376e-25 | AS27: 7.715164176e-62 | AT27: 2.102701074e-08 | AU27: 1.582607295e-18 | AV27: 0.001298353962 | AW27: 6.992052435e-66 | AX27: 8.839372031e-09 | AY27: 0.0190765013 | AZ27: 0.9907946312 | BA27: 0.7411605578 | BB27: 0.0005551945306 | BC27: 1.935391942e-20 | BD27: 8.470788952e-07 | BE27: 7.424036633e-10 | BF27: 0.0001008324832 | BG27: 2.533207891e-37 | BH27: 4.674446639e-30 | BI27: 1.129840885e-41 | BJ27: 0.01929228508 | BK27: 0.01961995732 | BL27: 0.08394965542 | BM27: 1.889812211e-05 | BN27: 9.649530892e-14 | BO27: 8.664686104e-29 | BP27: 2.791602721e-31 | BQ27: 2.453924503e-17 | BR27: 4.929731202e-48 | BS27: 7.834946308e-11 | BT27: 0.13052872 | BU27: 3.478550545e-29 | BV27: 2.633295288e-11 | BW27: 0.5138324703 | BX27: 0.9946065969 | BY27: 0.0003222928351 | BZ27: 6.779131049e-10 | CA27: 0.1929550536 | CB27: 5.519353935e-41 | CC27: 7.90923007e-37 | CD27: 2.798763848e-09 | CE27: 1.52778749e-28 | CF27: 1.766851153e-21 | CG27: 4.227151639e-15 | CH27: 1.907519038e-05 | CI27: 6.10893791e-10 | CJ27: 3.206117033e-06 | CK27: 0.9817368304 | CL27: 3.048685634e-06 | CM27: 9.476178866e-34 | CN27: 1.84080431e-114 | CO27: 1.829348142e-29 | CP27: 0.0006233003828 | CQ27: 2.830999586e-20 | CR27: 8.422574241e-27 | CS27: 3.188716807e-17 | CT27: 9.224846995e-28 | CU27: 1.610796184e-17 | CV27: 0.01151537707 | CW27: 1.086664316e-08 | CX27: 1.291628064e-16 | CY27: 4.560985929e-41 | CZ27: 5.799464066e-27 | DA27: 0.148219944 | DB27: 8.20609894e-07 | DC27: 2.302141316e-29 | DD27: 0.1799723592 | DE27: 140.4389971
B28: 27 | C28: 4.114711589e-08 | D28: 0.8200007698 | E28: 0.001288918222 | F28: 1.490067046e-12 | G28: 1.387600084e-29 | H28: 9.006970175e-94 | I28: 6.633093906e-36 | J28: 6.54966822e-15 | K28: 4.382582703e-13 | L28: 2.386156375e-20 | M28: 1.509757893e-14 | N28: 0.000179047755 | O28: 0.7593579541 | P28: 0.03098512588 | Q28: 0.08100195409 | R28: 5.50359178e-10 | S28: 1.764115927e-18 | T28: 4.065654708e-30 | U28: 2.911895399e-13 | V28: 0.0001335428711 | W28: 1.24878798e-05 | X28: 1.410424429e-61 | Y28: 1.029125074e-43 | Z28: 0.0008448748906 | AA28: 0.3869568852 | AB28: 0.2043825083 | AC28: 0.05533121849 | AD28: 7.184969697e-14 | AE28: 2.593267226e-06 | AF28: 1.521600787e-10 | AG28: 1.558695865e-16 | AH28: 0.004233111403 | AI28: 4.426943105e-14 | AJ28: 2.96361185e-08 | AK28: 1.232513499e-60 | AL28: 7.64566459e-19 | AM28: 4.605695321e-07 | AN28: 0.2980279515 | AO28: 1.687659331e-06 | AP28: 1.713835174e-07 | AQ28: 6.113567966e-06 | AR28: 4.255487493e-25 | AS28: 1.078879144e-61 | AT28: 2.367756172e-08 | AU28: 1.896393025e-18 | AV28: 0.001396287989 | AW28: 9.884957307e-66 | AX28: 9.982323082e-09 | AY28: 0.02017687767 | AZ28: 0.9879057308 | BA28: 0.752572456 | BB28: 0.000599777383 | BC28: 2.341214613e-20 | BD28: 9.413865456e-07 | BE28: 8.450308334e-10 | BF28: 0.000109843932 | BG28: 3.283554225e-37 | BH28: 5.896451857e-30 | BI28: 1.486637432e-41 | BJ28: 0.02040347601 | BK28: 0.02074753157 | BL28: 0.0877539854 | BM28: 2.074162515e-05 | BN28: 1.126329605e-13 | BO28: 1.087444669e-28 | BP28: 3.538333603e-31 | BQ28: 2.922409891e-17 | BR28: 6.621251919e-48 | BS28: 8.978510706e-11 | BT28: 0.1358774367 | BU28: 4.372678266e-29 | BV28: 3.027193713e-11 | BW28: 0.525724483 | BX28: 0.9923414771 | BY28: 0.0003491356602 | BZ28: 7.718414212e-10 | CA28: 0.2000439873 | CB28: 7.245501639e-41 | CC28: 1.023394812e-36 | CD28: 3.17242994e-09 | CE28: 1.915503675e-28 | CF28: 2.147960856e-21 | CG28: 4.973124899e-15 | CH28: 2.093512893e-05 | CI28: 6.957588469e-10 | CJ28: 3.544724912e-06 | CK28: 0.9853168642 | CL28: 3.371340899e-06 | CM28: 1.212441468e-33 | CN28: 2.908747573e-114 | CO28: 2.302141316e-29 | CP28: 0.0006729483346 | CQ28: 3.421879152e-20 | CR28: 1.048426447e-26 | CS28: 3.795205581e-17 | CT28: 1.15289424e-27 | CU28: 1.920160125e-17 | CV28: 0.01222206933 | CW28: 1.226338308e-08 | CX28: 1.53232086e-16 | CY28: 5.989086e-41 | CZ28: 7.223976123e-27 | DA28: 0.1540962302 | DB28: 9.120801199e-07 | DC28: 2.895968788e-29 | DD28: 0.1867261825 | DE28: 140.8350233
B29: 28 | C29: 4.622837731e-08 | D29: 0.8302320823 | E29: 0.001386195964 | F29: 1.726715615e-12 | G29: 1.747062309e-29 | H29: 1.362353404e-93 | I29: 8.554276624e-36 | J29: 7.697182824e-15 | K29: 5.095298281e-13 | L29: 2.885227808e-20 | M29: 1.770583763e-14 | N29: 0.0001945195278 | O29: 0.7705567296 | P29: 0.03265595666 | Q29: 0.08469980327 | R29: 6.270154089e-10 | S29: 2.113382351e-18 | T29: 5.129739047e-30 | U29: 3.389099354e-13 | V29: 0.0001452857595 | W29: 1.373021059e-05 | X29: 1.970900752e-61 | Y29: 1.363301046e-43 | Z29: 0.0009107136819 | AA29: 0.3976901876 | AB29: 0.2117557058 | AC29: 0.0580472468 | AD29: 8.392943573e-14 | AE29: 2.86955957e-06 | AF29: 1.740274623e-10 | AG29: 1.848342863e-16 | AH29: 0.004521560958 | AI29: 5.17763973e-14 | AJ29: 3.333319799e-08 | AK29: 1.7178192e-60 | AL29: 9.176251307e-19 | AM29: 5.1301436e-07 | AN29: 0.3073869198 | AO29: 1.870606216e-06 | AP29: 1.915873493e-07 | AQ29: 6.741689478e-06 | AR29: 5.258728802e-25 | AS29: 1.508088074e-61 | AT29: 2.665156404e-08 | AU29: 2.271484708e-18 | AV29: 0.001501008595 | AW29: 1.396918927e-65 | AX29: 1.1268552e-08 | AY29: 0.0213321917 | AZ29: 0.9846313223 | BA29: 0.7638544641 | BB29: 0.0006476811728 | BC29: 2.830999586e-20 | BD29: 1.045775335e-06 | BE29: 9.614601475e-10 | BF29: 0.0001196128836 | BG29: 4.254454028e-37 | BH29: 7.434942081e-30 | BI29: 1.955325768e-41 | BJ29: 0.02157003923 | BK29: 0.02193113417 | BL29: 0.0916940305 | BM29: 2.275585689e-05 | BN29: 1.314168582e-13 | BO29: 1.364230596e-28 | BP29: 4.483015321e-31 | BQ29: 3.47894324e-17 | BR29: 8.88962142e-48 | BS29: 1.028487144e-10 | BT29: 0.1413887628 | BU29: 5.494434643e-29 | BV29: 3.478621251e-11 | BW29: 0.537676608 | BX29: 0.9896855624 | BY29: 0.0003780628902 | BZ29: 8.784325411e-10 | CA29: 0.2073104191 | CB29: 9.507688744e-41 | CC29: 1.323666249e-36 | CD29: 3.594546504e-09 | CE29: 2.400652568e-28 | CF29: 2.6102316e-21 | CG29: 5.84840161e-15 | CH29: 2.296723323e-05 | CI29: 7.920964114e-10 | CJ29: 3.917526885e-06 | CK29: 0.9885144682 | CL29: 3.726653172e-06 | CM29: 1.550652901e-33 | CN29: 4.594420357e-114 | CO29: 2.895968788e-29 | CP29: 0.000726260349 | CQ29: 4.134431606e-20 | CR29: 1.304539908e-26 | CS29: 4.51524108e-17 | CT29: 1.440277079e-27 | CU29: 2.288024041e-17 | CV29: 0.01296694308 | CW29: 1.383411768e-08 | CX29: 1.817139367e-16 | CY29: 7.861196433e-41 | CZ29: 8.99478991e-27 | DA29: 0.1601414167 | DB29: 1.013340762e-06 | DC29: 3.64151461e-29 | DD29: 0.1936559787 | DE29: 141.2335656
B30: 29 | C30: 5.19163535e-08 | D30: 0.8402548839 | E30: 0.001490219283 | F30: 2.000147876e-12 | G30: 2.198764687e-29 | H30: 2.0598098e-93 | I30: 1.102749112e-35 | J30: 9.042126643e-15 | K30: 5.921549822e-13 | L30: 3.487286267e-20 | M30: 2.075639506e-14 | N30: 0.0002112437242 | O30: 0.7816079554 | P30: 0.03440312072 | Q30: 0.08853104478 | R30: 7.140629444e-10 | S30: 2.530785361e-18 | T30: 6.469732674e-30 | U30: 3.942930423e-13 | V30: 0.000157998029 | W30: 1.509009484e-05 | X30: 2.752998476e-61 | Y30: 1.805267894e-43 | Z30: 0.0009812905155 | AA30: 0.4085577516 | AB30: 0.2193071545 | AC30: 0.06087224228 | AD30: 9.80008738e-14 | AE30: 3.17401884e-06 | AF30: 1.989578744e-10 | AG30: 2.190937398e-16 | AH30: 0.00482773435 | AI30: 6.053213584e-14 | AJ30: 3.747649127e-08 | AK30: 2.393257909e-60 | AL30: 1.100884199e-18 | AM30: 5.712025281e-07 | AN30: 0.3169129971 | AO30: 2.072555854e-06 | AP30: 2.140872917e-07 | AQ30: 7.431372442e-06 | AR30: 6.495887763e-25 | AS30: 2.107205522e-61 | AT30: 2.998711643e-08 | AU30: 2.719678498e-18 | AV30: 0.001612937868 | AW30: 1.973303505e-65 | AX30: 1.271542517e-08 | AY30: 0.02254463854 | AZ30: 0.9809752982 | BA30: 0.7749955435 | BB30: 0.0006991312955 | BC30: 3.421879152e-20 | BD30: 1.161275022e-06 | BE30: 1.093493741e-09 | BF30: 0.0001301985454 | BG30: 5.51023042e-37 | BH30: 9.371102854e-30 | BI30: 2.570747757e-41 | BJ30: 0.02279418088 | BK30: 0.02317298774 | BL30: 0.09577266201 | BM30: 2.495570761e-05 | BN30: 1.53272042e-13 | BO30: 1.710782048e-28 | BP30: 5.677641302e-31 | BQ30: 4.139804568e-17 | BR30: 1.193033676e-47 | BS30: 1.177659424e-10 | BT30: 0.147064796 | BU30: 6.901202673e-29 | BV30: 3.995768887e-11 | BW30: 0.5496805432 | BX30: 0.9866420204 | BY30: 0.0004092231302 | BZ30: 9.993440522e-10 | CA30: 0.2147548788 | CB30: 1.247118537e-40 | CC30: 1.711354818e-36 | CD30: 4.071200166e-09 | CE30: 3.007474241e-28 | CF30: 3.170720829e-21 | CG30: 6.874977666e-15 | CH30: 2.518651061e-05 | CI30: 9.014126248e-10 | CJ30: 4.327805315e-06 | CK30: 0.9913258395 | CL30: 4.117765072e-06 | CM30: 1.982415536e-33 | CN30: 7.254069352e-114 | CO30: 3.64151461e-29 | CP30: 0.0007834823684 | CQ30: 4.993364145e-20 | CR30: 1.622568549e-26 | CS30: 5.369735117e-17 | CT30: 1.798576486e-27 | CU30: 2.72527293e-17 | CV30: 0.01375171136 | CW30: 1.5599796e-08 | CX30: 2.154036423e-16 | CY30: 1.031437768e-40 | CZ30: 1.119520443e-26 | DA30: 0.1663571992 | DB30: 1.125393281e-06 | DC30: 4.577164478e-29 | DD30: 0.2007626328 | DE30: 141.6345606
B31: 30 | C31: 5.828086579e-08 | D31: 0.8500585921 | E31: 0.001601408059 | F31: 2.315952653e-12 | G31: 2.766147884e-29 | H31: 3.113083296e-93 | I31: 1.421007681e-35 | J31: 1.061782715e-14 | K31: 6.87903382e-13 | L31: 4.213290188e-20 | M31: 2.432280518e-14 | N31: 0.0002293140721 | O31: 0.7925006128 | P31: 0.03622926722 | Q31: 0.0924985787 | R31: 8.128699356e-10 | S31: 3.029415431e-18 | T31: 8.156497018e-30 | U31: 4.585431484e-13 | V31: 0.0001717538862 | W31: 1.657803387e-05 | X31: 3.843912287e-61 | Y31: 2.389559403e-43 | Z31: 0.001056913934 | AA31: 0.4195544349 | AB31: 0.2270370634 | AC31: 0.06380919352 | AD31: 1.14385737e-13 | AE31: 3.509377102e-06 | AF31: 2.273687425e-10 | AG31: 2.595994001e-16 | AH31: 0.005152578551 | AI31: 7.074022716e-14 | AJ31: 4.211794247e-08 | AK31: 3.332942607e-60 | AL31: 1.320213775e-18 | AM31: 6.357362887e-07 | AN31: 0.3266036248 | AO31: 2.295389528e-06 | AP31: 2.391339456e-07 | AQ31: 8.188334816e-06 | AR31: 8.020889491e-25 | AS31: 2.943156582e-61 | AT31: 3.37266335e-08 | AU31: 3.255004551e-18 | AV31: 0.00173252049 | AW31: 2.786396112e-65 | AX31: 1.434233764e-08 | AY31: 0.02381646811 | AZ31: 0.9769419942 | BA31: 0.7859846626 | BB31: 0.0007543666764 | BC31: 4.134431606e-20 | BD31: 1.289015254e-06 | BE31: 1.243161631e-09 | BF31: 0.0001416643544 | BG31: 7.133817043e-37 | BH31: 1.180674277e-29 | BI31: 3.378516855e-41 | BJ31: 0.02407816177 | BK31: 0.02447536934 | BL31: 0.09999270957 | BM31: 2.735727686e-05 | BN31: 1.786903456e-13 | BO31: 2.144508962e-28 | BP31: 7.18773343e-31 | BQ31: 4.924233268e-17 | BR31: 1.600473256e-47 | BS31: 1.347928447e-10 | BT31: 0.1529075177 | BU31: 8.664686104e-29 | BV31: 4.587962487e-11 | BW31: 0.5617277371 | BX31: 0.9832144735 | BY31: 0.0004427744765 | BZ31: 1.136443714e-09 | CA31: 0.2223776981 | CB31: 1.635184627e-40 | CC31: 2.211708619e-36 | CD31: 4.609216274e-09 | CE31: 3.76617766e-28 | CF31: 3.850022348e-21 | CG31: 8.078517637e-15 | CH31: 2.76091864e-05 | CI31: 1.025405185e-09 | CJ31: 4.779139732e-06 | CK31: 0.9937476279 | CL31: 4.548104524e-06 | CM31: 2.53338428e-33 | CN31: 1.144877344e-113 | CO31: 4.577164478e-29 | CP31: 0.0008448748906 | CQ31: 6.028329012e-20 | CR31: 2.017321049e-26 | CS31: 6.383385383e-17 | CT31: 2.24511223e-27 | CU31: 3.244783341e-17 | CV31: 0.01457814193 | CW31: 1.758379672e-08 | CX31: 2.552372932e-16 | CY31: 1.352769158e-40 | CZ31: 1.392833857e-26 | DA31: 0.1727451313 | DB31: 1.249336435e-06 | DC31: 5.750919165e-29 | DD31: 0.2080468467 | DE31: 142.0379423
B32: 31 | C32: 6.539944924e-08 | D32: 0.8596327636 | E32: 0.001720204672 | F32: 2.680547637e-12 | G32: 3.478550545e-29 | H32: 4.703061353e-93 | I32: 1.830384867e-35 | J32: 1.246312638e-14 | K32: 7.988142135e-13 | L32: 5.08840214e-20 | M32: 2.849060532e-14 | N32: 0.0002488306533 | O32: 0.8032237189 | P32: 0.03813708922 | Q32: 0.09660526849 | R32: 9.249790753e-10 | S32: 3.624838276e-18 | T32: 1.027891582e-29 | U32: 5.330495557e-13 | V32: 0.0001866327082 | W32: 1.820540555e-05 | X32: 5.364969401e-61 | Y32: 3.161697284e-43 | Z32: 0.001137910037 | AA32: 0.4306747992 | AB32: 0.2349454311 | AC32: 0.06686109638 | AD32: 1.334566085e-13 | AE32: 3.878616655e-06 | AF32: 2.597327235e-10 | AG32: 3.074706618e-16 | AH32: 0.005497081302 | AI32: 8.263674158e-14 | AJ32: 4.731530599e-08 | AK32: 4.639727238e-60 | AL32: 1.582607295e-18 | AM32: 7.072780266e-07 | AN32: 0.3364559651 | AO32: 2.541164798e-06 | AP32: 2.670040527e-07 | AQ32: 9.01879342e-06 | AR32: 9.89994622e-25 | AS32: 4.109094437e-61 | AT32: 3.791731383e-08 | AU32: 3.894143173e-18 | AV32: 0.001860224685 | AW32: 3.932947106e-65 | AX32: 1.617094053e-08 | AY32: 0.02514998447 | AZ32: 0.9725361811 | BA32: 0.7968108148 | BB32: 0.0008136404477 | BC32: 4.993364145e-20 | BD32: 1.430234702e-06 | BE32: 1.412749544e-09 | BF32: 0.000154078245 | BG32: 9.232099069e-37 | BH32: 1.486948e-29 | BI32: 4.438323934e-41 | BJ32: 0.02542429668 | BK32: 0.02584060983 | BL32: 0.1043569547 | BM32: 2.997796339e-05 | BN32: 2.082406527e-13 | BO32: 2.687121655e-28 | BP32: 9.095828327e-31 | BQ32: 5.854956579e-17 | BR32: 2.146201147e-47 | BS32: 1.542198398e-10 | BT32: 0.158918784 | BU32: 1.087444669e-28 | BV32: 5.265815492e-11 | BW32: 0.5738093963 | BX32: 0.9794069927 | BY32: 0.0004788850349 | BZ32: 1.291835192e-09 | CA32: 0.2301790027 | CB32: 2.143147879e-40 | CC32: 2.85720921e-36 | CD32: 5.216245222e-09 | CE32: 4.714395047e-28 | CF32: 4.672989201e-21 | CG32: 9.488954092e-15 | CH32: 3.025279443e-05 | CI32: 1.165986881e-09 | CJ32: 5.275431927e-06 | CK32: 0.9957769423 | CL32: 5.021408931e-06 | CM32: 3.236187919e-33 | CN32: 1.806186124e-113 | CO32: 5.750919165e-29 | CP32: 0.0009107136819 | CQ32: 7.274898491e-20 | CR32: 2.507109304e-26 | CS32: 7.585348676e-17 | CT32: 2.801389407e-27 | CU32: 3.861781405e-17 | CV32: 0.01544805768 | CW32: 1.981219856e-08 | CX32: 3.023162557e-16 | CY32: 1.773497738e-40 | CZ32: 1.732179458e-26 | DA32: 0.179306616 | DB32: 1.386375182e-06 | DC32: 7.222778386e-29 | DD32: 0.2155091308 | DE32: 142.4436421
B33: 32 | C33: 7.335816668e-08 | D33: 0.8689671122 | E33: 0.001847074949 | F33: 3.101299186e-12 | G33: 4.372678266e-29 | H33: 7.102264298e-93 | I33: 2.356756371e-35 | J33: 1.462327438e-14 | K33: 9.272362569e-13 | L33: 6.14281963e-20 | M33: 3.335922664e-14 | N33: 0.0002699002801 | O33: 0.8137663447 | P33: 0.0401293216 | Q33: 0.1008539347 | R33: 1.052129112e-09 | S33: 4.335555192e-18 | T33: 1.294843317e-29 | U33: 6.194143253e-13 | V33: 0.0002027193597 | W33: 1.998453167e-05 | X33: 7.484922566e-61 | Y33: 4.181662935e-43 | Z33: 0.001224623291 | AA33: 0.44191311 | AB33: 0.2430320382 | AC33: 0.07003094943 | AD33: 1.556447855e-13 | AE33: 4.284991455e-06 | AF33: 2.965847807e-10 | AG33: 3.640239543e-16 | AH33: 0.005862272218 | AI33: 9.649530892e-14 | AJ33: 5.313276796e-08 | AK33: 6.456294715e-60 | AL33: 1.896393025e-18 | AM33: 7.865559335e-07 | AN33: 0.3464668971 | AO33: 2.812130997e-06 | AP33: 2.980030844e-07 | AQ33: 9.929504306e-06 | AR33: 1.221432355e-24 | AS33: 5.73462679e-61 | AT33: 4.261165626e-08 | AU33: 4.656917152e-18 | AV33: 0.001996543188 | AW33: 5.549062778e-65 | AX33: 1.822539292e-08 | AY33: 0.02654754507 | AZ33: 0.9677630546 | BA33: 0.8074630366 | BB33: 0.0008772206508 | BC33: 6.028329012e-20 | BD33: 1.586290954e-06 | BE33: 1.604830008e-09 | BF33: 0.0001675129326 | BG33: 1.194277438e-36 | BH33: 1.871921974e-29 | BI33: 5.828250169e-41 | BJ33: 0.02683495367 | BK33: 0.02727109306 | BL33: 0.1088681241 | BM33: 3.283656096e-05 | BN33: 2.425806894e-13 | BO33: 3.365681955e-28 | BP33: 1.150585323e-30 | BQ33: 6.958810683e-17 | BR33: 2.876859854e-47 | BS33: 1.763761827e-10 | BT33: 0.1651003183 | BU33: 1.364230596e-28 | BV33: 6.041401509e-11 | BW33: 0.5859164947 | BX33: 0.9752240885 | BY33: 0.0005177334621 | BZ33: 1.467886831e-09 | CA33: 0.238158705 | CB33: 2.807784448e-40 | CC33: 3.689626922e-36 | CD33: 5.90085843e-09 | CE33: 5.898986779e-28 | CF33: 5.669602179e-21 | CG33: 1.114118269e-14 | CH33: 3.313627348e-05 | CI33: 1.325311912e-09 | CJ33: 5.820932999e-06 | CK33: 0.9974113563 | CL33: 5.541751234e-06 | CM33: 4.132307918e-33 | CN33: 2.848343247e-113 | CO33: 7.222778386e-29 | CP33: 0.0009812905155 | CQ33: 8.77572915e-20 | CR33: 3.114567872e-26 | CS33: 9.010031619e-17 | CT33: 3.494098879e-27 | CU33: 4.594264055e-17 | CV33: 0.01636333693 | CW33: 2.231407928e-08 | CX33: 3.579358119e-16 | CY33: 2.324148464e-40 | CZ33: 2.15334063e-26 | DA33: 0.1860428975 | DB33: 1.537830348e-06 | DC33: 9.067709504e-29 | DD33: 0.2231497965 | DE33: 142.8515891
B34: 33 | C34: 8.225250433e-08 | D34: 0.8780515272 | E34: 0.001982509128 | F34: 3.586658955e-12 | G34: 5.494434643e-29 | H34: 1.072109878e-92 | I34: 3.033285195e-35 | J34: 1.715096422e-14 | K34: 1.075873743e-12 | L34: 7.412767563e-20 | M34: 3.904420223e-14 | N34: 0.0002926368902 | O34: 0.8241176336 | P34: 0.04220873875 | Q34: 0.1052473484 | R34: 1.196278917e-09 | S34: 5.183547533e-18 | T34: 1.63047225e-29 | U34: 7.194840766e-13 | V34: 0.0002201045274 | W34: 2.192874993e-05 | X34: 1.043839331e-60 | Y34: 5.528458358e-43 | Z34: 0.001317417366 | AA34: 0.453263339 | AB34: 0.2512964402 | AC34: 0.07332174914 | AD34: 1.814493216e-13 | AE34: 4.732050216e-06 | AF34: 3.385301358e-10 | AG34: 4.308067759e-16 | AH34: 0.006249223893 | AI34: 1.126329605e-13 | AJ34: 5.9641631e-08 | AK34: 8.980500176e-60 | AL34: 2.271484708e-18 | AM34: 8.743701835e-07 | AN34: 0.3566330133 | AO34: 3.110745966e-06 | AP34: 3.324680738e-07 | AQ34: 1.092780609e-05 | AR34: 1.506372182e-24 | AS34: 8.000009048e-61 | AT34: 4.78680294e-08 | AU34: 5.566873991e-18 | AV34: 0.002141994232 | AW34: 7.826137119e-65 | AX34: 2.053264045e-08 | AY34: 0.02801155991 | AZ34: 0.9626282259 | BA34: 0.8179304258 | BB34: 0.0009453909616 | BC34: 7.274898491e-20 | BD34: 1.75867126e-06 | BE34: 1.82229708e-09 | BF34: 0.0001820462104 | BG34: 1.544316392e-36 | BH34: 2.355624086e-29 | BI34: 7.650391422e-41 | BJ34: 0.02831255311 | BK34: 0.02876925491 | BL34: 0.1135288828 | BM34: 3.595336054e-05 | BN34: 2.824705776e-13 | BO34: 4.213908509e-28 | BP34: 1.45486162e-30 | BQ34: 8.267470361e-17 | BR34: 3.854723852e-47 | BS34: 2.016349967e-10 | BT34: 0.1714537034 | BU34: 1.710782048e-28 | BV34: 6.928449307e-11 | BW34: 0.5980397833 | BX34: 0.970670703 | BY34: 0.0005595095285 | BZ34: 1.667263796e-09 | CA34: 0.2463164962 | CB34: 3.677068089e-40 | CC34: 4.762655295e-36 | CD34: 6.672655035e-09 | CE34: 7.378280404e-28 | CF34: 6.876012826e-21 | CG34: 1.307586801e-14 | CH34: 3.628007012e-05 | CI34: 1.505805298e-09 | CJ34: 6.420272472e-06 | CK34: 0.9986489135 | CL34: 6.113567966e-06 | CM34: 5.274458757e-33 | CN34: 4.490021582e-113 | CO34: 9.067709504e-29 | CP34: 0.001056913934 | CQ34: 1.058195149e-19 | CR34: 3.867662881e-26 | CS34: 1.069801897e-16 | CT34: 4.356354182e-27 | CU34: 5.463494377e-17 | CV34: 0.01732591364 | CW34: 2.512184627e-08 | CX34: 4.236186643e-16 | CY34: 3.044551866e-40 | CZ34: 2.675832155e-26 | DA34: 0.1929550536 | DB34: 1.705149104e-06 | DC34: 1.137934303e-28 | DD34: 0.2309689484 | DE34: 143.2617102
B35: 34 | C35: 9.218835646e-08 | D35: 0.8868760918 | E35: 0.00212702285 | F35: 4.146319677e-12 | G35: 6.901202673e-29 | H35: 1.617737479e-92 | I35: 3.90245661e-35 | J35: 2.010753047e-14 | K35: 1.247838826e-12 | L35: 8.941683298e-20 | M35: 4.567971814e-14 | N35: 0.0003171619599 | O35: 0.8342668198 | P35: 0.04437815212 | Q35: 0.1097882246 | R35: 1.359634396e-09 | S35: 6.194920449e-18 | T35: 2.052276566e-29 | U35: 8.353864189e-13 | V35: 0.0002388850701 | W35: 2.405249078e-05 | X35: 1.45514504e-60 | Y35: 7.306095493e-43 | Z35: 0.001416675995 | AA35: 0.464719166 | AB35: 0.2597379606 | AC35: 0.07673648494 | AD35: 2.114474269e-13 | AE35: 5.223661318e-06 | AF35: 3.862532011e-10 | AG35: 5.096374925e-16 | AH35: 0.006659052978 | AI35: 1.314168582e-13 | AJ35: 6.692106811e-08 | AK35: 1.248659389e-59 | AL35: 2.719678498e-18 | AM35: 9.7159965e-07 | AN35: 0.3669506165 | AO35: 3.439694151e-06 | AP35: 3.707707092e-07 | AQ35: 1.202166643e-05 | AR35: 1.857040761e-24 | AS35: 1.115583492e-60 | AT35: 5.375129915e-08 | AU35: 6.651974141e-18 | AV35: 0.00229712256 | AW35: 1.10332015e-64 | AX35: 2.312272354e-08 | AY35: 0.02954449048 | AZ35: 0.9571377103 | BA35: 0.8282021598 | BB35: 0.001018451441 | BC35: 8.77572915e-20 | BD35: 1.949004166e-06 | BE35: 2.06840512e-09 | BF35: 0.0001977612624 | BG35: 1.996152041e-36 | BH35: 2.963128681e-29 | BI35: 1.003818994e-40 | BJ35: 0.02985956664 | BK35: 0.03033758215 | BL35: 0.1183418274 | BM35: 3.935025905e-05 | BN35: 3.28788404e-13 | BO35: 5.273797039e-28 | BP35: 1.838869149e-30 | BQ35: 9.818305789e-17 | BR35: 5.16290482e-47 | BS35: 2.304189367e-10 | BT35: 0.1779803728 | BU35: 2.144508962e-28 | BV35: 7.94256303e-11 | BW35: 0.6101697999 | BX35: 0.9657521994 | BY35: 0.0006044147038 | BZ35: 1.892963967e-09 | CA35: 0.25465184 | CB35: 4.81355415e-40 | CC35: 6.145286393e-36 | CD35: 7.542380414e-09 | CE35: 9.224846995e-28 | CF35: 8.335795503e-21 | CG35: 1.534037735e-14 | CH35: 3.970624809e-05 | CI35: 1.710195749e-09 | CJ35: 7.078489645e-06 | CK35: 0.999488131 | CL35: 6.741689478e-06 | CM35: 6.729602438e-33 | CN35: 7.075071209e-113 | CO35: 1.137934303e-28 | CP35: 0.001137910037 | CQ35: 1.275482791e-19 | CR35: 4.80093369e-26 | CS35: 1.269716298e-16 | CT35: 5.429220183e-27 | CU35: 6.494583884e-17 | CV35: 0.01833777755 | CW35: 2.827160197e-08 | CX35: 5.011541177e-16 | CY35: 3.98665973e-40 | CZ35: 3.32377245e-26 | DA35: 0.2000439873 | DB35: 1.889916329e-06 | DC35: 1.427457092e-28 | DD35: 0.2389664771 | DE35: 143.6739297
B36: 35 | C36: =+EXP(-(($B36-C$2)^2/(2*alpha^2))) -> 1.032831078e-07 | D36: 0.8954311006 | E36: 0.00228115816 | F36: 4.791392677e-12 | G36: 8.664686104e-29 | H36: 2.440074461e-92 | I36: 5.018676506e-35 | J36: 2.356433629e-14 | K36: 1.446711596e-12 | L36: 1.078163108e-19 | M36: =+EXP(-(($B36-M$2)^2/(2*alpha^2))) -> 5.34215592e-14 | N36: 0.0003436049368 | O36: 0.8442032465 | P36: 0.04664040749 | Q36: 0.1144792151 | R36: 1.54467856e-09 | S36: 7.400663615e-18 | T36: 2.58216888e-29 | U36: 9.695716683e-13 | V36: 0.0002591643867 | W36: =+EXP(-(($B36-W$2)^2/(2*alpha^2))) -> 2.637135961e-05 | X36: 2.027706963e-60 | Y36: 9.651458065e-43 | Z36: 0.001522803858 | AA36: 0.476273981 | AB36: 0.2683556838 | AC36: 0.08027813392 | AD36: 2.46306426e-13 | AE36: 5.764039655e-06 | AF36: 4.405276072e-10 | AG36: =+EXP(-(($B36-AG$2)^2/(2*alpha^2))) -> 6.026518543e-16 | AH36: 0.007092921245 | AI36: 1.53272042e-13 | AJ36: 7.505895241e-08 | AK36: 1.735456492e-59 | AL36: 3.255004551e-18 | AM36: 1.079209208e-06 | AN36: 0.3774157175 | AO36: 3.801906145e-06 | AP36: 4.133207132e-07 | AQ36: =+EXP(-(($B36-AQ$2)^2/(2*alpha^2))) -> 1.321973195e-05 | AR36: 2.28842597e-24 | AS36: 1.555034263e-60 | AT36: 6.033352003e-08 | AU36: 7.945404203e-18 | AV36: 0.002462500455 | AW36: 1.554826481e-64 | AX36: 2.602911806e-08 | AY36: 0.03114884852 | AZ36: 0.9512979155 | BA36: =+EXP(-(($B36-BA$2)^2/(2*alpha^2))) -> 0.8382675143 | BB36: 0.001096719311 | BC36: 1.058195149e-19 | BD36: 2.159072126e-06 | BE36: 2.34681206e-09 | BF36: 0.0002147469929 | BG36: 2.579153767e-36 | BH36: 3.725815287e-29 | BI36: 1.316598767e-40 | BJ36: 0.03147851592 | BK36: =+EXP(-(($B36-BK$2)^2/(2*alpha^2))) -> 0.03197861119 | BL36: 0.1233094783 | BM36: 4.305087509e-05 | BN36: 3.825480992e-13 | BO36: 6.597630727e-28 | BP36: 2.323305114e-30 | BQ36: 1.165538822e-16 | BR36: 6.91227883e-47 | BS36: 2.632065581e-10 | BT36: 0.1846816033 | BU36: =+EXP(-(($B36-BU$2)^2/(2*alpha^2))) -> 2.687121655e-28 | BV36: 9.101470764e-11 | BW36: 0.6222968807 | BX36: 0.9604743519 | BY36: 0.000652662766 | BZ36: 2.148358016e-09 | CA36: 0.263163965 | CB36: 6.298778463e-40 | CC36: 7.926133578e-36 | CD36: 8.522057795e-09 | CE36: =+EXP(-(($B36-CE$2)^2/(2*alpha^2))) -> 1.15289424e-27 | CF36: 1.010144975e-20 | CG36: 1.798986232e-14 | CH36: 4.343860483e-05 | CI36: 1.941552357e-09 | CJ36: 7.801067302e-06 | CK36: 0.9999280026 | CL36: 7.431372442e-06 | CM36: 8.582764538e-33 | CN36: 1.114395845e-112 | CO36: =+EXP(-(($B36-CO$2)^2/(2*alpha^2))) -> 1.427457092e-28 | CP36: 0.001224623291 | CQ36: 1.536773005e-19 | CR36: 5.957020368e-26 | CS36: 1.506386125e-16 | CT36: 6.763601476e-27 | CU36: 7.717176671e-17 | CV36: 0.01940097415 | CW36: 3.18035474e-08 | CX36: 5.92643877e-16 | CY36: =+EXP(-(($B36-CY$2)^2/(2*alpha^2))) -> 5.218206288e-40 | CZ36: 4.126957356e-26 | DA36: 0.2073104191 | DB36: 2.093866921e-06 | DC36: 1.789926583e-28 | DD36: 0.2471420516 | DE36: 144.0881695
B37: 36 | C37: 1.156668223e-07 | D37: 0.9037070779 | E37: 0.00244548454 | F37: 5.534610072e-12 | G37: 1.087444669e-28 | H37: 3.678954305e-92 | I37: 6.451587695e-35 | J37: 2.760437832e-14 | K37: 1.676608689e-12 | L37: 1.29949895e-19 | M37: 6.245050949e-14 | N37: 0.0003721036922 | O37: 0.8539163848 | P37: 0.04899838209 | Q37: 0.1193229018 | R37: 1.75420513e-09 | S37: 8.837549867e-18 | T37: 3.247578679e-29 | U37: 1.124860599e-12 | V37: 0.0002810528017 | W37: 2.890222431e-05 | X37: 2.824427191e-60 | Y37: 1.274461716e-42 | Z37: 0.001636227487 | AA37: 0.4879208885 | AB37: 0.2771484488 | AC37: 0.08394965542 | AD37: 2.867975009e-13 | AE37: 6.357775538e-06 | AF37: 5.022274556e-10 | AG37: 7.123573445e-16 | AH37: 0.007552036628 | AI37: 1.786903456e-13 | AJ37: 8.415276995e-08 | AK37: 2.411069649e-59 | AL37: 3.894143173e-18 | AM37: 1.198257668e-06 | AN37: 0.3880240332 | AO37: 4.200579777e-06 | AP37: 4.605695321e-07 | AQ37: 1.453138158e-05 | AR37: 2.818892936e-24 | AS37: 2.166726666e-60 | AT37: 6.769469639e-08 | AU37: 9.486537363e-18 | AV37: 0.002638728781 | AW37: 2.190224285e-64 | AX37: 2.928911183e-08 | AY37: 0.03282719471 | AZ37: 0.9451156292 | BA37: 0.8481158813 | BB37: 0.001180529751 | BC37: 1.275482791e-19 | BD37: 2.390825151e-06 | BE37: 2.661627657e-09 | BF37: 0.0002330983711 | BG37: 3.331095896e-36 | BH37: 4.682938029e-29 | BI37: 1.726146936e-40 | BJ37: 0.03317197122 | BK37: 0.03369492656 | BL37: 0.128434273 | BM37: 4.70806721e-05 | BN37: 4.449199574e-13 | BO37: 8.250473592e-28 | BP37: 2.934188105e-30 | BQ37: 1.383066988e-16 | BR37: 9.250701354e-47 | BS37: 3.005394769e-10 | BT37: 0.1915585065 | BU37: 3.365681955e-28 | BV37: 1.042530499e-10 | BW37: 0.634411171 | BX37: 0.9548433341 | BY37: 0.0007044804339 | BZ37: 2.437234115e-09 | CA37: 0.2718518582 | CB37: 8.238973161e-40 | CC37: 1.021896541e-35 | CD37: 9.625134335e-09 | CE37: 1.440277079e-27 | CF37: 1.223620222e-20 | CG37: 2.108851111e-14 | CH37: 4.750279531e-05 | CI37: 2.203325559e-09 | CJ37: 8.593967967e-06 | CK37: 0.9999680005 | CL37: 8.188334816e-06 | CM37: 1.094186293e-32 | CN37: 1.754585094e-112 | CO37: 1.789926583e-28 | CP37: 0.001317417366 | CQ37: 1.850849581e-19 | CR37: 7.38854197e-26 | CS37: 1.786455498e-16 | CT37: 8.422574241e-27 | CU37: 9.166252938e-17 | CV37: 0.02051760461 | CW37: 3.576242771e-08 | CX37: 7.005555575e-16 | CY37: 6.827466855e-40 | CZ37: 5.122181476e-26 | DA37: 0.2147548788 | DB37: 2.318899125e-06 | DC37: 2.243539166e-28 | DD37: 0.2554951122 | DE37: 144.5043497
B38: 37 | C38: 1.294835488e-07 | D38: 0.9116947946 | E38: 0.002620599947 | F38: 6.39055498e-12 | G38: 1.364230596e-28 | H38: 5.54462259e-92 | I38: 8.290300813e-35 | J38: 3.232414244e-14 | K38: 1.942261694e-12 | L38: 1.565646389e-19 | M38: 7.297627548e-14 | N38: 0.0004028049936 | O38: 0.8633958521 | P38: 0.05145498146 | Q38: 0.1243217893 | R38: 1.991356046e-09 | S38: 1.054919627e-17 | T38: 4.082827229e-29 | U38: 1.304499074e-12 | V38: 0.0003046679692 | W38: 3.166330875e-05 | X38: 3.932618856e-60 | Y38: 1.682236076e-42 | Z38: 0.001757396195 | AA38: 0.4996527109 | AB38: 0.2861148429 | AC38: 0.0877539854 | AD38: 3.338114775e-13 | AE38: 7.009865808e-06 | AF38: 5.723399402e-10 | AG38: 8.416966481e-16 | AH38: 0.008037654236 | AI38: 2.082406527e-13 | AJ38: 9.431062324e-08 | AK38: 3.348359374e-59 | AL38: 4.656917152e-18 | AM38: 1.329906392e-06 | AN38: 0.3987709847 | AO38: 4.639202878e-06 | AP38: 5.1301436e-07 | AQ38: 1.59667839e-05 | AR38: 3.47093577e-24 | AS38: 3.017828641e-60 | AT38: 7.592362015e-08 | AU38: 1.132206723e-17 | AV38: 0.002826438049 | AW38: 3.084050874e-64 | AX38: 3.294422029e-08 | AY38: 0.03458213707 | AZ38: 0.9385980061 | BA38: 0.8577367884 | BB38: 0.001270236723 | BC38: 1.536773005e-19 | BD38: 2.646395586e-06 | BE38: 3.017467299e-09 | BF38: 0.0002529167942 | BG38: 4.300543232e-36 | BH38: 5.883581628e-29 | BI38: 2.262186265e-40 | BJ38: 0.03494254981 | BK38: 0.03548915933 | BL38: 0.1337185582 | BM38: 5.146708916e-05 | BN38: 5.172541785e-13 | BO38: 1.031326163e-27 | BP38: 3.704212886e-30 | BQ38: 1.640536771e-16 | BR38: 1.237526065e-46 | BS38: 3.430304147e-10 | BT38: 0.1986120211 | BU38: 4.213908509e-28 | BV38: 1.193691886e-10 | BW38: 0.6465026382 | BX38: 0.9488657074 | BY38: 0.0007601080224 | BZ38: 2.763847794e-09 | CA38: 0.2807142587 | CB38: 1.077249062e-39 | CC38: 1.316978707e-35 | CD38: 1.086664316e-08 | CE38: 1.798576486e-27 | CF38: 1.481616705e-20 | CG38: 2.471099768e-14 | CH38: 5.192646369e-05 | CI38: 2.499392836e-09 | CJ38: 9.463672847e-06 | CK38: 0.9996080768 | CL38: 9.01879342e-06 | CM38: 1.394381539e-32 | CN38: 2.761440366e-112 | CO38: 2.243539166e-28 | CP38: 0.001416675995 | CQ38: 2.228223802e-19 | CR38: 9.16040524e-26 | CS38: 2.117748483e-16 | CT38: 1.048426447e-26 | CU38: 1.088307229e-16 | CV38: 0.02168982549 | CW38: 4.019802387e-08 | CX38: 8.27785178e-16 | CY38: 8.929440329e-40 | CZ38: 6.354863453e-26 | DA38: 0.2223776981 | DB38: 2.567088964e-06 | DC38: 2.810984011e-28 | DD38: 0.2640248636 | DE38: 144.9223879
B39: 38 | C39: 1.448927534e-07 | D39: 0.9193852857 | E39: 0.00280713188 | F39: 7.375923509e-12 | G39: 1.710782048e-28 | H39: 8.353065151e-92 | I39: 1.064878983e-34 | J39: 3.783574894e-14 | K39: 2.249106702e-12 | L39: 1.885548513e-19 | M39: 8.524201064e-14 | N39: 0.0004358649981 | O39: 0.8726314301 | P39: 0.05401313615 | Q39: 0.1294782973 | R39: 2.259663339e-09 | S39: 1.258731642e-17 | T39: 5.130841582e-29 | U39: 1.512220523e-12 | V39: 0.0003301352959 | W39: 3.467429235e-05 | X39: 5.473430564e-60 | Y39: 2.219593133e-42 | Z39: 0.001886783031 | AA39: 0.5114619937 | AB39: 0.2952531958 | AC39: 0.0916940305 | AD39: 3.883769524e-13 | AE39: 7.725747315e-06 | AF39: 6.519794975e-10 | AG39: 9.941217399e-16 | AH39: 0.008551077334 | AI39: 2.425806894e-13 | AJ39: 1.056523341e-07 | AK39: 4.648155558e-59 | AL39: 5.566873991e-18 | AM39: 1.47542865e-06 | AN39: 0.4096516969 | AO39: 5.121577812e-06 | AP39: 5.712025281e-07 | AQ39: 1.753695832e-05 | AR39: 4.272094541e-24 | AS39: 4.201567121e-60 | AT39: 8.511879227e-08 | AU39: 1.350734584e-17 | AV39: 0.003026289492 | AW39: 4.340909775e-64 | AX39: 3.704064551e-08 | AY39: 0.03641632922 | AZ39: 0.9317525536 | BA39: 0.8671199163 | BB39: 0.00136621382 | BC39: 1.850849581e-19 | BD39: 2.928114083e-06 | BE39: 3.419511953e-09 | BF39: 0.0002743104675 | BG39: 5.549907982e-36 | BH39: 7.389098193e-29 | BI39: 2.963502126e-40 | BJ39: 0.03679291425 | BK39: 0.03736398524 | BL39: 0.1391645824 | BM39: 5.623968002e-05 | BN39: 6.011078654e-13 | BO39: 1.28866334e-27 | BP39: 4.674446639e-30 | BQ39: 1.945158545e-16 | BR39: 1.654856466e-46 | BS39: 3.913722354e-10 | BT39: 0.2058429046 | BU39: 5.273797039e-28 | BV39: 1.366224273e-10 | BW39: 0.6585610838 | BX39: 0.9425484077 | BY39: 0.0008198001229 | BZ39: 3.132977521e-09 | CA39: 0.2897496514 | CB39: 1.407944201e-39 | CC39: 1.696589831e-35 | CD39: 1.226338308e-08 | CE39: 2.24511223e-27 | CF39: 1.793293476e-20 | CG39: 2.894415822e-14 | CH39: 5.673938316e-05 | CI39: 2.834109666e-09 | CJ39: 1.041722367e-05 | CK39: 0.9988486633 | CL39: 9.929504306e-06 | CM39: 1.776226155e-32 | CN39: 4.344333774e-112 | CO39: 2.810984011e-28 | CP39: 0.001522803858 | CQ39: 2.681468968e-19 | CR39: 1.135264116e-25 | CS39: 2.509474799e-16 | CT39: 1.304539908e-26 | CU39: 1.291628064e-16 | CV39: 0.02291984843 | CW39: 4.516569493e-08 | CX39: 9.77730113e-16 | CY39: 1.167387828e-39 | CZ39: 7.881044279e-26 | DA39: 0.2301790027 | DB39: 2.840705844e-06 | DC39: 3.520540764e-28 | DD39: 0.2727302684 | DE39: 145.3421996
B40: 39 | C40: 1.620708908e-07 | D40: 0.9267698669 | E40: 0.003005738452 | F40: 8.509822767e-12 | G40: 2.144508962e-28 | H40: 1.257899747e-91 | I40: 1.367276988e-34 | J40: 4.426943105e-14 | K40: 2.603386548e-12 | L40: 2.269906785e-19 | M40: 9.952953108e-14 | N40: 0.0004714497671 | O40: 0.8816130836 | P40: 0.05667579814 | Q40: 0.1347947538 | R40: 2.563095831e-09 | S40: 1.501319789e-17 | T40: 6.445290421e-29 | U40: 1.752317357e-12 | V40: 0.0003575883834 | W40: 3.795641615e-05 | X40: 7.614890294e-60 | Y40: 2.927427075e-42 | Z40: 0.00202488575 | AA40: 0.5233410103 | AB40: 0.3045615736 | AC40: 0.09577266201 | AD40: 4.516810978e-13 | AE40: 8.511332901e-06 | AF40: 7.424036633e-10 | AG40: 1.173680332e-15 | AH40: 0.009093658286 | AI40: 2.824705776e-13 | AJ40: 1.183106553e-07 | AK40: 6.449937795e-59 | AL40: 6.651974141e-18 | AM40: 1.636219762e-06 | AN40: 0.420660998 | AO40: 5.651847924e-06 | AP40: 6.357362887e-07 | AQ40: 1.92538407e-05 | AR40: 5.256073325e-24 | AS40: 5.847285752e-60 | AT40: 9.538943585e-08 | AU40: 1.610796184e-17 | AV40: 0.003238976157 | AW40: 6.107539256e-64 | AX40: 4.162978251e-08 | AY40: 0.03833246852 | AZ40: 0.924587118 | BA40: 0.8762551179 | BB40: 0.001468855137 | BC40: 2.228223802e-19 | BD40: 3.238526874e-06 | BE40: 3.873574937e-09 | BF40: 0.0002973948027 | BG40: 7.159365415e-36 | BH40: 9.276141715e-29 | BI40: 3.880685137e-40 | BJ40: 0.03872577035 | BK40: 0.0393221227 | BL40: 0.1447744883 | BM40: 6.143026064e-05 | BN40: 6.982759685e-13 | BO40: 1.609567502e-27 | BP40: 5.896451857e-30 | BQ40: 2.305421419e-16 | BR40: 2.212038034e-46 | BS40: 4.463480889e-10 | BT40: 0.2132517258 | BU40: 6.597630727e-28 | BV40: 1.563068584e-10 | BW40: 0.6705761572 | BX40: 0.9358987326 | BY40: 0.0008838263069 | BZ40: 3.549986629e-09 | CA40: 0.2989562612 | CB40: 1.839420593e-39 | CC40: 2.184747486e-35 | CD40: 1.383411768e-08 | CE40: 2.801389407e-27 | CF40: 2.169667348e-20 | CG40: 3.388892941e-14 | CH40: 6.197360434e-05 | CI40: 3.21236632e-09 | CJ40: 1.146226755e-05 | CK40: 0.9976906706 | CL40: 1.092780609e-05 | CM40: 2.261732191e-32 | CN40: 6.831828921e-112 | CO40: 3.520540764e-28 | CP40: 0.001636227487 | CQ40: 3.225618668e-19 | CR40: 1.406388857e-25 | CS40: 2.972470686e-16 | CT40: 1.622568549e-26 | CU40: 1.53232086e-16 | CV40: 0.02420993967 | CW40: 5.072697584e-08 | CX40: 1.154374218e-15 | CY40: 1.525570787e-39 | CZ40: 9.76984321e-26 | DA40: 0.238158705 | DB40: 3.142229431e-06 | DC40: 4.407442564e-28 | DD40: 0.2816100405 | DE40: 145.7636985
B41: 40 | C41: 1.812131272e-07 | D41: 0.9338401509 | E41: 0.003217109479 | F41: 9.814109704e-12 | G41: 2.687121655e-28 | H41: 1.893531232e-91 | I41: 1.754846102e-34 | J41: 5.17763973e-14 | K41: 3.012267496e-12 | L41: 2.731521464e-19 | M41: 1.161653253e-13 | N41: 0.0005097358029 | O41: 0.890330978 | P41: 0.05944593708 | Q41: 0.1402733865 | R41: 2.90611122e-09 | S41: 1.789944441e-17 | T41: 8.093244463e-29 | U41: 2.029722564e-12 | V41: 0.0003871694908 | W41: 4.153259572e-05 | X41: 1.05899515e-59 | Y41: 3.859446988e-42 | Z41: 0.002172227805 | AA41: 0.5352817688 | AB41: 0.3140377743 | AC41: 0.09999270957 | AD41: 5.250935278e-13 | AE41: 9.373050073e-06 | AF41: 8.450308334e-10 | AG41: 1.385116698e-15 | AH41: 0.009666799465 | AI41: 3.28788404e-13 | AJ41: 1.324326e-07 | AK41: 8.946572398e-59 | AL41: 7.945404203e-18 | AM41: 1.8138081e-06 | AN41: 0.4317934198 | AO41: 6.234526026e-06 | AP41: 7.072780266e-07 | AQ41: 2.113035343e-05 | AR41: 6.464102847e-24 | AS41: 8.134364185e-60 | AT41: 1.068566094e-07 | AU41: 1.920160125e-17 | AV41: 0.003465224007 | AW41: 8.589701207e-64 | AX41: 4.676877769e-08 | AY41: 0.04033329389 | AZ41: 0.9171098693 | BA41: 0.885132436 | BB41: 0.001578576164 | BC41: 2.681468968e-19 | BD41: 3.580414436e-06 | BE41: 4.386176264e-09 | BF41: 0.0003222928351 | BG41: 9.231867411e-36 | BH41: 1.164044529e-28 | BI41: 5.079697537e-40 | BJ41: 0.04074386511 | BK41: 0.04136633058 | BL41: 0.1505503047 | BM41: 6.70730657e-05 | BN41: 8.108267409e-13 | BO41: 2.009579529e-27 | BP41: 7.434942081e-30 | BQ41: 2.731315846e-16 | BR41: 2.955637246e-46 | BS41: 5.088427939e-10 | BT41: 0.2208388564 | BU41: 8.250473592e-28 | BV41: 1.787558871e-10 | BW41: 0.6825373692 | BX41: 0.9289243269 | BY41: 0.000952471855 | BZ41: 4.020892275e-09 | CA41: 0.3083320476 | CB41: 2.402165511e-39 | CC41: 2.812237008e-35 | CD41: 1.5599796e-08 | CE41: 3.494098879e-27 | CF41: 2.623984227e-20 | CG41: 3.966258876e-14 | CH41: 6.766361278e-05 | CI41: 3.639651142e-09 | CJ41: 1.260710518e-05 | CK41: 0.9961354865 | CL41: 1.202166643e-05 | CM41: 2.878792616e-32 | CN41: 1.073932691e-111 | CO41: 4.407442564e-28 | CP41: 0.001757396195 | CQ41: 3.878640738e-19 | CR41: 1.741567073e-25 | CS41: 3.519480832e-16 | CT41: 2.017321049e-26 | CU41: 1.817139367e-16 | CV41: 0.02556241936 | CW41: 5.695023618e-08 | CX41: 1.362387118e-15 | CY41: 1.992855683e-39 | CZ41: 1.210647481e-25 | DA41: 0.2463164962 | DB41: 3.474367882e-06 | DC41: 5.515567805e-28 | DD41: 0.2906626391 | DE41: 146.1867961
B42: 41 | C42: 2.02535228e-07 | D42: 0.9405880634 | E42: 0.003441967581 | F42: 1.13137762e-11 | G42: 3.365681955e-28 | H42: 2.849214842e-91 | I42: 2.251375048e-34 | J42: 6.053213584e-14 | K42: 3.483972326e-12 | L42: 3.285696872e-19 | M42: 1.35527476e-13 | N42: 0.0005509106068 | O42: 0.8987754979 | P42: 0.0623265363 | Q42: 0.145916316 | R42: 3.29371411e-09 | S42: 2.133202946e-17 | T42: 1.015848886e-28 | U42: 2.350102904e-12 | V42: 0.0004190300174 | W42: 4.542754131e-05 | X42: 1.47214495e-59 | Y42: 5.086163969e-42 | Z42: 0.002329359365 | AA42: 0.5472760183 | AB42: 0.3236793221 | AC42: 0.1043569547 | AD42: 6.101936678e-13 | AE42: 1.031788253e-05 | AF42: 9.614601475e-10 | AG42: 1.633989213e-15 | AH42: 0.01027195411 | AI42: 3.825480992e-13 | AJ42: 1.481809018e-07 | AK42: 1.240463864e-58 | AL42: 9.486537363e-18 | AM42: 2.009867015e-06 | AN42: 0.4430431986 | AO42: 6.874525053e-06 | AP42: 7.865559335e-07 | AQ42: 2.31804803e-05 | AR42: 7.946600537e-24 | AS42: 1.131147367e-59 | AT42: 1.196544298e-07 | AU42: 2.288024041e-17 | AV42: 0.00370579303 | AW42: 1.207580606e-63 | AX42: 5.252114429e-08 | AY42: 0.04242158356 | AZ42: 0.9093292856 | BA42: 0.8937421216 | BB42: 0.001695814708 | BC42: 3.225618668e-19 | BD42: 3.956811634e-06 | BE42: 4.964625353e-09 | BF42: 0.0003491356602 | BG42: 1.189955909e-35 | BH42: 1.460152093e-28 | BI42: 6.64650877e-40 | BJ42: 0.04284998431 | BK42: 0.04349940583 | BL42: 0.1564939387 | BM42: 7.320491459e-05 | BN42: 9.41142342e-13 | BO42: 2.507999719e-27 | BP42: 9.371102854e-30 | BQ42: 3.234594227e-16 | BR42: 3.947625574e-46 | BS42: 5.798556052e-10 | BT42: 0.2286044641 | BU42: 1.031326163e-27 | BV42: 2.043473242e-10 | BW42: 0.6944341067 | BX42: 0.9216331681 | BY42: 0.001026038509 | BZ42: 4.552442203e-09 | CA42: 0.3178746997 | CB42: 3.135819761e-39 | CC42: 3.618502459e-35 | CD42: 1.758379672e-08 | CE42: 4.356354182e-27 | CF42: 3.17216354e-20 | CG42: 4.640134263e-14 | CH42: 7.384649583e-05 | CI42: 4.122121001e-09 | CJ42: 1.386074242e-05 | CK42: 0.9941849731 | CL42: 1.321973195e-05 | CM42: 3.662738076e-32 | CN42: 1.687498614e-111 | CO42: 5.515567805e-28 | CP42: 0.001886783031 | CQ42: 4.662001055e-19 | CR42: 2.155764301e-25 | CS42: 4.165488218e-16 | CT42: 2.507109304e-26 | CU42: 2.154036423e-16 | CV42: 0.02697966082 | CW42: 6.391140561e-08 | CX42: 1.607239956e-15 | CY42: 2.602229628e-39 | CZ42: 1.49959538e-25 | DA42: 0.25465184 | DB42: 3.840077536e-06 | DC42: 6.899539042e-28 | DD42: 0.2998862629 | DE42: 146.6114023
B43: 42 | C43: 2.262756253e-07 | D43: 0.947005858 | E43: 0.003681069294 | F43: 1.303738652e-11 | G43: 4.213908509e-28 | H43: 4.285526703e-91 | I43: 2.887240385e-34 | J43: 7.074022716e-14 | K43: 4.027932093e-12 | L43: 3.950723659e-19 | M43: 1.580536283e-13 | N43: 0.0005951732609 | O43: 0.906937264 | P43: 0.06532058859 | Q43: 0.1517255473 | R43: 3.73152067e-09 | S43: 2.541271588e-17 | T43: 1.274564567e-28 | U43: 2.719965281e-12 | V43: 0.0004533310068 | W43: 4.966788554e-05 | X43: 2.045660022e-59 | Y43: 6.700109743e-42 | Z43: 0.002496858343 | AA43: 0.5593152563 | AB43: 0.3334834634 | AC43: 0.1088681241 | AD43: 7.088021233e-13 | AE43: 1.135341475e-05 | AF43: 1.093493741e-09 | AG43: 1.92680732e-15 | AH43: 0.01091062712 | AI43: 4.449199574e-13 | AJ43: 1.657356148e-07 | AK43: 1.719245263e-58 | AL43: 1.132206723e-17 | AM43: 2.226227743e-06 | AN43: 0.4544042766 | AO43: 7.577191057e-06 | AP43: 8.743701835e-07 | AQ43: 2.541934652e-05 | AR43: 9.765192055e-24 | AS43: 1.572320395e-59 | AT43: 1.339314145e-07 | AU43: 2.72527293e-17 | AV43: 0.003961478361 | AW43: 1.696994692e-63 | AX43: 5.895744055e-08 | AY43: 0.04460015253 | AZ43: 0.9012541371 | BA43: 0.9020746516 | BB43: 0.001821031828 | BC43: 3.878640738e-19 | BD43: 4.37102947e-06 | BE43: 5.617113034e-09 | BF43: 0.0003780628902 | BG43: 1.533198774e-35 | BH43: 1.830850483e-28 | BI43: 8.693118362e-40 | BJ43: 0.04504694999 | BK43: 0.04572418083 | BL43: 0.1626071679 | BM43: 7.986538724e-05 | BN43: 1.091965317e-12 | BO43: 3.12878738e-27 | BP43: 1.180674277e-29 | BQ43: 3.829075874e-16 | BR43: 5.270442252e-46 | BS43: 6.605145259e-10 | BT43: 0.2365485043 | BU43: 1.28866334e-27 | BV43: 2.335091157e-10 | BW43: 0.7062556476 | BX43: 0.9140335513 | BY43: 0.001104845249 | BZ43: 5.15220015e-09 | CA43: 0.327581631 | CB43: 4.091904979e-39 | CC43: 4.654061386e-35 | CD43: 1.981219856e-08 | CE43: 5.429220183e-27 | CF43: 3.833329934e-20 | CG43: 5.426331472e-14 | CH43: 8.056211953e-05 | CI43: 4.666679715e-09 | CJ43: 1.523294563e-05 | CK43: 0.991841463 | CL43: 1.453138158e-05 | CM43: 4.658301868e-32 | CN43: 2.650550415e-111 | CO43: 6.899539042e-28 | CP43: 0.00202488575 | CQ43: 5.601333906e-19 | CR43: 2.66740296e-25 | CS43: 4.928099851e-16 | CT43: 3.114567872e-26 | CU43: 2.552372932e-16 | CV43: 0.02846408961 | CW43: 7.16947725e-08 | CX43: 1.89534029e-15 | CY43: 3.396578586e-39 | CZ43: 1.856764255e-25 | DA43: 0.263163965 | DB43: 4.242584171e-06 | DC43: 8.627325966e-28 | DD43: 0.3092788444 | DE43: 147.037425
B44: 43 | C44: 2.526976809e-07 | D44: 0.9530861316 | E44: 0.003935206188 | F44: 1.501757401e-11 | G44: 5.273797039e-28 | H44: 6.443316954e-91 | I44: 3.701215065e-34 | J44: 8.263674158e-14 | K44: 4.65495906e-12 | L44: 4.748452459e-19 | M44: 1.842501592e-13 | N44: 0.0006427350317 | O44: 0.9148071509 | P44: 0.06843109174 | Q44: 0.1577029624 | R44: 4.225830616e-09 | S44: 3.02619054e-17 | T44: 1.598530235e-28 | U44: 3.146778138e-12 | V44: 0.0004902436723 | W44: 5.428231905e-05 | X44: 2.841467053e-59 | Y44: 8.822664357e-42 | Z44: 0.002675331449 | AA44: 0.5713907372 | AB44: 0.3434471625 | AC44: 0.1135288828 | AD44: 8.2301662e-13 | AE44: 1.24878798e-05 | AF44: 1.243161631e-09 | AG44: 2.271191071e-15 | AH44: 0.01158437583 | AI44: 5.172541785e-13 | AJ44: 1.852958685e-07 | AK44: 2.38186881e-58 | AL44: 1.350734584e-17 | AM44: 2.464893392e-06 | AN44: 0.4658703046 | AO44: 8.348338675e-06 | AP44: 9.7159965e-07 | AQ44: 2.78633041e-05 | AR44: 1.199517196e-23 | AS44: 2.18468682e-59 | AT44: 1.498519545e-07 | AU44: 3.244783341e-17 | AV44: 0.004233111403 | AW44: 2.383807165e-63 | AX44: 6.615601638e-08 | AY44: 0.04687184986 | AZ44: 0.8928934698 | BA44: 0.9101207463 | BB44: 0.001954712803 | BC44: 4.662001055e-19 | BD44: 4.826678539e-06 | BE44: 6.352813826e-09 | BF44: 0.0004092231302 | BG44: 1.974660046e-35 | BH44: 2.294742424e-28 | BI44: 1.136537803e-39 | BJ44: 0.04733761767 | BK44: 0.04804352059 | BL44: 0.1688916321 | BM44: 8.709701027e-05 | BN44: 1.26645178e-12 | BO44: 3.901673294e-27 | BP44: 1.486948e-29 | BQ44: 4.531003725e-16 | BR44: 7.033709809e-46 | BS44: 7.520923452e-10 | BT44: 0.2446707133 | BU44: 1.609567502e-27 | BV44: 2.667257871e-10 | BW44: 0.7179911758 | BX44: 0.9061340734 | BY44: 0.001189229096 | BZ44: 5.828640816e-09 | CA44: 0.3374499756 | CB44: 5.337357214e-39 | CC44: 5.983587203e-35 | CD44: 2.231407928e-08 | CE44: 6.763601476e-27 | CF44: 4.630449094e-20 | CG44: 6.343199549e-14 | CH44: 8.785331581e-05 | CI44: 5.281065291e-09 | CJ44: 1.673430088e-05 | CK44: 0.9891077548 | CL44: 1.59667839e-05 | CM44: 5.922099171e-32 | CN44: 4.16154884e-111 | CO44: 8.627325966e-28 | CP44: 0.002172227805 | CQ44: 6.727238731e-19 | CR44: 3.299151535e-25 | CS44: 5.827997666e-16 | CT44: 3.867662881e-26 | CU44: 3.023162557e-16 | CV44: 0.03001818243 | CW44: 8.039386256e-08 | CX44: 2.234189215e-15 | CY44: 4.431635161e-39 | CZ44: 2.298083064e-25 | DA44: 0.2718518582 | DB44: 4.685405937e-06 | DC44: 1.078347213e-27 | DD44: 0.3188380453 | DE44: 147.4647706
B45: 44 | C45: 2.820921631e-07 | D45: 0.9588218383 | E45: 0.004205205989 | F45: 1.729160487e-11 | G45: 6.597630727e-28 | H45: 9.683694217e-91 | I45: 4.742769092e-34 | J45: 9.649530892e-14 | K45: 5.377443718e-12 | L45: 5.704975945e-19 | M45: 2.147027246e-13 | N45: 0.000693819998 | O45: 0.9223763039 | P45: 0.07166104389 | Q45: 0.1638503119 | R45: 4.783707325e-09 | S45: 3.602199319e-17 | T45: 2.004038919e-28 | U45: 3.63910989e-12 | V45: 0.0005299499446 | W45: 5.930173467e-05 | X45: 3.945282205e-59 | Y45: 1.161298543e-41 | Z45: 0.002865415251 | AA45: 0.5834934807 | AB45: 0.3535670984 | AC45: 0.1183418274 | AD45: 9.552531605e-13 | AE45: 1.373021059e-05 | AF45: 1.412749544e-09 | AG45: 2.676056873e-15 | AH45: 0.0122948107 | AI45: 6.011078654e-13 | AJ45: 2.070817902e-07 | AK45: 3.298557968e-58 | AL45: 1.610796184e-17 | AM45: 2.728054064e-06 | AN45: 0.4774346438 | AO45: 9.194289253e-06 | AP45: 1.079209208e-06 | AQ45: 3.053002293e-05 | AR45: 1.472849764e-23 | AS45: 3.034335596e-59 | AT45: 1.6759793e-07 | AU45: 3.861781405e-17 | AV45: 0.004521560958 | AW45: 3.347249148e-63 | AX45: 7.420383526e-08 | AY45: 0.04923955574 | AZ45: 0.8842565885 | BA45: 0.9178713865 | BB45: 0.002097368113 | BC45: 5.601333906e-19 | BD45: 5.327694313e-06 | BE45: 7.181999577e-09 | BF45: 0.0004427744765 | BG45: 2.542216288e-35 | BH45: 2.875022798e-28 | BI45: 1.485314637e-39 | BJ45: 0.04972487341 | BK45: 0.0504603197 | BL45: 0.1753488256 | BM45: 9.494545397e-05 | BN45: 1.468232235e-12 | BO45: 4.863534859e-27 | BP45: 1.871921974e-29 | BQ45: 5.359461416e-16 | BR45: 9.383138273e-46 | BS45: 8.560246016e-10 | BT45: 0.2529706006 | BU45: 2.009579529e-27 | BV45: 3.045456872e-10 | BW45: 0.7296297976 | BX45: 0.897943617 | BY45: 0.001279545938 | BZ45: 6.591255438e-09 | CA45: 0.3474765841 | CB45: 6.959103279e-39 | CC45: 7.689842136e-35 | CD45: 2.512184627e-08 | CE45: 8.422574241e-27 | CF45: 5.591087767e-20 | CG45: 7.412022188e-14 | CH45: 9.576608064e-05 | CI45: 5.973946934e-09 | CJ45: 1.837627734e-05 | CK45: 0.9859871075 | CL45: 1.753695832e-05 | CM45: 7.525753781e-32 | CN45: 6.531308606e-111 | CO45: 1.078347213e-27 | CP45: 0.002329359365 | CQ45: 8.076226668e-19 | CR45: 4.078891763e-25 | CS45: 6.889465377e-16 | CT45: 4.80093369e-26 | CU45: 3.579358119e-16 | CV45: 0.03164446586 | CW45: 9.011240513e-08 | CX45: 2.632564312e-15 | CY45: 5.77979738e-39 | CZ45: 2.843157769e-25 | DA45: 0.2807142587 | DB45: 5.172378072e-06 | DC45: 1.347309325e-27 | DD45: 0.3285612516 | DE45: 147.8933439
B46: 45 | C46: =+EXP(-(($B46-C$2)^2/(2*alpha^2))) -> 3.147799543e-07 | D46: 0.964206303 | E46: 0.004491933708 | F46: 1.990201765e-11 | G46: 8.250473592e-28 | H46: 1.454785358e-90 | I46: 6.074994973e-34 | J46: 1.126329605e-13 | K46: 6.2095791e-12 | L46: 6.851439436e-19 | M46: =+EXP(-(($B46-M$2)^2/(2*alpha^2))) -> 2.500883849e-13 | N46: 0.0007486657019 | O46: 0.9296361555 | P46: 0.07501343861 | Q46: 0.1701692073 | R46: 5.413066955e-09 | S46: 4.286131513e-17 | T46: 2.511410641e-28 | U46: 4.206786758e-12 | V46: 0.0005726430413 | W46: =+EXP(-(($B46-W$2)^2/(2*alpha^2))) -> 6.47593802e-05 | X46: 5.475702e-59 | Y46: 1.527968099e-41 | Z46: 0.003067777257 | AA46: 0.5956142816 | AB46: 0.3638396611 | AC46: 0.1233094783 | AD46: 1.108293135e-12 | AE46: 1.509009484e-05 | AF46: 1.604830008e-09 | AG46: =+EXP(-(($B46-AG$2)^2/(2*alpha^2))) -> 3.151833651e-15 | AH46: 0.01304359592 | AI46: 6.982759685e-13 | AJ46: 2.313366102e-07 | AK46: 4.566218468e-58 | AL46: 1.920160125e-17 | AM46: 3.01810321e-06 | AN46: 0.4890903704 | AO46: 1.012191179e-05 | AP46: 1.198257668e-06 | AQ46: =+EXP(-(($B46-AQ$2)^2/(2*alpha^2))) -> 3.343858785e-05 | AR46: 1.80774306e-23 | AS46: 4.212736711e-59 | AT46: 1.873704807e-07 | AU46: 4.594264055e-17 | AV46: 0.00482773435 | AW46: 4.69819719e-63 | AX46: 8.319737834e-08 | AY46: 0.05170617839 | AZ46: 0.8753530397 | BA46: =+EXP(-(($B46-BA$2)^2/(2*alpha^2))) -> 0.9253178305 | BB46: 0.002249534439 | BC46: 6.727238731e-19 | BD46: 5.878364388e-06 | BE46: 8.11616569e-09 | BF46: 0.0004788850349 | BG46: 3.271590489e-35 | BH46: 3.60060038e-28 | BI46: 1.940346619e-39 | BJ46: 0.05221163063 | BK46: =+EXP(-(($B46-BK$2)^2/(2*alpha^2))) -> 0.05297749915 | BL46: 0.1819800888 | BM46: 0.0001034597407 | BN46: 1.701481115e-12 | BO46: 6.060095208e-27 | BP46: 2.355624086e-29 | BQ46: 6.336860699e-16 | BR46: 1.251232649e-45 | BS46: 9.739296917e-10 | BT46: 0.2614474426 | BU46: =+EXP(-(($B46-BU$2)^2/(2*alpha^2))) -> 2.507999719e-27 | BV46: 3.475891281e-10 | BW46: 0.7411605578 | BX46: 0.8894713335 | BY46: 0.001376171377 | BZ46: 7.450669074e-09 | CA46: 0.3576580202 | CB46: 9.069985149e-39 | CC46: 9.878693388e-35 | CD46: 2.827160197e-08 | CE46: =+EXP(-(($B46-CE$2)^2/(2*alpha^2))) -> 1.048426447e-26 | CF46: 6.748321855e-20 | CG46: 8.657476665e-14 | CH46: 0.0001043497834 | CI46: 6.755032867e-09 | CJ46: 2.017129508e-05 | CK46: 0.982483234 | CL46: 1.92538407e-05 | CM46: 9.559839859e-32 | CN46: 1.02464092e-110 | CO46: =+EXP(-(($B46-CO$2)^2/(2*alpha^2))) -> 1.347309325e-27 | CP46: 0.002496858343 | CQ46: 9.69184458e-19 | CR46: 5.040903465e-25 | CS46: 8.141003788e-16 | CT46: 5.957020368e-26 | CU46: 4.236186643e-16 | CV46: 0.03334551495 | CW46: 1.009653953e-07 | CX46: 3.100732565e-15 | CY46: =+EXP(-(($B46-CY$2)^2/(2*alpha^2))) -> 7.535073803e-39 | CZ46: 3.516110211e-25 | DA46: 0.2897496514 | DB46: 5.707679552e-06 | DC46: 1.682682945e-27 | DD46: 0.3384455691 | DE46: 148.3230483
B47: 46 | C47: 3.511150112e-07 | D47: 0.9692332345 | E47: 0.004796292765 | F47: 2.289734846e-11 | G47: 1.031326163e-27 | H47: 2.184655979e-90 | I47: 7.778326108e-34 | J47: 1.314168582e-13 | K47: 7.167616094e-12 | L47: 8.225003868e-19 | M47: 2.911895399e-13 | N47: 0.0008075238239 | O47: 0.9365784418 | P47: 0.07849125984 | Q47: 0.1766611125 | R47: 6.122777521e-09 | S47: 5.097879051e-17 | T47: 3.145977346e-28 | U47: 4.861072614e-12 | V47: 0.0006185280596 | W47: 7.069102061e-05 | X47: 7.596749714e-59 | Y47: 2.009606261e-41 | Z47: 0.00328311701 | AA47: 0.6077437194 | AB47: 0.3742609491 | AC47: 0.128434273 | AD47: 1.285337225e-12 | AE47: 1.657803387e-05 | AF47: 1.82229708e-09 | AG47: 3.710714312e-15 | AH47: 0.01383244997 | AI47: 8.108267409e-13 | AJ47: 2.583289666e-07 | AK47: 6.318522465e-58 | AL47: 2.288024041e-17 | AM47: 3.337655312e-06 | AN47: 0.5008302789 | AO47: 1.113866688e-05 | AP47: 1.329906392e-06 | AQ47: 3.660960208e-05 | AR47: 2.217896311e-23 | AS47: 5.846437414e-59 | AT47: 2.093919463e-07 | AU47: 5.463494377e-17 | AV47: 0.005152578551 | AW47: 6.591749944e-63 | AX47: 9.324363855e-08 | AY47: 0.05427465064 | AZ47: 0.8661925942 | BA47: 0.9324516301 | BB47: 0.002411775695 | BC47: 8.076226668e-19 | BD47: 6.483357818e-06 | BE47: 9.168171232e-09 | BF47: 0.0005177334621 | BG47: 4.208541938e-35 | BH47: 4.507490659e-28 | BI47: 2.53376573e-39 | BJ47: 0.05480082667 | BK47: 0.05559800276 | BL47: 0.1887866004 | BM47: 0.0001126924648 | BN47: 1.970996231e-12 | BO47: 7.548021763e-27 | BP47: 2.963128681e-29 | BQ47: 7.489510847e-16 | BR47: 1.667839681e-45 | BS47: 1.107631373e-09 | BT47: 0.270100275 | BU47: 3.12878738e-27 | BV47: 3.965575264e-10 | BW47: 0.752572456 | BX47: 0.8807266268 | BY47: 0.001479501607 | BZ47: 8.418770843e-09 | CA47: 0.3679905575 | CB47: 1.181642635e-38 | CC47: 1.268550819e-34 | CD47: 3.18035474e-08 | CE47: 1.304539908e-26 | CF47: 8.141820958e-20 | CG47: 1.010816287e-13 | CH47: 0.0001136573884 | CI47: 7.635190101e-09 | CJ47: 2.21327975e-05 | CK47: 0.9786002937 | CL47: 2.113035343e-05 | CM47: 1.213884906e-31 | CN47: 1.606828289e-110 | CO47: 1.682682945e-27 | CP47: 0.002675331449 | CQ47: 1.162600927e-18 | CR47: 6.227315399e-25 | CS47: 9.616049139e-16 | CT47: 7.38854197e-26 | CU47: 5.011541177e-16 | CV47: 0.03512395158 | CW47: 1.130802606e-07 | CX47: 3.650698046e-15 | CY47: 9.819484507e-39 | CZ47: 4.346606062e-25 | DA47: 0.2989562612 | DB47: 6.295861784e-06 | DC47: 2.100697665e-27 | DD47: 0.3484878197 | DE47: 148.7537857
B48: 47 | C48: 3.914875981e-07 | D48: 0.9738967375 | E48: 0.005119226119 | F48: 2.633295288e-11 | G48: 1.28866334e-27 | H48: 3.279393083e-90 | I48: 9.955261066e-34 | J48: 1.53272042e-13 | K48: 8.27015388e-12 | L48: 9.869989276e-19 | M48: 3.389099354e-13 | N48: 0.0008706608822 | O48: 0.9431952178 | P48: 0.08209747649 | Q48: 0.1833273365 | R48: 6.92276902e-09 | S48: 6.060938044e-17 | T48: 3.93930615e-28 | U48: 5.61487382e-12 | V48: 0.0006678225924 | W48: 7.713510988e-05 | X48: 1.053518373e-58 | Y48: 2.642006887e-41 | Z48: 0.003512167186 | AA48: 0.6198721698 | AB48: 0.3848267677 | AC48: 0.1337185582 | AD48: 1.490067046e-12 | AE48: 1.820540555e-05 | AF48: 2.06840512e-09 | AG48: 4.366948122e-15 | AH48: 0.01466314612 | AI48: 9.41142342e-13 | AJ48: 2.883554259e-07 | AK48: 8.739783286e-58 | AL48: 2.72527293e-17 | AM48: 3.689564974e-06 | AN48: 0.5126468871 | AO48: 1.225265389e-05 | AP48: 1.47542865e-06 | AQ48: 4.006529739e-05 | AR48: 2.720019743e-23 | AS48: 8.110442968e-59 | AT48: 2.339079909e-07 | AU48: 6.494583884e-17 | AV48: 0.005497081302 | AW48: 9.244778065e-63 | AX48: 1.044612132e-07 | AY48: 0.05694792644 | AZ48: 0.8567852288 | BA48: 0.9392646473 | BB48: 0.002584684057 | BC48: 9.69184458e-19 | BD48: 7.147756691e-06 | BE48: 1.035239441e-08 | BF48: 0.0005595095285 | BG48: 5.411662001e-35 | BH48: 5.640544502e-28 | BI48: 3.307347891e-39 | BJ48: 0.05749541923 | BK48: 0.05832479359 | BL48: 0.1957693693 | BM48: 0.0001227000253 | BN48: 2.282289523e-12 | BO48: 9.397517051e-27 | BP48: 3.725815287e-29 | BQ48: 8.848283522e-16 | BR48: 2.222269975e-45 | BS48: 1.259183931e-09 | BT48: 0.278927887 | BU48: 3.901673294e-27 | BV48: 4.522436648e-10 | BW48: 0.7638544641 | BX48: 0.8717191349 | BY48: 0.001589954308 | BZ48: 9.508858492e-09 | CA48: 0.3784701777 | CB48: 1.538834842e-38 | CC48: 1.628330345e-34 | CD48: 3.576242771e-08 | CE48: 1.622568549e-26 | CF48: 9.81914312e-20 | CG48: 1.179721282e-13 | CH48: 0.0001237456882 | CI48: 8.626577433e-09 | CJ48: 2.427532878e-05 | CK48: 0.9743428843 | CL48: 2.31804803e-05 | CM48: 1.540744718e-31 | CN48: 2.518799072e-110 | CO48: 2.100697665e-27 | CP48: 0.002865415251 | CQ48: 1.394059053e-18 | CR48: 7.689881124e-25 | CS48: 1.135381133e-15 | CT48: 9.16040524e-26 | CU48: 5.92643877e-16 | CV48: 0.03698244272 | CW48: 1.265981424e-07 | CX48: 4.296489934e-15 | CY48: 1.279134316e-38 | CZ48: 5.371113941e-25 | DA48: 0.3083320476 | DB48: 6.941879492e-06 | DC48: 2.621507439e-27 | DD48: 0.3586845384 | DE48: 149.1854569
B49: 48 | C49: 4.36327818e-07 | D49: 0.9781913243 | E49: 0.005461717381 | F49: 3.027193713e-11 | G49: 1.609567502e-27 | H49: 4.920737263e-90 | I49: 1.27363634e-33 | J49: 1.786903456e-13 | K49: 9.538470197e-12 | L49: 1.183923205e-18 | M49: 3.942930423e-13 | N49: 0.0009383589559 | O49: 0.9494788727 | P49: 0.08583503693 | Q49: 0.1901690244 | R49: 7.824155732e-09 | S49: 7.203050241e-17 | T49: 4.930717938e-28 | U49: 6.482972446e-12 | V49: 0.0007207573671 | W49: 8.41329729e-05 | X49: 1.460436544e-58 | Y49: 3.472027832e-41 | Z49: 0.003755694716 | AA49: 0.6319898153 | AB49: 0.3955326268 | AC49: 0.1391645824 | AD49: 1.726715615e-12 | AE49: 1.998453167e-05 | AF49: 2.34681206e-09 | AG49: 5.137180535e-15 | AH49: 0.01553751277 | AI49: 1.091965317e-12 | AJ49: 3.217432403e-07 | AK49: 1.208403782e-57 | AL49: 3.244783341e-17 | AM49: 4.076947546e-06 | AN49: 0.5245324419 | AO49: 1.34726615e-05 | AP49: 1.636219762e-06 | AQ49: 4.382965127e-05 | AR49: 3.334487982e-23 | AS49: 1.124667452e-58 | AT49: 2.611899282e-07 | AU49: 7.717176671e-17 | AV49: 0.005862272218 | AW49: 1.296040394e-62 | AX49: 1.16981504e-07 | AY49: 0.05972897697 | AZ49: 0.8471411087 | BA49: 0.9457490689 | BB49: 0.002768881032 | BC49: 1.162600927e-18 | BD49: 7.877090092e-06 | BE49: 1.168490499e-08 | BF49: 0.0006044147038 | BG49: 6.955941975e-35 | BH49: 7.055592776e-28 | BI49: 4.315385356e-39 | BJ49: 0.06029838249 | BK49: 0.06116085 | BL49: 0.2029292262 | BM49: 0.0001335428711 | BN49: 2.641690666e-12 | BO49: 1.169551589e-26 | BP49: 4.682938029e-29 | BQ49: 1.044938879e-15 | BR49: 2.959822158e-45 | BS49: 1.430900315e-09 | BT49: 0.2879288149 | BU49: 4.863534859e-27 | BV49: 5.155432071e-10 | BW49: 0.7749955435 | BX49: 0.8624587132 | BY49: 0.00170796957 | BZ49: 1.073579877e-08 | CA49: 0.3890925679 | CB49: 2.003199263e-38 | CC49: 2.089312703e-34 | CD49: 4.019802387e-08 | CE49: 2.017321049e-26 | CF49: 1.183727984e-19 | CG49: 1.37629927e-13 | CH49: 0.0001346755507 | CI49: 9.742793046e-09 | CJ49: 2.661461652e-05 | CK49: 0.9697160328 | CL49: 2.541934652e-05 | CM49: 1.95483518e-31 | CN49: 3.946788575e-110 | CO49: 2.621507439e-27 | CP49: 0.003067777257 | CQ49: 1.670928857e-18 | CR49: 9.492151743e-25 | CS49: 1.340025167e-15 | CT49: 1.135264116e-25 | CU49: 7.005555575e-16 | CV49: 0.03892369842 | CW49: 1.416753025e-07 | CX49: 5.054497267e-15 | CY49: 1.66559686e-38 | CZ49: 6.634447043e-25 | DA49: 0.3178746997 | DB49: 7.651123945e-06 | DC49: 3.270129252e-27 | DD49: 0.3690319697 | DE49: 149.6179615
B50: 49 | C50: 4.861094659e-07 | D50: 0.9821119255 | E50: 0.005824791932 | F50: 3.478621251e-11 | G50: 2.009579529e-27 | H50: 7.38062534e-90 | I50: 1.628787819e-33 | J50: 2.082406527e-13 | K50: 1.099689671e-11 | L50: 1.419569524e-18 | M50: 4.585431484e-13 | N50: 0.001010916433 | O50: 0.9554221445 | P50: 0.0897068632 | Q50: 0.1971871502 | R50: 8.839372031e-09 | S50: 8.556956526e-17 | T50: 6.169171831e-28 | U50: 7.482291654e-12 | V50: 0.0007775769094 | W50: 9.172899817e-05 | X50: 2.023715936e-58 | Y50: 4.560985929e-41 | Z50: 0.004014501896 | AA50: 0.6440866579 | AB50: 0.4063737404 | AC50: 0.1447744883 | AD50: 2.000147876e-12 | AE50: 2.192874993e-05 | AF50: 2.661627657e-09 | AG50: 6.040847973e-15 | AH50: 0.01645743382 | AI50: 1.26645178e-12 | AJ50: 3.5885336e-07 | AK50: 1.670128051e-57 | AL50: 3.861781405e-17 | AM50: 4.503201364e-06 | AN50: 0.536478925 | AO50: 1.480822187e-05 | AP50: 1.8138081e-06 | AQ50: 4.792851155e-05 | AR50: 4.086133379e-23 | AS50: 1.558942012e-58 | AT50: 2.915372652e-07 | AU50: 9.166252938e-17 | AV50: 0.006249223893 | AW50: 1.816213366e-62 | AX50: 1.309500348e-07 | AY50: 0.06262078671 | AZ50: 0.8372705692 | BA50: 0.951897422 | BB50: 0.002965018521 | BC50: 1.394059053e-18 | BD50: 8.677370613e-06 | BE50: 1.318365542e-08 | BF50: 0.000652662766 | BG50: 8.937324351e-35 | BH50: 8.822105884e-28 | BI50: 5.628407975e-39 | BJ50: 0.06321270308 | BK50: 0.06410916151 | BL50: 0.2102668165 | BM50: 0.0001452857595 | BN50: 3.056465295e-12 | BO50: 1.454962923e-26 | BP50: 5.883581628e-29 | BQ50: 1.233528048e-15 | BR50: 3.940584981e-45 | BS50: 1.62538358e-09 | BT50: 0.2971013359 | BU50: 6.060095208e-27 | BV50: 5.87467612e-10 | BW50: 0.7859846626 | BX50: 0.8529554161 | BY50: 0.00183401083 | BZ50: 1.211620529e-08 | CA50: 0.3998531197 | CB50: 2.606649118e-38 | CC50: 2.679727638e-34 | CD50: 4.516569493e-08 | CE50: 2.507109304e-26 | CF50: 1.426449895e-19 | CG50: 1.604991096e-13 | CH50: 0.000146512179 | CI50: 1.099903825e-08 | CJ50: 2.91676599e-05 | CK50: 0.9647251856 | CL50: 2.78633041e-05 | CM50: 2.479224681e-31 | CN50: 6.181878745e-110 | CO50: 3.270129252e-27 | CP50: 0.00328311701 | CQ50: 2.001985972e-18 | CR50: 1.171213314e-24 | CS50: 1.580922275e-15 | CT50: 1.406388857e-25 | CU50: 8.27785178e-16 | CV50: 0.04095046965 | CW50: 1.584846649e-07 | CX50: 5.943857866e-15 | CY50: 2.167953281e-38 | CZ50: 8.191649853e-25 | DA50: 0.327581631 | DB50: 8.429458693e-06 | DC50: 4.077603795e-27 | DD50: 0.3795260658 | DE50: 150.0511983
B51: 50 | C51: 5.413542319e-07 | D51: 0.9856539002 | E51: 0.006209518017 | F51: 3.995768887e-11 | G51: 2.507999719e-27 | H51: 1.106579002e-89 | I51: 2.082139704e-33 | J51: 2.425806894e-13 | K51: 1.267324548e-11 | L51: 1.701437827e-18 | M51: 5.330495557e-13 | N51: 0.001088648783 | O51: 0.9610181343 | P51: 0.09371584505 | Q51: 0.2043825083 | R51: 9.982323082e-09 | S51: 1.016128165e-16 | T51: 7.715602704e-28 | U51: 8.632197571e-12 | V51: 0.0008385402294 | W51: 9.997084145e-05 | X51: 2.803126478e-58 | Y51: 5.989086e-41 | Z51: 0.004289427521 | AA51: 0.6561525312 | AB51: 0.4173450255 | AC51: 0.1505503047 | AD51: 2.315952653e-12 | AE51: 2.405249078e-05 | AF51: 3.017467299e-09 | AG51: 7.100636266e-15 | AH51: 0.01742484879 | AI51: 1.468232235e-12 | AJ51: 4.000837247e-07 | AK51: 2.307351432e-57 | AL51: 4.594264055e-17 | AM51: 4.972031743e-06 | AN51: 0.54847806 | AO51: 1.626966869e-05 | AP51: 2.009867015e-06 | AQ51: 5.238972886e-05 | AR51: 5.005208843e-23 | AS51: 2.160041412e-58 | AT51: 3.252804837e-07 | AU51: 1.088307229e-16 | AV51: 0.006659052978 | AW51: 2.544142774e-62 | AX51: 1.465278975e-07 | AY51: 0.06562634914 | AZ51: 0.8271840974 | BA51: 0.9577025881 | BB51: 0.003173779913 | BC51: 1.670928857e-18 | BD51: 9.555133582e-06 | BE51: 1.486869263e-08 | BF51: 0.0007044804339 | BG51: 1.147850613e-34 | BH51: 1.102649049e-27 | BI51: 7.338002208e-39 | BJ51: 0.06624137575 | BK51: 0.06717272445 | BL51: 0.2177825916 | BM51: 0.000157998029 | BN51: 3.534949862e-12 | BO51: 1.809300701e-26 | BP51: 7.389098193e-29 | BQ51: 1.455571191e-15 | BR51: 5.244233986e-45 | BS51: 1.845561998e-09 | BT51: 0.3064434632 | BU51: 7.548021763e-27 | BV51: 6.691586091e-10 | BW51: 0.7968108148 | BX51: 0.8432194792 | BY51: 0.001968565843 | BZ51: 1.366863561e-08 | CA51: 0.4107469284 | CB51: 3.390527567e-38 | CC51: 3.435612296e-34 | CD51: 5.072697584e-08 | CE51: 3.114567872e-26 | CF51: 1.718254185e-19 | CG51: 1.870934819e-13 | CH51: 0.0001593253851 | CI51: 1.241229901e-08 | CJ51: 3.195282377e-05 | CK51: 0.9593761975 | CL51: 3.053002293e-05 | CM51: 3.143025537e-31 | CN51: 9.678841645e-110 | CO51: 4.077603795e-27 | CP51: 0.003512167186 | CQ51: 2.397675374e-18 | CR51: 1.444553434e-24 | CS51: 1.864379696e-15 | CT51: 1.741567073e-25 | CU51: 9.77730113e-16 | CV51: 0.04306554593 | CW51: 1.77217508e-07 | CX51: 6.986909975e-15 | CY51: 2.820695635e-38 | CZ51: 1.011030625e-24 | DA51: 0.3374499756 | DB51: 9.283257955e-06 | DC51: 5.082430087e-27 | DD51: 0.3901624844 | DE51: 150.4850651
B52: 51 | C52: 6.026362838e-07 | D52: 0.9888130446 | E52: 0.006617007834 | F52: 4.587962487e-11 | G52: 3.12878738e-27 | H52: 1.658433159e-89 | I52: 2.660611727e-33 | J52: 2.824705776e-13 | K52: 1.459929319e-11 | L52: 2.03845807e-18 | M52: 6.194143253e-13 | N52: 0.001171889354 | O52: 0.9662603187 | P52: 0.09786483373 | Q52: 0.2117557058 | R52: 1.1268552e-08 | S52: 1.20615726e-16 | T52: 9.64581945e-28 | U52: 9.954842497e-12 | V52: 0.000903921534 | W52: 0.0001089096411 | X52: 3.881165106e-58 | Y52: 7.861196433e-41 | Z52: 0.004581348005 | AA52: 0.6681771139 | AB52: 0.4284411028 | AC52: 0.1564939387 | AD52: 2.680547637e-12 | AE52: 2.637135961e-05 | AF52: 3.419511953e-09 | AG52: 8.343012773e-15 | AH52: 0.01844175301 | AI52: 1.701481115e-12 | AJ52: 4.458728568e-07 | AK52: 3.186427237e-57 | AL52: 5.463494377e-17 | AM52: 5.48747684e-06 | AN52: 0.5605213198 | AO52: 1.786819931e-05 | AP52: 2.226227743e-06 | AQ52: 5.724329731e-05 | AR52: 6.128555874e-23 | AS52: 2.991716771e-58 | AT52: 3.627840802e-07 | AU52: 1.291628064e-16 | AV52: 0.007092921245 | AW52: 3.562397473e-62 | AX52: 1.638933378e-07 | AY52: 0.06874866231 | AZ52: 0.8168923135 | BA52: 0.963157817 | BB52: 0.003395881178 | BC52: 2.001985972e-18 | BD52: 1.051747919e-05 | BE52: 1.676239252e-08 | BF52: 0.0007601080224 | BG52: 1.473633562e-34 | BH52: 1.377617435e-27 | BI52: 9.563049167e-39 | BJ52: 0.0693873989 | BK52: 0.0703545374 | BL52: 0.2254768018 | BM52: 0.0001717538862 | BN52: 4.086705384e-12 | BO52: 2.249033161e-26 | BP52: 9.276141715e-29 | BQ52: 1.716896662e-15 | BR52: 6.976373213e-45 | BS52: 2.094728262e-09 | BT52: 0.3159529402 | BU52: 9.397517051e-27 | BV52: 7.619044209e-10 | BW52: 0.8074630366 | BX52: 0.8332613004 | BY52: 0.002112147662 | BZ52: 1.541380963e-08 | CA52: 0.4217687926 | CB52: 4.408372324e-38 | CC52: 4.402951721e-34 | CD52: 5.695023618e-08 | CE52: 3.867662881e-26 | CF52: 2.06892421e-19 | CG52: 2.180072665e-13 | CH52: 0.0001731898788 | CI52: 1.400154719e-08 | CJ52: 3.498993882e-05 | CK52: 0.9536753208 | CL52: 3.343858785e-05 | CM52: 3.982962475e-31 | CN52: 1.514790486e-109 | CO52: 5.082430087e-27 | CP52: 0.003755694716 | CQ52: 2.87042377e-18 | CR52: 1.78097369e-24 | CS52: 2.197781395e-15 | CT52: 2.155764301e-25 | CU52: 1.154374218e-15 | CV52: 0.04527175278 | CW52: 1.98085318e-07 | CX52: 8.209716525e-15 | CY52: 3.668502475e-38 | CZ52: 1.247336193e-24 | DA52: 0.3474765841 | DB52: 1.021944786e-05 | DC52: 6.33233794e-27 | DD52: 0.4009365875 | DE52: 150.919459
B53: 52 | C53: 6.705872607e-07 | D53: 0.9915856009 | E53: 0.007048418596 | F53: 5.265815492e-11 | G53: 3.901673294e-27 | H53: 2.484504582e-89 | I53: 3.398438525e-33 | J53: 3.28788404e-13 | K53: 1.681133088e-11 | L53: 2.441258473e-18 | M53: 7.194840766e-13 | N53: 0.001260990192 | O53: 0.9711425636 | P53: 0.1021566356 | Q53: 0.2193071545 | R53: 1.271542517e-08 | S53: 1.431151676e-16 | T53: 1.205409702e-27 | U53: 1.147555494e-11 | V53: 0.0009740109618 | W53: 0.0001186002457 | X53: 5.371651449e-58 | Y53: 1.031437768e-40 | Z53: 0.004891178512 | AA53: 0.6801499435 | AB53: 0.4396562972 | AC53: 0.1626071679 | AD53: 3.101299186e-12 | AE53: 2.890222431e-05 | AF53: 3.873574937e-09 | AG53: 9.798843759e-15 | AH53: 0.01951019753 | AI53: 1.970996231e-12 | AJ53: 4.967037823e-07 | AK53: 4.398661546e-57 | AL53: 6.494583884e-17 | AM53: 6.053935509e-06 | AN53: 0.5725999349 | AO53: 1.961594112e-05 | AP53: 2.464893392e-06 | AQ53: 6.252150377e-05 | AR53: 7.501020957e-23 | AS53: 4.141952909e-58 | AT53: 4.044498857e-07 | AU53: 1.53232086e-16 | AV53: 0.007552036628 | AW53: 4.98619835e-62 | AX53: 1.83243494e-07 | AY53: 0.07199072412 | AZ53: 0.8064059526 | BA53: 0.9682567396 | BB53: 0.003632071981 | BC53: 2.397675374e-18 | BD53: 1.15721177e-05 | BE53: 1.888971959e-08 | BF53: 0.0008198001229 | BG53: 1.891123623e-34 | BH53: 1.720466562e-27 | BI53: 1.245779619e-38 | BJ53: 0.07265376983 | BK53: 0.07365759636 | BL53: 0.2333494882 | BM53: 0.0001866327082 | BN53: 4.722692661e-12 | BO53: 2.794520171e-26 | BP53: 1.164044529e-28 | BQ53: 2.024329217e-15 | BR53: 9.276916193e-45 | BS53: 2.376583226e-09 | BT53: 0.3256272359 | BU53: 1.169551589e-26 | BV53: 8.67157929e-10 | BW53: 0.8179304258 | BX53: 0.8230914225 | BY53: 0.002265295647 | BZ53: 1.737485137e-08 | CA53: 0.4329132143 | CB53: 5.729484341e-38 | CC53: 5.640400997e-34 | CD53: 6.391140561e-08 | CE53: 4.80093369e-26 | CF53: 2.490164486e-19 | CG53: 2.539273989e-13 | CH53: 0.0001881855714 | CI53: 1.578796336e-08 | CJ53: 3.830040835e-05 | CK53: 0.9476291929 | CL53: 3.660960208e-05 | CM53: 5.045344227e-31 | CN53: 2.36978003e-109 | CO53: 6.33233794e-27 | CP53: 0.004014501896 | CQ53: 3.43500944e-18 | CR53: 2.194864321e-24 | CS53: 2.589768255e-15 | CT53: 2.66740296e-25 | CU53: 1.362387118e-15 | CV53: 0.04757194891 | CW53: 2.21321819e-07 | CX53: 9.64267341e-15 | CY53: 4.769223645e-38 | CZ53: 1.538257422e-24 | DA53: 0.3576580202 | DB53: 1.124555071e-05 | DC53: 7.886476923e-27 | DD53: 0.4118434408 | DE53: 151.3542765
B54: 53 | C54: 7.459017111e-07 | D54: 0.9939682644 | E54: 0.007504953573 | F54: 6.041401509e-11 | G54: 4.863534859e-27 | H54: 3.720556584e-89 | I54: 4.339139553e-33 | J54: 3.825480992e-13 | K54: 1.935078749e-11 | L54: 2.922483224e-18 | M54: 8.353864189e-13 | N54: 0.001356322888 | O54: 0.9756591355 | P54: 0.1065940058 | Q54: 0.2270370634 | R54: 1.434233764e-08 | S54: 1.697437037e-16 | T54: 1.505762645e-27 | U54: 1.322328269e-11 | V54: 0.001049115343 | W54: 0.0001291014537 | X54: 7.431557008e-58 | Y54: 1.352769158e-40 | Z54: 0.00521987408 | AA54: 0.6920604304 | AB54: 0.450984639 | AC54: 0.1688916321 | AD54: 3.586658955e-12 | AE54: 3.166330875e-05 | AF54: 4.386176264e-09 | AG54: 1.150411037e-14 | AH54: 0.02063228906 | AI54: 2.282289523e-12 | AJ54: 5.531083076e-07 | AK54: 6.069646103e-57 | AL54: 7.717176671e-17 | AM54: 6.676197293e-06 | AN54: 0.584704902 | AO54: 2.152602263e-05 | AP54: 2.728054064e-06 | AQ54: 6.825908631e-05 | AR54: 9.177172392e-23 | AS54: 5.732131171e-58 | AT54: 4.507206909e-07 | AU54: 1.817139367e-16 | AV54: 0.008037654236 | AW54: 6.976265644e-62 | AX54: 2.047963021e-07 | AY54: 0.07535552742 | AZ54: 0.795735846 | BA54: 0.9729933805 | BB54: 0.003883136794 | BC54: 2.87042377e-18 | BD54: 1.272741792e-05 | BE54: 2.127851412e-08 | BF54: 0.0008838263069 | BG54: 2.425920795e-34 | BH54: 2.147781633e-27 | BI54: 1.622229656e-38 | BJ54: 0.07604347977 | BK54: 0.07708488976 | BL54: 0.2414004756 | BM54: 0.0002027193597 | BN54: 5.45547186e-12 | BO54: 3.470922531e-26 | BP54: 1.460152093e-28 | BQ54: 2.385857014e-15 | BR54: 1.233115744e-44 | BS54: 2.695284695e-09 | BT54: 0.3354635407 | BU54: 1.454962923e-26 | BV54: 9.865570119e-10 | BW54: 0.8282021598 | BX54: 0.8127205138 | BY54: 0.00242857649 | BZ54: 1.957755657e-08 | CA54: 0.4441744004 | CB54: 7.443532494e-38 | CC54: 7.22274563e-34 | CD54: 7.16947725e-08 | CE54: 5.957020368e-26 | CF54: 2.995972141e-19 | CG54: 2.956476563e-13 | CH54: 0.0002043978946 | CI54: 1.779518361e-08 | CJ54: 4.190732187e-05 | CK54: 0.941244823 | CL54: 4.006529739e-05 | CM54: 6.388540783e-31 | CN54: 3.705866618e-109 | CO54: 7.886476923e-27 | CP54: 0.004289427521 | CQ54: 4.108999934e-18 | CR54: 2.703859595e-24 | CS54: 3.050447786e-15 | CT54: 3.299151535e-25 | CU54: 1.607239956e-15 | CV54: 0.04996902328 | CW54: 2.47185196e-07 | CX54: 1.132121495e-14 | CY54: 6.197732713e-38 | CZ54: 1.896272718e-24 | DA54: 0.3679905575 | DB54: 1.236973246e-05 | DC54: 9.818118555e-27 | DD54: 0.4228778129 | DE54: 151.7894136
B55: 54 | C55: 8.293430132e-07 | D55: 0.9959581902 | E55: 0.007987863114 | F55: 6.928449307e-11 | G55: 6.060095208e-27 | H55: 5.569321741e-89 | I55: 5.538014643e-33 | J55: 4.449199574e-13 | K55: 2.226493715e-11 | L55: 3.497168615e-18 | M55: 9.695716683e-13 | N55: 0.001458279446 | O55: 0.9798047126 | P55: 0.1111796408 | Q55: 0.2349454311 | R55: 1.617094053e-08 | S55: 2.012463287e-16 | T55: 1.880202551e-27 | U55: 1.523109582e-11 | V55: 0.001129558986 | W55: 0.0001404762672 | X55: 1.027727753e-57 | Y55: 1.773497738e-40 | Z55: 0.005568430735 | AA55: 0.7038978731 | AB55: 0.4624198659 | AC55: 0.1753488256 | AD55: 4.146319677e-12 | AE55: 3.467429235e-05 | AF55: 4.964625353e-09 | AG55: 1.35007386e-14 | AH55: 0.02181018972 | AI55: 2.641690666e-12 | AJ55: 6.156716815e-07 | AK55: 8.372062757e-57 | AL55: 9.166252938e-17 | AM55: 7.3594747e-06 | AN55: 0.5968269939 | AO55: 2.361264935e-05 | AP55: 3.01810321e-06 | AQ55: 7.449340202e-05 | AR55: 1.122338041e-22 | AS55: 7.929638067e-58 | AT55: 5.020842011e-07 | AU55: 2.154036423e-16 | AV55: 0.008551077334 | AW55: 9.756695484e-62 | AX55: 2.287925818e-07 | AY55: 0.07884605488 | AZ55: 0.7848929028 | BA55: 0.9773621696 | BB55: 0.004149896022 | BC55: 3.43500944e-18 | BD55: 1.399245923e-05 | BE55: 2.395980985e-08 | BF55: 0.000952471855 | BG55: 3.110710516e-34 | BH55: 2.680157364e-27 | BI55: 2.111590666e-38 | BJ55: 0.07955950872 | BK55: 0.08063939316 | BL55: 0.2496293653 | BM55: 0.0002201045274 | BN55: 6.299429766e-12 | BO55: 4.309321288e-26 | BP55: 1.830850483e-28 | BQ55: 2.810826013e-15 | BR55: 1.638439217e-44 | BS55: 3.055501808e-09 | BT55: 0.3454587621 | BU55: 1.809300701e-26 | BV55: 1.121947301e-09 | BW55: 0.8382675143 | BX55: 0.8021593501 | BY55: 0.002602585253 | BZ55: 2.205068874e-08 | CA55: 0.455546264 | CB55: 9.666492595e-38 | CC55: 9.24529859e-34 | CD55: 8.039386256e-08 | CE55: 7.38854197e-26 | CF55: 3.603079033e-19 | CG55: 3.440848882e-13 | CH55: 0.0002219181362 | CI55: 2.00495726e-08 | CJ55: 4.583557599e-05 | CK55: 0.9345295793 | CL55: 4.382965127e-05 | CM55: 8.086094701e-31 | CN55: 5.792923789e-109 | CO55: 9.818118555e-27 | CP55: 0.004581348005 | CQ55: 4.913269833e-18 | CR55: 3.329560229e-24 | CS55: 3.591638104e-15 | CT55: 4.078891763e-25 | CU55: 1.89534029e-15 | CV55: 0.05246589183 | CW55: 2.759605269e-07 | CX55: 1.328663171e-14 | CY55: 8.050897161e-38 | CZ55: 2.336677928e-24 | DA55: 0.3784701777 | DB55: 1.360085363e-05 | DC55: 1.221799067e-26 | DD55: 0.4340341766 | DE55: 152.2247661
B56: 55 | C56: =+EXP(-(($B56-C$2)^2/(2*alpha^2))) -> 9.217498155e-07 | D56: 0.9975529988 | E56: 0.008498445624 | F56: 7.94256303e-11 | G56: 7.548021763e-27 | H56: 8.333414503e-89 | I56: 7.065304174e-33 | J56: 5.172541785e-13 | K56: 2.560770073e-11 | L56: 4.183188162e-18 | M56: =+EXP(-(($B56-M$2)^2/(2*alpha^2))) -> 1.124860599e-12 | N56: 0.001567273176 | O56: 0.9835743959 | P56: 0.1159161725 | Q56: 0.2430320382 | R56: 1.822539292e-08 | S56: 2.385000867e-16 | T56: 2.346815988e-27 | U56: 1.753675766e-11 | V56: 0.001215684483 | W56: =+EXP(-(($B56-W$2)^2/(2*alpha^2))) -> 0.0001527921587 | X56: 1.420700842e-57 | Y56: 2.324148464e-40 | Z56: 0.005937886601 | AA56: 0.7156514731 | AB56: 0.4739554259 | AC56: 0.1819800888 | AD56: 4.791392677e-12 | AE56: 3.795641615e-05 | AF56: 5.617113034e-09 | AG56: =+EXP(-(($B56-AG$2)^2/(2*alpha^2))) -> 1.583756096e-14 | AH56: 0.02304611662 | AI56: 3.056465295e-12 | AJ56: 6.850376751e-07 | AK56: 1.154324365e-56 | AL56: 1.088307229e-16 | AM56: 8.109437914e-06 | AN56: 0.6089567694 | AO56: 2.589118486e-05 | AP56: 3.337655312e-06 | AQ56: =+EXP(-(($B56-AQ$2)^2/(2*alpha^2))) -> 8.126460492e-05 | AR56: 1.372033637e-22 | AS56: 1.096520847e-57 | AT56: 5.590773507e-07 | AU56: 2.552372932e-16 | AV56: 0.009093658286 | AW56: 1.363982423e-61 | AX56: 2.554983207e-07 | AY56: 0.08246527363 | AZ56: 0.7738880919 | BA56: =+EXP(-(($B56-BA$2)^2/(2*alpha^2))) -> 0.9813579531 | BB56: 0.004433207129 | BC56: 4.108999934e-18 | BD56: 1.537708721e-05 | BE56: 2.696818497e-08 | BF56: 0.001026038509 | BG56: 3.987207702e-34 | BH56: 3.343156802e-27 | BI56: 2.747472873e-38 | BJ56: 0.08320482001 | BK56: =+EXP(-(($B56-BK$2)^2/(2*alpha^2))) -> 0.08432406383 | BL56: 0.2580355275 | BM56: 0.0002388850701 | BN56: 7.271038407e-12 | BO56: 5.348094974e-26 | BP56: 2.294742424e-28 | BQ56: 3.310166184e-15 | BR56: 2.176121343e-44 | BS56: 3.462475643e-09 | BT56: 0.3556095214 | BU56: =+EXP(-(($B56-BU$2)^2/(2*alpha^2))) -> 2.249033161e-26 | BV56: 1.27540763e-09 | BW56: 0.8481158813 | BX56: 0.791418796 | BY56: 0.002787946432 | BZ56: 2.48263065e-08 | CA56: 0.4670224265 | CB56: 1.254830421e-37 | CC56: 1.182948521e-33 | CD56: 9.011240513e-08 | CE56: =+EXP(-(($B56-CE$2)^2/(2*alpha^2))) -> 9.16040524e-26 | CF56: 4.331477756e-19 | CG56: 4.002976498e-13 | CH56: 0.0002408437921 | CI56: 2.258052563e-08 | CJ56: 5.011200289e-05 | CK56: 0.9274911744 | CL56: 4.792851155e-05 | CM56: 1.023062715e-30 | CN56: 9.051741194e-109 | CO56: =+EXP(-(($B56-CO$2)^2/(2*alpha^2))) -> 1.221799067e-26 | CP56: 0.004891178512 | CQ56: 5.872612967e-18 | CR56: 4.098414665e-24 | CS56: 4.227151639e-15 | CT56: 5.040903465e-25 | CU56: 2.234189215e-15 | CV56: 0.05506549412 | CW56: 3.079624429e-07 | CX56: 1.55870181e-14 | CY56: =+EXP(-(($B56-CY$2)^2/(2*alpha^2))) -> 1.045398801e-37 | CZ56: 2.878214774e-24 | DA56: 0.3890925679 | DB56: 1.494852388e-05 | DC56: 1.519839015e-26 | DD56: 0.4453067092 | DE56: 152.6602296
B57: 56 | C57: 1.024043041e-06 | D57: 0.9987507809 | E57: 0.009038048516 | F57: 9.101470764e-11 | G57: 9.397517051e-27 | H57: 1.246435881e-88 | I57: 9.010189187e-33 | J57: 6.011078654e-13 | K57: 2.944055413e-11 | L57: 5.001779124e-18 | M57: 1.304499074e-12 | N57: 0.001683739612 | O57: 0.9869637181 | P57: 0.1208061602 | Q57: 0.2512964402 | R57: 2.053264045e-08 | S57: 2.825370448e-16 | T57: 2.928058311e-27 | U57: 2.018337238e-11 | V57: 0.001307853546 | W57: 0.0001661213521 | X57: 1.96314995e-57 | Y57: 3.044551866e-40 | Z57: 0.006329322997 | AA57: 0.7273103509 | AB57: 0.4855844801 | AC57: 0.1887866004 | AD57: 5.534610072e-12 | AE57: 4.153259572e-05 | AF57: 6.352813826e-09 | AG57: 1.857143031e-14 | AH57: 0.02434234141 | AI57: 3.534949862e-12 | AJ57: 7.619141132e-07 | AK57: 1.590924363e-56 | AL57: 1.291628064e-16 | AM57: 8.9322521e-06 | AN57: 0.6210845841 | AO57: 2.837823727e-05 | AP57: 3.689564974e-06 | AQ57: 8.861583427e-05 | AR57: 1.676610248e-22 | AS57: 1.515677147e-57 | AT57: 6.222910049e-07 | AU57: 3.023162557e-16 | AV57: 0.009666799465 | AW57: 1.906079801e-61 | AX57: 2.852071724e-07 | AY57: 0.08621612964 | AZ57: 0.7627324229 | BA57: 0.9849760035 | BB57: 0.004733965763 | BC57: 4.913269833e-18 | BD57: 1.689197333e-05 | BE57: 3.034215006e-08 | BF57: 0.001104845249 | BG57: 5.108629465e-34 | BH57: 4.168496882e-27 | BI57: 3.57341433e-38 | BJ57: 0.08698235474 | BK57: 0.08814183506 | BL57: 0.2666180951 | BM57: 0.0002591643867 | BN57: 8.389149259e-12 | BO57: 6.634613523e-26 | BP57: 2.875022798e-28 | BQ57: 3.896654619e-15 | BR57: 2.889097275e-44 | BS57: 3.922086713e-09 | BT57: 0.3659121506 | BU57: 2.794520171e-26 | BV57: 1.449278486e-09 | BW57: 0.8577367884 | BX57: 0.7805097868 | BY57: 0.00298531503 | BZ57: 2.794012526e-08 | CA57: 0.4785962208 | CB57: 1.628273809e-37 | CC57: 1.512993394e-33 | CD57: 1.009653953e-07 | CE57: 1.135264116e-25 | CF57: 5.205047183e-19 | CG57: 4.655075869e-13 | CH57: 0.0002612789363 | CI57: 2.542080255e-08 | CJ57: 5.476550681e-05 | CK57: 0.9201376505 | CL57: 5.238972886e-05 | CM57: 1.293873962e-30 | CN57: 1.413815451e-108 | CO57: 1.519839015e-26 | CP57: 0.00521987408 | CQ57: 7.01646601e-18 | CR57: 5.042793689e-24 | CS57: 4.973124899e-15 | CT57: 6.227315399e-25 | CU57: 2.632564312e-15 | CV57: 0.05777078967 | CW57: 3.435380362e-07 | CX57: 1.827837002e-14 | CY57: 1.356894239e-37 | CZ57: 3.543837685e-24 | DA57: 0.3998531197 | DB57: 1.64231604e-05 | DC57: 1.889825351e-26 | DD57: 0.4566892945 | DE57: 153.0956996
B58: 57 | C58: 1.137233499e-06 | D58: 0.9995501012 | E58: 0.009608069122 | F58: 1.042530499e-10 | G58: 1.169551589e-26 | H58: 1.863559155e-88 | I58: 1.148585259e-32 | J58: 6.982759685e-13 | K58: 3.383355684e-11 | L58: 5.978165055e-18 | M58: 1.512220523e-12 | N58: 0.001808137444 | O58: 0.989968653 | P58: 0.1258520838 | Q58: 0.2597379606 | R58: 2.312272354e-08 | S58: 3.345711873e-16 | T58: 3.651797495e-27 | U58: 2.322011934e-11 | V58: 0.001406447862 | W58: 0.000180541119 | X58: 2.711631005e-57 | Y58: 3.98665973e-40 | Z58: 0.006743865514 | AA58: 0.7388635622 | AB58: 0.4972999071 | AC58: 0.1957693693 | AD58: 6.39055498e-12 | AE58: 4.542754131e-05 | AF58: 7.181999577e-09 | AG58: 2.176850923e-14 | AH58: 0.02570118961 | AI58: 4.086705384e-12 | AJ58: 8.470788952e-07 | AK58: 2.191782649e-56 | AL58: 1.53232086e-16 | AM58: 9.834617486e-06 | AN58: 0.6332006022 | AO58: 3.109175147e-05 | AP58: 4.076947546e-06 | AQ58: 9.659341372e-05 | AR58: 2.047980214e-22 | AS58: 2.09422237e-57 | AT58: 6.923750835e-07 | AU58: 3.579358119e-16 | AV58: 0.01027195411 | AW58: 2.662561615e-61 | AX58: 3.182431894e-07 | AY58: 0.09010154202 | AZ58: 0.7514369291 | BA58: 0.988212029 | BB58: 0.005053106886 | BC58: 5.872612967e-18 | BD58: 1.854867871e-05 | BE58: 3.412457629e-08 | BF58: 0.001189229096 | BG58: 6.542838952e-34 | BH58: 5.19551374e-27 | BI58: 4.645790467e-38 | BJ58: 0.09089502589 | BK58: 0.09209561022 | BL58: 0.2753759566 | BM58: 0.0002810528017 | BN58: 9.675327766e-12 | BO58: 8.227320774e-26 | BP58: 3.60060038e-28 | BQ58: 4.585221411e-15 | BR58: 3.834135907e-44 | BS58: 4.440930102e-09 | BT58: 0.3763626898 | BU58: 3.470922531e-26 | BV58: 1.646193803e-09 | BW58: 0.8671199163 | BX58: 0.7694433097 | BY58: 0.003195377643 | BZ58: 3.143191685e-08 | CA58: 0.4902606944 | CB58: 2.112010718e-37 | CC58: 1.934347516e-33 | CD58: 1.130802606e-07 | CE58: 1.406388857e-25 | CF58: 6.252296066e-19 | CG58: 5.41123966e-13 | CH58: 0.0002833346075 | CI58: 2.860689684e-08 | CJ58: 5.982720903e-05 | CK58: 0.9124773644 | CL58: 5.724329731e-05 | CM58: 1.635716263e-30 | CN58: 2.207392696e-108 | CO58: 1.889825351e-26 | CP58: 0.005568430735 | CQ58: 8.379763347e-18 | CR58: 6.202300253e-24 | CS58: 5.84840161e-15 | CT58: 7.689881124e-25 | CU58: 3.100732565e-15 | CV58: 0.0605847541 | CW58: 3.830700371e-07 | CX58: 2.142585553e-14 | CY58: 1.760501023e-37 | CZ58: 4.361649153e-24 | DA58: 0.4107469284 | DB58: 1.803605045e-05 | DC58: 2.3489406e-26 | DD58: 0.468175525 | DE58: 153.5310717
B59: 58 | C59: 1.262430155e-06 | D59: 0.9999500012 | E59: 0.01020995555 | F59: 1.193691886e-10 | G59: 1.454962923e-26 | H59: 2.785112266e-88 | I59: 1.46358803e-32 | J59: 8.108267409e-13 | K59: 3.886651628e-11 | L59: 7.142291576e-18 | M59: 1.752317357e-12 | N59: 0.001940949486 | O59: 0.9925856231 | P59: 0.1310563363 | Q59: 0.2683556838 | R59: 2.602911806e-08 | S59: 3.960298843e-16 | T59: 4.55260461e-27 | U59: 2.670308538e-11 | V59: 0.001511869975 | W59: 0.00019613409 | X59: 3.743984058e-57 | Y59: 5.218206288e-40 | Z59: 0.007182685075 | AA59: 0.7503001144 | AB59: 0.5090943073 | AC59: 0.2029292262 | AD59: 7.375923509e-12 | AE59: 4.966788554e-05 | AF59: 8.11616569e-09 | AG59: 2.550576219e-14 | AH59: 0.0271250398 | AI59: 4.722692661e-12 | AJ59: 9.413865456e-07 | AK59: 3.018364739e-56 | AL59: 1.817139367e-16 | AM59: 1.082381239e-05 | AN59: 0.645294808 | AO59: 3.405110751e-05 | AP59: 4.503201364e-06 | AQ59: 0.000105247062 | AR59: 2.500608359e-22 | AS59: 2.892445392e-57 | AT59: 7.700441393e-07 | AU59: 4.236186643e-16 | AV59: 0.01091062712 | AW59: 3.717787275e-61 | AX59: 3.549638087e-07 | AY59: 0.09412439693 | AZ59: 0.7400126488 | BA59: 0.9910621819 | BB59: 0.005391605888 | BC59: 7.01646601e-18 | BD59: 2.035972242e-05 | BE59: 3.836316817e-08 | BF59: 0.001279545938 | BG59: 8.376340812e-34 | BH59: 6.472973016e-27 | BI59: 6.037569521e-38 | BJ59: 0.09494571232 | BK59: 0.09618825675 | BL59: 0.2843077502 | BM59: 0.0003046679692 | BN59: 1.115423354e-11 | BO59: 1.019829366e-25 | BP59: 4.507490659e-28 | BQ59: 5.393305137e-15 | BR59: 5.086266639e-44 | BS59: 5.026399069e-09 | BT59: 0.3869568852 | BU59: 4.309321288e-26 | BV59: 1.869116458e-09 | BW59: 0.8762551179 | BX59: 0.7582303862 | BY59: 0.003418853562 | BZ59: 3.53459507e-08 | CA59: 0.502008614 | CB59: 2.738363395e-37 | CC59: 2.472055693e-33 | CD59: 1.265981424e-07 | CE59: 1.741567073e-25 | CF59: 7.507246596e-19 | CG59: 6.287718013e-13 | CH59: 0.000307129216 | CI59: 3.217944314e-08 | CJ59: 6.533060163e-05 | CK59: 0.9045189713 | CL59: 6.252150377e-05 | CM59: 2.067046527e-30 | CN59: 3.445028039e-108 | CO59: 2.3489406e-26 | CP59: 0.005937886601 | CQ59: 1.000394659e-17 | CR59: 7.625365318e-24 | CS59: 6.874977666e-15 | CT59: 9.492151743e-25 | CU59: 3.650698046e-15 | CV59: 0.06351037504 | CW59: 4.269802832e-07 | CX59: 2.510528533e-14 | CY59: 2.283246745e-37 | CZ59: 5.366040137e-24 | DA59: 0.4217687926 | DB59: 1.979941829e-05 | DC59: 2.918425965e-26 | DD59: 0.4797587047 | DE59: 153.9662418
B60: 59 | C60: 1.400849107e-06 | D60: 0.9999500012 | E60: 0.01084520752 | F60: 1.366224273e-10 | G60: 1.809300701e-26 | H60: 4.160720197e-88 | I60: 1.864235363e-32 | J60: 9.41142342e-13 | K60: 4.463030515e-11 | L60: 8.52969559e-18 | M60: 2.029722564e-12 | N60: 0.002082683651 | O60: 0.994811507 | P60: 0.1364212164 | Q60: 0.2771484488 | R60: 2.928911183e-08 | S60: 4.685906974e-16 | T60: 5.673348517e-27 | U60: 3.06962076e-11 | V60: 0.001624544192 | W60: 0.0002129885819 | X60: 5.16729996e-57 | Y60: 6.827466855e-40 | Z60: 0.007646998967 | AA60: 0.7616089835 | AB60: 0.5209600081 | AC60: 0.2102668165 | AD60: 8.509822767e-12 | AE60: 5.428231905e-05 | AF60: 9.168171232e-09 | AG60: 2.987268133e-14 | AH60: 0.02861632271 | AI60: 5.45547186e-12 | AJ60: 1.045775335e-06 | AK60: 4.155011548e-56 | AL60: 2.154036423e-16 | AM60: 1.190773939e-05 | AN60: 0.6573570191 | AO60: 3.727722528e-05 | AP60: 4.972031743e-06 | AQ60: 0.0001146301155 | AR60: 3.052051678e-22 | AS60: 3.993317347e-57 | AT60: 8.560834305e-07 | AU60: 5.011541177e-16 | AV60: 0.01158437583 | AW60: 5.189143593e-61 | AX60: 3.957631147e-07 | AY60: 0.09828754144 | AZ60: 0.7284706081 | BA60: 0.9935230663 | BB60: 0.005750479709 | BC60: 8.379763347e-18 | BD60: 2.233865438e-05 | BE60: 4.3110985e-08 | BF60: 0.001376171377 | BG60: 1.071935689e-33 | BH60: 8.061305458e-27 | BI60: 7.843157799e-38 | BJ60: 0.09913725251 | BK60: 0.1004225997 | BL60: 0.2934118575 | BM60: 0.0003301352959 | BN60: 1.28540523e-11 | BO60: 1.263638584e-25 | BP60: 5.640544502e-28 | BQ60: 6.341265758e-15 | BR60: 6.744612862e-44 | BS60: 5.686778033e-09 | BT60: 0.3976901876 | BU60: 5.348094974e-26 | BV60: 2.121377914e-09 | BW60: 0.885132436 | BX60: 0.7468820534 | BY60: 0.00365649588 | BZ60: 3.973148065e-08 | CA60: 0.5138324703 | CB60: 3.549051699e-37 | CC60: 3.157972061e-33 | CD60: 1.416753025e-07 | CE60: 2.155764301e-25 | CF60: 9.010483807e-19 | CG60: 7.303240903e-13 | CH60: 0.0003327889675 | CI60: 3.618366728e-08 | CJ60: 7.13117106e-05 | CK60: 0.896271409 | CL60: 6.825908631e-05 | CM60: 2.611071804e-30 | CN60: 5.374427428e-108 | CO60: 2.918425965e-26 | CP60: 0.006329322997 | CQ60: 1.19381562e-17 | CR60: 9.371191336e-24 | CS60: 8.078517637e-15 | CT60: 1.171213314e-24 | CU60: 4.296489934e-15 | CV60: 0.06655064781 | CW60: 4.757335064e-07 | CX60: 2.940481378e-14 | CY60: 2.960027151e-37 | CZ60: 6.599079911e-24 | DA60: 0.4329132143 | DB60: 2.172649662e-05 | DC60: 3.62452925e-26 | DD60: 0.491431853 | DE60: 154.4011061
B61: 60 | C61: 1.55382333e-06 | D61: 0.9995501012 | E61: 0.01151537707 | F61: 1.563068584e-10 | G61: 2.249033161e-26 | H61: 6.213275319e-88 | I61: 2.373607562e-32 | J61: 1.091965317e-12 | K61: 5.122835134e-11 | L61: 1.01825317e-17 | M61: 2.350102904e-12 | N61: 0.002233873958 | O61: 0.9966436452 | P61: 0.1419489206 | Q61: 0.2861148429 | R61: 3.294422029e-08 | S61: 5.542244083e-16 | T61: 7.067165717e-27 | U61: 3.527234101e-11 | V61: 0.001744917504 | W61: 0.0002311989414 | X61: 7.128852635e-57 | Y61: 8.929440329e-40 | Z61: 0.008138071854 | AA61: 0.7727791317 | AB61: 0.5328890702 | AC61: 0.2177825916 | AD61: 9.814109704e-12 | AE61: 5.930173467e-05 | AF61: 1.035239441e-08 | AG61: 3.497328187e-14 | AH61: 0.03017752008 | AI61: 6.299429766e-12 | AJ61: 1.161275022e-06 | AK61: 5.717406009e-56 | AL61: 2.552372932e-16 | AM61: 1.309497486e-05 | AN61: 0.6693768995 | AO61: 4.07926761e-05 | AP61: 5.48747684e-06 | AQ61: 0.0001247997631 | AR61: 3.723611557e-22 | AS61: 5.51097909e-57 | AT61: 9.513555259e-07 | AU61: 5.92643877e-16 | AV61: 0.0122948107 | AW61: 7.239909256e-61 | AX61: 4.410754005e-07 | AY61: 0.1025937771 | AZ61: 0.7168218035 | BA61: 0.995591745 | BB61: 0.006130787934 | BC61: 1.000394659e-17 | BD61: 2.450013329e-05 | BE61: 4.842701586e-08 | BF61: 0.001479501607 | BG61: 1.37122715e-33 | BH61: 1.003536657e-26 | BI61: 1.018464846e-37 | BJ61: 0.1034724381 | BK61: 0.1048014156 | BL61: 0.3026863979 | BM61: 0.0003575883834 | BN61: 1.480698629e-11 | BO61: 1.565108773e-25 | BP61: 7.055592776e-28 | BQ61: 7.452864051e-15 | BR61: 8.940076013e-44 | BS61: 6.431345931e-09 | BT61: 0.4085577516 | BU61: 6.634613523e-26 | BV61: 2.406722436e-09 | BW61: 0.8937421216 | BX61: 0.7354093471 | BY61: 0.003909092614 | BZ61: 4.4643282e-08 | CA61: 0.525724483 | CB61: 4.597903509e-37 | CC61: 4.032594917e-33 | CD61: 1.584846649e-07 | CE61: 2.66740296e-25 | CF61: 1.081040144e-18 | CG61: 8.479387419e-13 | CH61: 0.0003604483085 | CI61: 4.066988275e-08 | CJ61: 7.780926862e-05 | CK61: 0.8877438809 | CL61: 7.449340202e-05 | CM61: 3.296959862e-30 | CN61: 8.381040264e-108 | CO61: 3.62452925e-26 | CP61: 0.006743865514 | CQ61: 1.424063751e-17 | CR61: 1.151211814e-23 | CS61: 9.488954092e-15 | CT61: 1.444553434e-24 | CU61: 5.054497267e-15 | CV61: 0.06970857092 | CW61: 5.298414638e-07 | CX61: 3.442690549e-14 | CY61: 3.835878338e-37 | CZ61: 8.112209171e-24 | DA61: 0.4441744004 | DB61: 2.383160302e-05 | DC61: 4.499671607e-26 | DD61: 0.5031877088 | DE61: 154.8355616
B62: 61 | C62: 1.722813238e-06 | D62: 0.9987507809 | E62: 0.01222206933 | F62: 1.787558871e-10 | G62: 2.794520171e-26 | H62: 9.274680713e-88 | I62: 3.020948865e-32 | J62: 1.26645178e-12 | K62: 5.877832215e-11 | L62: 1.215078375e-17 | M62: 2.719965281e-12 | N62: 0.002395081547 | O62: 0.9980798459 | P62: 0.1476415356 | Q62: 0.2952531958 | R62: 3.704064551e-08 | S62: 6.55245303e-16 | T62: 8.799892547e-27 | U62: 4.051446683e-11 | V62: 0.001873460544 | W62: 0.0002508659062 | X62: 9.831094794e-57 | Y62: 1.167387828e-39 | Z62: 0.008657216746 | AA62: 0.7837995244 | AB62: 0.5448732937 | AC62: 0.2254768018 | AD62: 1.13137762e-11 | AE62: 6.47593802e-05 | AF62: 1.168490499e-08 | AG62: 4.092840803e-14 | AH62: 0.03181116342 | AI62: 7.271038407e-12 | AJ62: 1.289015254e-06 | AK62: 7.864155904e-56 | AL62: 3.023162557e-16 | AM62: 1.439482199e-05 | AN62: 0.6813439733 | AO62: 4.46218013e-05 | AP62: 6.053935509e-06 | AQ62: 0.0001358172943 | AR62: 4.541121672e-22 | AS62: 7.60238718e-57 | AT62: 1.056807486e-06 | AU62: 7.005555575e-16 | AV62: 0.01304359592 | AW62: 1.009710423e-60 | AX62: 4.913790554e-07 | AY62: 0.1070458534 | AZ62: 0.7050771849 | BA62: 0.9972657449 | BB62: 0.006533633883 | BC62: 1.19381562e-17 | BD62: 2.686000985e-05 | BE62: 5.43768133e-08 | BF62: 0.001589954308 | BG62: 1.753381254e-33 | BH62: 1.248784175e-26 | BI62: 1.321987705e-37 | BJ62: 0.1079540074 | BK62: 0.109327425 | BL62: 0.3121292232 | BM62: 0.0003871694908 | BN62: 1.704981095e-11 | BO62: 1.937726396e-25 | BP62: 8.822105884e-28 | BQ62: 8.755818011e-15 | BR62: 1.184545313e-43 | BS62: 7.270491072e-09 | BT62: 0.4195544349 | BU62: 8.227320774e-26 | BV62: 2.729356418e-09 | BW62: 0.9020746516 | BX62: 0.7238232835 | BY62: 0.004177467823 | BZ62: 5.014224353e-08 | CA62: 0.537676608 | CB62: 5.954340449e-37 | CC62: 5.147391435e-33 | CD62: 1.77217508e-07 | CE62: 3.299151535e-25 | CF62: 1.296468039e-18 | CG62: 9.841008631e-13 | CH62: 0.0003902503897 | CI62: 4.569403832e-08 | CJ62: 8.486489811e-05 | CK62: 0.8789458388 | CL62: 8.126460492e-05 | CM62: 4.161355197e-30 | CN62: 1.306441397e-107 | CO62: 4.499671607e-26 | CP62: 0.007182685075 | CQ62: 1.698039892e-17 | CR62: 1.413650179e-23 | CS62: 1.114118269e-14 | CT62: 1.78097369e-24 | CU62: 5.943857866e-15 | CV62: 0.07298714129 | CW62: 5.898674419e-07 | CX62: 4.029060821e-14 | CY62: 4.968899767e-37 | CZ62: 9.968301734e-24 | DA62: 0.455546264 | DB62: 2.613022154e-05 | DC62: 5.58388303e-26 | DD62: 0.5150187352 | DE62: 155.2695055
B63: 62 | C63: 1.909418142e-06 | D63: 0.9975529988 | E63: 0.01296694308 | F63: 2.043473242e-10 | G63: 3.470922531e-26 | H63: 1.383896527e-87 | I63: 3.843298475e-32 | J63: 1.468232235e-12 | K63: 6.741402727e-11 | L63: 1.449369423e-17 | M63: 3.146778138e-12 | N63: 0.002566895723 | O63: 0.9991183888 | P63: 0.1535010303 | Q63: 0.3045615736 | R63: 4.162978251e-08 | S63: 7.743699058e-16 | T63: 1.095306703e-26 | U63: 4.651705948e-11 | V63: 0.002010668551 | W63: 0.000272096983 | X63: 1.355221904e-56 | Y63: 1.525570787e-39 | Z63: 0.009205795938 | AA63: 0.7946591487 | AB63: 0.556904226 | AC63: 0.2333494882 | AD63: 1.303738652e-11 | AE63: 7.069102061e-05 | AF63: 1.318365542e-08 | AG63: 4.787839673e-14 | AH63: 0.03351983251 | AI63: 8.389149259e-12 | AJ63: 1.430234702e-06 | AK63: 1.081263338e-55 | AL63: 3.579358119e-16 | AM63: 1.58173677e-05 | AN63: 0.6932476391 | AO63: 4.879083842e-05 | AP63: 6.676197293e-06 | AQ63: 0.0001477483602 | AR63: 5.535899398e-22 | AS63: 1.048328727e-56 | AT63: 1.173478668e-06 | AU63: 8.27785178e-16 | AV63: 0.01383244997 | AW63: 1.407624567e-60 | AX63: 5.472008047e-07 | AY63: 0.1116464608 | AZ63: 0.6932476391 | BA63: 0.9985430624 | BB63: 0.006960165682 | BC63: 1.424063751e-17 | BD63: 2.943541549e-05 | BE63: 6.103319137e-08 | BF63: 0.00170796957 | BG63: 2.241143146e-33 | BH63: 1.553344608e-26 | BI63: 1.715280186e-37 | BJ63: 0.1125846383 | BK63: 0.1140032867 | BL63: 0.3217379129 | BM63: 0.0004190300174 | BN63: 1.962450648e-11 | BO63: 2.398096565e-25 | BP63: 1.102649049e-27 | BQ63: 1.028244832e-14 | BR63: 1.568875309e-43 | BS63: 8.215838675e-09 | BT63: 0.4306747992 | BU63: 1.019829366e-25 | BV63: 3.094003356e-09 | BW63: 0.9101207463 | BX63: 0.7121348425 | BY63: 0.004462482739 | BZ63: 5.629601983e-08 | CA63: 0.5496805432 | CB63: 7.70785887e-37 | CC63: 6.567741861e-33 | CD63: 1.98085318e-07 | CE63: 4.078891763e-25 | CF63: 1.554204243e-18 | CG63: 1.141671157e-12 | CH63: 0.000422347552 | CI63: 5.131832172e-08 | CJ63: 9.252330493e-05 | CK63: 0.8698869659 | CL63: 8.861583427e-05 | CM63: 5.250276752e-30 | CN63: 2.035673964e-107 | CO63: 5.58388303e-26 | CP63: 0.007646998967 | CQ63: 2.023916673e-17 | CR63: 1.735221618e-23 | CS63: 1.307586801e-14 | CT63: 2.194864321e-24 | CU63: 6.986909975e-15 | CV63: 0.07638934927 | CW63: 6.564311651e-07 | CX63: 4.713417845e-14 | CY63: 6.434012945e-37 | CZ63: 1.2244174e-23 | DA63: 0.4670224265 | DB63: 2.863908972e-05 | DC63: 6.92656776e-26 | DD63: 0.5269171255 | DE63: 155.7028363
B64: 63 | C64: 2.115388657e-06 | D64: 0.9959581902 | E64: 0.01375171136 | F64: 2.335091157e-10 | G64: 4.309321288e-26 | H64: 2.064118153e-87 | I64: 4.887549122e-32 | J64: 1.701481115e-12 | K64: 7.728756809e-11 | L64: 1.728145003e-17 | M64: 3.63910989e-12 | N64: 0.002749935011 | O64: 0.9997580293 | P64: 0.1595292481 | Q64: 0.3140377743 | R64: 4.676877769e-08 | S64: 9.14785557e-16 | T64: 1.36276322e-26 | U64: 5.338763239e-11 | V64: 0.002157062363 | W64: 0.0002950068446 | X64: 1.867433835e-56 | Y64: 1.992855683e-39 | Z64: 0.009785221908 | AA64: 0.805347031 | AB64: 0.5689731694 | AC64: 0.2414004756 | AD64: 1.501757401e-11 | AE64: 7.713510988e-05 | AF64: 1.486869263e-08 | AG64: 5.598615315e-14 | AH64: 0.03530615386 | AI64: 9.675327766e-12 | AJ64: 1.586290954e-06 | AK64: 1.486062664e-55 | AL64: 4.236186643e-16 | AM64: 1.737354345e-05 | AN64: 0.7050771849 | AO64: 5.332805527e-05 | AP64: 7.3594747e-06 | AQ64: 0.0001606632497 | AR64: 6.745894151e-22 | AS64: 1.445011395e-56 | AT64: 1.3025092e-06 | AU64: 9.77730113e-16 | AV64: 0.01466314612 | AW64: 1.961566875e-60 | AX64: 6.091203316e-07 | AY64: 0.1163982242 | AZ64: 0.6813439733 | BA64: 0.999422167 | BB64: 0.00741157731 | BC64: 1.698039892e-17 | BD64: 3.224485701e-05 | BE64: 6.847699414e-08 | BF64: 0.00183401083 | BG64: 2.863446785e-33 | BH64: 1.931410216e-26 | BI64: 2.224687465e-37 | BJ64: 0.1173669415 | BK64: 0.1188315898 | BL64: 0.3315097692 | BM64: 0.0004533310068 | BN64: 2.257897393e-11 | BO64: 2.966655799e-25 | BP64: 1.377617435e-27 | BQ64: 1.20704268e-14 | BR64: 2.077071562e-43 | BS64: 9.280392461e-09 | BT64: 0.44191311 | BU64: 1.263638584e-25 | BV64: 3.505965117e-09 | BW64: 0.9178713865 | BX64: 0.7003549507 | BY64: 0.00476503689 | BZ64: 6.317974991e-08 | CA64: 0.5617277371 | CB64: 9.973787892e-37 | CC64: 8.376666716e-33 | CD64: 2.21321819e-07 | CE64: 5.040903465e-25 | CF64: 1.862432956e-18 | CG64: 1.323941293e-12 | CH64: 0.0004569018319 | CI64: 5.761182472e-08 | CJ64: 0.0001008324832 | CK64: 0.8605771588 | CL64: 9.659341372e-05 | CM64: 6.621492448e-30 | CN64: 3.170682773e-107 | CO64: 6.92656776e-26 | CP64: 0.008138071854 | CQ64: 2.411368867e-17 | CR64: 2.129091023e-23 | CS64: 1.534037735e-14 | CT64: 2.703859595e-24 | CU64: 8.209716525e-15 | CV64: 0.07991817342 | CW64: 7.302141424e-07 | CX64: 5.511811318e-14 | CY64: 8.327792714e-37 | CZ64: 1.503363812e-23 | DA64: 0.4785962208 | DB64: 3.137629144e-05 | DC64: 8.588674509e-26 | DD64: 0.5388748092 | DE64: 156.1354531
B65: 64 | C65: 2.342640139e-06 | D65: 0.9939682644 | E65: 0.01457814193 | F65: 2.667257871e-10 | G65: 5.348094974e-26 | H65: 3.077455412e-87 | I65: 6.213044142e-32 | J65: 1.970996231e-12 | K65: 8.857176399e-11 | L65: 2.059716972e-17 | M65: 4.206786758e-12 | N65: 0.002944848224 | O65: 0.999998 | P65: 0.1657278987 | Q65: 0.3236793221 | R65: 5.252114429e-08 | S65: 1.080230447e-15 | T65: 1.694850299e-26 | U65: 6.124848509e-11 | V65: 0.002313189433 | W65: 0.0003197177444 | X65: 2.572209373e-56 | Y65: 2.602229628e-39 | Z65: 0.01039695816 | AA65: 0.8158522554 | AB65: 0.5810711897 | AC65: 0.2496293653 | AD65: 1.729160487e-11 | AE65: 8.41329729e-05 | AF65: 1.676239252e-08 | AG65: 6.544070038e-14 | AH65: 0.03717279881 | AI65: 1.115423354e-11 | AJ65: 1.75867126e-06 | AK65: 2.041592447e-55 | AL65: 5.011541177e-16 | AM65: 1.907519038e-05 | AN65: 0.7168218035 | AO65: 5.826389227e-05 | AP65: 8.109437914e-06 | AQ65: 0.0001746371788 | AR65: 8.21707286e-22 | AS65: 1.991000364e-56 | AT65: 1.445149184e-06 | AU65: 1.154374218e-15 | AV65: 0.01553751277 | AW65: 2.732408841e-60 | AX65: 6.777753135e-07 | AY65: 0.1213036952 | AZ65: 0.6693768995 | BA65: 0.9999020048 | BB65: 0.007889109617 | BC65: 2.023916673e-17 | BD65: 3.530831745e-05 | BE65: 7.679794154e-08 | BF65: 0.001968565843 | BG65: 3.657083855e-33 | BH65: 2.400532092e-26 | BI65: 2.884225599e-37 | BJ65: 0.1223034533 | BK65: 0.1238148468 | BL65: 0.3414418133 | BM65: 0.0004902436723 | BN65: 2.596784692e-11 | BO65: 3.668545731e-25 | BP65: 1.720466562e-27 | BQ65: 1.416364393e-14 | BR65: 2.748785008e-43 | BS65: 1.047869174e-08 | BT65: 0.453263339 | BU65: 1.565108773e-25 | BV65: 3.971190155e-09 | BW65: 0.9253178305 | BX65: 0.688494465 | BY65: 0.005086069231 | BZ65: 7.087684808e-08 | CA65: 0.5738093963 | CB65: 1.290068539e-36 | CC65: 1.067954328e-32 | CD65: 2.47185196e-07 | CE65: 6.227315399e-25 | CF65: 2.230896837e-18 | CG65: 1.534697228e-12 | CH65: 0.0004940854895 | CI65: 6.465127567e-08 | CJ65: 0.000109843932 | CK65: 0.8510265094 | CL65: 0.000105247062 | CM65: 8.347489123e-30 | CN65: 4.936551203e-107 | CO65: 8.588674509e-26 | CP65: 0.008657216746 | CQ65: 2.871844714e-17 | CR65: 2.611318168e-23 | CS65: 1.798986232e-14 | CT65: 3.329560229e-24 | CU65: 9.64267341e-15 | CV65: 0.08357657513 | CW65: 8.119654881e-07 | CX65: 6.442864903e-14 | CY65: 1.077467465e-36 | CZ65: 1.845121518e-23 | DA65: 0.4902606944 | DB65: 3.43613559e-05 | DC65: 1.064536321e-25 | DD65: 0.5508834592 | DE65: 156.5672563
B66: 65 | C66: =+EXP(-(($B66-C$2)^2/(2*alpha^2))) -> 2.593267226e-06 | D66: 0.9915856009 | E66: 0.01544805768 | F66: 3.045456872e-10 | G66: 6.634613523e-26 | H66: 4.58643526e-87 | I66: 7.894852587e-32 | J66: 2.282289523e-12 | K66: 1.0146289e-10 | L66: 2.453924503e-17 | M66: =+EXP(-(($B66-M$2)^2/(2*alpha^2))) -> 4.861072614e-12 | N66: 0.003152315553 | O66: 0.9998380131 | P66: 0.1720985502 | Q66: 0.3334834634 | R66: 5.895744055e-08 | S66: 1.275086979e-15 | T66: 2.107019559e-26 | U66: 7.023867715e-11 | V66: 0.002479624851 | W66: =+EXP(-(($B66-W$2)^2/(2*alpha^2))) -> 0.000346359952 | X66: 3.541552561e-56 | Y66: 3.396578586e-39 | Z66: 0.01104252004 | AA66: 0.8261639818 | AB66: 0.593189126 | AC66: 0.2580355275 | AD66: 1.990201765e-11 | AE66: 9.172899817e-05 | AF66: 1.888971959e-08 | AG66: =+EXP(-(($B66-AG$2)^2/(2*alpha^2))) -> 7.646127434e-14 | AH66: 0.03912248161 | AI66: 1.28540523e-11 | AJ66: 1.949004166e-06 | AK66: 2.803672359e-55 | AL66: 5.92643877e-16 | AM66: 2.093512893e-05 | AN66: 0.7284706081 | AO66: 6.363111358e-05 | AP66: 8.9322521e-06 | AQ66: =+EXP(-(($B66-AQ$2)^2/(2*alpha^2))) -> 0.0001897505961 | AR66: 1.000509082e-21 | AS66: 2.742190923e-56 | AT66: 1.602768679e-06 | AU66: 1.362387118e-15 | AV66: 0.01645743382 | AW66: 3.80464839e-60 | AX66: 7.538669073e-07 | AY66: 0.1263653455 | AZ66: 0.6573570191 | BA66: =+EXP(-(($B66-BA$2)^2/(2*alpha^2))) -> 0.9999820002 | BB66: 0.008394051322 | BC66: 2.411368867e-17 | BD66: 3.86473635e-05 | BE66: 8.609555955e-08 | BF66: 0.002112147662 | BG66: 4.668818626e-33 | BH66: 2.982406181e-26 | BI66: 3.737797151e-37 | BJ66: 0.1273966285 | BK66: =+EXP(-(($B66-BK$2)^2/(2*alpha^2))) -> 0.1289554865 | BL66: 0.3515307814 | BM66: 0.0005299499446 | BN66: 2.985341134e-11 | BO66: 4.534683655e-25 | BP66: 2.147781633e-27 | BQ66: 1.661321387e-14 | BR66: 3.636272065e-43 | BS66: 1.182698561e-08 | BT66: 0.464719166 | BU66: =+EXP(-(($B66-BU$2)^2/(2*alpha^2))) -> 1.937726396e-25 | BV66: 4.496349462e-09 | BW66: 0.9324516301 | BX66: 0.6765641565 | BY66: 0.005426559258 | BZ66: 7.947987436e-08 | CA66: 0.5859164947 | CB66: 1.667983393e-36 | CC66: 1.361007148e-32 | CD66: 2.759605269e-07 | CE66: =+EXP(-(($B66-CE$2)^2/(2*alpha^2))) -> 7.689881124e-25 | CF66: 2.671188953e-18 | CG66: 1.778291578e-12 | CH66: 0.0005340815582 | CI66: 7.252184573e-08 | CJ66: 0.0001196128836 | CK66: 0.8412452874 | CL66: 0.0001146301155 | CM66: 1.05191856e-29 | CN66: 7.682822175e-107 | CO66: =+EXP(-(($B66-CO$2)^2/(2*alpha^2))) -> 1.064536321e-25 | CP66: 0.009205795938 | CQ66: 3.418885364e-17 | CR66: 3.201486198e-23 | CS66: 2.108851111e-14 | CT66: 4.098414665e-24 | CU66: 1.132121495e-14 | CV66: 0.08736749293 | CW66: 9.02508255e-07 | CX66: 7.528179919e-14 | CY66: =+EXP(-(($B66-CY$2)^2/(2*alpha^2))) -> 1.393492726e-36 | CZ66: 2.263664904e-23 | DA66: 0.502008614 | DB66: 3.761536302e-05 | DC66: 1.318928052e-25 | DD66: 0.5629344992 | DE66: 156.9981473
B67: 66 | C67: 2.86955957e-06 | D67: 0.9888130446 | E67: 0.01636333693 | F67: 3.475891281e-10 | G67: 8.227320774e-26 | H67: 6.832585077e-87 | I67: 1.002789767e-31 | J67: 2.641690666e-12 | K67: 1.161837647e-10 | L67: 2.922409891e-17 | M67: 5.61487382e-12 | N67: 0.003373049661 | O67: 0.9992782606 | P67: 0.1786426209 | Q67: 0.3434471625 | R67: 6.615601638e-08 | S67: 1.504490639e-15 | T67: 2.618376365e-26 | U67: 8.051625713e-11 | V67: 0.0026569724 | W67: 0.0003750722064 | X67: 4.874244937e-56 | Y67: 4.431635161e-39 | Z67: 0.01172347543 | AA67: 0.8362714648 | AB67: 0.6053176 | AC67: 0.2666180951 | AD67: 2.289734846e-11 | AE67: 9.997084145e-05 | AF67: 2.127851412e-08 | AG67: 8.930204562e-14 | AH67: 0.0411579572 | AI67: 1.480698629e-11 | AJ67: 2.159072126e-06 | AK67: 3.848679547e-55 | AL67: 7.005555575e-16 | AM67: 2.296723323e-05 | AN67: 0.7400126488 | AO67: 6.946496731e-05 | AP67: 9.834617486e-06 | AQ67: 0.0002060895036 | AR67: 1.217730588e-21 | AS67: 3.775290025e-56 | AT67: 1.776868522e-06 | AU67: 1.607239956e-15 | AV67: 0.01742484879 | AW67: 5.295532707e-60 | AX67: 8.381657195e-07 | AY67: 0.131585559 | AZ67: 0.645294808 | BA67: 0.9996620571 | BB67: 0.008927739961 | BC67: 2.871844714e-17 | BD67: 4.228525983e-05 | BE67: 9.648020299e-08 | BF67: 0.002265295647 | BG67: 5.958066816e-33 | BH67: 3.703841106e-26 | BI67: 4.842041555e-37 | BJ67: 0.1326488325 | BK67: 0.1342558461 | BL67: 0.3617731214 | BM67: 0.0005726430413 | BN67: 3.430664667e-11 | BO67: 5.603073715e-25 | BP67: 2.680157364e-27 | BQ67: 1.947863833e-14 | BR67: 4.808374084e-43 | BS67: 1.33434261e-08 | BT67: 0.476273981 | BU67: 2.398096565e-25 | BV67: 5.088921067e-09 | BW67: 0.9392646473 | BX67: 0.6645746945 | BY67: 0.005787528125 | BZ67: 8.909149158e-08 | CA67: 0.5980397833 | CB67: 2.155742793e-36 | CC67: 1.733781699e-32 | CD67: 3.079624429e-07 | CE67: 9.492151743e-25 | CF67: 3.197098481e-18 | CG67: 2.059726312e-12 | CH67: 0.0005770844163 | CI67: 8.1318036e-08 | CJ67: 0.0001301985454 | CK67: 0.8312439211 | CL67: 0.0001247997631 | CM67: 1.325057291e-29 | CN67: 1.195209946e-106 | CO67: 1.318928052e-25 | CP67: 0.009785221908 | CQ67: 4.068500813e-17 | CR67: 3.923464792e-23 | CS67: 2.471099768e-14 | CT67: 5.042793689e-24 | CU67: 1.328663171e-14 | CV67: 0.09129383667 | CW67: 1.002746322e-06 | CX67: 8.792800854e-14 | CY67: 1.801488644e-36 | CZ67: 2.776039131e-23 | DA67: 0.5138324703 | DB67: 4.116105564e-05 | DC67: 1.633458138e-25 | DD67: 0.5750191123 | DE67: 157.4280291
B68: 67 | C68: 3.17401884e-06 | D68: 0.9856539002 | E68: 0.01732591364 | F68: 3.965575264e-10 | G68: 1.019829366e-25 | H68: 1.017468823e-86 | I68: 1.273215872e-31 | J68: 3.056465295e-12 | K68: 1.32987231e-10 | L68: 3.47894324e-17 | M68: 6.482972446e-12 | N68: 0.003607796792 | O68: 0.9983194138 | P68: 0.1853613715 | Q68: 0.3535670984 | R68: 7.420383526e-08 | S68: 1.774456883e-15 | T68: 3.252534107e-26 | U68: 9.226077847e-11 | V68: 0.002845865613 | W68: 0.0004060021917 | X68: 6.70574893e-56 | Y68: 5.77979738e-39 | Z68: 0.01244144551 | AA68: 0.8461640717 | AB68: 0.6174470272 | AC68: 0.2753759566 | AD68: 2.633295288e-11 | AE68: 0.0001089096411 | AF68: 2.395980985e-08 | AG68: 1.04257562e-13 | AH68: 0.04328201882 | AI68: 1.704981095e-11 | AJ68: 2.390825151e-06 | AK68: 5.281077319e-55 | AL68: 8.27785178e-16 | AM68: 2.518651061e-05 | AN68: 0.7514369291 | AO68: 7.580335539e-05 | AP68: 1.082381239e-05 | AQ68: 0.0002237457937 | AR68: 1.481520541e-21 | AS68: 5.195522556e-56 | AT68: 1.969092069e-06 | AU68: 1.89534029e-15 | AV68: 0.01844175301 | AW68: 7.367685251e-60 | AX68: 9.315183013e-07 | AY68: 0.1369666244 | AZ68: 0.6332006022 | BA68: 0.9989425595 | BB68: 0.009491562812 | BC68: 3.418885364e-17 | BD68: 4.624709069e-05 | BE68: 1.080741793e-07 | BF68: 0.00242857649 | BG68: 7.600287449e-33 | BH68: 4.597949383e-26 | BI68: 6.27000054e-37 | BJ68: 0.138062334 | BK68: 0.139718164 | BL68: 0.3721649906 | BM68: 0.0006185280596 | BN68: 3.94084049e-11 | BO68: 6.920412134e-25 | BP68: 3.343156802e-27 | BQ68: 2.282915381e-14 | BR68: 6.355744177e-43 | BS68: 1.504828208e-08 | BT68: 0.4879208885 | BU68: 2.966655799e-25 | BV68: 5.757284007e-09 | BW68: 0.9457490689 | BX68: 0.6525366322 | BY68: 0.006170039741 | BZ68: 9.982551749e-08 | CA68: 0.6101697999 | CB68: 2.785020816e-36 | CC68: 2.207774459e-32 | CD68: 3.435380362e-07 | CE68: 1.171213314e-24 | CF68: 3.825019915e-18 | CG68: 2.384747183e-12 | CH68: 0.0006233003828 | CI68: 9.114465292e-08 | CJ68: 0.0001416643544 | CK68: 0.8210329798 | CL68: 0.0001358172943 | CM68: 1.668451076e-29 | CN68: 1.858634089e-106 | CO68: 1.633458138e-25 | CP68: 0.01039695816 | CQ68: 4.839612139e-17 | CR68: 4.806336439e-23 | CS68: 2.894415822e-14 | CT68: 6.202300253e-24 | CU68: 1.55870181e-14 | CV68: 0.09535848147 | CW68: 1.113671882e-06 | CX68: 1.026575195e-13 | CY68: 2.328008888e-36 | CZ68: 3.403026351e-23 | DA68: 0.525724483 | DB68: 4.502295892e-05 | DC68: 2.022186446e-25 | DD68: 0.5871282495 | DE68: 157.856806
B69: 68 | C69: 3.509377102e-06 | D69: 0.9821119255 | E69: 0.01833777755 | F69: 4.522436648e-10 | G69: 1.263638584e-25 | H69: 1.514549443e-86 | I69: 1.615922309e-31 | J69: 3.534949862e-12 | K69: 1.521600787e-10 | L69: 4.139804568e-17 | M69: 7.482291654e-12 | N69: 0.003857337887 | O69: 0.9969626222 | P69: 0.1922558965 | Q69: 0.3638396611 | R69: 8.319737834e-08 | S69: 2.092028972e-15 | T69: 4.038665913e-26 | U69: 1.056761381e-10 | V69: 0.003046968857 | W69: 0.0004393070319 | X69: 9.221753535e-56 | Y69: 7.535073803e-39 | Z69: 0.01319810527 | AA69: 0.8558313015 | AB69: 0.629567628 | AC69: 0.2843077502 | AD69: 3.027193713e-11 | AE69: 0.0001186002457 | AF69: 2.696818497e-08 | AG69: 1.216690185e-13 | AH69: 0.04549749543 | AI69: 1.962450648e-11 | AJ69: 2.646395586e-06 | AK69: 7.243685434e-55 | AL69: 9.77730113e-16 | AM69: 2.76091864e-05 | AN69: 0.7627324229 | AO69: 8.268701348e-05 | AP69: 1.190773939e-05 | AQ69: 0.0002428176033 | AR69: 1.801732952e-21 | AS69: 7.147175243e-56 | AT69: 2.181237896e-06 | AU69: 2.234189215e-15 | AV69: 0.01951019753 | AW69: 1.024657578e-59 | AX69: 1.034854211e-06 | AY69: 0.1425107277 | AZ69: 0.6210845841 | BA69: 0.9978243701 | BB69: 0.01008695776 | BC69: 4.068500813e-17 | BD69: 5.055988918e-05 | BE69: 1.210129829e-07 | BF69: 0.002602585253 | BG69: 9.691275704e-33 | BH69: 5.705612947e-26 | BI69: 8.115829718e-37 | BJ69: 0.1436392975 | BK69: 0.1453445716 | BL69: 0.3827022528 | BM69: 0.0006678225924 | BN69: 4.525074418e-11 | BO69: 8.544051628e-25 | BP69: 4.168496882e-27 | BQ69: 2.674529032e-14 | BR69: 8.397709573e-43 | BS69: 1.696417618e-08 | BT69: 0.4996527109 | BU69: 3.668545731e-25 | BV69: 6.510822791e-09 | BW69: 0.951897422 | BX69: 0.6404603912 | BY69: 0.006575201862 | BZ69: 1.118080808e-07 | CA69: 0.6222968807 | CB69: 3.596551062e-36 | CC69: 2.810226193e-32 | CD69: 3.830700371e-07 | CE69: 1.444553434e-24 | CF69: 4.574437196e-18 | CG69: 2.759951524e-12 | CH69: 0.0006729483346 | CI69: 1.021178805e-07 | CJ69: 0.000154078245 | CK69: 0.8106231549 | CL69: 0.0001477483602 | CM69: 2.099996539e-29 | CN69: 2.889148602e-106 | CO69: 2.022186446e-25 | CP69: 0.01104252004 | CQ69: 5.754571491e-17 | CR69: 5.885520246e-23 | CS69: 3.388892941e-14 | CT69: 7.625365318e-24 | CU69: 1.827837002e-14 | CV69: 0.09956426141 | CW69: 1.236373574e-06 | CX69: 1.198065543e-13 | CY69: 3.007211832e-36 | CZ69: 4.16995456e-23 | DA69: 0.537676608 | DB69: 4.922750726e-05 | DC69: 2.502422656e-25 | DD69: 0.5992526401 | DE69: 158.284384
B70: 69 | C70: 3.878616655e-06 | D70: 0.9781913243 | E70: 0.01940097415 | F70: 5.155432071e-10 | G70: 1.565108773e-25 | H70: 2.253575346e-86 | I70: 2.050053485e-31 | J70: 4.086705384e-12 | K70: 1.740274623e-10 | L70: 4.924233268e-17 | M70: 8.632197571e-12 | N70: 0.004122489708 | O70: 0.9952095112 | P70: 0.199327117 | Q70: 0.3742609491 | R70: 9.324363855e-08 | S70: 2.465450119e-15 | T70: 5.01279888e-26 | U70: 1.209937772e-10 | V70: 0.003260978419 | W70: 0.000475153808 | X70: 1.267669423e-55 | Y70: 9.819484507e-39 | Z70: 0.01399518412 | AA70: 0.8652628027 | AB70: 0.6416694393 | AC70: 0.2934118575 | AD70: 3.478621251e-11 | AE70: 0.0001291014537 | AF70: 3.034215006e-08 | AG70: 1.419314784e-13 | AH70: 0.04780724892 | AI70: 2.257897393e-11 | AJ70: 2.928114083e-06 | AK70: 9.931684634e-55 | AL70: 1.154374218e-15 | AM70: 3.025279443e-05 | AN70: 0.7738880919 | AO70: 9.015970141e-05 | AP70: 1.309497486e-05 | AQ70: 0.000263409685 | AR70: 2.190279044e-21 | AS70: 9.828017229e-56 | AT70: 2.415273565e-06 | AU70: 2.632564312e-15 | AV70: 0.02063228906 | AW70: 1.424468108e-59 | AX70: 1.149193691e-06 | AY70: 0.148219944 | AZ70: 0.6089567694 | BA70: 0.9963088292 | BB70: 0.01071541414 | BC70: 4.839612139e-17 | BD70: 5.525277459e-05 | BE70: 1.354466501e-07 | BF70: 0.002787946432 | BG70: 1.235259384e-32 | BH70: 7.077285412e-26 | BI70: 1.050085246e-36 | BJ70: 0.1493817753 | BK70: 0.151137086 | BL70: 0.3933804772 | BM70: 0.0007207573671 | BN70: 5.193843713e-11 | BO70: 1.054440434e-24 | BP70: 5.19551374e-27 | BQ70: 3.132067413e-14 | BR70: 1.109127761e-42 | BS70: 1.911634708e-08 | BT70: 0.5114619937 | BU70: 4.534683655e-25 | BV70: 7.360043455e-09 | BW70: 0.9577025881 | BX70: 0.6283562477 | BY70: 0.007004167149 | BZ70: 1.251788903e-07 | CA70: 0.634411171 | CB70: 4.642696538e-36 | CC70: 3.575642842e-32 | CD70: 4.269802832e-07 | CE70: 1.78097369e-24 | CF70: 5.468496271e-18 | CG70: 3.192911243e-12 | CH70: 0.000726260349 | CI70: 1.14366458e-07 | CJ70: 0.0001675129326 | CK70: 0.8000252414 | CL70: 0.0001606632497 | CM70: 2.642104337e-29 | CN70: 4.489232974e-106 | CO70: 2.502422656e-25 | CP70: 0.01172347543 | CQ70: 6.839773253e-17 | CR70: 7.204134799e-23 | CS70: 3.966258876e-14 | CT70: 9.371191336e-24 | CU70: 2.142585553e-14 | CV70: 0.1039139631 | CW70: 1.372045316e-06 | CX70: 1.397644345e-13 | CY70: 3.883020568e-36 | CZ70: 5.107679231e-23 | DA70: 0.5496805432 | DB70: 5.380317918e-05 | DC70: 3.095468676e-25 | DD70: 0.6113828013 | DE70: 158.7106707
B71: 70 | C71: 4.284991455e-06 | D71: 0.9738967375 | E71: 0.02051760461 | F71: 5.87467612e-10 | G71: 1.937726396e-25 | H71: 3.351868654e-86 | I71: 2.599777548e-31 | J71: 4.722692661e-12 | K71: 1.989578744e-10 | L71: 5.854956579e-17 | M71: 9.954842497e-12 | N71: 0.004404105962 | O71: 0.9930621786 | P71: 0.2065757718 | Q71: 0.3848267677 | R71: 1.044612132e-07 | S71: 2.904363888e-15 | T71: 6.219406087e-26 | U71: 1.384762895e-10 | V71: 0.003488623616 | W71: 0.0005137200966 | X71: 1.741906346e-55 | Y71: 1.279134316e-38 | Z71: 0.01483446632 | AA71: 0.8744483925 | AB71: 0.6537423274 | AC71: 0.3026863979 | AD71: 3.995768887e-11 | AE71: 0.0001404762672 | AF71: 3.412457629e-08 | AG71: 1.655021846e-13 | AH71: 0.05021417106 | AI71: 2.596784692e-11 | AJ71: 3.238526874e-06 | AK71: 1.361170541e-54 | AL71: 1.362387118e-15 | AM71: 3.313627348e-05 | AN71: 0.7848929028 | AO71: 9.826840466e-05 | AP71: 1.439482199e-05 | AQ71: 0.0002856337963 | AR71: 2.66155078e-21 | AS71: 1.350901456e-55 | AT71: 2.673350509e-06 | AU71: 3.100732565e-15 | AV71: 0.02181018972 | AW71: 1.979488517e-59 | AX71: 1.275656002e-06 | AY71: 0.1540962302 | AZ71: 0.5968269939 | BA71: 0.9943977515 | BB71: 0.01137847348 | BC71: 5.754571491e-17 | BD71: 6.035709821e-05 | BE71: 1.515412457e-07 | BF71: 0.00298531503 | BG71: 1.573843908e-32 | BH71: 8.775207518e-26 | BI71: 1.358133523e-36 | BJ71: 0.1552916993 | BK71: 0.1570976017 | BL71: 0.404194937 | BM71: 0.0007775769094 | BN71: 5.959067582e-11 | BO71: 1.300787996e-24 | BP71: 6.472973016e-27 | BQ71: 3.666411174e-14 | BR71: 1.464295011e-42 | BS71: 2.15329396e-08 | BT71: 0.5233410103 | BU71: 5.603073715e-25 | BV71: 8.316702457e-09 | BW71: 0.963157817 | BX71: 0.6162343189 | BY71: 0.007458134225 | BZ71: 1.400926286e-07 | CA71: 0.6465026382 | CB71: 5.990742421e-36 | CC71: 4.547715304e-32 | CD71: 4.757335064e-07 | CE71: 2.194864321e-24 | CF71: 6.534681928e-18 | CG71: 3.692313092e-12 | CH71: 0.0007834823684 | CI71: 1.280329736e-07 | CJ71: 0.0001820462104 | CK71: 0.7892501196 | CL71: 0.0001746371788 | CM71: 3.322826236e-29 | CN71: 6.97269535e-106 | CO71: 3.095468676e-25 | CP71: 0.01244144551 | CQ71: 8.126372044e-17 | CR71: 8.814650254e-23 | CS71: 4.640134263e-14 | CT71: 1.151211814e-23 | CU71: 2.510528533e-14 | CV71: 0.1084103191 | CW71: 1.521995888e-06 | CX71: 1.629817767e-13 | CY71: 5.011891295e-36 | CZ71: 6.253774109e-23 | DA71: 0.5617277371 | DB71: 5.878064053e-05 | DC71: 3.827528616e-25 | DD71: 0.6235090495 | DE71: =IFERROR(SUMPRODUCT(C71:DD71,$C$3:$DD$3)/SUM(C71:DD71),"") -> 159.1355756
B72: =B71+1 -> 71 | C72: 4.732050216e-06 | D72: 0.9692332345 | E72: 0.02168982549 | F72: 6.691586091e-10 | G72: 2.398096565e-25 | H72: 4.983427949e-86 | I72: 3.295592214e-31 | J72: 5.45547186e-12 | K72: 2.273687425e-10 | L72: 6.958810683e-17 | M72: 1.147555494e-11 | N72: 0.004703078428 | O72: 0.9905231907 | P72: 0.2140024105 | Q72: 0.3955326268 | R72: 1.16981504e-07 | S72: 3.420047346e-15 | T72: 7.713364069e-26 | U72: 1.584214863e-10 | V72: 0.003730667899 | W72: 0.0005551945306 | X72: 2.392598741e-55 | Y72: 1.66559686e-38 | Z72: 0.01571779137 | AA72: 0.8833780741 | AB72: 0.6657760009 | AC72: 0.3121292232 | AD72: 4.587962487e-11 | AE72: 0.0001527921587 | AF72: 3.836316817e-08 | AG72: 1.929101227e-13 | AH72: 0.05272118035 | AI72: 2.985341134e-11 | AJ72: 3.580414436e-06 | AK72: 1.864783614e-54 | AL72: 1.607239956e-15 | AM72: 3.628007012e-05 | AN72: 0.795735846 | AO72: 0.0001070635473 | AP72: 1.58173677e-05 | AQ72: 0.0003096091074 | AR72: 3.232930343e-21 | AS72: 1.856127104e-55 | AT72: 2.95782014e-06 | AU72: 3.650698046e-15 | AV72: 0.02304611662 | AW72: 2.749663352e-59 | AX72: 1.415468481e-06 | AY72: 0.1601414167 | AZ72: 0.584704902 | BA72: 0.9920934227 | BB72: 0.01207773022 | BC72: 6.839773253e-17 | BD72: 6.5906598e-05 | BE72: 1.694804934e-07 | BF72: 0.003195377643 | BG72: 2.004432495e-32 | BH72: 1.087612933e-25 | BI72: 1.755846976e-36 | BJ72: 0.1613708737 | BK72: 0.1632278829 | BL72: 0.4151406087 | BM72: 0.0008385402294 | BN72: 6.834299809e-11 | BO72: 1.604047675e-24 | BP72: 8.061305458e-27 | BQ72: 4.290199786e-14 | BR72: 1.93242155e-42 | BS72: 2.424532552e-08 | BT72: 0.5352817688 | BU72: 6.920412134e-25 | BV72: 9.393949736e-09 | BW72: 0.9682567396 | BX72: 0.60410455 | BY72: 0.007938348681 | BZ72: 1.567204801e-07 | CA72: 0.6585610838 | CB72: 7.72711327e-36 | CC72: 5.781741737e-32 | CD72: 5.298414638e-07 | CE72: 2.703859595e-24 | CF72: 7.805617555e-18 | CG72: 4.268118577e-12 | CH72: 0.0008448748906 | CI72: 1.432752832e-07 | CJ72: 0.0001977612624 | CK72: 0.7783087365 | CL72: 0.0001897505961 | CM72: 4.1772607e-29 | CN72: 1.082568831e-105 | CO72: 3.827528616e-25 | CP72: 0.01319810527 | CQ72: 9.651125888e-17 | CR72: 1.078089018e-22 | CS72: 5.426331472e-14 | CT72: 1.413650179e-23 | CU72: 2.940481378e-14 | CV72: 0.1130560009 | CW72: 1.687659331e-06 | CX72: 1.899799224e-13 | CY72: 6.466359962e-36 | CZ72: 7.653975139e-23 | DA72: 0.5738093963 | DB72: 6.419289649e-05 | DC72: 4.73082367e-25 | DD72: 0.6356215118 | DE72: 159.5590103
B73: 72 | C73: 5.223661318e-06 | D73: 0.964206303 | E73: 0.02291984843 | F73: 7.619044209e-10 | G73: 2.966655799e-25 | H73: 7.406203779e-86 | I73: 4.175966727e-31 | J73: 6.299429766e-12 | K73: 2.597327235e-10 | L73: 8.267470361e-17 | M73: 1.322328269e-11 | N73: 0.005020338085 | O73: 0.9875955771 | P73: 0.2216073847 | Q73: 0.4063737404 | R73: 1.309500348e-07 | S73: 4.025682231e-15 | T73: 9.562358655e-26 | U73: 1.811669743e-10 | V73: 0.003987909979 | W73: 0.000599777383 | X73: 3.285044225e-55 | Y73: 2.167953281e-38 | Z73: 0.01664705425 | AA73: 0.8920420556 | AB73: 0.6777600244 | AC73: 0.3217379129 | AD73: 5.265815492e-11 | AE73: 0.0001661213521 | AF73: 4.3110985e-08 | AG73: 2.247670191e-13 | AH73: 0.05533121849 | AI73: 3.430664667e-11 | AJ73: 3.956811634e-06 | AK73: 2.553704428e-54 | AL73: 1.89534029e-15 | AM73: 3.970624809e-05 | AN73: 0.8064059526 | AO73: 0.0001165992169 | AP73: 1.737354345e-05 | AQ73: 0.0003354626279 | AR73: 3.925402732e-21 | AS73: 2.549282927e-55 | AT73: 3.271251253e-06 | AU73: 4.296489934e-15 | AV73: 0.02434234141 | AW73: 3.817968545e-59 | AX73: 1.569976354e-06 | AY73: 0.1663571992 | AZ73: 0.5725999349 | BA73: 0.9893985952 | BB73: 0.01281483237 | BC73: 8.126372044e-17 | BD73: 7.193756269e-05 | BE73: 1.894675627e-07 | BF73: 0.003418853562 | BG73: 2.551805061e-32 | BH73: 1.347465371e-25 | BI73: 2.269118313e-36 | BJ73: 0.1676209666 | BK73: 0.1695295553 | BL73: 0.4262121722 | BM73: 0.000903921534 | BN73: 7.834946308e-11 | BO73: 1.977216864e-24 | BP73: 1.003536657e-26 | BQ73: 5.018109664e-14 | BR73: 2.549185524e-42 | BS73: 2.728845822e-08 | BT73: 0.5472760183 | BU73: 8.544051628e-25 | BV73: 1.060648744e-08 | BW73: 0.9729933805 | BX73: 0.5919767018 | BY73: 0.008446104076 | BZ73: 1.75251807e-07 | CA73: 0.6705761572 | CB73: 9.962772017e-36 | CC73: 7.347682635e-32 | CD73: 5.898674419e-07 | CE73: 3.329560229e-24 | CF73: 9.320009741e-18 | CG73: 4.93174616e-12 | CH73: 0.0009107136819 | CI73: 1.602680678e-07 | CJ73: 0.0002147469929 | CK73: 0.7672120876 | CL73: 0.0002060895036 | CM73: 5.249305052e-29 | CN73: 1.680105795e-105 | CO73: 4.73082367e-25 | CP73: 0.01399518412 | CQ73: 1.145738592e-16 | CR73: 1.318045616e-22 | CS73: 6.343199549e-14 | CT73: 1.735221618e-23 | CU73: 3.442690549e-14 | CV73: 0.1178536121 | CW73: 1.870606216e-06 | CX73: 2.21361784e-13 | CY73: 8.339584106e-36 | CZ73: 9.363930606e-23 | DA73: 0.5859164947 | DB73: 7.007545275e-05 | DC73: 5.844957507e-25 | DD73: 0.6477101384 | DE73: 159.9808881
B74: 73 | C74: 5.764039655e-06 | D74: 0.9588218383 | E74: 0.02420993967 | F74: 8.67157929e-10 | G74: 3.668545731e-25 | H74: 1.100245024e-85 | I74: 5.289405633e-31 | J74: 7.271038407e-12 | K74: 2.965847807e-10 | L74: 9.818305789e-17 | M74: 1.523109582e-11 | N74: 0.005356856231 | O74: 0.9842828245 | P74: 0.2293908412 | Q74: 0.4173450255 | R74: 1.465278975e-07 | S74: 4.736670179e-15 | T74: 1.184984062e-25 | U74: 2.070953087e-10 | V74: 0.00426118495 | W74: 0.0006476811728 | X74: 4.508570381e-55 | Y74: 2.820695635e-38 | Z74: 0.01762420566 | AA74: 0.9004307671 | AB74: 0.6896838326 | AC74: 0.3315097692 | AD74: 6.041401509e-11 | AE74: 0.000180541119 | AF74: 4.842701586e-08 | AG74: 2.617799839e-13 | AH74: 0.0580472468 | AI74: 3.94084049e-11 | AJ74: 4.37102947e-06 | AK74: 3.495739781e-54 | AL74: 2.234189215e-15 | AM74: 4.343860483e-05 | AN74: 0.8168923135 | AO74: 0.0001269334023 | AP74: 1.907519038e-05 | AQ74: 0.0003633296533 | AR74: 4.764292049e-21 | AS74: 3.499892013e-55 | AT74: 3.616448829e-06 | AU74: 5.054497267e-15 | AV74: 0.02570118961 | AW74: 5.299213889e-59 | AX74: 1.740653396e-06 | AY74: 0.1727451313 | AZ74: 0.5605213198 | BA74: 0.9863164822 | BB74: 0.01359148208 | BC74: 9.651125888e-17 | BD74: 7.848900552e-05 | BE74: 2.117270271e-07 | BF74: 0.00365649588 | BG74: 3.24735551e-32 | BH74: 1.668734116e-25 | BI74: 2.931257019e-36 | BJ74: 0.1740435019 | BK74: 0.176004098 | BL74: 0.4374040113 | BM74: 0.0009740109618 | BN74: 8.978510706e-11 | BO74: 2.436226271e-24 | BP74: 1.248784175e-26 | BQ74: 5.867175261e-14 | BR74: 3.361454966e-42 | BS74: 3.070126432e-08 | BT74: 0.5593152563 | BU74: 1.054440434e-24 | BV74: 1.197074596e-08 | BW74: 0.9773621696 | BX74: 0.5798603386 | BY74: 0.008982742881 | BZ74: 1.958959864e-07 | CA74: 0.6825373692 | CB74: 1.284012904e-35 | CC74: 9.334012398e-32 | CD74: 6.564311651e-07 | CE74: 4.098414665e-24 | CF74: 1.112376348e-17 | CG74: 5.696278779e-12 | CH74: 0.0009812905155 | CI74: 1.792045403e-07 | CJ74: 0.0002330983711 | CK74: 0.7559711991 | CL74: 0.0002237457937 | CM74: 6.593838793e-29 | CN74: 2.606417738e-105 | CO74: 5.844957507e-25 | CP74: 0.01483446632 | CQ74: 1.359625763e-16 | CR74: 1.610766328e-22 | CS74: 7.412022188e-14 | CT74: 2.129091023e-23 | CU74: 4.029060821e-14 | CV74: 0.1228056813 | CW74: 2.072555854e-06 | CX74: 2.578243128e-13 | CY74: 1.075115669e-35 | CZ74: 1.145132151e-22 | DA74: 0.5980397833 | DB74: 7.646648635e-05 | DC74: 7.218587704e-25 | DD74: 0.659764715 | DE74: 160.4011248
B75: 74 | C75: 6.357775538e-06 | D75: 0.9530861316 | E75: 0.02556241936 | F75: 9.865570119e-10 | G75: 4.534683655e-25 | H75: 1.633839726e-85 | I75: 6.697041641e-31 | J75: 8.389149259e-12 | K75: 3.385301358e-10 | L75: 1.165538822e-16 | M75: 1.753675766e-11 | N75: 0.005713645601 | O75: 0.98058887 | P75: 0.2373527139 | Q75: 0.4284411028 | R75: 1.638933378e-07 | S75: 5.570999019e-15 | T75: 1.46786553e-25 | U75: 2.36639791e-10 | V75: 0.004551365414 | W75: 0.0006991312955 | X75: 6.185328487e-55 | Y75: 3.668502475e-38 | Z75: 0.01865125207 | AA75: 0.908534879 | AB75: 0.7015367451 | AC75: 0.3414418133 | AD75: 6.928449307e-11 | AE75: 0.00019613409 | AF75: 5.43768133e-08 | AG75: 3.047660384e-13 | AH75: 0.06087224228 | AI75: 4.525074418e-11 | AJ75: 4.826678539e-06 | AK75: 4.783368578e-54 | AL75: 2.632564312e-15 | AM75: 4.750279531e-05 | AN75: 0.8271840974 | AO75: 0.000138128244 | AP75: 2.093512893e-05 | AQ75: 0.0003933542314 | AR75: 5.780146064e-21 | AS75: 4.803054716e-55 | AT75: 3.996474342e-06 | AU75: 5.943857866e-15 | AV75: 0.0271250398 | AW75: 7.352191901e-59 | AX75: 1.929113475e-06 | AY75: 0.179306616 | AZ75: 0.54847806 | BA75: 0.9828507515 | BB75: 0.01440943613 | BC75: 1.145738592e-16 | BD75: 8.560284837e-05 | BE75: 2.365070074e-07 | BF75: 0.003909092614 | BG75: 4.130840825e-32 | BH75: 2.065774724e-25 | BI75: 3.785096371e-36 | BJ75: 0.1806398516 | BK75: 0.1826528358 | BL75: 0.4487102152 | BM75: 0.001049115343 | BN75: 1.028487144e-10 | BO75: 3.000593888e-24 | BP75: 1.553344608e-26 | BQ75: 6.857159589e-14 | BR75: 4.430772312e-42 | BS75: 3.452707631e-08 | BT75: 0.5713907372 | BU75: 1.300787996e-24 | BV75: 1.3505079e-08 | BW75: 0.9813579531 | BX75: 0.5677648173 | BY75: 0.009549657395 | BZ75: 2.18884422e-07 | CA75: 0.6944341067 | CB75: 1.654188001e-35 | CC75: 1.185257301e-31 | CD75: 7.302141424e-07 | CE75: 5.042793689e-24 | CF75: 1.327129821e-17 | CG75: 6.576700106e-12 | CH75: 0.001056913934 | CI75: 2.002983163e-07 | CJ75: 0.0002529167942 | CK75: 0.7445971091 | CL75: 0.0002428176033 | CM75: 8.27944301e-29 | CN75: 4.041826785e-105 | CO75: 7.218587704e-25 | CP75: 0.01571779137 | CQ75: 1.612796273e-16 | CR75: 1.967709244e-22 | CS75: 8.657476665e-14 | CT75: 2.611318168e-23 | CU75: 4.713417845e-14 | CV75: 0.1279146544 | CW75: 2.295389528e-06 | CX75: 3.001728258e-13 | CY75: 1.385454514e-35 | CZ75: 1.399842942e-22 | DA75: 0.6101697999 | DB75: 8.340702663e-05 | DC75: 8.911471014e-25 | DD75: 0.6717748764 | DE75: 160.8196382
B76: 75 | C76: =+EXP(-(($B76-C$2)^2/(2*alpha^2))) -> 7.009865808e-06 | D76: 0.947005858 | E76: 0.02697966082 | F76: 1.121947301e-09 | G76: 5.603073715e-25 | H76: 2.425245859e-85 | I76: 8.475891867e-31 | J76: 9.675327766e-12 | K76: 3.862532011e-10 | L76: 1.383066988e-16 | M76: =+EXP(-(($B76-M$2)^2/(2*alpha^2))) -> 2.018337238e-11 | N76: 0.006091761466 | O76: 0.9765180934 | P76: 0.2454927166 | Q76: 0.4396562972 | R76: 1.83243494e-07 | S76: 6.54966822e-15 | T76: 1.81754979e-25 | U76: 2.702909891e-10 | V76: 0.004859362609 | W76: =+EXP(-(($B76-W$2)^2/(2*alpha^2))) -> 0.0007543666764 | X76: 8.482287066e-55 | Y76: 4.769223645e-38 | Z76: 0.01973025568 | AA76: 0.9163453186 | AB76: 0.7133079817 | AC76: 0.3515307814 | AD76: 7.94256303e-11 | AE76: 0.0002129885819 | AF76: 6.103319137e-08 | AG76: =+EXP(-(($B76-AG$2)^2/(2*alpha^2))) -> 3.546687995e-13 | AH76: 0.06380919352 | AI76: 5.193843713e-11 | AJ76: 5.327694313e-06 | AK76: 6.542667924e-54 | AL76: 3.100732565e-15 | AM76: 5.192646369e-05 | AN76: 0.8372705692 | AO76: 0.0001502502982 | AP76: 2.296723323e-05 | AQ76: =+EXP(-(($B76-AQ$2)^2/(2*alpha^2))) -> 0.0004256896493 | AR76: 7.009798478e-21 | AS76: 6.588805777e-55 | AT76: 4.414667669e-06 | AU76: 6.986909975e-15 | AV76: 0.02861632271 | AW76: 1.019643844e-58 | AX76: 2.137123055e-06 | AY76: 0.1860428975 | AZ76: 0.536478925 | BA76: =+EXP(-(($B76-BA$2)^2/(2*alpha^2))) -> 0.9790055181 | BB76: 0.01527050636 | BC76: 1.359625763e-16 | BD76: 9.332411651e-05 | BE76: 2.640815183e-07 | BF76: 0.004177467823 | BG76: 5.252588359e-32 | BH76: 2.556260184e-25 | BI76: 4.885694024e-36 | BJ76: 0.1874112273 | BK76: =+EXP(-(($B76-BK$2)^2/(2*alpha^2))) -> 0.1894769306 | BL76: 0.46012458 | BM76: 0.001129558986 | BN76: 1.177659424e-10 | BO76: 3.69422294e-24 | BP76: 1.931410216e-26 | BQ76: 8.010981612e-14 | BR76: 5.837916128e-42 | BS76: 3.881410987e-08 | BT76: 0.5834934807 | BU76: =+EXP(-(($B76-BU$2)^2/(2*alpha^2))) -> 1.604047675e-24 | BV76: 1.522997974e-08 | BW76: 0.9849760035 | BX76: 0.5556992769 | BY76: 0.01014829061 | BZ76: 2.444727466e-07 | CA76: 0.7062556476 | CB76: 2.130230638e-35 | CC76: 1.504468806e-31 | CD76: 8.119654881e-07 | CE76: =+EXP(-(($B76-CE$2)^2/(2*alpha^2))) -> 6.202300253e-24 | CF76: 1.582710021e-17 | CG76: 7.590163373e-12 | CH76: 0.001137910037 | CI76: 2.237854627e-07 | CJ76: 0.0002743104675 | CK76: 0.7331008509 | CL76: 0.000263409685 | CM76: 1.039178611e-28 | CN76: 6.265239177e-105 | CO76: =+EXP(-(($B76-CO$2)^2/(2*alpha^2))) -> 8.911471014e-25 | CP76: 0.01664705425 | CQ76: 1.912343566e-16 | CR76: 2.402788759e-22 | CS76: 1.010816287e-13 | CT76: 3.201486198e-23 | CU76: 5.511811318e-14 | CV76: 0.1331828877 | CW76: 2.541164798e-06 | CX76: 3.49337462e-13 | CY76: =+EXP(-(($B76-CY$2)^2/(2*alpha^2))) -> 1.784660596e-35 | CZ76: 1.710524495e-22 | DA76: 0.6222968807 | DB76: 9.094114672e-05 | DC76: 1.099696499e-24 | DD76: 0.6837301204 | DE76: 161.2363486
B77: 76 | C77: 7.725747315e-06 | D77: 0.9405880634 | E77: 0.02846408961 | F77: 1.27540763e-09 | G77: 6.920412134e-25 | H77: 3.598556902e-85 | I77: 1.072294548e-30 | J77: 1.115423354e-11 | K77: 4.405276072e-10 | L77: 1.640536771e-16 | M77: 2.322011934e-11 | N77: 0.006492302725 | O77: 0.9720753082 | P77: 0.2538103359 | Q77: 0.450984639 | R77: 2.047963021e-07 | S77: 7.697182824e-15 | T77: 2.249638024e-25 | U77: 3.086040661e-10 | V77: 0.005186127535 | W77: 0.0008136404477 | X77: 1.162758293e-54 | Y77: 6.197732713e-38 | Z77: 0.02086333431 | AA77: 0.9238532872 | AB77: 0.7249866776 | AC77: 0.3617731214 | AD77: 9.101470764e-11 | AE77: 0.0002311989414 | AF77: 6.847699414e-08 | AG77: 4.125776353e-13 | AH77: 0.06686109638 | AI77: 5.959067582e-11 | AJ77: 5.878364388e-06 | AK77: 8.945449987e-54 | AL77: 3.650698046e-15 | AM77: 5.673938316e-05 | AN77: 0.8471411087 | AO77: 0.0001633708154 | AP77: 2.518651061e-05 | AQ77: 0.0004604989419 | AR77: 8.497644036e-21 | AS77: 9.034875233e-55 | AT77: 4.874670722e-06 | AU77: 8.209716525e-15 | AV77: 0.03017752008 | AW77: 1.413534625e-58 | AX77: 2.366614749e-06 | AY77: 0.1929550536 | AZ77: 0.5245324419 | BA77: 0.9747853364 | BB77: 0.01617655997 | BC77: 1.612796273e-16 | BD77: 0.0001017011446 | BE77: 2.947530352e-07 | BF77: 0.004462482739 | BG77: 6.676280198e-32 | BH77: 3.161938614e-25 | BI77: 6.303791941e-36 | BJ77: 0.1943586724 | BK77: 0.1964773739 | BL77: 0.4716406114 | BM77: 0.001215684483 | BN77: 1.347928447e-10 | BO77: 4.54637509e-24 | BP77: 2.400532092e-26 | BQ77: 9.355209014e-14 | BR77: 7.688870593e-42 | BS77: 4.361599047e-08 | BT77: 0.5956142816 | BU77: 1.977216864e-24 | BV77: 1.71683202e-08 | BW77: 0.988212029 | BX77: 0.543672628 | BY77: 0.01078013705 | BZ77: 2.729432333e-07 | CA77: 0.7179911758 | CB77: 2.742171857e-35 | CC77: 1.908886109e-31 | CD77: 9.02508255e-07 | CE77: 7.625365318e-24 | CF77: 1.886755299e-17 | CG77: 8.756297151e-12 | CH77: 0.001224623291 | CI77: 2.499267405e-07 | CJ77: 0.0002973948027 | CK77: 0.7214934349 | CL77: 0.0002856337963 | CM77: 1.303783737e-28 | CN77: 9.707868715e-105 | CO77: 1.099696499e-24 | CP77: 0.01762420566 | CQ77: 2.26661944e-16 | CR77: 2.932895164e-22 | CS77: 1.179721282e-13 | CT77: 3.923464792e-23 | CU77: 6.442864903e-14 | CV77: 0.1386126398 | CW77: 2.812130997e-06 | CX77: 4.063920747e-13 | CY77: 2.297974895e-35 | CZ77: 2.089322908e-22 | DA77: 0.634411171 | DB77: 9.911616618e-05 | DC77: 1.356508653e-24 | DD77: 0.6956198224 | DE77: 161.6511787
B78: 77 | C78: 8.511332901e-06 | D78: 0.9338401509 | E78: 0.03001818243 | F78: 1.449278486e-09 | G78: 8.544051628e-25 | H78: 5.337369371e-85 | I78: 1.35602929e-30 | J78: 1.28540523e-11 | K78: 5.022274556e-10 | L78: 1.945158545e-16 | M78: 2.670308538e-11 | N78: 0.006916412975 | O78: 0.9672657522 | P78: 0.2623048243 | Q78: 0.4624198659 | R78: 2.287925818e-07 | S78: 9.042126643e-15 | T78: 2.783333541e-25 | U78: 3.522070158e-10 | V78: 0.005532652069 | W78: 0.0008772206508 | X78: 1.593280378e-54 | Y78: 8.050897161e-38 | Z78: 0.02205266109 | AA78: 0.9310502769 | AB78: 0.7365619003 | AC78: 0.3721649906 | AD78: 1.042530499e-10 | AE78: 0.0002508659062 | AF78: 7.679794154e-08 | AG78: 4.79749645e-13 | AH78: 0.07003094943 | AI78: 6.834299809e-11 | AJ78: 6.483357818e-06 | AK78: 1.222575781e-53 | AL78: 4.296489934e-15 | AM78: 6.197360434e-05 | AN78: 0.8567852288 | AO78: 0.0001775660332 | AP78: 2.76091864e-05 | AQ78: 0.0004979554215 | AR78: 1.029716848e-20 | AS78: 1.238408418e-54 | AT78: 5.380452928e-06 | AU78: 9.64267341e-15 | AV78: 0.03181116342 | AW78: 1.95880265e-58 | AX78: 2.619701966e-06 | AY78: 0.2000439873 | AZ78: 0.5126468871 | BA78: 0.9701951909 | BB78: 0.0171295198 | BC78: 1.912343566e-16 | BD78: 0.0001107857945 | BE78: 3.288553002e-07 | BF78: 0.00476503689 | BG78: 8.482464018e-32 | BH78: 3.909561912e-25 | BI78: 8.130247353e-36 | BJ78: 0.2014830541 | BK78: 0.2036549783 | BL78: 0.4832515275 | BM78: 0.001307853546 | BN78: 1.542198398e-10 | BO78: 5.592856911e-24 | BP78: 2.982406181e-26 | BQ78: 1.092062608e-13 | BR78: 1.012263399e-41 | BS78: 4.8992334e-08 | BT78: 0.6077437194 | BU78: 2.436226271e-24 | BV78: 1.934561612e-08 | BW78: 0.9910621819 | BX78: 0.5316935444 | BY78: 0.0114467435 | BZ78: 3.046074313e-07 | CA78: 0.7296297976 | CB78: 3.528490838e-35 | CC78: 2.421046495e-31 | CD78: 1.002746322e-06 | CE78: 9.371191336e-24 | CF78: 2.248309456e-17 | CG78: 1.009755299e-11 | CH78: 0.001317417366 | CI78: 2.790100596e-07 | CJ78: 0.0003222928351 | CK78: 0.7097858317 | CL78: 0.0003096091074 | CM78: 1.635110856e-28 | CN78: 1.503614192e-104 | CO78: 1.356508653e-24 | CP78: 0.01865125207 | CQ78: 2.685453159e-16 | CR78: 3.578522644e-22 | CS78: 1.37629927e-13 | CT78: 4.806336439e-23 | CU78: 7.528179919e-14 | CV78: 0.1442060643 | CW78: 3.110745966e-06 | CX78: 4.725759123e-13 | CY78: 2.957748257e-35 | CZ78: 2.550986242e-22 | DA78: 0.6465026382 | DB78: 0.0001079828651 | DC78: 1.672624972e-24 | DD78: 0.7074332501 | DE78: 162.0640536
B79: 78 | C79: 9.373050073e-06 | D79: 0.9267698669 | E79: 0.03164446586 | F79: 1.646193803e-09 | G79: 1.054440434e-24 | H79: 7.91320517e-85 | I79: 1.714155929e-30 | J79: 1.480698629e-11 | K79: 5.723399402e-10 | L79: 2.305421419e-16 | M79: 3.06962076e-11 | N79: 0.007365281562 | O79: 0.9620950775 | P79: 0.2709751933 | Q79: 0.4739554259 | R79: 2.554983207e-07 | S79: 1.061782715e-14 | T79: 3.44226376e-25 | U79: 4.018099099e-10 | V79: 0.005899970076 | W79: 0.0009453909616 | X79: 2.182334165e-54 | Y79: 1.045398801e-37 | Z79: 0.0233004641 | AA79: 0.9379280863 | AB79: 0.7480226655 | AC79: 0.3827022528 | AD79: 1.193691886e-10 | AE79: 0.000272096983 | AF79: 8.609555955e-08 | AG79: 5.576348709e-13 | AH79: 0.07332174914 | AI79: 7.834946308e-11 | AJ79: 7.147756691e-06 | AK79: 1.67022764e-53 | AL79: 5.054497267e-15 | AM79: 6.766361278e-05 | AN79: 0.8661925942 | AO79: 0.0001929174849 | AP79: 3.025279443e-05 | AQ79: 0.0005382432298 | AR79: 1.247278353e-20 | AS79: 1.696804916e-54 | AT79: 5.936338671e-06 | AU79: 1.132121495e-14 | AV79: 0.03351983251 | AW79: 2.71332113e-58 | AX79: 2.898694775e-06 | AY79: 0.2073104191 | AZ79: 0.5008302789 | BA79: 0.9652404864 | BB79: 0.01813136441 | BC79: 2.26661944e-16 | BD79: 0.0001206336851 | BE79: 3.667563888e-07 | BF79: 0.005086069231 | BG79: 1.077297815e-31 | BH79: 4.832023504e-25 | BI79: 1.048170491e-35 | BJ79: 0.2087850553 | BK79: 0.21101037 | BL79: 0.4949502631 | BM79: 0.001406447862 | BN79: 1.763761827e-10 | BO79: 6.877465737e-24 | BP79: 3.703841106e-26 | BQ79: 1.274288787e-13 | BR79: 1.332142852e-41 | BS79: 5.500938665e-08 | BT79: 0.6198721698 | BU79: 3.000593888e-24 | BV79: 2.179032005e-08 | BW79: 0.9935230663 | BX79: 0.5197704537 | BY79: 0.01214970973 | BZ79: 3.398090482e-07 | CA79: 0.7411605578 | CB79: 4.538471379e-35 | CC79: 3.069393186e-31 | CD79: 1.113671882e-06 | CE79: 1.151211814e-23 | CF79: 2.678075879e-17 | CG79: 1.163960045e-11 | CH79: 0.001416675995 | CI79: 3.11353162e-07 | CJ79: 0.0003491356602 | CK79: 0.6979889551 | CL79: 0.0003354626279 | CM79: 2.04981717e-28 | CN79: 2.327958426e-104 | CO79: 1.672624972e-24 | CP79: 0.01973025568 | CQ79: 3.180407992e-16 | CR79: 4.364527979e-22 | CS79: 1.604991096e-13 | CT79: 5.885520246e-23 | CU79: 8.792800854e-14 | CV79: 0.1499652018 | CW79: 3.439694151e-06 | CX79: 5.493184868e-13 | CY79: 3.805427187e-35 | CZ79: 3.113414537e-22 | DA79: 0.6585610838 | DB79: 0.0001175957103 | DC79: 2.061583201e-24 | DD79: 0.7191595791 | DE79: 162.4749009
B80: 79 | C80: 1.031788253e-05 | D80: 0.9193852857 | E80: 0.03334551495 | F80: 1.869116458e-09 | G80: 1.300787996e-24 | H80: 1.17274577e-84 | I80: 2.165997057e-30 | J80: 1.704981095e-11 | K80: 6.519794975e-10 | L80: 2.731315846e-16 | M80: 3.527234101e-11 | N80: 0.007840144607 | O80: 0.9565693393 | P80: 0.279820207 | Q80: 0.4855844801 | R80: 2.852071724e-07 | S80: 1.246312638e-14 | T80: 4.255487493e-25 | U80: 4.582152794e-10 | V80: 0.006289158506 | W80: 0.001018451441 | X80: 2.987972374e-54 | Y80: 1.356894239e-37 | Z80: 0.02460902582 | AA80: 0.9444788359 | AB80: 0.7593579541 | AC80: 0.3933804772 | AD80: 1.366224273e-10 | AE80: 0.0002950068446 | AF80: 9.648020299e-08 | AG80: 6.479052036e-13 | AH80: 0.07673648494 | AI80: 8.978510706e-11 | AJ80: 7.877090092e-06 | AK80: 2.280876796e-53 | AL80: 5.943857866e-15 | AM80: 7.384649583e-05 | AN80: 0.8753530397 | AO80: 0.0002095123229 | AP80: 3.313627348e-05 | AQ80: 0.0005815579121 | AR80: 1.510202669e-20 | AS80: 2.323946973e-54 | AT80: 6.54703685e-06 | AU80: 1.328663171e-14 | AV80: 0.03530615386 | AW80: 3.7569723e-58 | AX80: 3.206117033e-06 | AY80: 0.2147548788 | AZ80: 0.4890903704 | BA80: 0.9599270375 | BB80: 0.01918412816 | BC80: 2.685453159e-16 | BD80: 0.0001313044349 | BE80: 4.088620598e-07 | BF80: 0.005426559258 | BG80: 1.367652659e-31 | BH80: 5.969751638e-25 | BI80: 1.350785473e-35 | BJ80: 0.2162651668 | BK80: 0.2185439807 | BL80: 0.5067294738 | BM80: 0.001511869975 | BN80: 2.016349967e-10 | BO80: 8.453750862e-24 | BP80: 4.597949383e-26 | BQ80: 1.486327346e-13 | BR80: 1.752404444e-41 | BS80: 6.174072964e-08 | BT80: 0.6319898153 | BU80: 3.69422294e-24 | BV80: 2.45341454e-08 | BW80: 0.995591745 | BX80: 0.5079115301 | BY80: 0.01289068914 | BZ80: 3.789270995e-07 | CA80: 0.752572456 | CB80: 5.83521e-35 | CC80: 3.889808326e-31 | CD80: 1.236373574e-06 | CE80: 1.413650179e-23 | CF80: 3.188716807e-17 | CG80: 1.341177585e-11 | CH80: 0.001522803858 | CI80: 3.473065561e-07 | CJ80: 0.0003780628902 | CK80: 0.6861136462 | CL80: 0.0003633296533 | CM80: 2.568676033e-28 | CN80: 3.602801263e-104 | CO80: 2.061583201e-24 | CP80: 0.02086333431 | CQ80: 3.765081425e-16 | CR80: 5.321046773e-22 | CS80: 1.870934819e-13 | CT80: 7.204134799e-23 | CU80: 1.026575195e-13 | CV80: 0.1558919718 | CW80: 3.801906145e-06 | CX80: 6.382680875e-13 | CY80: 4.894089511e-35 | CZ80: 3.79832449e-22 | DA80: 0.6705761572 | DB80: 0.0001280130943 | DC80: 2.539974983e-24 | DD80: 0.7307879086 | DE80: 162.8836511
B81: 80 | C81: 1.135341475e-05 | D81: 0.9116947946 | E81: 0.03512395158 | F81: 2.121377914e-09 | G81: 1.604047675e-24 | H81: 1.73732715e-84 | I81: 2.735846214e-30 | J81: 1.962450648e-11 | K81: 7.424036633e-10 | L81: 3.234594227e-16 | M81: 4.051446683e-11 | N81: 0.008342285995 | O81: 0.9506949838 | P81: 0.288838376 | Q81: 0.4972999071 | R81: 3.182431894e-07 | S81: 1.462327438e-14 | T81: 5.258728802e-25 | U81: 5.223297618e-10 | V81: 0.006701338476 | W81: 0.001096719311 | X81: 4.089386757e-54 | Y81: 1.760501023e-37 | Z81: 0.02598068244 | AA81: 0.9506949838 | AB81: 0.7705567296 | AC81: 0.404194937 | AD81: 1.563068584e-10 | AE81: 0.0003197177444 | AF81: 1.080741793e-07 | AG81: 7.524875073e-13 | AH81: 0.08027813392 | AI81: 1.028487144e-10 | AJ81: 8.677370613e-06 | AK81: 3.113538711e-53 | AL81: 6.986909975e-15 | AM81: 8.056211953e-05 | AN81: 0.8842565885 | AO81: 0.0002274436597 | AP81: 3.628007012e-05 | AQ81: 0.000628107015 | AR81: 1.827819744e-20 | AS81: 3.18160893e-54 | AT81: 7.217672684e-06 | AU81: 1.55870181e-14 | AV81: 0.03717279881 | AW81: 5.199972794e-58 | AX81: 3.544724912e-06 | AY81: 0.2223776981 | AZ81: 0.4774346438 | BA81: 0.9542610573 | BB81: 0.02028990109 | BC81: 3.180407992e-16 | BD81: 0.0001428619184 | BE81: 4.556194114e-07 | BF81: 0.005787528125 | BG81: 1.735569988e-31 | BH81: 7.372414945e-25 | BI81: 1.740071588e-35 | BJ81: 0.2239236799 | BK81: 0.2262560401 | BL81: 0.5185815412 | BM81: 0.001624544192 | BN81: 2.304189367e-10 | BO81: 1.038715796e-23 | BP81: 5.705612947e-26 | BQ81: 1.732955286e-13 | BR81: 2.304327352e-41 | BS81: 6.926805527e-08 | BT81: 0.6440866579 | BU81: 4.54637509e-24 | BV81: 2.761242457e-08 | BW81: 0.9972657449 | BX81: 0.4961246864 | BY81: 0.01367138933 | BZ81: 4.223793471e-07 | CA81: 0.7638544641 | CB81: 7.499454277e-35 | CC81: 4.927540025e-31 | CD81: 1.372045316e-06 | CE81: 1.735221618e-23 | CF81: 3.795205581e-17 | CG81: 1.544759173e-11 | CH81: 0.001636227487 | CI81: 3.872567218e-07 | CJ81: 0.0004092231302 | CK81: 0.6741706569 | CL81: 0.0003933542314 | CM81: 3.217583474e-28 | CN81: 5.573547088e-104 | CO81: 2.539974983e-24 | CP81: 0.02205266109 | CQ81: 4.455456336e-16 | CR81: 6.484599422e-22 | CS81: 2.180072665e-13 | CT81: 8.814650254e-23 | CU81: 1.198065543e-13 | CV81: 0.1619881653 | CW81: 4.200579777e-06 | CX81: 7.413244583e-13 | CY81: 6.291680812e-35 | CZ81: 4.632052368e-22 | DA81: 0.6825373692 | DB81: 0.000139297587 | DC81: 3.128126402e-24 | DD81: 0.7423072782 | DE81: 163.2902373
B82: 81 | C82: 1.24878798e-05 | D82: 0.9037070779 | E82: 0.03698244272 | F82: 2.406722436e-09 | G82: 1.977216864e-24 | H82: 2.572679111e-84 | I82: 3.454234224e-30 | J82: 2.257897393e-11 | K82: 8.450308334e-10 | L82: 3.829075874e-16 | M82: 4.651705948e-11 | N82: 0.008873038341 | O82: 0.9444788359 | P82: 0.2980279515 | Q82: 0.5090943073 | R82: 3.549638087e-07 | S82: 1.715096422e-14 | T82: 6.495887763e-25 | U82: 5.95177164e-10 | V82: 0.007137676327 | W82: 0.001180529751 | X82: 5.594561816e-54 | Y82: 2.283246745e-37 | Z82: 0.02741782307 | AA82: 0.9565693393 | AB82: 0.7816079554 | AC82: 0.4151406087 | AD82: 1.787558871e-10 | AE82: 0.000346359952 | AF82: 1.210129829e-07 | AG82: 8.736015637e-13 | AH82: 0.08394965542 | AI82: 1.177659424e-10 | AJ82: 9.555133582e-06 | AK82: 4.248474293e-53 | AL82: 8.209716525e-15 | AM82: 8.785331581e-05 | AN82: 0.8928934698 | AO82: 0.0002468109251 | AP82: 3.970624809e-05 | AQ82: 0.0006781107061 | AR82: 2.211351484e-20 | AS82: 4.354052505e-54 | AT82: 7.953821921e-06 | AU82: 1.827837002e-14 | AV82: 0.03912248161 | AW82: 7.19433128e-58 | AX82: 3.917526885e-06 | AY82: 0.2301790027 | AZ82: 0.4658703046 | BA82: 0.9482491451 | BB82: 0.02145082871 | BC82: 3.765081425e-16 | BD82: 0.0001553745351 | BE82: 5.075208719e-07 | BF82: 0.006170039741 | BG82: 2.201581317e-31 | BH82: 9.101009349e-25 | BI82: 2.240650566e-35 | BJ82: 0.231760678 | BK82: 0.2341465682 | BL82: 0.5304985788 | BM82: 0.001744917504 | BN82: 2.632065581e-10 | BO82: 1.275763903e-23 | BP82: 7.077285412e-26 | BQ82: 2.019698431e-13 | BR82: 3.028867577e-41 | BS82: 7.768202071e-08 | BT82: 0.6561525312 | BU82: 5.592856911e-24 | BV82: 3.106450462e-08 | BW82: 0.9985430624 | BX82: 0.4844175682 | BY82: 0.01449357255 | BZ82: 4.706260534e-07 | CA82: 0.7749955435 | CB82: 9.634498539e-35 | CC82: 6.239623742e-31 | CD82: 1.521995888e-06 | CE82: 2.129091023e-23 | CF82: 4.51524108e-17 | CG82: 1.778531498e-11 | CH82: 0.001757396195 | CI82: 4.316296103e-07 | CJ82: 0.0004427744765 | CK82: 0.6621706346 | CL82: 0.0004256896493 | CM82: 4.028808215e-28 | CN82: 8.618850054e-104 | CO82: 3.128126402e-24 | CP82: 0.0233004641 | CQ82: 5.2703116e-16 | CR82: 7.899425583e-22 | CS82: 2.539273989e-13 | CT82: 1.078089018e-22 | CU82: 1.397644345e-13 | CV82: 0.1682554363 | CW82: 4.639202878e-06 | CX82: 8.606762306e-13 | CY82: 8.085143605e-35 | CZ82: 5.646523499e-22 | DA82: 0.6944341067 | DB82: 0.0001515162012 | DC82: 3.850928284e-24 | DD82: 0.7537066839 | DE82: 163.6945951
B83: 82 | C83: 1.373021059e-05 | D83: 0.8954311006 | E83: 0.03892369842 | F83: 2.729356418e-09 | G83: 2.436226271e-24 | H83: 3.808166393e-84 | I83: 4.359514901e-30 | J83: 2.596784692e-11 | K83: 9.614601475e-10 | L83: 4.531003725e-16 | M83: 5.338763239e-11 | N83: 0.009433783908 | O83: 0.9379280863 | P83: 0.3073869198 | Q83: 0.5209600081 | R83: 3.957631147e-07 | S83: 2.010753047e-14 | T83: 8.020889491e-25 | U83: 6.779131049e-10 | V83: 0.007599384666 | W83: 0.001270236723 | X83: 7.65068374e-54 | Y83: 2.960027151e-37 | Z83: 0.02892288872 | AA83: 0.9620950775 | AB83: 0.7925006128 | AC83: 0.4262121722 | AD83: 2.043473242e-10 | AE83: 0.0003750722064 | AF83: 1.354466501e-07 | AG83: 1.013803517e-12 | AH83: 0.0877539854 | AI83: 1.347928447e-10 | AJ83: 1.051747919e-05 | AK83: 5.794794002e-53 | AL83: 9.64267341e-15 | AM83: 9.576608064e-05 | AN83: 0.9012541371 | AO83: 0.0002677202409 | AP83: 4.343860483e-05 | AQ83: 0.0007318024189 | AR83: 2.674289827e-20 | AS83: 5.956166216e-54 | AT83: 8.761547617e-06 | AU83: 2.142585553e-14 | AV83: 0.0411579572 | AW83: 9.94961039e-58 | AX83: 4.327805315e-06 | AY83: 0.238158705 | AZ83: 0.4544042766 | BA83: 0.9418982736 | BB83: 0.02266911168 | BC83: 4.455456336e-16 | BD83: 0.0001689154946 | BE83: 5.651085502e-07 | BF83: 0.006575201862 | BG83: 2.791602721e-31 | BH83: 1.123041053e-24 | BI83: 2.884080855e-35 | BJ83: 0.2397760299 | BK83: 0.2422153676 | BL83: 0.5424724382 | BM83: 0.001873460544 | BN83: 3.005394769e-10 | BO83: 1.566282753e-23 | BP83: 8.775207518e-26 | BQ83: 2.352946115e-13 | BR83: 3.979629851e-41 | BS83: 8.708318724e-08 | BT83: 0.6681771139 | BU83: 6.877465737e-24 | BV83: 3.49341841e-08 | BW83: 0.999422167 | BX83: 0.4727975475 | BY83: 0.01535905618 | BZ83: 5.241740769e-07 | CA83: 0.7859846626 | CB83: 1.23724256e-34 | CC83: 7.897923547e-31 | CD83: 1.687659331e-06 | CE83: 2.611318168e-23 | CF83: 5.369735117e-17 | CG83: 2.046862275e-11 | CH83: 0.001886783031 | CI83: 4.808944642e-07 | CJ83: 0.0004788850349 | CK83: 0.6501241073 | CL83: 0.0004604989419 | CM83: 5.042543431e-28 | CN83: 1.332273096e-103 | CO83: 3.850928284e-24 | CP83: 0.02460902582 | CQ83: 6.231701989e-16 | CR83: 9.619093658e-22 | CS83: 2.956476563e-13 | CT83: 1.318045616e-22 | CU83: 1.629817767e-13 | CV83: 0.174695294 | CW83: 5.121577812e-06 | CX83: 9.988437849e-13 | CY83: 1.038568333e-34 | CZ83: 6.880422403e-22 | DA83: 0.7062556476 | DB83: 0.0001647406729 | DC83: 4.738848776e-24 | DD83: 0.7649750959 | DE83: 164.0966631
B84: 83 | C84: 1.509009484e-05 | D84: 0.8868760918 | E84: 0.04095046965 | F84: 3.094003356e-09 | G84: 3.000593888e-24 | H84: 5.634721999e-84 | I84: 5.499849839e-30 | J84: 2.985341134e-11 | K84: 1.093493741e-09 | L84: 5.359461416e-16 | M84: 6.124848509e-11 | N84: 0.01002595549 | O84: 0.9310502769 | P84: 0.3169129971 | Q84: 0.5328890702 | R84: 4.410754005e-07 | S84: 2.356433629e-14 | T84: 9.89994622e-25 | U84: 7.718414212e-10 | V84: 0.008087723373 | W84: 0.00136621382 | X84: 1.045829059e-53 | Y84: 3.835878338e-37 | Z84: 0.0304983712 | AA84: 0.9672657522 | AB84: 0.8032237189 | AC84: 0.4374040113 | AD84: 2.335091157e-10 | AE84: 0.0004060021917 | AF84: 1.515412457e-07 | AG84: 1.176035594e-12 | AH84: 0.0916940305 | AI84: 1.542198398e-10 | AJ84: 1.15721177e-05 | AK84: 7.900767674e-53 | AL84: 1.132121495e-14 | AM84: 0.0001043497834 | AN84: 0.9093292856 | AO84: 0.0002902848139 | AP84: 4.750279531e-05 | AQ84: 0.00078942952 | AR84: 3.23284922e-20 | AS84: 8.144533953e-54 | AT84: 9.647439641e-06 | AU84: 2.510528533e-14 | AV84: 0.04328201882 | AW84: 1.37546011e-57 | AX84: 4.779139732e-06 | AY84: 0.2463164962 | AZ84: 0.4430431986 | BA84: 0.9352157759 | BB84: 0.02394700536 | BC84: 5.2703116e-16 | BD84: 0.0001835631148 | BE84: 6.289789793e-07 | BF84: 0.007004167149 | BG84: 3.538333603e-31 | BH84: 1.38524945e-24 | BI84: 3.710795428e-35 | BJ84: 0.247969382 | BK84: 0.2504620167 | BL84: 0.5544947169 | BM84: 0.002010668551 | BN84: 3.430304147e-10 | BO84: 1.922189957e-23 | BP84: 1.087612933e-25 | BQ84: 2.740082992e-13 | BR84: 5.226745519e-41 | BS84: 9.75830526e-08 | BT84: 0.6801499435 | BU84: 8.453750862e-24 | BV84: 3.927019511e-08 | BW84: 0.9999020048 | BX84: 0.4612717178 | BY84: 0.01626971296 | BZ84: 5.835813369e-07 | CA84: 0.7968108148 | CB84: 1.588206134e-34 | CC84: 9.992950384e-31 | CD84: 1.870606216e-06 | CE84: 3.201486198e-23 | CF84: 6.383385383e-17 | CG84: 2.354734596e-11 | CH84: 0.00202488575 | CI84: 5.355679845e-07 | CJ84: 0.0005177334621 | CK84: 0.6380414686 | CL84: 0.0004979554215 | CM84: 6.308832299e-28 | CN84: 2.058559731e-103 | CO84: 4.738848776e-24 | CP84: 0.02598068244 | CQ84: 7.365518794e-16 | CR84: 1.170844113e-21 | CS84: 3.440848882e-13 | CT84: 1.610766328e-22 | CU84: 1.899799224e-13 | CV84: 0.1813090945 | CW84: 5.651847924e-06 | CX84: 1.158728306e-12 | CY84: 1.333548136e-34 | CZ84: 8.380604483e-22 | DA84: 0.7179911758 | DB84: 0.000179047755 | DC84: 5.829167719e-24 | DD84: 0.7761014755 | DE84: 164.4963829
B85: 84 | C85: 1.657803387e-05 | D85: 0.8780515272 | E85: 0.04306554593 | F85: 3.505965117e-09 | G85: 3.69422294e-24 | H85: 8.334035657e-84 | I85: 6.935691704e-30 | J85: 3.430664667e-11 | K85: 1.243161631e-09 | L85: 6.336860699e-16 | M85: 7.023867715e-11 | N85: 0.01065103722 | O85: 0.9238532872 | P85: 0.3266036248 | Q85: 0.5448732937 | R85: 4.913790554e-07 | S85: 2.760437832e-14 | T85: 1.221432355e-24 | U85: 8.784325411e-10 | V85: 0.008604000581 | W85: 0.001468855137 | X85: 1.429050058e-53 | Y85: 4.968899767e-37 | Z85: 0.03214681179 | AA85: 0.9720753082 | AB85: 0.8137663447 | AC85: 0.4487102152 | AD85: 2.667257871e-10 | AE85: 0.0004393070319 | AF85: 1.694804934e-07 | AG85: 1.363682984e-12 | AH85: 0.09577266201 | AI85: 1.763761827e-10 | AJ85: 1.272741792e-05 | AK85: 1.076779709e-52 | AL85: 1.328663171e-14 | AM85: 0.0001136573884 | AN85: 0.9171098693 | AO85: 0.0003146253475 | AP85: 5.192646369e-05 | AQ85: 0.0008512540013 | AR85: 3.90650792e-20 | AS85: 1.113248067e-53 | AT85: 1.06186571e-05 | AU85: 2.940481378e-14 | AV85: 0.04549749543 | AW85: 1.900711521e-57 | AX85: 5.275431927e-06 | AY85: 0.25465184 | AZ85: 0.4317934198 | BA85: 0.9282093305 | BB85: 0.02528681918 | BC85: 6.231701989e-16 | BD85: 0.0001994011367 | BE85: 6.997882834e-07 | BF85: 0.007458134225 | BG85: 4.483015321e-31 | BH85: 1.707995109e-24 | BI85: 4.772576256e-35 | BJ85: 0.2563401514 | BK85: 0.2588858624 | BL85: 0.5665567653 | BM85: 0.002157062363 | BN85: 3.913722354e-10 | BO85: 2.358026732e-23 | BP85: 1.347465371e-25 | BQ85: 3.189640482e-13 | BR85: 6.861930477e-41 | BS85: 1.093051855e-07 | BT85: 0.6920604304 | BU85: 1.038715796e-23 | BV85: 4.41267351e-08 | BW85: 0.9999820002 | BX85: 0.4498468894 | BY85: 0.01722747131 | BZ85: 6.494616812e-07 | CA85: 0.8074630366 | CB85: 2.037910793e-34 | CC85: 1.263865384e-30 | CD85: 2.072555854e-06 | CE85: 3.923464792e-23 | CF85: 7.585348676e-17 | CG85: 2.70783121e-11 | CH85: 0.002172227805 | CI85: 5.962188734e-07 | CJ85: 0.0005595095285 | CK85: 0.6259329639 | CL85: 0.0005382432298 | CM85: 7.88995636e-28 | CN85: 3.179508351e-103 | CO85: 5.829167719e-24 | CP85: 0.02741782307 | CQ85: 8.702144486e-16 | CR85: 1.424591282e-21 | CS85: 4.002976498e-13 | CT85: 1.967709244e-22 | CU85: 2.21361784e-13 | CV85: 0.188098033 | CW85: 6.234526026e-06 | CX85: 1.343667903e-12 | CY85: 1.711624915e-34 | CZ85: 1.020379843e-21 | DA85: 0.7296297976 | DB85: 0.0001945195278 | DC85: 7.167480742e-24 | DD85: 0.7870747926 | DE85: 164.8936985
B86: 85 | C86: =+EXP(-(($B86-C$2)^2/(2*alpha^2))) -> 1.820540555e-05 | D86: 0.8689671122 | E86: 0.04527175278 | F86: 3.971190155e-09 | G86: 4.54637509e-24 | H86: 1.232152597e-83 | I86: 8.742889923e-30 | J86: 3.94084049e-11 | K86: 1.412749544e-09 | L86: 7.489510847e-16 | M86: =+EXP(-(($B86-M$2)^2/(2*alpha^2))) -> 8.051625713e-11 | N86: 0.01131056539 | O86: 0.9163453186 | P86: 0.3364559651 | Q86: 0.556904226 | R86: 5.472008047e-07 | S86: 3.232414244e-14 | T86: 1.506372182e-24 | U86: 9.993440522e-10 | V86: 0.009149573617 | W86: =+EXP(-(($B86-W$2)^2/(2*alpha^2))) -> 0.001578576164 | X86: 1.951913022e-53 | Y86: 6.434012945e-37 | Z86: 0.03387079975 | AA86: 0.9765180934 | AB86: 0.8241176336 | AC86: 0.46012458 | AD86: 3.045456872e-10 | AE86: 0.000475153808 | AF86: 1.894675627e-07 | AG86: =+EXP(-(($B86-AG$2)^2/(2*alpha^2))) -> 1.580638874e-12 | AH86: 0.09999270957 | AI86: 2.016349967e-10 | AJ86: 1.399245923e-05 | AK86: 1.46693448e-52 | AL86: 1.55870181e-14 | AM86: 0.0001237456882 | AN86: 0.924587118 | AO86: 0.0003408704721 | AP86: 5.673938316e-05 | AQ86: =+EXP(-(($B86-AQ$2)^2/(2*alpha^2))) -> 0.0009175531964 | AR86: 4.718655276e-20 | AS86: 1.521051586e-53 | AT86: 1.168297388e-05 | AU86: 3.442690549e-14 | AV86: 0.04780724892 | AW86: 2.625491983e-57 | AX86: 5.820932999e-06 | AY86: 0.263163965 | AZ86: 0.420660998 | BA86: =+EXP(-(($B86-BA$2)^2/(2*alpha^2))) -> 0.9208869475 | BB86: 0.0266909159 | BC86: 7.365518794e-16 | BD86: 0.0002165190551 | BE86: 7.78257804e-07 | BF86: 0.007938348681 | BG86: 5.677641302e-31 | BH86: 2.105094232e-24 | BI86: 6.135712785e-35 | BJ86: 0.2648875189 | BK86: =+EXP(-(($B86-BK$2)^2/(2*alpha^2))) -> 0.2674860135 | BL86: 0.578649696 | BM86: 0.002313189433 | BN86: 4.463480889e-10 | BO86: 2.891528164e-23 | BP86: 1.668734116e-25 | BQ86: 3.711470684e-13 | BR86: 9.005079552e-41 | BS86: 1.223864715e-07 | BT86: 0.7038978731 | BU86: =+EXP(-(($B86-BU$2)^2/(2*alpha^2))) -> 1.275763903e-23 | BV86: 4.956405319e-08 | BW86: 0.9996620571 | BX86: 0.4385295854 | BY86: 0.01823431537 | BZ86: 7.224901863e-07 | CA86: 0.8179304258 | CB86: 2.613904713e-34 | CC86: 1.597843312e-30 | CD86: 2.295389528e-06 | CE86: =+EXP(-(($B86-CE$2)^2/(2*alpha^2))) -> 4.806336439e-23 | CF86: 9.010031619e-17 | CG86: 3.112629984e-11 | CH86: 0.002329359365 | CI86: 6.634727859e-07 | CJ86: 0.0006044147038 | CK86: 0.6138086772 | CL86: 0.0005815579121 | CM86: 9.863396716e-28 | CN86: 4.908883773e-103 | CO86: =+EXP(-(($B86-CO$2)^2/(2*alpha^2))) -> 7.167480742e-24 | CP86: 0.02892288872 | CQ86: 1.027721684e-15 | CR86: 1.732637741e-21 | CS86: 4.655075869e-13 | CT86: 2.402788759e-22 | CU86: 2.578243128e-13 | CV86: 0.1950631357 | CW86: 6.874525053e-06 | CX86: 1.557501782e-12 | CY86: =+EXP(-(($B86-CY$2)^2/(2*alpha^2))) -> 2.196012381e-34 | CZ86: 1.241865833e-21 | DA86: 0.7411605578 | DB86: 0.0002112437242 | DC86: 8.809531249e-24 | DD86: 0.7978840443 | DE86: 165.2885572
B87: 86 | C87: 1.998453167e-05 | D87: 0.8596327636 | E87: 0.04757194891 | F87: 4.496349462e-09 | G87: 5.592856911e-24 | H87: 1.820957968e-83 | I87: 1.101657316e-29 | J87: 4.525074418e-11 | K87: 1.604830008e-09 | L87: 8.848283522e-16 | M87: 9.226077847e-11 | N87: 0.01200612912 | O87: 0.908534879 | P87: 0.3464668971 | Q87: 0.5689731694 | R87: 6.091203316e-07 | S87: 3.783574894e-14 | T87: 1.857040761e-24 | U87: 1.136443714e-09 | V87: 0.0097258499 | W87: 0.001695814708 | X87: 2.665015646e-53 | Y87: 8.327792714e-37 | Z87: 0.03567297071 | AA87: 0.98058887 | AB87: 0.8342668198 | AC87: 0.4716406114 | AD87: 3.475891281e-10 | AE87: 0.0005137200966 | AF87: 2.117270271e-07 | AG87: 1.831378782e-12 | AH87: 0.1043569547 | AI87: 2.304189367e-10 | AJ87: 1.537708721e-05 | AK87: 1.997656684e-52 | AL87: 1.827837002e-14 | AM87: 0.0001346755507 | AN87: 0.9317525536 | AO87: 0.0003691571957 | AP87: 6.197360434e-05 | AQ87: 0.0009886205207 | AR87: 5.697365414e-20 | AS87: 2.077410007e-53 | AT87: 1.284882745e-05 | AU87: 4.029060821e-14 | AV87: 0.05021417106 | AW87: 3.6251958e-57 | AX87: 6.420272472e-06 | AY87: 0.2718518582 | AZ87: 0.4096516969 | BA87: 0.9132569529 | BB87: 0.02816171071 | BC87: 8.702144486e-16 | BD87: 0.0002350124656 | BE87: 8.651802242e-07 | BF87: 0.008446104076 | BG87: 7.18773343e-31 | BH87: 2.593479037e-24 | BI87: 7.885031811e-35 | BJ87: 0.2736104225 | BK87: 0.2762613337 | BL87: 0.5907643926 | BM87: 0.002479624851 | BN87: 5.088427939e-10 | BO87: 3.544315806e-23 | BP87: 2.065774724e-25 | BQ87: 4.316946005e-13 | BR87: 1.181286052e-40 | BS87: 1.369784805e-07 | BT87: 0.7156514731 | BU87: 1.566282753e-23 | BV87: 5.564909621e-08 | BW87: 0.9989425595 | BX87: 0.4273260389 | BY87: 0.01929228508 | BZ87: 8.034089299e-07 | CA87: 0.8282021598 | CB87: 3.351356408e-34 | CC87: 2.019267435e-30 | CD87: 2.541164798e-06 | CE87: 5.885520246e-23 | CF87: 1.069801897e-16 | CG87: 3.576511997e-11 | CH87: 0.002496858343 | CI87: 7.380177213e-07 | CJ87: 0.000652662766 | CK87: 0.6016785177 | CL87: 0.000628107015 | CM87: 1.23255039e-27 | CN87: 7.575857743e-103 | CO87: 8.809531249e-24 | CP87: 0.0304983712 | CQ87: 1.213252045e-15 | CR87: 2.106451868e-21 | CS87: 5.41123966e-13 | CT87: 2.932895164e-22 | CU87: 3.001728258e-13 | CV87: 0.2022052517 | CW87: 7.577191057e-06 | CX87: 1.804643591e-12 | CY87: 2.81635406e-34 | CZ87: 1.510823631e-21 | DA87: 0.752572456 | DB87: 0.0002293140721 | DC87: 1.082344086e-23 | DD87: 0.8085182723 | DE87: 165.6809089
B88: 87 | C88: 2.192874993e-05 | D88: 0.8500585921 | E88: 0.04996902328 | F88: 5.088921067e-09 | G88: 6.877465737e-24 | H88: 2.690057903e-83 | I88: 1.387600084e-29 | J88: 5.193843713e-11 | K88: 1.82229708e-09 | L88: 1.044938879e-15 | M88: 1.056761381e-10 | N88: 0.01273937103 | O88: 0.9004307671 | P88: 0.3566330133 | Q88: 0.5810711897 | R88: 6.777753135e-07 | S88: 4.426943105e-14 | T88: 2.28842597e-24 | U88: 1.291835192e-09 | V88: 0.0103342878 | W88: 0.001821031828 | X88: 3.637184629e-53 | Y88: 1.077467465e-36 | Z88: 0.03755600475 | AA88: 0.9842828245 | AB88: 0.8442032465 | AC88: 0.4832515275 | AD88: 3.965575264e-10 | AE88: 0.0005551945306 | AF88: 2.365070074e-07 | AG88: 2.121045475e-12 | AH88: 0.1088681241 | AI88: 2.632065581e-10 | AJ88: 1.689197333e-05 | AK88: 2.719300928e-52 | AL88: 2.142585553e-14 | AM88: 0.000146512179 | AN88: 0.9385980061 | AO88: 0.0003996313743 | AP88: 6.766361278e-05 | AQ88: 0.001064766237 | AR88: 6.876321614e-20 | AS88: 2.836134203e-53 | AT88: 1.412537122e-05 | AU88: 4.713417845e-14 | AV88: 0.05272118035 | AW88: 5.003553203e-57 | AX88: 7.078489645e-06 | AY88: 0.2807142587 | AZ88: 0.3987709847 | BA88: 0.9053279728 | BB88: 0.02970167017 | BC88: 1.027721684e-15 | BD88: 0.0002549834288 | BE88: 9.614262288e-07 | BF88: 0.008982742881 | BG88: 9.095828327e-31 | BH88: 3.193891987e-24 | BI88: 1.012903705e-34 | BJ88: 0.2825075509 | BK88: 0.2852104358 | BL88: 0.6028915194 | BM88: 0.0026569724 | BN88: 5.798556052e-10 | BO88: 4.342738495e-23 | BP88: 2.556260184e-25 | BQ88: 5.019188207e-13 | BR88: 1.548990951e-40 | BS88: 1.532489674e-07 | BT88: 0.7273103509 | BU88: 1.922189957e-23 | BV88: 6.245622035e-08 | BW88: 0.9978243701 | BX88: 0.4162421903 | BY88: 0.02040347601 | BZ88: 8.930332703e-07 | CA88: 0.8382675143 | CB88: 4.295144342e-34 | CC88: 2.55081978e-30 | CD88: 2.812130997e-06 | CE88: 7.204134799e-23 | CF88: 1.269716298e-16 | CG88: 4.107883872e-11 | CH88: 0.002675331449 | CI88: 8.20609894e-07 | CJ88: 0.0007044804339 | CK88: 0.5895522078 | CL88: 0.0006781107061 | CM88: 1.539604416e-27 | CN88: 1.168711062e-102 | CO88: 1.082344086e-23 | CP88: 0.03214681179 | CQ88: 1.431702642e-15 | CR88: 2.5598917e-21 | CS88: 6.287718013e-13 | CT88: 3.578522644e-22 | CU88: 3.49337462e-13 | CV88: 0.209525045 | CW88: 8.348338675e-06 | CX88: 2.090165221e-12 | CY88: 3.610488789e-34 | CZ88: 1.83729605e-21 | DA88: 0.7638544641 | DB88: 0.0002488306533 | DC88: 1.329242377e-23 | DD88: 0.8189665815 | DE88: 166.0707067
B89: 88 | C89: 2.405249078e-05 | D89: 0.8402548839 | E89: 0.05246589183 | F89: 5.757284007e-09 | G89: 8.453750862e-24 | H89: 3.972369303e-83 | I89: 1.747062309e-29 | J89: 5.959067582e-11 | K89: 2.06840512e-09 | L89: 1.233528048e-15 | M89: 1.209937772e-10 | N89: 0.01351198783 | O89: 0.8920420556 | P89: 0.3669506165 | Q89: 0.593189126 | R89: 7.538669073e-07 | S89: 5.17763973e-14 | T89: 2.818892936e-24 | U89: 1.467886831e-09 | V89: 0.01097639743 | W89: 0.001954712803 | X89: 4.962005177e-53 | Y89: 1.393492726e-36 | Z89: 0.03952262446 | AA89: 0.9875955771 | AB89: 0.8539163848 | AC89: 0.4949502631 | AD89: 4.522436648e-10 | AE89: 0.000599777383 | AF89: 2.640815183e-07 | AG89: 2.455545941e-12 | AH89: 0.1135288828 | AI89: 3.005394769e-10 | AJ89: 1.854867871e-05 | AK89: 3.700155463e-52 | AL89: 2.510528533e-14 | AM89: 0.0001593253851 | AN89: 0.9451156292 | AO89: 0.0004324482033 | AP89: 7.384649583e-05 | AQ89: 0.001146318243 | AR89: 8.295920267e-20 | AS89: 3.870415744e-53 | AT89: 1.552253064e-05 | AU89: 5.511811318e-14 | AV89: 0.05533121849 | AW89: 6.903222287e-57 | AX89: 7.801067302e-06 | AY89: 0.2897496514 | AZ89: 0.3880240332 | BA89: 0.8971089176 | BB89: 0.03131331101 | BC89: 1.213252045e-15 | BD89: 0.0002765408523 | BE89: 1.067951746e-06 | BF89: 0.009549657395 | BG89: 1.150585323e-30 | BH89: 3.931732749e-24 | BI89: 1.300646127e-34 | BJ89: 0.2915773374 | BK89: 0.2943316754 | BL89: 0.6150215322 | BM89: 0.002845865613 | BN89: 6.605145259e-10 | BO89: 5.31889268e-23 | BP89: 3.161938614e-25 | BQ89: 5.833331097e-13 | BR89: 2.03034092e-40 | BS89: 1.713835174e-07 | BT89: 0.7388635622 | BU89: 2.358026732e-23 | BV89: 7.006797463e-08 | BW89: 0.9963088292 | BX89: 0.4052836851 | BY89: 0.02157003923 | BZ89: 9.922586775e-07 | CA89: 0.8481158813 | CB89: 5.502514457e-34 | CC89: 3.221009404e-30 | CD89: 3.110745966e-06 | CE89: 8.814650254e-23 | CF89: 1.506386125e-16 | CG89: 4.716316172e-11 | CH89: 0.002865415251 | CI89: 9.120801199e-07 | CJ89: 0.0007601080224 | CK89: 0.5774392713 | CL89: 0.0007318024189 | CM89: 1.922382901e-27 | CN89: 1.80222405e-102 | CO89: 1.329242377e-23 | CP89: 0.03387079975 | CQ89: 1.688810432e-15 | CR89: 3.10969594e-21 | CS89: 7.303240903e-13 | CT89: 4.364527979e-22 | CU89: 4.063920747e-13 | CV89: 0.217022987 | CW89: 9.194289253e-06 | CX89: 2.419892496e-12 | CY89: 4.626696719e-34 | CZ89: 2.233422032e-21 | DA89: 0.7749955435 | DB89: 0.0002699002801 | DC89: 1.631808875e-23 | DD89: 0.8292181584 | DE89: 166.4579064
B90: 89 | C90: 2.637135961e-05 | D90: 0.8302320823 | E90: 0.05506549412 | F90: 6.510822791e-09 | G90: 1.038715796e-23 | H90: 5.863593955e-83 | I90: 2.198764687e-29 | J90: 6.834299809e-11 | K90: 2.34681206e-09 | L90: 1.455571191e-15 | M90: 1.384762895e-10 | N90: 0.01432573083 | O90: 0.8833780741 | P90: 0.3774157175 | Q90: 0.6053176 | R90: 8.381657195e-07 | S90: 6.053213584e-14 | T90: 3.47093577e-24 | U90: 1.667263796e-09 | V90: 0.0116537414 | W90: 0.002097368113 | X90: 6.766675675e-53 | Y90: 1.801488644e-36 | Z90: 0.04157559261 | AA90: 0.9905231907 | AB90: 0.8633958521 | AC90: 0.5067294738 | AD90: 5.155432071e-10 | AE90: 0.0006476811728 | AF90: 2.947530352e-07 | AG90: 2.841662067e-12 | AH90: 0.1183418274 | AI90: 3.430304147e-10 | AJ90: 2.035972242e-05 | AK90: 5.032791678e-52 | AL90: 2.940481378e-14 | AM90: 0.0001731898788 | AN90: 0.9512979155 | AO90: 0.0004677727298 | AP90: 8.056211953e-05 | AQ90: 0.00123362289 | AR90: 1.000458872e-19 | AS90: 5.279766793e-53 | AT90: 1.705106317e-05 | AU90: 6.442864903e-14 | AV90: 0.0580472468 | AW90: 9.520318467e-57 | AX90: 8.593967967e-06 | AY90: 0.2989562612 | AZ90: 0.3774157175 | BA90: 0.8886089647 | BB90: 0.03299919869 | BC90: 1.431702642e-15 | BD90: 0.0002998008911 | BE90: 1.185805817e-06 | BF90: 0.01014829061 | BG90: 1.45486162e-30 | BH90: 4.83809105e-24 | BI90: 1.669461571e-34 | BJ90: 0.3008179544 | BK90: 0.3036231454 | BL90: 0.6271446896 | BM90: 0.003046968857 | BN90: 7.520923452e-10 | BO90: 6.51186006e-23 | BP90: 3.909561912e-25 | BQ90: 6.77682165e-13 | BR90: 2.660206416e-40 | BS90: 1.915873493e-07 | BT90: 0.7503001144 | BU90: 2.891528164e-23 | BV90: 7.857596288e-08 | BW90: 0.9943977515 | BX90: 0.3944558732 | BY90: 0.02279418088 | BZ90: 1.102068158e-06 | CA90: 0.8577367884 | CB90: 7.046458582e-34 | CC90: 4.065654708e-30 | CD90: 3.439694151e-06 | CE90: 1.078089018e-22 | CF90: 1.786455498e-16 | CG90: 5.412699885e-11 | CH90: 0.003067777257 | CI90: 1.013340762e-06 | CJ90: 0.0008198001229 | CK90: 0.5653490223 | CL90: 0.00078942952 | CM90: 2.39936834e-27 | CN90: 2.77802845e-102 | CO90: 1.631808875e-23 | CP90: 0.03567297071 | CQ90: 1.991293435e-15 | CR90: 3.776074405e-21 | CS90: 8.479387419e-13 | CT90: 5.321046773e-22 | CU90: 4.725759123e-13 | CV90: 0.2246993483 | CW90: 1.012191179e-05 | CX90: 2.800514404e-12 | CY90: 5.926555367e-34 | CZ90: 2.71386808e-21 | DA90: 0.7859846626 | DB90: 0.0002926368902 | DC90: 2.00244541e-23 | DD90: 0.8392622893 | DE90: 166.8424668
B91: 90 | C91: 2.890222431e-05 | D91: 0.8200007698 | E91: 0.05777078967 | F91: 7.360043455e-09 | G91: 1.275763903e-23 | H91: 8.651759568e-83 | I91: 2.766147884e-29 | J91: 7.834946308e-11 | K91: 2.661627657e-09 | L91: 1.716896662e-15 | M91: 1.584214863e-10 | N91: 0.01518240633 | O91: 0.8744483925 | P91: 0.3880240332 | Q91: 0.6174470272 | R91: 9.315183013e-07 | S91: 7.074022716e-14 | T91: 4.272094541e-24 | U91: 1.892963967e-09 | V91: 0.01236793553 | W91: 0.002249534439 | X91: 9.224010568e-53 | Y91: 2.328008888e-36 | Z91: 0.04371770982 | AA91: 0.9930621786 | AB91: 0.8726314301 | AC91: 0.5185815412 | AD91: 5.87467612e-10 | AE91: 0.0006991312955 | AF91: 3.288553002e-07 | AG91: 3.287176915e-12 | AH91: 0.1233094783 | AI91: 3.913722354e-10 | AJ91: 2.233865438e-05 | AK91: 6.842648304e-52 | AL91: 3.442690549e-14 | AM91: 0.0001881855714 | AN91: 0.9571377103 | AO91: 0.0005057803873 | AP91: 8.785331581e-05 | AQ91: 0.001327045814 | AR91: 1.206035781e-19 | AS91: 7.199430522e-53 | AT91: 1.872262261e-05 | AU91: 7.528179919e-14 | AV91: 0.06087224228 | AW91: 1.31243371e-56 | AX91: 9.463672847e-06 | AY91: 0.3083320476 | AZ91: 0.3669506165 | BA91: 0.8798375419 | BB91: 0.03476194587 | BC91: 1.688810432e-15 | BD91: 0.0003248873666 | BE91: 1.316139142e-06 | BF91: 0.01078013705 | BG91: 1.838869149e-30 | BH91: 5.951005708e-24 | BI91: 2.142002548e-34 | BJ91: 0.3102273076 | BK91: 0.3130826706 | BL91: 0.6392510642 | BM91: 0.003260978419 | BN91: 8.560246016e-10 | BO91: 7.969208188e-23 | BP91: 4.832023504e-25 | BQ91: 7.869765056e-13 | BR91: 3.484078951e-40 | BS91: 2.140872917e-07 | BT91: 0.7616089835 | BU91: 3.544315806e-23 | BV91: 8.808179196e-08 | BW91: 0.9920934227 | BX91: 0.3837638076 | BY91: 0.02407816177 | BZ91: 1.22354032e-06 | CA91: 0.8671199163 | CB91: 9.020007466e-34 | CC91: 5.129739047e-30 | CD91: 3.801906145e-06 | CE91: 1.318045616e-22 | CF91: 2.117748483e-16 | CG91: 6.209423285e-11 | CH91: 0.00328311701 | CI91: 1.125393281e-06 | CJ91: 0.0008838263069 | CK91: 0.5532905547 | CL91: 0.0008512540013 | CM91: 2.993506704e-27 | CN91: 4.280464302e-102 | CO91: 2.00244541e-23 | CP91: 0.03755600475 | CQ91: 2.347015204e-15 | CR91: 4.583417747e-21 | CS91: 9.841008631e-13 | CT91: 6.484599422e-22 | CU91: 5.493184868e-13 | CV91: 0.2325541914 | CW91: 1.113866688e-05 | CX91: 3.23970772e-12 | CY91: 7.588569954e-34 | CZ91: 3.296347222e-21 | DA91: 0.7968108148 | DB91: 0.0003171619599 | DC91: 2.456282772e-23 | DD91: 0.8490883793 | DE91: 167.2243495
B92: 91 | C92: 3.166330875e-05 | D92: 0.8095716487 | E92: 0.0605847541 | F92: 8.316702457e-09 | G92: 1.566282753e-23 | H92: 1.276060536e-82 | I92: 3.478550545e-29 | J92: 8.978510706e-11 | K92: 3.017467299e-09 | L92: 2.024329217e-15 | M92: 1.811669743e-10 | N92: 0.01608387599 | O92: 0.8652628027 | P92: 0.3987709847 | Q92: 0.629567628 | R92: 1.034854211e-06 | S92: 8.263674158e-14 | T92: 5.256073325e-24 | U92: 2.148358016e-09 | V92: 0.0131206494 | W92: 0.002411775695 | X92: 1.256870418e-52 | Y92: 3.007211832e-36 | Z92: 0.04595181185 | AA92: 0.9952095112 | AB92: 0.8816130836 | AC92: 0.5304985788 | AD92: 6.691586091e-10 | AE92: 0.0007543666764 | AF92: 3.667563888e-07 | AG92: 3.801018723e-12 | AH92: 0.128434273 | AI92: 4.463480889e-10 | AJ92: 2.450013329e-05 | AK92: 9.299632058e-52 | AL92: 4.029060821e-14 | AM92: 0.0002043978946 | AN92: 0.9626282259 | AO92: 0.0005466575515 | AP92: 9.576608064e-05 | AQ92: 0.001426972802 | AR92: 1.453273745e-19 | AS92: 9.813136318e-53 | AT92: 2.054982773e-05 | AU92: 8.792800854e-14 | AV92: 0.06380919352 | AW92: 1.808546e-56 | AX92: 1.041722367e-05 | AY92: 0.3178746997 | AZ92: 0.3566330133 | BA92: 0.8708043101 | BB92: 0.03660421065 | BC92: 1.991293435e-15 | BD92: 0.0003519322051 | BE92: 1.460213354e-06 | BF92: 0.0114467435 | BG92: 2.323305114e-30 | BH92: 7.316998712e-24 | BI92: 2.747197117e-34 | BJ92: 0.3198030313 | BK92: 0.322707803 | BL92: 0.6513305554 | BM92: 0.003488623616 | BN92: 9.739296917e-10 | BO92: 9.748809148e-23 | BP92: 5.969751638e-25 | BQ92: 9.135319905e-13 | BR92: 4.561281979e-40 | BS92: 2.391339456e-07 | BT92: 0.7727791317 | BU92: 4.342738495e-23 | BV92: 9.869811391e-08 | BW92: 0.9893985952 | BX92: 0.3732122449 | BY92: 0.02542429668 | BZ92: 1.357858136e-06 | CA92: 0.8762551179 | CB92: 1.154168382e-33 | CC92: 6.469732674e-30 | CD92: 4.200579777e-06 | CE92: 1.610766328e-22 | CF92: 2.509474799e-16 | CG92: 7.120571741e-11 | CH92: 0.003512167186 | CI92: 1.249336435e-06 | CJ92: 0.000952471855 | CK92: 0.5412727328 | CL92: 0.0009175531964 | CM92: 3.73327368e-27 | CN92: 6.592822026e-102 | CO92: 2.456282772e-23 | CP92: 0.03952262446 | CQ92: 2.765176302e-15 | CR92: 5.561150175e-21 | CS92: 1.141671157e-12 | CT92: 7.899425583e-22 | CU92: 6.382680875e-13 | CV92: 0.2405873629 | CW92: 1.225265389e-05 | CX92: 3.746279132e-12 | CY92: 9.712785999e-34 | CZ92: 4.002242996e-21 | DA92: 0.8074630366 | DB92: 0.0003436049368 | DC92: 3.011773593e-23 | DD92: 0.8586859701 | DE92: 167.6035192
B93: 92 | C93: 3.467429235e-05 | D93: 0.7989555235 | E93: 0.06351037504 | F93: 9.393949736e-09 | G93: 1.922189957e-23 | H93: 1.881327464e-82 | I93: 4.372678266e-29 | J93: 1.028487144e-10 | K93: 3.419511953e-09 | L93: 2.385857014e-15 | M93: 2.070953087e-10 | N93: 0.01703205708 | O93: 0.8558313015 | P93: 0.4096516969 | Q93: 0.6416694393 | R93: 1.149193691e-06 | S93: 9.649530892e-14 | T93: 6.464102847e-24 | U93: 2.437234115e-09 | V93: 0.01391360696 | W93: 0.002584684057 | X93: 1.7119359e-52 | Y93: 3.883020568e-36 | Z93: 0.04828076683 | AA93: 0.9969626222 | AB93: 0.890330978 | AC93: 0.5424724382 | AD93: 7.619044209e-10 | AE93: 0.0008136404477 | AF93: 4.088620598e-07 | AG93: 4.393425047e-12 | AH93: 0.1337185582 | AI93: 5.088427939e-10 | AJ93: 2.686000985e-05 | AK93: 1.26337883e-51 | AL93: 4.713417845e-14 | AM93: 0.0002219181362 | AN93: 0.9677630546 | AO93: 0.0005906021195 | AP93: 0.0001043497834 | AQ93: 0.001533810679 | AR93: 1.750495283e-19 | AS93: 1.337038155e-52 | AT93: 2.254633574e-05 | AU93: 1.026575195e-13 | AV93: 0.06686109638 | AW93: 2.491196725e-56 | AX93: 1.146226755e-05 | AY93: 0.327581631 | AZ93: 0.3464668971 | BA93: 0.8615191453 | BB93: 0.03852869464 | BC93: 2.347015204e-15 | BD93: 0.0003810758962 | BE93: 1.619411089e-06 | BF93: 0.01214970973 | BG93: 2.934188105e-30 | BH93: 8.992943658e-24 | BI93: 3.521972358e-34 | BJ93: 0.3295424835 | BK93: 0.3324958168 | BL93: 0.6633729023 | BM93: 0.003730667899 | BN93: 1.107631373e-09 | BO93: 1.192104277e-22 | BP93: 7.372414945e-25 | BQ93: 1.06001506e-12 | BR93: 5.969145112e-40 | BS93: 2.670040527e-07 | BT93: 0.7837995244 | BU93: 5.31889268e-23 | BV93: 1.105497711e-07 | BW93: 0.9863164822 | BX93: 0.3628056455 | BY93: 0.02683495367 | BZ93: 1.506318445e-06 | CA93: 0.885132436 | CB93: 1.47624259e-33 | CC93: 8.156497018e-30 | CD93: 4.639202878e-06 | CE93: 1.967709244e-22 | CF93: 2.972470686e-16 | CG93: 8.162153332e-11 | CH93: 0.003755694716 | CI93: 1.386375182e-06 | CJ93: 0.001026038509 | CK93: 0.5293041815 | CL93: 0.0009886205207 | CM93: 4.653992767e-27 | CN93: 1.015028197e-101 | CO93: 3.011773593e-23 | CP93: 0.04157559261 | CQ93: 3.256537111e-15 | CR93: 6.744753564e-21 | CS93: 1.323941293e-12 | CT93: 9.619093658e-22 | CU93: 7.413244583e-13 | CV93: 0.2487984868 | CW93: 1.34726615e-05 | CX93: 4.330327247e-12 | CY93: 1.242664754e-33 | CZ93: 4.85735938e-21 | DA93: 0.8179304258 | DB93: 0.0003721036922 | DC93: 3.691412362e-23 | DD93: 0.868044759 | DE93: 167.9799434
B94: 93 | C94: 3.795641615e-05 | D94: 0.7881632819 | E94: 0.06655064781 | F94: 1.060648744e-08 | G94: 2.358026732e-23 | H94: 2.772578145e-82 | I94: 5.494434643e-29 | J94: 1.177659424e-10 | K94: 3.873574937e-09 | L94: 2.810826013e-15 | M94: 2.36639791e-10 | N94: 0.01802892259 | O94: 0.8461640717 | P94: 0.420660998 | Q94: 0.6537423274 | R94: 1.275656002e-06 | S94: 1.126329605e-13 | T94: 7.946600537e-24 | U94: 2.763847794e-09 | V94: 0.01474858696 | W94: 0.002768881032 | X94: 2.330830952e-52 | Y94: 5.011891295e-36 | Z94: 0.05070747213 | AA94: 0.9983194138 | AB94: 0.8987754979 | AC94: 0.5544947169 | AD94: 8.67157929e-10 | AE94: 0.0008772206508 | AF94: 4.556194114e-07 | AG94: 5.076129775e-12 | AH94: 0.1391645824 | AI94: 5.798556052e-10 | AJ94: 2.943541549e-05 | AK94: 1.715646097e-51 | AL94: 5.511811318e-14 | AM94: 0.0002408437921 | AN94: 0.9725361811 | AO94: 0.0006378241115 | AP94: 0.0001136573884 | AQ94: 0.001647988213 | AR94: 2.107660926e-19 | AS94: 1.820983675e-52 | AT94: 2.472692072e-05 | AU94: 1.198065543e-13 | AV94: 0.07003094943 | AW94: 3.43014731e-56 | AX94: 1.260710518e-05 | AY94: 0.3374499756 | AZ94: 0.3364559651 | BA94: 0.8519921209 | BB94: 0.0405381408 | BC94: 2.765176302e-15 | BD94: 0.0004124679715 | BE94: 1.795246894e-06 | BF94: 0.01289068914 | BG94: 3.704212886e-30 | BH94: 1.104834046e-23 | BI94: 4.513446994e-34 | BJ94: 0.339442742 | BK94: 0.3424437049 | BL94: 0.6753676971 | BM94: 0.003987909979 | BN94: 1.259183931e-09 | BO94: 1.457146463e-22 | BP94: 9.101009349e-25 | BQ94: 1.229494508e-12 | BR94: 7.808428442e-40 | BS94: 2.980030844e-07 | BT94: 0.7946591487 | BU94: 6.51186006e-23 | BV94: 1.237750539e-07 | BW94: 0.9828507515 | BX94: 0.3525481748 | BY94: 0.02831255311 | BZ94: 1.670342271e-06 | CA94: 0.8937421216 | CB94: 1.887437462e-33 | CC94: 1.027891582e-29 | CD94: 5.121577812e-06 | CE94: 2.402788759e-22 | CF94: 3.519480832e-16 | CG94: 9.352353501e-11 | CH94: 0.004014501896 | CI94: 1.537830348e-06 | CJ94: 0.001104845249 | CK94: 0.5173932786 | CL94: 0.001064766237 | CM94: 5.799464066e-27 | CN94: 1.562108314e-101 | CO94: 3.691412362e-23 | CP94: 0.04371770982 | CQ94: 3.833677e-15 | CR94: 8.176996874e-21 | CS94: 1.534697228e-12 | CT94: 1.170844113e-21 | CU94: 8.606762306e-13 | CV94: 0.2571869568 | CW94: 1.480822187e-05 | CX94: 5.003427191e-12 | CY94: 1.589243424e-33 | CZ94: 5.892821722e-21 | DA94: 0.8282021598 | DB94: 0.0004028049936 | DC94: 4.522609448e-23 | DD94: 0.877154617 | DE94: 168.3535923
B95: 94 | C95: 4.153259572e-05 | D95: 0.7772058768 | E95: 0.06970857092 | F95: 1.197074596e-08 | G95: 2.891528164e-23 | H95: 4.084411382e-82 | I95: 6.901202673e-29 | J95: 1.347928447e-10 | K95: 4.386176264e-09 | L95: 3.310166184e-15 | M95: 2.702909891e-10 | N95: 0.0190765013 | O95: 0.8362714648 | P95: 0.4317934198 | Q95: 0.6657760009 | R95: 1.415468481e-06 | S95: 1.314168582e-13 | T95: 9.765192055e-24 | U95: 3.132977521e-09 | V95: 0.01562742337 | W95: 0.002965018521 | X95: 3.172198357e-52 | Y95: 6.466359962e-36 | Z95: 0.05323485117 | AA95: 0.9992782606 | AB95: 0.906937264 | AC95: 0.5665567653 | AD95: 9.865570119e-10 | AE95: 0.0009453909616 | AF95: 5.075208719e-07 | AG95: 5.862576108e-12 | AH95: 0.1447744883 | AI95: 6.605145259e-10 | AJ95: 3.224485701e-05 | AK95: 2.328885304e-51 | AL95: 6.442864903e-14 | AM95: 0.0002612789363 | AN95: 0.9769419942 | AO95: 0.0006885462962 | AP95: 0.0001237456882 | AQ95: 0.001769957047 | AR95: 2.536686665e-19 | AS95: 2.479103086e-52 | AT95: 2.710755735e-05 | AU95: 1.397644345e-13 | AV95: 0.07332174914 | AW95: 4.721106536e-56 | AX95: 1.386074242e-05 | AY95: 0.3474765841 | AZ95: 0.3266036248 | BA95: 0.8422334893 | BB95: 0.04263533114 | BC95: 3.256537111e-15 | BD95: 0.0004462675044 | BE95: 1.989379056e-06 | BF95: 0.01367138933 | BG95: 4.674446639e-30 | BH95: 1.356808348e-23 | BI95: 5.781719685e-34 | BJ95: 0.3495006002 | BK95: 0.3525481748 | BL95: 0.6873043993 | BM95: 0.00426118495 | BN95: 1.430900315e-09 | BO95: 1.780403539e-22 | BP95: 1.123041053e-24 | BQ95: 1.425500694e-12 | BR95: 1.021036846e-39 | BS95: 3.324680738e-07 | BT95: 0.805347031 | BU95: 7.969208188e-23 | BV95: 1.38527081e-07 | BW95: 0.9790055181 | BX95: 0.3424437049 | BY95: 0.02985956664 | BZ95: 1.851485996e-06 | CA95: 0.9020746516 | CB95: 2.41220211e-33 | CC95: 1.294843317e-29 | CD95: 5.651847924e-06 | CE95: 2.932895164e-22 | CF95: 4.165488218e-16 | CG95: 1.071182234e-10 | CH95: 0.004289427521 | CI95: 1.705149104e-06 | CJ95: 0.001189229096 | CK95: 0.5055481464 | CL95: 0.001146318243 | CM95: 7.223976123e-27 | CN95: 2.403092363e-101 | CO95: 4.522609448e-23 | CP95: 0.04595181185 | CQ95: 4.511295645e-15 | CR95: 9.909411408e-21 | CS95: 1.778291578e-12 | CT95: 1.424591282e-21 | CU95: 9.988437849e-13 | CV95: 0.2657519298 | CW95: 1.626966869e-05 | CX95: 5.77884084e-12 | CY95: 2.031669906e-33 | CZ95: 7.146158595e-21 | DA95: 0.8382675143 | DB95: 0.0004358649981 | DC95: 5.538751636e-23 | DD95: 0.886005607 | DE95: 168.7244391
B96: 95 | C96: =+EXP(-(($B96-C$2)^2/(2*alpha^2))) -> 4.542754131e-05 | D96: 0.7660943075 | E96: 0.07298714129 | F96: 1.3505079e-08 | G96: 3.544315806e-23 | H96: 6.014526494e-82 | I96: 8.664686104e-29 | J96: 1.542198398e-10 | K96: 4.964625353e-09 | L96: 3.896654619e-15 | M96: =+EXP(-(($B96-M$2)^2/(2*alpha^2))) -> 3.086040661e-10 | N96: 0.02017687767 | O96: 0.8261639818 | P96: 0.4430431986 | Q96: 0.6777600244 | R96: 1.569976354e-06 | S96: 1.53272042e-13 | T96: 1.199517196e-23 | U96: 3.549986629e-09 | V96: 0.0165520056 | W96: =+EXP(-(($B96-W$2)^2/(2*alpha^2))) -> 0.003173779913 | X96: 4.315550246e-52 | Y96: 8.339584106e-36 | Z96: 0.05586584988 | AA96: 0.9998380131 | AB96: 0.9148071509 | AC96: 0.578649696 | AD96: 1.121947301e-09 | AE96: 0.001018451441 | AF96: 5.651085502e-07 | AG96: =+EXP(-(($B96-AG$2)^2/(2*alpha^2))) -> 6.768159007e-12 | AH96: 0.1505503047 | AI96: 7.520923452e-10 | AJ96: 3.530831745e-05 | AK96: 3.16005598e-51 | AL96: 7.528179919e-14 | AM96: 0.0002833346075 | AN96: 0.9809752982 | AO96: 0.0007430048394 | AP96: 0.0001346755507 | AQ96: =+EXP(-(($B96-AQ$2)^2/(2*alpha^2))) -> 0.001900192656 | AR96: 3.051821932e-19 | AS96: 3.373722843e-52 | AT96: 2.970551022e-05 | AU96: 1.629817767e-13 | AV96: 0.07673648494 | AW96: 6.49532838e-56 | AX96: 1.523294563e-05 | AY96: 0.3576580202 | AZ96: 0.3169129971 | BA96: =+EXP(-(($B96-BA$2)^2/(2*alpha^2))) -> 0.832253664 | BB96: 0.0448230842 | BC96: 3.833677e-15 | BD96: 0.0004826436313 | BE96: 2.203622414e-06 | BF96: 0.01449357255 | BG96: 5.896451857e-30 | BH96: 1.665582878e-23 | BI96: 7.403413383e-34 | BJ96: 0.3597125639 | BK96: =+EXP(-(($B96-BK$2)^2/(2*alpha^2))) -> 0.3628056455 | BL96: 0.6991723504 | BM96: 0.004551365414 | BN96: 1.62538358e-09 | BO96: 2.174502811e-22 | BP96: 1.38524945e-24 | BQ96: 1.652093243e-12 | BR96: 1.334582657e-39 | BS96: 3.707707092e-07 | BT96: 0.8158522554 | BU96: =+EXP(-(($B96-BU$2)^2/(2*alpha^2))) -> 9.748809148e-23 | BV96: 1.549753136e-07 | BW96: 0.9747853364 | BX96: 0.3324958168 | BY96: 0.03147851592 | BZ96: 2.051453483e-06 | CA96: 0.9101207463 | CB96: 3.081634287e-33 | CC96: 1.63047225e-29 | CD96: 6.234526026e-06 | CE96: =+EXP(-(($B96-CE$2)^2/(2*alpha^2))) -> 3.578522644e-22 | CF96: 4.928099851e-16 | CG96: 1.226399855e-10 | CH96: 0.004581348005 | CI96: 1.889916329e-06 | CJ96: 0.001279545938 | CK96: 0.4937766448 | CL96: 0.00123362289 | CM96: 8.99478991e-27 | CN96: 3.695354138e-101 | CO96: =+EXP(-(($B96-CO$2)^2/(2*alpha^2))) -> 5.538751636e-23 | CP96: 0.04828076683 | CQ96: 5.306563204e-15 | CR96: 1.200406032e-20 | CS96: 2.059726312e-12 | CT96: 1.732637741e-21 | CU96: 1.158728306e-12 | CV96: 0.2744923191 | CW96: 1.786819931e-05 | CX96: 6.671756149e-12 | CY96: =+EXP(-(($B96-CY$2)^2/(2*alpha^2))) -> 2.596223966e-33 | CZ96: 8.662600385e-21 | DA96: 0.8481158813 | DB96: 0.0004714497671 | DC96: 6.780488428e-23 | DD96: 0.8945880017 | DE96: 169.0924598
B97: 96 | C97: 4.966788554e-05 | D97: 0.754839602 | E97: 0.07638934927 | F97: 1.522997974e-08 | G97: 4.342738495e-23 | H97: 8.853188048e-82 | I97: 1.087444669e-28 | J97: 1.763761827e-10 | K97: 5.617113034e-09 | L97: 4.585221411e-15 | M97: 3.522070158e-10 | N97: 0.0213321917 | O97: 0.8158522554 | P97: 0.4544042766 | Q97: 0.6896838326 | R97: 1.740653396e-06 | S97: 1.786903456e-13 | T97: 1.472849764e-23 | U97: 4.020892275e-09 | V97: 0.01752427879 | W97: 0.003395881178 | X97: 5.86865124e-52 | Y97: 1.075115669e-35 | Z97: 0.05860343303 | AA97: 0.999998 | AB97: 0.9223763039 | AC97: 0.5907643926 | AD97: 1.27540763e-09 | AE97: 0.001096719311 | AF97: 6.289789793e-07 | AG97: 7.810501044e-12 | AH97: 0.1564939387 | AI97: 8.560246016e-10 | AJ97: 3.86473635e-05 | AK97: 4.286153637e-51 | AL97: 8.792800854e-14 | AM97: 0.000307129216 | AN97: 0.9846313223 | AO97: 0.0008014499767 | AP97: 0.000146512179 | AQ97: 0.00203919532 | AR97: 3.670099476e-19 | AS97: 4.589342812e-52 | AT97: 3.253942913e-05 | AU97: 1.899799224e-13 | AV97: 0.08027813392 | AW97: 8.932740258e-56 | AX97: 1.673430088e-05 | AY97: 0.3679905575 | AZ97: 0.3073869198 | BA97: 0.822063201 | BB97: 0.04710425228 | BC97: 4.511295645e-15 | BD97: 0.0005217760944 | BE97: 2.439962226e-06 | BF97: 0.01535905618 | BG97: 7.434942081e-30 | BH97: 2.043808827e-23 | BI97: 9.476178866e-34 | BJ97: 0.3700748487 | BK97: 0.3732122449 | BL97: 0.7109607888 | BM97: 0.004859362609 | BN97: 1.845561998e-09 | BO97: 2.654775373e-22 | BP97: 1.707995109e-24 | BQ97: 1.913938414e-12 | BR97: 1.743716277e-39 | BS97: 4.133207132e-07 | BT97: 0.8261639818 | BU97: 1.192104277e-22 | BV97: 1.733072164e-07 | BW97: 0.9701951909 | BX97: 0.322707803 | BY97: 0.03317197122 | BZ97: 2.272109188e-06 | CA97: 0.9178713865 | CB97: 3.93527226e-33 | CC97: 2.052276566e-29 | CD97: 6.874525053e-06 | CE97: 4.364527979e-22 | CF97: 5.827997666e-16 | CG97: 1.403547458e-10 | CH97: 0.004891178512 | CI97: 2.093866921e-06 | CJ97: 0.001376171377 | CK97: 0.4820863652 | CL97: 0.001327045814 | CM97: 1.119520443e-26 | CN97: 5.680256513e-101 | CO97: 6.780488428e-23 | CP97: 0.05070747213 | CQ97: 6.239527104e-15 | CR97: 1.453566018e-20 | CS97: 2.384747183e-12 | CT97: 2.106451868e-21 | CU97: 1.343667903e-12 | CV97: 0.283406788 | CW97: 1.961594112e-05 | CX97: 7.699559473e-12 | CY97: 3.316327742e-33 | CZ97: 1.049663734e-20 | DA97: 0.8577367884 | DB97: 0.0005097358029 | DC97: 8.297291522e-23 | DD97: 0.9028923016 | DE97: 169.4576329
B98: 97 | C98: 5.428231905e-05 | D98: 0.743452799 | E98: 0.07991817342 | F98: 1.71683202e-08 | G98: 5.31889268e-23 | H98: 1.302639424e-81 | I98: 1.364230596e-28 | J98: 2.016349967e-10 | K98: 6.352813826e-09 | L98: 5.393305137e-15 | M98: 4.018099099e-10 | N98: 0.02254463854 | O98: 0.805347031 | P98: 0.4658703046 | Q98: 0.7015367451 | R98: 1.929113475e-06 | S98: 2.082406527e-13 | T98: 1.80774306e-23 | U98: 4.552442203e-09 | V98: 0.01854624382 | W98: 0.003632071981 | X98: 7.977498058e-52 | Y98: 1.385454514e-35 | Z98: 0.06145058027 | AA98: 0.9997580293 | AB98: 0.9296361555 | AC98: 0.6028915194 | AD98: 1.449278486e-09 | AE98: 0.001180529751 | AF98: 6.997882834e-07 | AG98: 9.009766142e-12 | AH98: 0.1626071679 | AI98: 9.739296917e-10 | AJ98: 4.228525983e-05 | AK98: 5.811215415e-51 | AL98: 1.026575195e-13 | AM98: 0.0003327889675 | AN98: 0.9879057308 | AO98: 0.0008641467103 | AP98: 0.0001593253851 | AQ98: 0.002187491118 | AR98: 4.411870578e-19 | AS98: 6.240478335e-52 | AT98: 3.562945053e-05 | AU98: 2.21361784e-13 | AV98: 0.08394965542 | AW98: 1.227989298e-55 | AX98: 1.837627734e-05 | AY98: 0.3784701777 | AZ98: 0.2980279515 | BA98: 0.8116727803 | BB98: 0.04948171854 | BC98: 5.306563204e-15 | BD98: 0.0005638558073 | BE98: 2.700569179e-06 | BF98: 0.01626971296 | BG98: 9.371102854e-30 | BH98: 2.506920579e-23 | BI98: 1.212441468e-33 | BJ98: 0.3805833773 | BK98: 0.3837638076 | BL98: 0.7226588656 | BM98: 0.005186127535 | BN98: 2.094728262e-09 | BO98: 3.239827365e-22 | BP98: 2.105094232e-24 | BQ98: 2.216397469e-12 | BR98: 2.277363984e-39 | BS98: 4.605695321e-07 | BT98: 0.8362714648 | BU98: 1.457146463e-22 | BV98: 1.937300775e-07 | BW98: 0.9652404864 | BX98: 0.3130826706 | BY98: 0.03494254981 | BZ98: 2.515492371e-06 | CA98: 0.9253178305 | CB98: 5.023365206e-33 | CC98: 2.58216888e-29 | CD98: 7.577191057e-06 | CE98: 5.321046773e-22 | CF98: 6.889465377e-16 | CG98: 1.605640801e-10 | CH98: 0.00521987408 | CI98: 2.318899125e-06 | CJ98: 0.001479501607 | CK98: 0.4704846243 | CL98: 0.001426972802 | CM98: 1.392833857e-26 | CN98: 8.727826697e-101 | CO98: 8.297291522e-23 | CP98: 0.05323485117 | CQ98: 7.333584359e-15 | CR98: 1.759412348e-20 | CS98: 2.759951524e-12 | CT98: 2.5598917e-21 | CU98: 1.557501782e-12 | CV98: 0.2924937442 | CW98: 2.152602263e-05 | CX98: 8.882145302e-12 | CY98: 4.23446956e-33 | CZ98: 1.271388817e-20 | DA98: 0.8671199163 | DB98: 0.0005509106068 | DC98: 1.014934467e-22 | DD98: 0.9109092523 | DE98: 169.81994
B99: 98 | C99: 5.930173467e-05 | D99: 0.7319449301 | E99: 0.08357657513 | F99: 1.934561612e-08 | G99: 6.51186006e-23 | H99: 1.915909668e-81 | I99: 1.710782048e-28 | J99: 2.304189367e-10 | K99: 7.181999577e-09 | L99: 6.341265758e-15 | M99: 4.582152794e-10 | N99: 0.02381646811 | O99: 0.7946591487 | P99: 0.4774346438 | Q99: 0.7133079817 | R99: 2.137123055e-06 | S99: 2.425806894e-13 | T99: 2.217896311e-23 | U99: 5.15220015e-09 | V99: 0.01961995732 | W99: 0.003883136794 | X99: 1.083980314e-51 | Y99: 1.784660596e-35 | Z99: 0.06441028201 | AA99: 0.9991183888 | AB99: 0.9365784418 | AC99: 0.6150215322 | AD99: 1.646193803e-09 | AE99: 0.001270236723 | AF99: 7.78257804e-07 | AG99: 1.038901623e-11 | AH99: 0.1688916321 | AI99: 1.107631373e-09 | AJ99: 4.624709069e-05 | AK99: 7.875760431e-51 | AL99: 1.198065543e-13 | AM99: 0.0003604483085 | AN99: 0.9907946312 | AO99: 0.00093137553 | AP99: 0.0001731898788 | AQ99: 0.002345632947 | AR99: 5.301441512e-19 | AS99: 8.482259253e-52 | AT99: 3.899730565e-05 | AU99: 2.578243128e-13 | AV99: 0.0877539854 | AW99: 1.687449327e-55 | AX99: 2.017129508e-05 | AY99: 0.3890925679 | AZ99: 0.288838376 | BA99: 0.8010931873 | BB99: 0.05195839379 | BC99: 6.239527104e-15 | BD99: 0.0006090854428 | BE99: 2.987815618e-06 | BF99: 0.01722747131 | BG99: 1.180674277e-29 | BH99: 3.073740239e-23 | BI99: 1.550652901e-33 | BJ99: 0.391233778 | BK99: 0.3944558732 | BL99: 0.7342556603 | BM99: 0.005532652069 | BN99: 2.376583226e-09 | BO99: 3.952230274e-22 | BP99: 2.593479037e-24 | BQ99: 2.565627571e-12 | BR99: 2.97313998e-39 | BS99: 5.1301436e-07 | BT99: 0.8461640717 | BU99: 1.780403539e-22 | BV99: 2.164730019e-07 | BW99: 0.9599270375 | BX99: 0.3036231454 | BY99: 0.03679291425 | BZ99: 2.783832451e-06 | CA99: 0.9324516301 | CB99: 6.409748719e-33 | CC99: 3.247578679e-29 | CD99: 8.348338675e-06 | CE99: 6.484599422e-22 | CF99: 8.141003788e-16 | CG99: 1.836098482e-10 | CH99: 0.005568430735 | CI99: 2.567088964e-06 | CJ99: 0.001589954308 | CK99: 0.4589784591 | CL99: 0.001533810679 | CM99: 1.732179458e-26 | CN99: 1.340511556e-100 | CO99: 1.014934467e-22 | CP99: 0.05586584988 | CQ99: 8.616029769e-15 | CR99: 2.128760446e-20 | CS99: 3.192911243e-12 | CT99: 3.10969594e-21 | CU99: 1.804643591e-12 | CV99: 0.3017513334 | CW99: 2.361264935e-05 | CX99: 1.024226837e-11 | CY99: 5.404641216e-33 | CZ99: 1.539334007e-20 | DA99: 0.8762551179 | DB99: 0.0005951732609 | DC99: 1.240983296e-22 | DD99: 0.9186298615 | DE99: 170.1793651
B100: 99 | C100: 6.47593802e-05 | D100: 0.7203270025 | E100: 0.08736749293 | F100: 2.179032005e-08 | G100: 7.969208188e-23 | H100: 2.816774772e-81 | I100: 2.144508962e-28 | J100: 2.632065581e-10 | K100: 8.11616569e-09 | L100: 7.452864051e-15 | M100: 5.223297618e-10 | N100: 0.02514998447 | O100: 0.7837995244 | P100: 0.4890903704 | Q100: 0.7249866776 | R100: 2.366614749e-06 | S100: 2.824705776e-13 | T100: 2.720019743e-23 | U100: 5.828640816e-09 | V100: 0.02074753157 | W100: 0.004149896022 | X100: 1.472320522e-51 | Y100: 2.297974895e-35 | Z100: 0.06748553502 | AA100: 0.9980798459 | AB100: 0.9431952178 | AC100: 0.6271446896 | AD100: 1.869116458e-09 | AE100: 0.00136621382 | AF100: 8.651802242e-07 | AG100: 1.197461648e-11 | AH100: 0.1753488256 | AI100: 1.259183931e-09 | AJ100: 5.055988918e-05 | AK100: 1.066950575e-50 | AL100: 1.397644345e-13 | AM100: 0.0003902503897 | AN100: 0.9932945823 | AO100: 0.001003433159 | AP100: 0.0001881855714 | AQ100: 0.002514201552 | AR100: 6.367830093e-19 | AS100: 1.15247493e-51 | AT100: 4.266643553e-05 | AU100: 3.001728258e-13 | AV100: 0.0916940305 | AW100: 2.317891914e-55 | AX100: 2.21327975e-05 | AY100: 0.3998531197 | AZ100: 0.279820207 | BA100: 0.7903352946 | BB100: 0.05453721316 | BC100: 7.333584359e-15 | BD100: 0.0006576800441 | BE100: 3.304293085e-06 | BF100: 0.01823431537 | BG100: 1.486948e-29 | BH100: 3.76721175e-23 | BI100: 1.982415536e-33 | BJ100: 0.4020213831 | BK100: 0.4052836851 | BL100: 0.7457401976 | BM100: 0.005899970076 | BN100: 2.695284695e-09 | BO100: 4.819354731e-22 | BP100: 3.193891987e-24 | BQ100: 2.96869694e-12 | BR100: 3.879935876e-39 | BS100: 5.712025281e-07 | BT100: 0.8558313015 | BU100: 2.174502811e-22 | BV100: 2.417890948e-07 | BW100: 0.9542610573 | BX100: 0.2943316754 | BY100: 0.03872577035 | BZ100: 3.07956563e-06 | CA100: 0.9392646473 | CB100: 8.175485217e-33 | CC100: 4.082827229e-29 | CD100: 9.194289253e-06 | CE100: 7.899425583e-22 | CF100: 9.616049139e-16 | CG100: 2.098794075e-10 | CH100: 0.005937886601 | CI100: 2.840705844e-06 | CJ100: 0.00170796957 | CK100: 0.4475746229 | CL100: 0.001647988213 | CM100: 2.15334063e-26 | CN100: 2.058075452e-100 | CO100: 1.240983296e-22 | CP100: 0.05860343303 | CQ100: 1.011869188e-14 | CR100: 2.574614618e-20 | CS100: 3.692313092e-12 | CT100: 3.776074405e-21 | CU100: 2.090165221e-12 | CV100: 0.3111774347 | CW100: 2.589118486e-05 | CX100: 1.180594379e-11 | CY100: 6.895424452e-33 | CZ100: 1.863003294e-20 | DA100: 0.885132436 | DB100: 0.0006427350317 | DC100: 1.516771474e-22 | DD100: 0.9260454162 | DE100: 170.5358948
B101: 100 | C101: 7.069102061e-05 | D101: 0.7086099818 | E101: 0.09129383667 | F101: 2.45341454e-08 | G101: 9.748809148e-23 | H101: 4.139572545e-81 | I101: 2.687121655e-28 | J101: 3.005394769e-10 | K101: 9.168171232e-09 | L101: 8.755818011e-15 | M101: 5.95177164e-10 | N101: 0.02654754507 | O101: 0.7727791317 | P101: 0.5008302789 | Q101: 0.7365619003 | R101: 2.619701966e-06 | S101: 3.28788404e-13 | T101: 3.334487982e-23 | U101: 6.591255438e-09 | V101: 0.02193113417 | W101: 0.004433207129 | X101: 1.998985382e-51 | Y101: 2.957748257e-35 | Z101: 0.07067933784 | AA101: 0.9966436452 | AB101: 0.9494788727 | AC101: 0.6392510642 | AD101: 2.121377914e-09 | AE101: 0.001468855137 | AF101: 9.614262288e-07 | AG101: 1.379669562e-11 | AH101: 0.1819800888 | AI101: 1.430900315e-09 | AJ101: 5.525277459e-05 | AK101: 1.444848757e-50 | AL101: 1.629817767e-13 | AM101: 0.000422347552 | AN101: 0.9954026005 | AO101: 0.001080633322 | AP101: 0.0002043978946 | AQ101: 0.00269380658 | AR101: 7.64566459e-19 | AS101: 1.565228379e-51 | AT101: 4.666211334e-05 | AU101: 3.49337462e-13 | AV101: 0.09577266201 | AW101: 3.18259886e-55 | AX101: 2.427532878e-05 | AY101: 0.4107469284 | AZ101: 0.2709751933 | BA101: 0.7794100435 | BB101: 0.05722113247 | BC101: 8.616029769e-15 | BD101: 0.0007098676598 | BE101: 3.652831272e-06 | BF101: 0.01929228508 | BG101: 1.871921974e-29 | BH101: 4.615292004e-23 | BI101: 2.53338428e-33 | BJ101: 0.4129412285 | BK101: 0.4162421903 | BL101: 0.7571014641 | BM101: 0.006289158506 | BN101: 3.055501808e-09 | BO101: 5.8743772e-22 | BP101: 3.931732749e-24 | BQ101: 3.433716203e-12 | BR101: 5.061276007e-39 | BS101: 6.357362887e-07 | BT101: 0.8652628027 | BU101: 2.654775373e-22 | BV101: 2.699578503e-07 | BW101: 0.9482491451 | BX101: 0.2852104358 | BY101: 0.04074386511 | BZ101: 3.405352839e-06 | CA101: 0.9457490689 | CB101: 1.042347078e-32 | CC101: 5.130841582e-29 | CD101: 1.012191179e-05 | CE101: 9.619093658e-22 | CF101: 1.135381133e-15 | CG101: 2.398114803e-10 | CH101: 0.006329322997 | CI101: 3.142229431e-06 | CJ101: 0.00183401083 | CK101: 0.4362795811 | CL101: 0.001769957047 | CM101: 2.675832155e-26 | CN101: 3.158481264e-100 | CO101: 1.516771474e-22 | CP101: 0.06145058027 | CQ101: 1.187867048e-14 | CR101: 3.112604576e-20 | CS101: 4.268118577e-12 | CT101: 4.583417747e-21 | CU101: 2.419892496e-12 | CV101: 0.3207696547 | CW101: 2.837823727e-05 | CX101: 1.36029015e-11 | CY101: 8.793897973e-33 | CZ101: 2.25382745e-20 | DA101: 0.8937421216 | DB101: 0.000693819998 | DC101: 1.85310766e-22 | DD101: 0.9331474986 | DE101: 170.8895182
B102: 101 | C102: 7.713510988e-05 | D102: 0.6968047755 | E102: 0.09535848147 | F102: 2.761242457e-08 | G102: 1.192104277e-22 | H102: 6.081142153e-81 | I102: 3.365681955e-28 | J102: 3.430304147e-10 | K102: 1.035239441e-08 | L102: 1.028244832e-14 | M102: 6.779131049e-10 | N102: 0.02801155991 | O102: 0.7616089835 | P102: 0.5126468871 | Q102: 0.7480226655 | R102: 2.898694775e-06 | S102: 3.825480992e-13 | T102: 4.086133379e-23 | U102: 7.450669074e-09 | V102: 0.02317298774 | W102: 0.004733965763 | X102: 2.712958516e-51 | Y102: 3.805427187e-35 | Z102: 0.07399468594 | AA102: 0.994811507 | AB102: 0.9554221445 | AC102: 0.6513305554 | AD102: 2.406722436e-09 | AE102: 0.001578576164 | AF102: 1.067951746e-06 | AG102: 1.588966846e-11 | AH102: 0.1887866004 | AI102: 1.62538358e-09 | AJ102: 6.035709821e-05 | AK102: 1.95581043e-50 | AL102: 1.899799224e-13 | AM102: 0.0004569018319 | AN102: 0.9971161663 | AO102: 0.001163307544 | AP102: 0.0002219181362 | AQ102: 0.002885087645 | AR102: 9.176251307e-19 | AS102: 2.124957374e-51 | AT102: 5.10115745e-05 | AU102: 4.063920747e-13 | AV102: 0.09999270957 | AW102: 4.368143606e-55 | AX102: 2.661461652e-05 | AY102: 0.4217687926 | AZ102: 0.2623048243 | BA102: 0.7683284254 | BB102: 0.06001312444 | BC102: 1.011869188e-14 | BD102: 0.0007658900013 | BE102: 4.03651848e-06 | BF102: 0.02040347601 | BG102: 2.355624086e-29 | BH102: 5.65203207e-23 | BI102: 3.236187919e-33 | BJ102: 0.4239880534 | BK102: 0.4273260389 | BL102: 0.7683284254 | BM102: 0.006701338476 | BN102: 3.462475643e-09 | BO102: 7.157494903e-22 | BP102: 4.83809105e-24 | BQ102: 3.969988174e-12 | BR102: 6.599663262e-39 | BS102: 7.072780266e-07 | BT102: 0.8744483925 | BU102: 3.239827365e-22 | BV102: 3.012877647e-07 | BW102: 0.9418982736 | BX102: 0.2762613337 | BY102: 0.04284998431 | BZ102: 3.764099131e-06 | CA102: 0.951897422 | CB102: 1.328426256e-32 | CC102: 6.445290421e-29 | CD102: 1.113866688e-05 | CE102: 1.170844113e-21 | CF102: 1.340025167e-15 | CG102: 2.739027499e-10 | CH102: 0.006743865514 | CI102: 3.474367882e-06 | CJ102: 0.001968565843 | CK102: 0.4250995084 | CL102: 0.001900192656 | CM102: 3.32377245e-26 | CN102: 4.845310352e-100 | CO102: 1.85310766e-22 | CP102: 0.06441028201 | CQ102: 1.393919136e-14 | CR102: 3.761507696e-20 | CS102: 4.93174616e-12 | CT102: 5.561150175e-21 | CU102: 2.800514404e-12 | CV102: 0.3305253238 | CW102: 3.109175147e-05 | CX102: 1.566710225e-11 | CY102: 1.121058105e-32 | CZ102: 2.725548957e-20 | DA102: 0.9020746516 | DB102: 0.0007486657019 | DC102: 2.263119216e-22 | DD102: 0.9399280023 | DE102: 171.2402271
B103: 102 | C103: 8.41329729e-05 | D103: 0.6849222163 | E103: 0.09956426141 | F103: 3.106450462e-08 | G103: 1.457146463e-22 | H103: 8.929786912e-81 | I103: 4.213908509e-28 | J103: 3.913722354e-10 | K103: 1.168490499e-08 | L103: 1.20704268e-14 | M103: 7.718414212e-10 | N103: 0.02954449048 | O103: 0.7503001144 | P103: 0.5245324419 | Q103: 0.7593579541 | R103: 3.206117033e-06 | S103: 4.449199574e-13 | T103: 5.005208843e-23 | U103: 8.418770843e-09 | V103: 0.02447536934 | W103: 0.005053106886 | X103: 3.680467355e-51 | Y103: 4.894089511e-35 | Z103: 0.07743456669 | AA103: 0.9925856231 | AB103: 0.9610181343 | AC103: 0.6633729023 | AD103: 2.729356418e-09 | AE103: 0.001695814708 | AF103: 1.185805817e-06 | AG103: 1.829282883e-11 | AH103: 0.1957693693 | AI103: 1.845561998e-09 | AJ103: 6.5906598e-05 | AK103: 2.646411707e-50 | AL103: 2.21361784e-13 | AM103: 0.0004940854895 | AN103: 0.9984332287 | AO103: 0.001251805963 | AP103: 0.0002408437921 | AQ103: 0.003088715408 | AR103: 1.100884199e-18 | AS103: 2.883692937e-51 | AT103: 5.574415479e-05 | AU103: 4.725759123e-13 | AV103: 0.1043569547 | AW103: 5.992916058e-55 | AX103: 2.91676599e-05 | AY103: 0.4329132143 | AZ103: 0.2538103359 | BA103: 0.7571014641 | BB103: 0.06291617463 | BC103: 1.187867048e-14 | BD103: 0.000826003126 | BE103: 4.458723695e-06 | BF103: 0.02157003923 | BG103: 2.963128681e-29 | BH103: 6.918888524e-23 | BI103: 4.132307918e-33 | BJ103: 0.4351563009 | BK103: 0.4385295854 | BL103: 0.7794100435 | BM103: 0.007137676327 | BN103: 3.922086713e-09 | BO103: 8.717391436e-22 | BP103: 5.951005708e-24 | BQ103: 4.588178553e-12 | BR103: 8.602205525e-39 | BS103: 7.865559335e-07 | BT103: 0.8833780741 | BU103: 3.952230274e-22 | BV103: 3.361191926e-07 | BW103: 0.9352157759 | BX103: 0.2674860135 | BY103: 0.04504694999 | BZ103: 4.158974619e-06 | CA103: 0.9577025881 | CB103: 1.69234472e-32 | CC103: 8.093244463e-29 | CD103: 1.225265389e-05 | CE103: 1.424591282e-21 | CF103: 1.580922275e-15 | CG103: 3.127152762e-10 | CH103: 0.007182685075 | CI103: 3.840077536e-06 | CJ103: 0.002112147662 | CK103: 0.4140402863 | CL103: 0.00203919532 | CM103: 4.126957356e-26 | CN103: 7.430040424e-100 | CO103: 2.263119216e-22 | CP103: 0.06748553502 | CQ103: 1.635059675e-14 | CR103: 4.543873581e-20 | CS103: 5.696278779e-12 | CT103: 6.744753564e-21 | CU103: 3.23970772e-12 | CV103: 0.3404414913 | CW103: 3.405110751e-05 | CX103: 1.803732309e-11 | CY103: 1.428568617e-32 | CZ103: 3.29468268e-20 | DA103: 0.9101207463 | DB103: 0.0008075238239 | DC103: 2.762743053e-22 | DD103: 0.9463791476 | DE103: 171.5880156
B104: 103 | C104: 9.172899817e-05 | D104: 0.6729730464 | E104: 0.1039139631 | F104: 3.49341841e-08 | G104: 1.780403539e-22 | H104: 1.310760417e-80 | I104: 5.273797039e-28 | J104: 4.463480889e-10 | K104: 1.318365542e-08 | L104: 1.416364393e-14 | M104: 8.784325411e-10 | N104: 0.03114884852 | O104: 0.7388635622 | P104: 0.536478925 | Q104: 0.7705567296 | R104: 3.544724912e-06 | S104: 5.172541785e-13 | T104: 6.128555874e-23 | U104: 9.508858492e-09 | V104: 0.02584060983 | W104: 0.005391605888 | X104: 4.99101723e-51 | Y104: 6.291680812e-35 | Z104: 0.08100195409 | AA104: 0.989968653 | AB104: 0.9662603187 | AC104: 0.6753676971 | AD104: 3.094003356e-09 | AE104: 0.001821031828 | AF104: 1.316139142e-06 | AG104: 2.105102212e-11 | AH104: 0.2029292262 | AI104: 2.094728262e-09 | AJ104: 7.193756269e-05 | AK104: 3.579433865e-50 | AL104: 2.578243128e-13 | AM104: 0.0005340815582 | AN104: 0.9993522099 | AO104: 0.001346498176 | AP104: 0.0002612789363 | AQ104: 0.003305392676 | AR104: 1.320213775e-18 | AS104: 3.911776985e-51 | AT104: 6.089143704e-05 | AU104: 5.493184868e-13 | AV104: 0.1088681241 | AW104: 8.218749879e-55 | AX104: 3.195282377e-05 | AY104: 0.4441744004 | AZ104: 0.2454927166 | BA104: 0.7457401976 | BB104: 0.06593327719 | BC104: 1.393919136e-14 | BD104: 0.0008904781432 | BE104: 4.923120404e-06 | BF104: 0.02279418088 | BG104: 3.725815287e-29 | BH104: 8.46631322e-23 | BI104: 5.274458757e-33 | BJ104: 0.4464401188 | BK104: 0.4498468894 | BL104: 0.7903352946 | BM104: 0.007599384666 | BN104: 4.440930102e-09 | BO104: 1.061300404e-21 | BP104: 7.316998712e-24 | BQ104: 5.30051039e-12 | BR104: 1.120789709e-38 | BS104: 8.743701835e-07 | BT104: 0.8920420556 | BU104: 4.819354731e-22 | BV104: 3.748274688e-07 | BW104: 0.9282093305 | BX104: 0.2588858624 | BY104: 0.04733761767 | BZ104: 4.593437057e-06 | CA104: 0.963157817 | CB104: 2.155095366e-32 | CC104: 1.015848886e-28 | CD104: 1.34726615e-05 | CE104: 1.732637741e-21 | CF104: 1.864379696e-15 | CG104: 3.568848269e-10 | CH104: 0.007646998967 | CI104: 4.242584171e-06 | CJ104: 0.002265295647 | CK104: 0.4031075013 | CL104: 0.002187491118 | CM104: 5.122181476e-26 | CN104: 1.138903784e-99 | CO104: 2.762743053e-22 | CP104: 0.07067933784 | CQ104: 1.917149221e-14 | CR104: 5.486770658e-20 | CS104: 6.576700106e-12 | CT104: 8.176996874e-21 | CU104: 3.746279132e-12 | CV104: 0.350514922 | CW104: 3.727722528e-05 | CX104: 2.075782151e-11 | CY104: 1.819702408e-32 | CZ104: 3.981066945e-20 | DA104: 0.9178713865 | DB104: 0.0008706608822 | DC104: 3.371318944e-22 | DD104: 0.9524934963 | DE104: 171.93288
B105: 104 | C105: 9.997084145e-05 | D105: 0.660967902 | E105: 0.1084103191 | F105: 3.927019511e-08 | G105: 2.174502811e-22 | H105: 1.923232645e-80 | I105: 6.597630727e-28 | J105: 5.088427939e-10 | K105: 1.486869263e-08 | L105: 1.661321387e-14 | M105: 9.993440522e-10 | N105: 0.03282719471 | O105: 0.7273103509 | P105: 0.54847806 | Q105: 0.7816079554 | R105: 3.917526885e-06 | S105: 6.011078654e-13 | T105: 7.501020957e-23 | U105: 1.073579877e-08 | V105: 0.02727109306 | W105: 0.005750479709 | X105: 6.76552418e-51 | Y105: 8.085143605e-35 | Z105: 0.08469980327 | AA105: 0.9869637181 | AB105: 0.9711425636 | AC105: 0.6873043993 | AD105: 3.505965117e-09 | AE105: 0.001954712803 | AF105: 1.460213354e-06 | AG105: 2.421540779e-11 | AH105: 0.2102668165 | AI105: 2.376583226e-09 | AJ105: 7.848900552e-05 | AK105: 4.839467286e-50 | AL105: 3.001728258e-13 | AM105: 0.0005770844163 | AN105: 0.9998720082 | AO105: 0.001447774108 | AP105: 0.0002833346075 | AQ105: 0.003535855502 | AR105: 1.582607295e-18 | AS105: 5.304267805e-51 | AT105: 6.648740678e-05 | AU105: 6.382680875e-13 | AV105: 0.1135288828 | AW105: 1.126677484e-54 | AX105: 3.498993882e-05 | AY105: 0.455546264 | AZ105: 0.2373527139 | BA105: 0.7342556603 | BB105: 0.06906743036 | BC105: 1.635059675e-14 | BD105: 0.0009596019451 | BE105: 5.433712261e-06 | BF105: 0.02407816177 | BG105: 4.682938029e-29 | BH105: 1.035567977e-22 | BI105: 6.729602438e-33 | BJ105: 0.4578333618 | BK105: 0.4612717178 | BL105: 0.8010931873 | BM105: 0.008087723373 | BN105: 5.026399069e-09 | BO105: 1.291565377e-21 | BP105: 8.992943658e-24 | BQ105: 6.120985518e-12 | BR105: 1.459703793e-38 | BS105: 9.7159965e-07 | BT105: 0.9004307671 | BU105: 5.8743772e-22 | BV105: 4.178263171e-07 | BW105: 0.9208869475 | BX105: 0.2504620167 | BY105: 0.04972487341 | BZ105: 5.071256199e-06 | CA105: 0.9682567396 | CB105: 2.743281896e-32 | CC105: 1.274564567e-28 | CD105: 1.480822187e-05 | CE105: 2.106451868e-21 | CF105: 2.197781395e-15 | CG105: 4.071302325e-10 | CH105: 0.008138071854 | CI105: 4.685405937e-06 | CJ105: 0.00242857649 | CK105: 0.3923064439 | CL105: 0.002345632947 | CM105: 6.354863453e-26 | CN105: 1.745055231e-99 | CO105: 3.371318944e-22 | CP105: 0.07399468594 | CQ105: 2.247007435e-14 | CR105: 6.622678265e-20 | CS105: 7.590163373e-12 | CT105: 9.909411408e-21 | CU105: 4.330327247e-12 | CV105: 0.3607420929 | CW105: 4.07926761e-05 | CX105: 2.387908846e-11 | CY105: 2.316999375e-32 | CZ105: 4.808522478e-20 | DA105: 0.9253178305 | DB105: 0.0009383589559 | DC105: 4.112306428e-22 | DD105: 0.9582639663 | DE105: 172.2748191
B106: 105 | C106: =+EXP(-(($B106-C$2)^2/(2*alpha^2))) -> 0.0001089096411 | D106: 0.6489172982 | E106: 0.1130560009 | F106: 4.41267351e-08 | G106: 2.654775373e-22 | H106: 2.820763067e-80 | I106: 8.250473592e-28 | J106: 5.798556052e-10 | K106: 1.676239252e-08 | L106: 1.947863833e-14 | M106: =+EXP(-(($B106-M$2)^2/(2*alpha^2))) -> 1.136443714e-09 | N106: 0.03458213707 | O106: 0.7156514731 | P106: 0.5605213198 | Q106: 0.7925006128 | R106: 4.327805315e-06 | S106: 6.982759685e-13 | T106: 9.177172392e-23 | U106: 1.211620529e-08 | V106: 0.02876925491 | W106: =+EXP(-(($B106-W$2)^2/(2*alpha^2))) -> 0.006130787934 | X106: 9.167271931e-51 | Y106: 1.038568333e-34 | Z106: 0.08853104478 | AA106: 0.9835743959 | AB106: 0.9756591355 | AC106: 0.6991723504 | AD106: 3.971190155e-09 | AE106: 0.002097368113 | AF106: 1.619411089e-06 | AG106: =+EXP(-(($B106-AG$2)^2/(2*alpha^2))) -> 2.784432334e-11 | AH106: 0.2177825916 | AI106: 2.695284695e-09 | AJ106: 8.560284837e-05 | AK106: 6.540441362e-50 | AL106: 3.49337462e-13 | AM106: 0.0006233003828 | AN106: 0.999992 | AO106: 0.001556044896 | AP106: 0.000307129216 | AQ106: =+EXP(-(($B106-AQ$2)^2/(2*alpha^2))) -> 0.003780874299 | AR106: 1.896393025e-18 | AS106: 7.189572718e-51 | AT106: 7.256861717e-05 | AU106: 7.413244583e-13 | AV106: 0.1183418274 | AW106: 1.543902067e-54 | AX106: 3.830040835e-05 | AY106: 0.4670224265 | AZ106: 0.2293908412 | BA106: =+EXP(-(($B106-BA$2)^2/(2*alpha^2))) -> 0.7226588656 | BB106: 0.07232163177 | BC106: 1.917149221e-14 | BD106: 0.001033677962 | BE106: 5.994860735e-06 | BF106: 0.02542429668 | BG106: 5.883581628e-29 | BH106: 1.266161707e-22 | BI106: 8.582764538e-33 | BJ106: 0.4693295932 | BK106: =+EXP(-(($B106-BK$2)^2/(2*alpha^2))) -> 0.4727975475 | BL106: 0.8116727803 | BM106: 0.008604000581 | BN106: 5.686778033e-09 | BO106: 1.571161183e-21 | BP106: 1.104834046e-23 | BQ106: 7.065636584e-12 | BR106: 1.900341361e-38 | BS106: 1.079209208e-06 | BT106: 0.908534879 | BU106: =+EXP(-(($B106-BU$2)^2/(2*alpha^2))) -> 7.157494903e-22 | BV106: 4.655715716e-07 | BW106: 0.9132569529 | BX106: 0.2422153676 | BY106: 0.05221163063 | BZ106: 5.596540047e-06 | CA106: 0.9729933805 | CB106: 3.490604659e-32 | CC106: 1.598530235e-28 | CD106: 1.626966869e-05 | CE106: =+EXP(-(($B106-CE$2)^2/(2*alpha^2))) -> 2.5598917e-21 | CF106: 2.589768255e-15 | CG106: 4.642638886e-10 | CH106: 0.008657216746 | CI106: 5.172378072e-06 | CJ106: 0.002602585253 | CK106: 0.3816421078 | CL106: 0.002514201552 | CM106: 7.881044279e-26 | CN106: 2.67274546e-99 | CO106: =+EXP(-(($B106-CO$2)^2/(2*alpha^2))) -> 4.112306428e-22 | CP106: 0.07743456669 | CQ106: 2.6325667e-14 | CR106: 7.990552129e-20 | CS106: 8.756297151e-12 | CT106: 1.200406032e-20 | CU106: 5.003427191e-12 | CV106: 0.3711191904 | CW106: 4.46218013e-05 | CX106: 2.74587016e-11 | CY106: =+EXP(-(($B106-CY$2)^2/(2*alpha^2))) -> 2.949020189e-32 | CZ106: 5.805640006e-20 | DA106: 0.9324516301 | DB106: 0.001010916433 | DC106: 5.014150654e-22 | DD106: 0.9636838448 | DE106: 172.6138338
B107: 106 | C107: 0.0001186002457 | D107: 0.6368316144 | E107: 0.1178536121 | F107: 4.956405319e-08 | G107: 3.239827365e-22 | H107: 4.135496689e-80 | I107: 1.031326163e-27 | J107: 6.605145259e-10 | K107: 1.888971959e-08 | L107: 2.282915381e-14 | M107: 1.291835192e-09 | N107: 0.03641632922 | O107: 0.7038978731 | P107: 0.5725999349 | Q107: 0.8032237189 | R107: 4.779139732e-06 | S107: 8.108267409e-13 | T107: 1.122338041e-22 | U107: 1.366863561e-08 | V107: 0.03033758215 | W107: 0.006533633883 | X107: 1.241666774e-50 | Y107: 1.333548136e-34 | Z107: 0.0924985787 | AA107: 0.9798047126 | AB107: 0.9798047126 | AC107: 0.7109607888 | AD107: 4.496349462e-09 | AE107: 0.002249534439 | AF107: 1.795246894e-06 | AG107: 3.20042631e-11 | AH107: 0.2254768018 | AI107: 3.055501808e-09 | AJ107: 9.332411651e-05 | AK107: 8.835738141e-50 | AL107: 4.063920747e-13 | AM107: 0.0006729483346 | AN107: 0.9997120415 | AO107: 0.00167174381 | AP107: 0.0003327889675 | AQ107: 0.004041254966 | AR107: 2.271484708e-18 | AS107: 9.741077548e-51 | AT107: 7.917436387e-05 | AU107: 8.606762306e-13 | AV107: 0.1233094783 | AW107: 2.114784723e-54 | AX107: 4.190732187e-05 | AY107: 0.4785962208 | AZ107: 0.2216073847 | BA107: 0.7109607888 | BB107: 0.07569887348 | BC107: 2.247007435e-14 | BD107: 0.001113026942 | BE107: 6.611314887e-06 | BF107: 0.02683495367 | BG107: 7.389098193e-29 | BH107: 1.547483473e-22 | BI107: 1.094186293e-32 | BJ107: 0.4809220886 | BK107: 0.4844175682 | BL107: 0.822063201 | BM107: 0.009149573617 | BN107: 6.431345931e-09 | BO107: 1.910519038e-21 | BP107: 1.356808348e-23 | BQ107: 8.152813773e-12 | BR107: 2.473003821e-38 | BS107: 1.198257668e-06 | BT107: 0.9163453186 | BU107: 8.717391436e-22 | BV107: 5.185652362e-07 | BW107: 0.9053279728 | BX107: 0.2341465682 | BY107: 0.05480082667 | BZ107: 6.17376312e-06 | CA107: 0.9773621696 | CB107: 4.439736269e-32 | CC107: 2.004038919e-28 | CD107: 1.786819931e-05 | CE107: 3.10969594e-21 | CF107: 3.050447786e-15 | CG107: 5.29203537e-10 | CH107: 0.009205795938 | CI107: 5.707679552e-06 | CJ107: 0.002787946432 | CK107: 0.3711191904 | CL107: 0.00269380658 | CM107: 9.76984321e-26 | CN107: 4.09196873e-99 | CO107: 5.014150654e-22 | CP107: 0.08100195409 | CQ107: 3.0830498e-14 | CR107: 9.6370964e-20 | CS107: 1.009755299e-11 | CT107: 1.453566018e-20 | CU107: 5.77884084e-12 | CV107: 0.3816421078 | CW107: 4.879083842e-05 | CX107: 3.156229197e-11 | CY107: 3.751939761e-32 | CZ107: 7.0067212e-20 | DA107: 0.9392646473 | DB107: 0.001088648783 | DC107: 6.11132768e-22 | DD107: 0.9687468015 | DE107: 172.9499271
B108: 107 | C108: 0.0001291014537 | D108: 0.6247210805 | E108: 0.1228056813 | F108: 5.564909621e-08 | G108: 3.952230274e-22 | H108: 6.060591724e-80 | I108: 1.28866334e-27 | J108: 7.520923452e-10 | K108: 2.127851412e-08 | L108: 2.674529032e-14 | M108: 1.467886831e-09 | N108: 0.03833246852 | O108: 0.6920604304 | P108: 0.584704902 | Q108: 0.8137663447 | R108: 5.275431927e-06 | S108: 9.41142342e-13 | T108: 1.372033637e-22 | U108: 1.541380963e-08 | V108: 0.03197861119 | W108: 0.006960165682 | X108: 1.681110605e-50 | Y108: 1.711624915e-34 | Z108: 0.09660526849 | AA108: 0.9756591355 | AB108: 0.9835743959 | AC108: 0.7226588656 | AD108: 5.088921067e-09 | AE108: 0.002411775695 | AF108: 1.989379056e-06 | AG108: 3.677098621e-11 | AH108: 0.2333494882 | AI108: 3.462475643e-09 | AJ108: 0.0001017011446 | AK108: 1.193177071e-49 | AL108: 4.725759123e-13 | AM108: 0.000726260349 | AN108: 0.9990324684 | AO108: 0.001795327181 | AP108: 0.0003604483085 | AQ108: 0.004317840008 | AR108: 2.719678498e-18 | AS108: 1.319280681e-50 | AT108: 8.634687016e-05 | AU108: 9.988437849e-13 | AV108: 0.128434273 | AW108: 2.895601964e-54 | AX108: 4.583557599e-05 | AY108: 0.4902606944 | AZ108: 0.2140024105 | BA108: 0.6991723504 | BB108: 0.07920213686 | BC108: 2.6325667e-14 | BD108: 0.001197987756 | BE108: 7.288243409e-06 | BF108: 0.02831255311 | BG108: 9.276141715e-29 | BH108: 1.890554261e-22 | BI108: 1.394381539e-32 | BJ108: 0.492603839 | BK108: 0.4961246864 | BL108: 0.832253664 | BM108: 0.0097258499 | BN108: 7.270491072e-09 | BO108: 2.322246307e-21 | BP108: 1.665582878e-23 | BQ108: 9.403510866e-12 | BR108: 3.216949447e-38 | BS108: 1.329906392e-06 | BT108: 0.9238532872 | BU108: 1.061300404e-21 | BV108: 5.773599123e-07 | BW108: 0.8971089176 | BX108: 0.2262560401 | BY108: 0.05749541923 | BZ108: 6.807796898e-06 | CA108: 0.9813579531 | CB108: 5.644688282e-32 | CC108: 2.511410641e-28 | CD108: 1.961594112e-05 | CE108: 3.776074405e-21 | CF108: 3.591638104e-15 | CG108: 6.029854795e-10 | CH108: 0.009785221908 | CI108: 6.295861784e-06 | CJ108: 0.00298531503 | CK108: 0.3607420929 | CL108: 0.002885087645 | CM108: 1.210647481e-25 | CN108: 6.262291713e-99 | CO108: 6.11132768e-22 | CP108: 0.08469980327 | CQ108: 3.609175316e-14 | CR108: 1.161828163e-19 | CS108: 1.163960045e-11 | CT108: 1.759412348e-20 | CU108: 6.671756149e-12 | CV108: 0.3923064439 | CW108: 5.332805527e-05 | CX108: 3.626463834e-11 | CY108: 4.771558475e-32 | CZ108: 8.452902385e-20 | DA108: 0.9457490689 | DB108: 0.001171889354 | DC108: 7.445605897e-22 | DD108: 0.9734469011 | DE108: 173.2831042
B109: 108 | C109: 0.0001404762672 | D109: 0.6125957636 | E109: 0.1279146544 | F109: 6.245622035e-08 | G109: 4.819354731e-22 | H109: 8.878276404e-80 | I109: 1.609567502e-27 | J109: 8.560246016e-10 | K109: 2.395980985e-08 | L109: 3.132067413e-14 | M109: 1.667263796e-09 | N109: 0.04033329389 | O109: 0.6801499435 | P109: 0.5968269939 | Q109: 0.8241176336 | R109: 5.820932999e-06 | S109: 1.091965317e-12 | T109: 1.676610248e-22 | U109: 1.737485137e-08 | V109: 0.03369492656 | W109: 0.00741157731 | X109: 2.275169715e-50 | Y109: 2.196012381e-34 | Z109: 0.1008539347 | AA109: 0.9711425636 | AB109: 0.9869637181 | AC109: 0.7342556603 | AD109: 5.757284007e-09 | AE109: 0.002584684057 | AF109: 2.203622414e-06 | AG109: 4.223077058e-11 | AH109: 0.2414004756 | AI109: 3.922086713e-09 | AJ109: 0.0001107857945 | AK109: 1.610620578e-49 | AL109: 5.493184868e-13 | AM109: 0.0007834823684 | AN109: 0.9979540957 | AO109: 0.001927275368 | AP109: 0.0003902503897 | AQ109: 0.004611509662 | AR109: 3.255004551e-18 | AS109: 1.786050307e-50 | AT109: 9.413148279e-05 | AU109: 1.158728306e-12 | AV109: 0.1337185582 | AW109: 3.963125659e-54 | AX109: 5.011200289e-05 | AY109: 0.502008614 | AZ109: 0.2065757718 | BA109: 0.6873043993 | BB109: 0.08283438716 | BC109: 3.0830498e-14 | BD109: 0.001288918222 | BE109: 8.031269081e-06 | BF109: 0.02985956664 | BG109: 1.164044529e-28 | BH109: 2.308758758e-22 | BI109: 1.776226155e-32 | BJ109: 0.5043675555 | BK109: 0.5079115301 | BL109: 0.8422334893 | BM109: 0.0103342878 | BN109: 8.215838675e-09 | BO109: 2.821574191e-21 | BP109: 2.043808827e-23 | BQ109: 1.084173584e-11 | BR109: 4.183020251e-38 | BS109: 1.47542865e-06 | BT109: 0.9310502769 | BU109: 1.291565377e-21 | BV109: 6.425636236e-07 | BW109: 0.8886089647 | BX109: 0.2185439807 | BY109: 0.06029838249 | BZ109: 7.503942567e-06 | CA109: 0.9849760035 | CB109: 7.173796238e-32 | CC109: 3.145977346e-28 | CD109: 2.152602263e-05 | CE109: 4.583417747e-21 | CF109: 4.227151639e-15 | CG109: 6.867793873e-10 | CH109: 0.01039695816 | CI109: 6.941879492e-06 | CJ109: 0.003195377643 | CK109: 0.350514922 | CL109: 0.003088715408 | CM109: 1.49959538e-25 | CN109: 9.579890927e-99 | CO109: 7.445605897e-22 | CP109: 0.08853104478 | CQ109: 4.223394979e-14 | CR109: 1.400115547e-19 | CS109: 1.341177585e-11 | CT109: 2.128760446e-20 | CU109: 7.699559473e-12 | CV109: 0.4031075013 | CW109: 5.826389227e-05 | CX109: 4.165090579e-11 | CY109: 6.065839657e-32 | CZ109: 1.01934959e-19 | DA109: 0.951897422 | DB109: 0.001260990192 | DC109: 9.067567587e-22 | DD109: 0.9777786146 | DE109: 173.613372
B110: 109 | C110: 0.0001527921587 | D110: 0.6004655548 | E110: 0.1331828877 | F110: 7.006797463e-08 | G110: 5.8743772e-22 | H110: 1.300075509e-79 | I110: 2.009579529e-27 | J110: 9.739296917e-10 | K110: 2.696818497e-08 | L110: 3.666411174e-14 | M110: 1.892963967e-09 | N110: 0.04242158356 | O110: 0.6681771139 | P110: 0.6089567694 | Q110: 0.8342668198 | R110: 6.420272472e-06 | S110: 1.26645178e-12 | T110: 2.047980214e-22 | U110: 1.957755657e-08 | V110: 0.03548915933 | W110: 0.007889109617 | X110: 3.077921864e-50 | Y110: 2.81635406e-34 | Z110: 0.1052473484 | AA110: 0.9662603187 | AB110: 0.989968653 | AC110: 0.7457401976 | AD110: 6.510822791e-09 | AE110: 0.002768881032 | AF110: 2.439962226e-06 | AG110: 4.848183133e-11 | AH110: 0.2496293653 | AI110: 4.440930102e-09 | AJ110: 0.0001206336851 | AK110: 2.173240902e-49 | AL110: 6.382680875e-13 | AM110: 0.0008448748906 | AN110: 0.9964782161 | AO110: 0.002068093729 | AP110: 0.000422347552 | AQ110: 0.004923183032 | AR110: 3.894143173e-18 | AS110: 2.416998907e-50 | AT110: 0.0001025768792 | AU110: 1.343667903e-12 | AV110: 0.1391645824 | AW110: 5.422044843e-54 | AX110: 5.476550681e-05 | AY110: 0.5138324703 | AZ110: 0.199327117 | BA110: 0.6753676971 | BB110: 0.08659856794 | BC110: 3.609175316e-14 | BD110: 0.001386195964 | BE110: 8.846505816e-06 | BF110: 0.03147851592 | BG110: 1.460152093e-28 | BH110: 2.818345599e-22 | BI110: 2.261732191e-32 | BJ110: 0.5162056739 | BK110: 0.5197704537 | BL110: 0.8519921209 | BM110: 0.01097639743 | BN110: 9.280392461e-09 | BO110: 3.426896198e-21 | BP110: 2.506920579e-23 | BQ110: 1.249493192e-11 | BR110: 5.437033142e-38 | BS110: 1.636219762e-06 | BT110: 0.9379280863 | BU110: 1.571161183e-21 | BV110: 7.148450722e-07 | BW110: 0.8798375419 | BX110: 0.21101037 | BY110: 0.06321270308 | BZ110: 8.267966235e-06 | CA110: 0.988212029 | CB110: 9.113483096e-32 | CC110: 3.93930615e-28 | CD110: 2.361264935e-05 | CE110: 5.561150175e-21 | CF110: 4.973124899e-15 | CG110: 7.819048953e-10 | CH110: 0.01104252004 | CI110: 7.651123945e-06 | CJ110: 0.003418853562 | CK110: 0.3404414913 | CL110: 0.003305392676 | CM110: 1.856764255e-25 | CN110: 1.464920703e-98 | CO110: 9.067567587e-22 | CP110: 0.0924985787 | CQ110: 4.940167818e-14 | CR110: 1.686600167e-19 | CS110: 1.544759173e-11 | CT110: 2.574614618e-20 | CU110: 8.882145302e-12 | CV110: 0.4140402863 | CW110: 6.363111358e-05 | CX110: 4.781804678e-11 | CY110: 7.708109649e-32 | CZ110: 1.228759061e-19 | DA110: 0.9577025881 | DB110: 0.001356322888 | DC110: 1.103844353e-21 | DD110: 0.9817368304 | DE110: 173.9407397
B111: 110 | C111: 0.0001661213521 | D111: 0.588340157 | E111: 0.1386126398 | F111: 7.857596288e-08 | G111: 7.157494903e-22 | H111: 1.902982413e-79 | I111: 2.507999719e-27 | J111: 1.107631373e-09 | K111: 3.034215006e-08 | L111: 4.290199786e-14 | M111: 2.148358016e-09 | N111: 0.04460015253 | O111: 0.6561525312 | P111: 0.6210845841 | Q111: 0.8442032465 | R111: 7.078489645e-06 | S111: 1.468232235e-12 | T111: 2.500608359e-22 | U111: 2.205068874e-08 | V111: 0.03736398524 | W111: 0.008394051322 | X111: 4.162245239e-50 | Y111: 3.610488789e-34 | Z111: 0.1097882246 | AA111: 0.9610181343 | AB111: 0.9925856231 | AC111: 0.7571014641 | AD111: 7.360043455e-09 | AE111: 0.002965018521 | AF111: 2.700569179e-06 | AG111: 5.563592446e-11 | AH111: 0.2580355275 | AI111: 5.026399069e-09 | AJ111: 0.0001313044349 | AK111: 2.931222457e-49 | AL111: 7.413244583e-13 | AM111: 0.0009107136819 | AN111: 0.9946065969 | AO111: 0.002218313625 | AP111: 0.0004569018319 | AQ111: 0.005253819201 | AR111: 4.656917152e-18 | AS111: 3.269531327e-50 | AT111: 0.0001117352862 | AU111: 1.557501782e-12 | AV111: 0.1447744883 | AW111: 7.415059662e-54 | AX111: 5.982720903e-05 | AY111: 0.525724483 | AZ111: 0.1922558965 | BA111: 0.6633729023 | BB111: 0.09049759529 | BC111: 4.223394979e-14 | BD111: 0.001490219283 | BE111: 9.740598447e-06 | BF111: 0.03317197122 | BG111: 1.830850483e-28 | BH111: 3.439032032e-22 | BI111: 2.878792616e-32 | BJ111: 0.528110361 | BK111: 0.5316935444 | BL111: 0.8615191453 | BM111: 0.0116537414 | BN111: 1.047869174e-08 | BO111: 4.160415516e-21 | BP111: 3.073740239e-23 | BQ111: 1.439445576e-11 | BR111: 7.064155908e-38 | BS111: 1.8138081e-06 | BT111: 0.9444788359 | BU111: 1.910519038e-21 | BV111: 7.949393615e-07 | BW111: 0.8708043101 | BX111: 0.2036549783 | BY111: 0.06624137575 | BZ111: 9.106136783e-06 | CA111: 0.9910621819 | CB111: 1.157300205e-31 | CC111: 4.930717938e-28 | CD111: 2.589118486e-05 | CE111: 6.744753564e-21 | CF111: 5.84840161e-15 | CG111: 8.89850184e-10 | CH111: 0.01172347543 | CI111: 8.429458693e-06 | CJ111: 0.00365649588 | CK111: 0.3305253238 | CL111: 0.003535855502 | CM111: 2.298083064e-25 | CN111: 2.239205495e-98 | CO111: 1.103844353e-21 | CP111: 0.09660526849 | CQ111: 5.776276679e-14 | CR111: 2.030891312e-19 | CS111: 1.778531498e-11 | CT111: 3.112604576e-20 | CU111: 1.024226837e-11 | CV111: 0.4250995084 | CW111: 6.946496731e-05 | CX111: 5.487638531e-11 | CY111: 9.791091835e-32 | CZ111: 1.480596085e-19 | DA111: 0.963157817 | DB111: 0.001458279446 | DC111: 1.343232407e-21 | DD111: 0.9853168642 | DE111: 174.2652179
B112: 111 | C112: 0.000180541119 | D112: 0.5762290737 | E112: 0.1442060643 | F112: 8.808179196e-08 | G112: 8.717391436e-22 | H112: 2.784371979e-79 | I112: 3.12878738e-27 | J112: 1.259183931e-09 | K112: 3.412457629e-08 | L112: 5.018109664e-14 | M112: 2.437234115e-09 | N112: 0.04687184986 | O112: 0.6440866579 | P112: 0.6332006022 | Q112: 0.8539163848 | R112: 7.801067302e-06 | S112: 1.701481115e-12 | T112: 3.052051678e-22 | U112: 2.48263065e-08 | V112: 0.0393221227 | W112: 0.008927739961 | X112: 5.626314725e-50 | Y112: 4.626696719e-34 | Z112: 0.1144792151 | AA112: 0.9554221445 | AB112: 0.994811507 | AC112: 0.7683284254 | AD112: 8.316702457e-09 | AE112: 0.003173779913 | AF112: 2.987815618e-06 | AG112: 6.382015924e-11 | AH112: 0.2666180951 | AI112: 5.686778033e-09 | AJ112: 0.0001428619184 | AK112: 3.951991214e-49 | AL112: 8.606762306e-13 | AM112: 0.0009812905155 | AN112: 0.9923414771 | AO112: 0.00237849344 | AP112: 0.0004940854895 | AQ112: 0.005604418357 | AR112: 5.566873991e-18 | AS112: 4.421003249e-50 | AT112: 0.0001216627117 | AU112: 1.804643591e-12 | AV112: 0.1505503047 | AW112: 1.013660391e-53 | AX112: 6.533060163e-05 | AY112: 0.537676608 | AZ112: 0.1853613715 | BA112: 0.6513305554 | BB112: 0.09453435175 | BC112: 4.940167818e-14 | BD112: 0.001601408059 | BE112: 1.072076546e-05 | BF112: 0.03494254981 | BG112: 2.294742424e-28 | BH112: 4.19473449e-22 | BI112: 3.662738076e-32 | BJ112: 0.5400735203 | BK112: 0.543672628 | BL112: 0.8708043101 | BM112: 0.01236793553 | BN112: 1.182698561e-08 | BO112: 5.048922998e-21 | BP112: 3.76721175e-23 | BQ112: 1.657612017e-11 | BR112: 9.174551719e-38 | BS112: 2.009867015e-06 | BT112: 0.9506949838 | BU112: 2.322246307e-21 | BV112: 8.836542241e-07 | BW112: 0.8615191453 | BX112: 0.1964773739 | BY112: 0.0693873989 | BZ112: 1.002526652e-05 | CA112: 0.9935230663 | CB112: 1.469041111e-31 | CC112: 6.169171831e-28 | CD112: 2.837823727e-05 | CE112: 8.176996874e-21 | CF112: 6.874977666e-15 | CG112: 1.01229278e-09 | CH112: 0.01244144551 | CI112: 9.283257955e-06 | CJ112: 0.003909092614 | CK112: 0.3207696547 | CL112: 0.003780874299 | CM112: 2.843157769e-25 | CN112: 3.421370198e-98 | CO112: 1.343232407e-21 | CP112: 0.1008539347 | CQ112: 6.751193485e-14 | CR112: 2.444485734e-19 | CS112: 2.046862275e-11 | CT112: 3.761507696e-20 | CU112: 1.180594379e-11 | CV112: 0.4362795811 | CW112: 7.580335539e-05 | CX112: 6.295140729e-11 | CY112: 1.243198983e-31 | CZ112: 1.783334215e-19 | DA112: 0.9682567396 | DB112: 0.001567273176 | DC112: 1.633882285e-21 | DD112: 0.9885144682 | DE112: 174.5868191
B113: 112 | C113: 0.00019613409 | D113: 0.5641415973 | E113: 0.1499652018 | F113: 9.869811391e-08 | G113: 1.061300404e-21 | H113: 4.072358626e-79 | I113: 3.901673294e-27 | J113: 1.430900315e-09 | K113: 3.836316817e-08 | L113: 5.867175261e-14 | M113: 2.763847794e-09 | N113: 0.04923955574 | O113: 0.6319898153 | P113: 0.645294808 | Q113: 0.8633958521 | R113: 8.593967967e-06 | S113: 1.970996231e-12 | T113: 3.723611557e-22 | U113: 2.794012526e-08 | V113: 0.04136633058 | W113: 0.009491562812 | X113: 7.602329015e-50 | Y113: 5.926555367e-34 | Z113: 0.1193229018 | AA113: 0.9494788727 | AB113: 0.9966436452 | AC113: 0.7794100435 | AD113: 9.393949736e-09 | AE113: 0.003395881178 | AF113: 3.304293085e-06 | AG113: 7.317904547e-11 | AH113: 0.2753759566 | AI113: 6.431345931e-09 | AJ113: 0.0001553745351 | AK113: 5.326101564e-49 | AL113: 9.988437849e-13 | AM113: 0.001056913934 | AN113: 0.9896855624 | AO113: 0.002549219615 | AP113: 0.0005340815582 | AQ113: 0.005976022895 | AR113: 6.651974141e-18 | AS113: 5.975612779e-50 | AT113: 0.0001324191881 | AU113: 2.090165221e-12 | AV113: 0.1564939387 | AW113: 1.385149296e-53 | AX113: 7.13117106e-05 | AY113: 0.5496805432 | AZ113: 0.1786426209 | BA113: 0.6392510642 | BB113: 0.09871168011 | BC113: 5.776276679e-14 | BD113: 0.001720204672 | BE113: 1.179484484e-05 | BF113: 0.03679291425 | BG113: 2.875022798e-28 | BH113: 5.114450916e-22 | BI113: 4.658301868e-32 | BJ113: 0.5520867993 | BK113: 0.5556992769 | BL113: 0.8798375419 | BM113: 0.0131206494 | BN113: 1.33434261e-08 | BO113: 6.124731709e-21 | BP113: 4.615292004e-23 | BQ113: 1.908080996e-11 | BR113: 1.191065686e-37 | BS113: 2.226227743e-06 | BT113: 0.9565693393 | BU113: 2.821574191e-21 | BV113: 9.818767948e-07 | BW113: 0.8519921209 | BX113: 0.1894769306 | BY113: 0.07265376983 | BZ113: 1.103275481e-05 | CA113: 0.995591745 | CB113: 1.86400963e-31 | CC113: 7.715602704e-28 | CD113: 3.109175147e-05 | CE113: 9.909411408e-21 | CF113: 8.078517637e-15 | CG113: 1.151122827e-09 | CH113: 0.01319810527 | CI113: 1.021944786e-05 | CJ113: 0.004177467823 | CK113: 0.3111774347 | CL113: 0.004041254966 | CM113: 3.516110211e-25 | CN113: 5.225555528e-98 | CO113: 1.633882285e-21 | CP113: 0.1052473484 | CQ113: 7.887500584e-14 | CR113: 2.941132664e-19 | CS113: 2.354734596e-11 | CT113: 4.543873581e-20 | CU113: 1.36029015e-11 | CV113: 0.4475746229 | CW113: 8.268701348e-05 | CX113: 7.218578306e-11 | CY113: 1.577889008e-31 | CZ113: 2.147114326e-19 | DA113: 0.9729933805 | DB113: 0.001683739612 | DC113: 1.986628444e-21 | DD113: 0.9913258395 | DE113: 174.9055574
B114: 113 | C114: 0.0002129885819 | D114: 0.5520867993 | E114: 0.1558919718 | F114: 1.105497711e-07 | G114: 1.291565377e-21 | H114: 5.953756391e-79 | I114: 4.863534859e-27 | J114: 1.62538358e-09 | K114: 4.3110985e-08 | L114: 6.857159589e-14 | M114: 3.132977521e-09 | N114: 0.05170617839 | O114: 0.6198721698 | P114: 0.6573570191 | Q114: 0.8726314301 | R114: 9.463672847e-06 | S114: 2.282289523e-12 | T114: 4.541121672e-22 | U114: 3.143191685e-08 | V114: 0.04349940583 | W114: 0.01008695776 | X114: 1.026822987e-49 | Y114: 7.588569954e-34 | Z114: 0.1243217893 | AA114: 0.9431952178 | AB114: 0.9980798459 | AC114: 0.7903352946 | AD114: 1.060648744e-08 | AE114: 0.003632071981 | AF114: 3.652831272e-06 | AG114: 8.387680506e-11 | AH114: 0.2843077502 | AI114: 7.270491072e-09 | AJ114: 0.0001689154946 | AK114: 7.175120506e-49 | AL114: 1.158728306e-12 | AM114: 0.001137910037 | AN114: 0.9866420204 | AO114: 0.002731107703 | AP114: 0.0005770844163 | AQ114: 0.006369718512 | AR114: 7.945404203e-18 | AS114: 8.07365789e-50 | AT114: 0.0001440690297 | AU114: 2.419892496e-12 | AV114: 0.1626071679 | AW114: 1.892025463e-53 | AX114: 7.780926862e-05 | AY114: 0.5617277371 | AZ114: 0.1720985502 | BA114: 0.6271446896 | BB114: 0.103032377 | BC114: 6.751193485e-14 | BD114: 0.001847074949 | BE114: 1.297134324e-05 | BF114: 0.03872577035 | BG114: 3.60060038e-28 | BH114: 6.23332592e-22 | BI114: 5.922099171e-32 | BJ114: 0.5641415973 | BK114: 0.5677648173 | BL114: 0.8886089647 | BM114: 0.01391360696 | BN114: 1.504828208e-08 | BO114: 7.426799059e-21 | BP114: 5.65203207e-23 | BQ114: 2.195518029e-11 | BR114: 1.545656039e-37 | BS114: 2.464893392e-06 | BT114: 0.9620950775 | BU114: 3.426896198e-21 | BV114: 1.090580974e-06 | BW114: 0.8422334893 | BX114: 0.1826528358 | BY114: 0.07604347977 | BZ114: 1.213663492e-05 | CA114: 0.9972657449 | CB114: 2.364224078e-31 | CC114: 9.64581945e-28 | CD114: 3.405110751e-05 | CE114: 1.200406032e-20 | CF114: 9.488954092e-15 | CG114: 1.308469112e-09 | CH114: 0.01399518412 | CI114: 1.124555071e-05 | CJ114: 0.004462482739 | CK114: 0.3017513334 | CL114: 0.004317840008 | CM114: 4.346606062e-25 | CN114: 7.977947026e-98 | CO114: 1.986628444e-21 | CP114: 0.1097882246 | CQ114: 9.211376553e-14 | CR114: 3.537268315e-19 | CS114: 2.70783121e-11 | CT114: 5.486770658e-20 | CU114: 1.566710225e-11 | CV114: 0.4589784591 | CW114: 9.015970141e-05 | CX114: 8.274165108e-11 | CY114: 2.00188229e-31 | CZ114: 2.584067653e-19 | DA114: 0.9773621696 | DB114: 0.001808137444 | DC114: 2.414564532e-21 | DD114: 0.9937476279 | DE114: 175.2214486
B115: 114 | C115: 0.0002311989414 | D115: 0.5400735203 | E115: 0.1619881653 | F115: 1.237750539e-07 | G115: 1.571161183e-21 | H115: 8.700864134e-79 | I115: 6.060095208e-27 | J115: 1.845561998e-09 | K115: 4.842701586e-08 | L115: 8.010981612e-14 | M115: 3.549986629e-09 | N115: 0.05427465064 | O115: 0.6077437194 | P115: 0.6693768995 | Q115: 0.8816130836 | R115: 1.041722367e-05 | S115: 2.641690666e-12 | T115: 5.535899398e-22 | U115: 3.53459507e-08 | V115: 0.04572418083 | W115: 0.01071541414 | X115: 1.386343294e-49 | Y115: 9.712785999e-34 | Z115: 0.1294782973 | AA115: 0.9365784418 | AB115: 0.9991183888 | AC115: 0.8010931873 | AD115: 1.197074596e-08 | AE115: 0.003883136794 | AF115: 4.03651848e-06 | AG115: 9.609998078e-11 | AH115: 0.2934118575 | AI115: 8.215838675e-09 | AJ115: 0.0001835631148 | AK115: 9.662182522e-49 | AL115: 1.343667903e-12 | AM115: 0.001224623291 | AN115: 0.9832144735 | AO115: 0.002924803442 | AP115: 0.0006233003828 | AQ115: 0.006786635285 | AR115: 9.486537363e-18 | AS115: 1.09039668e-49 | AT115: 0.0001566811045 | AU115: 2.800514404e-12 | AV115: 0.1688916321 | AW115: 2.583352383e-53 | AX115: 8.486489811e-05 | AY115: 0.5738093963 | AZ115: 0.1657278987 | BA115: 0.6150215322 | BB115: 0.1074991864 | BC115: 7.887500584e-14 | BD115: 0.001982509128 | BE115: 1.425948869e-05 | BF115: 0.04074386511 | BG115: 4.507490659e-28 | BH115: 7.59393609e-22 | BI115: 7.525753781e-32 | BJ115: 0.5762290737 | BK115: 0.5798603386 | BL115: 0.8971089176 | BM115: 0.01474858696 | BN115: 1.696417618e-08 | BO115: 9.002073619e-21 | BP115: 6.918888524e-23 | BQ115: 2.525244836e-11 | BR115: 2.005008782e-37 | BS115: 2.728054064e-06 | BT115: 0.9672657522 | BU115: 4.160415516e-21 | BV115: 1.210835428e-06 | BW115: 0.832253664 | BX115: 0.176004098 | BY115: 0.07955950872 | BZ115: 1.334562423e-05 | CA115: 0.9985430624 | CB115: 2.997473847e-31 | CC115: 1.205409702e-27 | CD115: 3.727722528e-05 | CE115: 1.453566018e-20 | CF115: 1.114118269e-14 | CG115: 1.486728156e-09 | CH115: 0.01483446632 | CI115: 1.236973246e-05 | CJ115: 0.00476503689 | CK115: 0.2924937442 | CL115: 0.004611509662 | CM115: 5.371113941e-25 | CN115: 1.217520021e-97 | CO115: 2.414564532e-21 | CP115: 0.1144792151 | CQ115: 1.07531561e-13 | CR115: 4.252532836e-19 | CS115: 3.112629984e-11 | CT115: 6.622678265e-20 | CU115: 1.803732309e-11 | CV115: 0.4704846243 | CW115: 9.826840466e-05 | CX115: 9.480319545e-11 | CY115: 2.538790744e-31 | CZ115: 3.108700418e-19 | DA115: 0.9813579531 | DB115: 0.001940949486 | DC115: 2.933507931e-21 | DD115: 0.9957769423 | DE115: 175.5345099
B116: 115 | C116: =+EXP(-(($B116-C$2)^2/(2*alpha^2))) -> 0.0002508659062 | D116: 0.528110361 | E116: 0.1682554363 | F116: 1.38527081e-07 | G116: 1.910519038e-21 | H116: 1.271042276e-78 | I116: 7.548021763e-27 | J116: 2.094728262e-09 | K116: 5.43768133e-08 | L116: 9.355209014e-14 | M116: =+EXP(-(($B116-M$2)^2/(2*alpha^2))) -> 4.020892275e-09 | N116: 0.05694792644 | O116: 0.5956142816 | P116: 0.6813439733 | Q116: 0.890330978 | R116: 1.146226755e-05 | S116: 3.056465295e-12 | T116: 6.745894151e-22 | U116: 3.973148065e-08 | V116: 0.04804352059 | W116: =+EXP(-(($B116-W$2)^2/(2*alpha^2))) -> 0.01137847348 | X116: 1.870993469e-49 | Y116: 1.242664754e-33 | Z116: 0.1347947538 | AA116: 0.9296361555 | AB116: 0.9997580293 | AC116: 0.8116727803 | AD116: 1.3505079e-08 | AE116: 0.004149896022 | AF116: 4.458723695e-06 | AG116: =+EXP(-(($B116-AG$2)^2/(2*alpha^2))) -> 1.100603791e-10 | AH116: 0.3026863979 | AI116: 9.280392461e-09 | AJ116: 0.0001994011367 | AK116: 1.300611403e-48 | AL116: 1.557501782e-12 | AM116: 0.001317417366 | AN116: 0.9794069927 | AO116: 0.003130983834 | AP116: 0.0006729483346 | AQ116: =+EXP(-(($B116-AQ$2)^2/(2*alpha^2))) -> 0.007227948727 | AR116: 1.132206723e-17 | AS116: 1.472058199e-49 | AT116: 0.0001703291187 | AU116: 3.23970772e-12 | AV116: 0.1753488256 | AW116: 3.525872519e-53 | AX116: 9.252330493e-05 | AY116: 0.5859164947 | AZ116: 0.1595292481 | BA116: =+EXP(-(($B116-BA$2)^2/(2*alpha^2))) -> 0.6028915194 | BB116: 0.1121147924 | BC116: 9.211376553e-14 | BD116: 0.00212702285 | BE116: 1.566928706e-05 | BF116: 0.04284998431 | BG116: 5.640544502e-28 | BH116: 9.247840325e-22 | BI116: 9.559839859e-32 | BJ116: 0.588340157 | BK116: =+EXP(-(($B116-BK$2)^2/(2*alpha^2))) -> 0.5919767018 | BL116: 0.9053279728 | BM116: 0.01562742337 | BN116: 1.911634708e-08 | BO116: 1.09071109e-20 | BP116: 8.46631322e-23 | BQ116: 2.903329039e-11 | BR116: 2.599836194e-37 | BS116: 3.01810321e-06 | BT116: 0.9720753082 | BU116: =+EXP(-(($B116-BU$2)^2/(2*alpha^2))) -> 5.048922998e-21 | BV116: 1.343812278e-06 | BW116: 0.822063201 | BX116: 0.1695295553 | BY116: 0.08320482001 | BZ116: 1.4669178e-05 | CA116: 0.999422167 | CB116: 3.798817685e-31 | CC116: 1.505762645e-27 | CD116: 4.07926761e-05 | CE116: =+EXP(-(($B116-CE$2)^2/(2*alpha^2))) -> 1.759412348e-20 | CF116: 1.307586801e-14 | CG116: 1.688596713e-09 | CH116: 0.01571779137 | CI116: 1.360085363e-05 | CJ116: 0.005086069231 | CK116: 0.283406788 | CL116: 0.004923183032 | CM116: 6.634447043e-25 | CN116: 1.85732266e-97 | CO116: =+EXP(-(($B116-CO$2)^2/(2*alpha^2))) -> 2.933507931e-21 | CP116: 0.1193229018 | CQ116: 1.254797505e-13 | CR116: 5.110385118e-19 | CS116: 3.576511997e-11 | CT116: 7.990552129e-20 | CU116: 2.075782151e-11 | CV116: 0.4820863652 | CW116: 0.0001070635473 | CX116: 1.085795535e-10 | CY116: =+EXP(-(($B116-CY$2)^2/(2*alpha^2))) -> 3.218411397e-31 | CZ116: 3.738351605e-19 | DA116: 0.9849760035 | DB116: 0.002082683651 | DC116: 3.562558451e-21 | DD116: 0.9974113563 | DE116: 175.8447598
B117: 116 | C117: 0.000272096983 | D117: 0.5162056739 | E117: 0.174695294 | F117: 1.549753136e-07 | G117: 2.322246307e-21 | H117: 1.856025277e-78 | I117: 9.397517051e-27 | J117: 2.376583226e-09 | K117: 6.103319137e-08 | L117: 1.092062608e-13 | M117: 4.552442203e-09 | N117: 0.05972897697 | O117: 0.5834934807 | P117: 0.6932476391 | Q117: 0.8987754979 | R117: 1.260710518e-05 | S117: 3.534949862e-12 | T117: 8.21707286e-22 | U117: 4.4643282e-08 | V117: 0.0504603197 | W117: 0.01207773022 | X117: 2.524062122e-49 | Y117: 1.589243424e-33 | Z117: 0.1402733865 | AA117: 0.9223763039 | AB117: 0.999998 | AC117: 0.822063201 | AD117: 1.522997974e-08 | AE117: 0.004433207129 | AF117: 4.923120404e-06 | AG117: 1.259983883e-10 | AH117: 0.3121292232 | AI117: 1.047869174e-08 | AJ117: 0.0002165190551 | AK117: 1.750032683e-48 | AL117: 1.804643591e-12 | AM117: 0.001416675995 | AN117: 0.9752240885 | AO117: 0.003350358245 | AP117: 0.000726260349 | AQ117: 0.007694880818 | AR117: 1.350734584e-17 | AS117: 1.986514423e-49 | AT117: 0.0001850919184 | AU117: 3.746279132e-12 | AV117: 0.1819800888 | AW117: 4.810340774e-53 | AX117: 0.0001008324832 | AY117: 0.5980397833 | AZ117: 0.1535010303 | BA117: 0.5907643926 | BB117: 0.116881813 | BC117: 1.07531561e-13 | BD117: 0.00228115816 | BE117: 1.721158249e-05 | BF117: 0.04504694999 | BG117: 7.055592776e-28 | BH117: 1.125744903e-21 | BI117: 1.213884906e-31 | BJ117: 0.6004655548 | BK117: 0.60410455 | BL117: 0.9132569529 | BM117: 0.0165520056 | BN117: 2.15329396e-08 | BO117: 1.321001102e-20 | BP117: 1.035567977e-22 | BQ117: 3.336685747e-11 | BR117: 3.369783304e-37 | BS117: 3.337655312e-06 | BT117: 0.9765180934 | BU117: 6.124731709e-21 | BV117: 1.490796525e-06 | BW117: 0.8116727803 | BX117: 0.1632278829 | BY117: 0.08698235474 | BZ117: 1.611754706e-05 | CA117: 0.9999020048 | CB117: 4.812467194e-31 | CC117: 1.880202551e-27 | CD117: 4.46218013e-05 | CE117: 2.128760446e-20 | CF117: 1.534037735e-14 | CG117: 1.91710807e-09 | CH117: 0.01664705425 | CI117: 1.494852388e-05 | CJ117: 0.005426559258 | CK117: 0.2744923191 | CL117: 0.005253819201 | CM117: 8.191649853e-25 | CN117: 2.832206303e-97 | CO117: 3.562558451e-21 | CP117: 0.1243217893 | CQ117: 1.463651307e-13 | CR117: 6.138833663e-19 | CS117: 4.107883872e-11 | CT117: 9.6370964e-20 | CU117: 2.387908846e-11 | CV117: 0.4937766448 | CW117: 0.0001165992169 | CX117: 1.243080944e-10 | CY117: 4.078331191e-31 | CZ117: 4.493737527e-19 | DA117: 0.988212029 | DB117: 0.002233873958 | DC117: 4.32476997e-21 | DD117: 0.9986489135 | DE117: 176.1522181
B118: 117 | C118: 0.0002950068446 | D118: 0.5043675555 | E118: 0.1813090945 | F118: 1.733072164e-07 | G118: 2.821574191e-21 | H118: 2.709156288e-78 | I118: 1.169551589e-26 | J118: 2.695284695e-09 | K118: 6.847699414e-08 | L118: 1.274288787e-13 | M118: 5.15220015e-09 | N118: 0.06262078671 | O118: 0.5713907372 | P118: 0.7050771849 | Q118: 0.906937264 | R118: 1.386074242e-05 | S118: 4.086705384e-12 | T118: 1.000509082e-21 | U118: 5.014224353e-08 | V118: 0.05297749915 | W118: 0.01281483237 | X118: 3.403722061e-49 | Y118: 2.031669906e-33 | Z118: 0.145916316 | AA118: 0.9148071509 | AB118: 0.9998380131 | AC118: 0.832253664 | AD118: 1.71683202e-08 | AE118: 0.004733965763 | AF118: 5.433712261e-06 | AG118: 1.441867185e-10 | AH118: 0.3217379129 | AI118: 1.182698561e-08 | AJ118: 0.0002350124656 | AK118: 2.353808051e-48 | AL118: 2.090165221e-12 | AM118: 0.001522803858 | AN118: 0.970670703 | AO118: 0.003583669513 | AP118: 0.0007834823684 | AQ118: 0.008188701014 | AR118: 1.610796184e-17 | AS118: 2.67969118e-49 | AT118: 0.0002010538048 | AU118: 4.330327247e-12 | AV118: 0.1887866004 | AW118: 6.560113658e-53 | AX118: 0.000109843932 | AY118: 0.6101697999 | AZ118: 0.1476415356 | BA118: 0.578649696 | BB118: 0.1218027921 | BC118: 1.254797505e-13 | BD118: 0.00244548454 | BE118: 1.889812211e-05 | BF118: 0.04733761767 | BG118: 8.822105884e-28 | BH118: 1.369827683e-21 | BI118: 1.540744718e-31 | BJ118: 0.6125957636 | BK118: 0.6162343189 | BL118: 0.9208869475 | BM118: 0.01752427879 | BN118: 2.424532552e-08 | BO118: 1.599274134e-20 | BP118: 1.266161707e-22 | BQ118: 3.833192561e-11 | BR118: 4.366005163e-37 | BS118: 3.689564974e-06 | BT118: 0.98058887 | BU118: 7.426799059e-21 | BV118: 1.653196287e-06 | BW118: 0.8010931873 | BX118: 0.1570976017 | BY118: 0.09089502589 | BZ118: 1.770183945e-05 | CA118: 0.9999820002 | CB118: 6.094153584e-31 | CC118: 2.346815988e-27 | CD118: 4.879083842e-05 | CE118: 2.574614618e-20 | CF118: 1.798986232e-14 | CG118: 2.175672554e-09 | CH118: 0.01762420566 | CI118: 1.64231604e-05 | CJ118: 0.005787528125 | CK118: 0.2657519298 | CL118: 0.005604418357 | CM118: 1.011030625e-24 | CN118: 4.317066067e-97 | CO118: 4.32476997e-21 | CP118: 0.1294782973 | CQ118: 1.706584849e-13 | CR118: 7.371305053e-19 | CS118: 4.716316172e-11 | CT118: 1.161828163e-19 | CU118: 2.74587016e-11 | CV118: 0.5055481464 | CW118: 0.0001269334023 | CX118: 1.422581146e-10 | CY118: 5.165944146e-31 | CZ118: 5.399599407e-19 | DA118: 0.9910621819 | DB118: 0.002395081547 | DC118: 5.247957498e-21 | DD118: 0.999488131 | DE118: 176.456906
B119: 118 | C119: 0.0003197177444 | D119: 0.492603839 | E119: 0.188098033 | F119: 1.937300775e-07 | G119: 3.426896198e-21 | H119: 3.952851644e-78 | I119: 1.454962923e-26 | J119: 3.055501808e-09 | K119: 7.679794154e-08 | L119: 1.486327346e-13 | M119: 5.828640816e-09 | N119: 0.06562634914 | O119: 0.5593152563 | P119: 0.7168218035 | Q119: 0.9148071509 | R119: 1.523294563e-05 | S119: 4.722692661e-12 | T119: 1.217730588e-21 | U119: 5.629601983e-08 | V119: 0.05559800276 | W119: 0.01359148208 | X119: 4.588116341e-49 | Y119: 2.596223966e-33 | Z119: 0.1517255473 | AA119: 0.906937264 | AB119: 0.9992782606 | AC119: 0.8422334893 | AD119: 1.934561612e-08 | AE119: 0.005053106886 | AF119: 5.994860735e-06 | AG119: 1.649346139e-10 | AH119: 0.3315097692 | AI119: 1.33434261e-08 | AJ119: 0.0002549834288 | AK119: 3.164624679e-48 | AL119: 2.419892496e-12 | AM119: 0.001636227487 | AN119: 0.9657521994 | AO119: 0.003831695057 | AP119: 0.0008448748906 | AQ119: 0.008710727212 | AR119: 1.920160125e-17 | AS119: 3.613300269e-49 | AT119: 0.0002183048669 | AU119: 5.003427191e-12 | AV119: 0.1957693693 | AW119: 8.942792751e-53 | AX119: 0.0001196128836 | AY119: 0.6222968807 | AZ119: 0.1419489206 | BA119: 0.5665567653 | BB119: 0.126880193 | BC119: 1.463651307e-13 | BD119: 0.002620599947 | BE119: 2.074162515e-05 | BF119: 0.04972487341 | BG119: 1.102649049e-27 | BH119: 1.666165624e-21 | BI119: 1.95483518e-31 | BJ119: 0.6247210805 | BK119: 0.6283562477 | BL119: 0.9282093305 | BM119: 0.01854624382 | BN119: 2.728845822e-08 | BO119: 1.935391942e-20 | BP119: 1.547483473e-22 | BQ119: 4.401819697e-11 | BR119: 5.654481637e-37 | BS119: 4.076947546e-06 | BT119: 0.9842828245 | BU119: 9.002073619e-21 | BV119: 1.832553882e-06 | BW119: 0.7903352946 | BX119: 0.151137086 | BY119: 0.09494571232 | BZ119: 1.943408645e-05 | CA119: 0.9996620571 | CB119: 7.71410046e-31 | CC119: 2.928058311e-27 | CD119: 5.332805527e-05 | CE119: 3.112604576e-20 | CF119: 2.108851111e-14 | CG119: 2.468122739e-09 | CH119: 0.01865125207 | CI119: 1.803605045e-05 | CJ119: 0.006170039741 | CK119: 0.2571869568 | CL119: 0.005976022895 | CM119: 1.247336193e-24 | CN119: 6.577771567e-97 | CO119: 5.247957498e-21 | CP119: 0.1347947538 | CQ119: 1.989044174e-13 | CR119: 8.84767548e-19 | CS119: 5.412699885e-11 | CT119: 1.400115547e-19 | CU119: 3.156229197e-11 | CV119: 0.5173932786 | CW119: 0.000138128244 | CX119: 1.627350008e-10 | CY119: 6.540985766e-31 | CZ119: 6.485473092e-19 | DA119: 0.9935230663 | DB119: 0.002566895723 | DC119: 6.365666583e-21 | DD119: 0.9999280026 | DE119: 176.7588457
B120: 119 | C120: 0.000346359952 | D120: 0.4809220886 | E120: 0.1950631357 | F120: 2.164730019e-07 | G120: 4.160415516e-21 | H120: 5.765185058e-78 | I120: 1.809300701e-26 | J120: 3.462475643e-09 | K120: 8.609555955e-08 | L120: 1.732955286e-13 | M120: 6.591255438e-09 | N120: 0.06874866231 | O120: 0.5472760183 | P120: 0.7284706081 | Q120: 0.9223763039 | R120: 1.673430088e-05 | S120: 5.45547186e-12 | T120: 1.481520541e-21 | U120: 6.317974991e-08 | V120: 0.05832479359 | W120: 0.01440943613 | X120: 6.182171324e-49 | Y120: 3.316327742e-33 | Z120: 0.1577029624 | AA120: 0.8987754979 | AB120: 0.9983194138 | AC120: 0.8519921209 | AD120: 2.179032005e-08 | AE120: 0.005391605888 | AF120: 6.611314887e-06 | AG120: 1.885925968e-10 | AH120: 0.3414418133 | AI120: 1.504828208e-08 | AJ120: 0.0002765408523 | AK120: 4.253041881e-48 | AL120: 2.800514404e-12 | AM120: 0.001757396195 | AN120: 0.9604743519 | AO120: 0.004095248008 | AP120: 0.0009107136819 | AQ120: 0.009262326685 | AR120: 2.288024041e-17 | AS120: 4.870231913e-49 | AT120: 0.0002369413301 | AU120: 5.77884084e-12 | AV120: 0.2029292262 | AW120: 1.218600216e-52 | AX120: 0.0001301985454 | AY120: 0.634411171 | AZ120: 0.1364212164 | BA120: 0.5544947169 | BB120: 0.1321163903 | BC120: 1.706584849e-13 | BD120: 0.00280713188 | BE120: 2.275585689e-05 | BF120: 0.05221163063 | BG120: 1.377617435e-27 | BH120: 2.025800544e-21 | BI120: 2.479224681e-31 | BJ120: 0.6368316144 | BK120: 0.6404603912 | BL120: 0.9352157759 | BM120: 0.01961995732 | BN120: 3.070126432e-08 | BO120: 2.341214613e-20 | BP120: 1.890554261e-22 | BQ120: 5.052777151e-11 | BR120: 7.320278991e-37 | BS120: 4.503201364e-06 | BT120: 0.9875955771 | BU120: 1.09071109e-20 | BV120: 2.030557849e-06 | BW120: 0.7794100435 | BX120: 0.1453445716 | BY120: 0.09913725251 | BZ120: 2.132731313e-05 | CA120: 0.9989425595 | CB120: 9.760756257e-31 | CC120: 3.651797495e-27 | CD120: 5.826389227e-05 | CE120: 3.761507696e-20 | CF120: 2.471099768e-14 | CG120: 2.798763848e-09 | CH120: 0.01973025568 | CI120: 1.979941829e-05 | CJ120: 0.006575201862 | CK120: 0.2487984868 | CL120: 0.006369718512 | CM120: 1.538257422e-24 | CN120: 1.001832605e-96 | CO120: 6.365666583e-21 | CP120: 0.1402733865 | CQ120: 2.317326635e-13 | CR120: 1.061549543e-18 | CS120: 6.209423285e-11 | CT120: 1.686600167e-19 | CU120: 3.626463834e-11 | CV120: 0.5293041815 | CW120: 0.0001502502982 | CX120: 1.860849176e-10 | CY120: 8.278715991e-31 | CZ120: 7.786603576e-19 | DA120: 0.995591745 | DB120: 0.002749935011 | DC120: 7.718337205e-21 | DD120: 0.9999680005 | DE120: 177.0580605
